Workbook

Sheet Entradas >>>>

Sheet Entradas no Texto
A1: Número | B1: Entrada | C1: Item
A2: 1 | B2: =CAPEX!E69 -> 853545092.8 | C2: 7.1. Capex
A3: 2 | B3: =B4+B5 -> 271275583.9 | C3: 7.1. Capex
A4: 3 | B4: =CAPEX!E66 -> 178195419.8 | C4: 7.1. Capex
A5: 4 | B5: =CAPEX!E67 -> 93080164.13 | C5: 7.1. Capex
A6: 5 | B6: =CAPEX!E68 -> 582269508.9 | C6: 7.1. Capex
A7: 6 | B7: ='Painel de Controle'!J28 -> 1972.25 | C7: 7.2. Outorga da Terra
A8: 7 | B8: ='Painel de Controle'!J29 -> 9846.92 | C8: 7.2. Outorga da Terra
A9: 8 | B9: ='Painel de Controle'!J30 -> 19420587.97 | C9: 7.2. Outorga da Terra
A10: 10 | B10: =WACC!D8 -> 0.03706804644 | C10: 8.1.1.1. Taxa Livre de Risco
A11: 11 | B11: =WACC!D9 -> 0.1008992758 | C11: 8.1.1.2. Risco de Mercado
A12: 12 | B12: =WACC!D11 -> 0.6699377565 | C12: 8.1.1.3. Cálculo do Beta
A13: 13 | B13: =B12 -> 0.6699377565 | C13: 8.1.1.3. Cálculo do Beta
A14: 13 | B14: =WACC!D13 -> 1.333176136 | C14: 8.1.1.3. Cálculo do Beta
A15: 14 | B15: =WACC!D15 -> 0.02831941363 | C15: 8.1.1.4. Prêmio de Risco Adicional
A16: 15 | B16: =B15 -> 0.02831941363 | C16: 8.1.1.4. Prêmio de Risco Adicional
A17: 16 | B17: =B16*10000 -> 283.1941363 | C17: 8.1.1.4. Prêmio de Risco Adicional
A18: 17 | B18: =B16 -> 0.02831941363 | C18: 8.1.1.4. Prêmio de Risco Adicional
A19: 18 | B19: =B18+3.71% -> 0.06541941363 | C19: 8.1.1.4. Prêmio de Risco Adicional
A20: 19 | B20: =WACC!D17 -> 0.02015276342 | C20: 8.1.1.5. Inflação
A21: 20 | B21: =B20 -> 0.02015276342 | C21: 8.1.1.5. Inflação
A22: 25 | B22: =WACC!D20 -> 0.06798317143 | C22: 8.1.2. Custo do Capital de Terceiros
A23: 26 | B23: =WACC!D22 -> 0.09189321718 | C23: 8.1.3. Cálculo do Custo Médio Ponderado de Capital
A24: 27 | C24: 8.1.3. Cálculo do Custo Médio Ponderado de Capital | D24: =WACC!D18 -> 0.1277582858 | E24: x | F24: =WACC!D5 -> 0.4 | G24: + | H24: =WACC!D20 -> 0.06798317143 | I24: x | J24: =WACC!D6 -> 0.6
A25: 28 | B25: =B23 -> 0.09189321718 | C25: 8.1.3. Cálculo do Custo Médio Ponderado de Capital
A26: 29 | B26: =WACC!D20 -> 0.06798317143 | C26: 8.2. Financiamento
A27: 30 | B27: =Financiamento!C13*12 -> 240 | C27: 8.2. Financiamento
A28: 31 | B28: ='Tabelas no Texto'!F375 -> 718887113.8 | C28: 8.2.1. Parâmetros de amortização da dívida | D28: Despesas Financeiras
A29: 32 | B29: ='Painel de Controle'!R7*1000+CAPEX!E66*40%+CAPEX!E67*40% -> 118697376.6 | C29: 8.2.1. Parâmetros de amortização da dívida | D29: Capital Próprio
A30: 33 | B30: =Financiamento!C8*Financiamento!C10*1000 -> 529773047.3 | C30: 8.2.1. Parâmetros de amortização da dívida | D30: Capital de Terceiros
A31: 34 | B31: ='Painel de Controle'!R7*1000 -> 10187143 | C31: 8.2.1. Parâmetros de amortização da dívida
A32: 35 | B32: =1-B33 -> 0.1830420821 | C32: 8.2.1. Parâmetros de amortização da dívida
A33: 36 | B33: =B30/(B30+B29) -> 0.8169579179 | C33: 8.2.1. Parâmetros de amortização da dívida
A34: 37 | B34: =WACC!D22 -> 0.09189321718 | C34: 9.1. VPL
A35: 38 | B35: ='Painel de Controle'!R9*1000 -> 32365565.6 | C35: 9.1. VPL
B36: =WACC!D18 -> 0.1277582858 | C36: 9.1. VPL
A37: 39 | B37: ='Painel de Controle'!R15*1000 -> 21581171.7 | C37: 9.1. VPL
A38: 40 | B38: =B34 -> 0.09189321718 | C38: 9.1. VPL
A39: 41 | B39: ='Painel de Controle'!R8*1000 -> 22178422.59 | C39: 9.1. VPL
B40: =B36 -> 0.1277582858 | C40: 9.1. VPL
A41: 42 | B41: ='Painel de Controle'!R14*1000 -> 7187990.292 | C41: 9.1. VPL
A42: 43 | B42: ='Painel de Controle'!R9*1000 -> 32365565.6 | C42: 9.1. VPL
A43: 44 | B43: ='Painel de Controle'!R15*1000 -> 21581171.7 | C43: 9.1. VPL
A44: 45 | B44: =WACC!D22 -> 0.09189321718 | C44: 9.2. TIR
A45: 46 | B45: ='Painel de Controle'!R6 -> 0.1014206713 | C45: 9.2. TIR
A46: 47 | B46: ='Painel de Controle'!R12 -> 0.1489637557 | C46: 9.2. TIR
A47: 48 | B47: =B44 -> 0.09189321718 | C47: 9.2. TIR
A48: 49 | B48: ='Painel de Controle'!R10 -> 15 | C48: 9.3. Payback
A49: 50 | B49: ='Painel de Controle'!R16 -> 11 | C49: 9.3. Payback
A50: 51 | B50: ='Painel de Controle'!R7*1000 -> 10187143 | C50: 9.4. Remuneração do Poder Concedente
A51: 52 | B51: =1-B50/'Investimentos Prévios - CDRU'!D87 -> -339570.4335 | C51: 9.4. Remuneração do Poder Concedente
A52: 53 | B52: =Sensibilidade!F12 -> 0.07601658848 | C52: 10.1. Variação nos Custos de Investimento e Opex
A53: 54 | B53: =Sensibilidade!D10 -> 0.1294074212 | C53: 10.1. Variação nos Custos de Investimento e Opex
A54: 55 | B54: =Sensibilidade!L12 -> 0.09025965059 | C54: 10.1. Variação nos Custos de Investimento e Opex
A55: 56 | B55: =Sensibilidade!J10 -> 0.2302199461 | C55: 10.1. Variação nos Custos de Investimento e Opex
A56: 57 | B56: =Sensibilidade!D18 -> 0.05067586096 | C56: 10.2. Variação nos Custos de Investimento e nas Receitas
A57: 58 | B57: =Sensibilidade!F16 -> 0.1519512516 | C57: 10.2. Variação nos Custos de Investimento e nas Receitas
A58: 59 | B58: =Sensibilidade!J18 -> 0.04111902425 | C58: 10.2. Variação nos Custos de Investimento e nas Receitas
A59: 60 | B59: =Sensibilidade!L16 -> 0.2788697239 | C59: 10.2. Variação nos Custos de Investimento e nas Receitas
A60: 61 | B60: =Sensibilidade!D25 -> 0.04050779114 | C60: 10.3. Variação nos Custos de Operação e nas Receitas
A61: 62 | B61: =Sensibilidade!F23 -> 0.1591619421 | C61: 10.3. Variação nos Custos de Operação e nas Receitas
A62: 63 | B62: =Sensibilidade!J25 -> 0.02040801927 | C62: 10.3. Variação nos Custos de Operação e nas Receitas
A63: 64 | B63: =Sensibilidade!L23 -> 0.2879984965 | C63: 10.3. Variação nos Custos de Operação e nas Receitas

Sheet Tabelas no Texto
A1: Tabela 1 - Distribuição de área por cultivo
A2: ='Painel de Controle'!B24 -> Cultivo | B2: ='Painel de Controle'!C24 -> % Área | C2: ='Painel de Controle'!D24 -> Área (ha)
A3: ='Painel de Controle'!B25 -> Melancia | B3: ='Painel de Controle'!C25 -> 0.025 | C3: ='Painel de Controle'!D25 -> 150.419
A4: ='Painel de Controle'!B26 -> Melão | B4: ='Painel de Controle'!C26 -> 0.025 | C4: ='Painel de Controle'!D26 -> 150.419
A5: ='Painel de Controle'!B27 -> Tomate | B5: ='Painel de Controle'!C27 -> 0.05 | C5: ='Painel de Controle'!D27 -> 300.838
A6: ='Painel de Controle'!B28 -> Feijão | B6: ='Painel de Controle'!C28 -> 0.1 | C6: ='Painel de Controle'!D28 -> 601.676
A7: ='Painel de Controle'!B29 -> Abacaxi | B7: ='Painel de Controle'!C29 -> 0.025 | C7: ='Painel de Controle'!D29 -> 150.419
A8: ='Painel de Controle'!B30 -> Acerola | B8: ='Painel de Controle'!C30 -> 0.1 | C8: ='Painel de Controle'!D30 -> 601.676
A9: ='Painel de Controle'!B31 -> Banana | B9: ='Painel de Controle'!C31 -> 0.4 | C9: ='Painel de Controle'!D31 -> 2406.704
A10: ='Painel de Controle'!B32 -> Coco | B10: ='Painel de Controle'!C32 -> 0.1 | C10: ='Painel de Controle'!D32 -> 601.676
A11: ='Painel de Controle'!B33 -> Goiaba | B11: ='Painel de Controle'!C33 -> 0.1 | C11: ='Painel de Controle'!D33 -> 601.676
A12: ='Painel de Controle'!B34 -> Laranja | B12: ='Painel de Controle'!C34 -> 0.1 | C12: ='Painel de Controle'!D34 -> 601.676
A13: ='Painel de Controle'!B35 -> Mamão | B13: ='Painel de Controle'!C35 -> 0.025 | C13: ='Painel de Controle'!D35 -> 150.419
A14: ='Painel de Controle'!B36 -> Maracujá | B14: ='Painel de Controle'!C36 -> 0.025 | C14: ='Painel de Controle'!D36 -> 150.419
A15: ='Painel de Controle'!B37 -> Uva | B15: ='Painel de Controle'!C37 -> 0.025 | C15: ='Painel de Controle'!D37 -> 150.419
A17: Tabela 2 - Receita Líquida da produção agrícola
A18: Ano | B18: Receita | C18: Ano | D18: Receita
A19: 1 | B19: =SUMIF('FC Projeto'!$D$12:$AL$12,A19,'FC Projeto'!$D$14:$AL$14) -> 0 | C19: 19 | D19: =SUMIF('FC Projeto'!$D$12:$AL$12,C19,'FC Projeto'!$D$14:$AL$14) -> 279057.4892
A20: 2 | B20: =SUMIF('FC Projeto'!$D$12:$AL$12,A20,'FC Projeto'!$D$14:$AL$14) -> 0 | C20: 20 | D20: =SUMIF('FC Projeto'!$D$12:$AL$12,C20,'FC Projeto'!$D$14:$AL$14) -> 279057.4892
A21: 3 | B21: =SUMIF('FC Projeto'!$D$12:$AL$12,A21,'FC Projeto'!$D$14:$AL$14) -> 0 | C21: 21 | D21: =SUMIF('FC Projeto'!$D$12:$AL$12,C21,'FC Projeto'!$D$14:$AL$14) -> 279057.4892
A22: 4 | B22: =SUMIF('FC Projeto'!$D$12:$AL$12,A22,'FC Projeto'!$D$14:$AL$14) -> 82730.83637 | C22: 22 | D22: =SUMIF('FC Projeto'!$D$12:$AL$12,C22,'FC Projeto'!$D$14:$AL$14) -> 279057.4892
A23: 5 | B23: =SUMIF('FC Projeto'!$D$12:$AL$12,A23,'FC Projeto'!$D$14:$AL$14) -> 131244.3443 | C23: 23 | D23: =SUMIF('FC Projeto'!$D$12:$AL$12,C23,'FC Projeto'!$D$14:$AL$14) -> 279057.4892
A24: 6 | B24: =SUMIF('FC Projeto'!$D$12:$AL$12,A24,'FC Projeto'!$D$14:$AL$14) -> 186158.2958 | C24: 24 | D24: =SUMIF('FC Projeto'!$D$12:$AL$12,C24,'FC Projeto'!$D$14:$AL$14) -> 279057.4892
A25: 7 | B25: =SUMIF('FC Projeto'!$D$12:$AL$12,A25,'FC Projeto'!$D$14:$AL$14) -> 233744.2032 | C25: 25 | D25: =SUMIF('FC Projeto'!$D$12:$AL$12,C25,'FC Projeto'!$D$14:$AL$14) -> 279057.4892
A26: 8 | B26: =SUMIF('FC Projeto'!$D$12:$AL$12,A26,'FC Projeto'!$D$14:$AL$14) -> 279057.4892 | C26: 26 | D26: =SUMIF('FC Projeto'!$D$12:$AL$12,C26,'FC Projeto'!$D$14:$AL$14) -> 279057.4892
A27: 9 | B27: =SUMIF('FC Projeto'!$D$12:$AL$12,A27,'FC Projeto'!$D$14:$AL$14) -> 279057.4892 | C27: 27 | D27: =SUMIF('FC Projeto'!$D$12:$AL$12,C27,'FC Projeto'!$D$14:$AL$14) -> 279057.4892
A28: 10 | B28: =SUMIF('FC Projeto'!$D$12:$AL$12,A28,'FC Projeto'!$D$14:$AL$14) -> 279057.4892 | C28: 28 | D28: =SUMIF('FC Projeto'!$D$12:$AL$12,C28,'FC Projeto'!$D$14:$AL$14) -> 279057.4892
A29: 11 | B29: =SUMIF('FC Projeto'!$D$12:$AL$12,A29,'FC Projeto'!$D$14:$AL$14) -> 279057.4892 | C29: 29 | D29: =SUMIF('FC Projeto'!$D$12:$AL$12,C29,'FC Projeto'!$D$14:$AL$14) -> 279057.4892
A30: 12 | B30: =SUMIF('FC Projeto'!$D$12:$AL$12,A30,'FC Projeto'!$D$14:$AL$14) -> 279057.4892 | C30: 30 | D30: =SUMIF('FC Projeto'!$D$12:$AL$12,C30,'FC Projeto'!$D$14:$AL$14) -> 279057.4892
A31: 13 | B31: =SUMIF('FC Projeto'!$D$12:$AL$12,A31,'FC Projeto'!$D$14:$AL$14) -> 279057.4892 | C31: 31 | D31: =SUMIF('FC Projeto'!$D$12:$AL$12,C31,'FC Projeto'!$D$14:$AL$14) -> 279057.4892
A32: 14 | B32: =SUMIF('FC Projeto'!$D$12:$AL$12,A32,'FC Projeto'!$D$14:$AL$14) -> 279057.4892 | C32: 32 | D32: =SUMIF('FC Projeto'!$D$12:$AL$12,C32,'FC Projeto'!$D$14:$AL$14) -> 279057.4892
A33: 15 | B33: =SUMIF('FC Projeto'!$D$12:$AL$12,A33,'FC Projeto'!$D$14:$AL$14) -> 279057.4892 | C33: 33 | D33: =SUMIF('FC Projeto'!$D$12:$AL$12,C33,'FC Projeto'!$D$14:$AL$14) -> 279057.4892
A34: 16 | B34: =SUMIF('FC Projeto'!$D$12:$AL$12,A34,'FC Projeto'!$D$14:$AL$14) -> 279057.4892 | C34: 34 | D34: =SUMIF('FC Projeto'!$D$12:$AL$12,C34,'FC Projeto'!$D$14:$AL$14) -> 279057.4892
A35: 17 | B35: =SUMIF('FC Projeto'!$D$12:$AL$12,A35,'FC Projeto'!$D$14:$AL$14) -> 279057.4892 | C35: 35 | D35: =SUMIF('FC Projeto'!$D$12:$AL$12,C35,'FC Projeto'!$D$14:$AL$14) -> 279057.4892
A36: 18 | B36: =SUMIF('FC Projeto'!$D$12:$AL$12,A36,'FC Projeto'!$D$14:$AL$14) -> 279057.4892
A38: Tabela 3 - Capex - Infraestrutura de Irrigação e de apoio
A39: =CAPEX!C9 -> Discriminação | B39: =CAPEX!D9 -> Vida Útil (anos) | C39: =CAPEX!E9 -> Valores (R$)
A40: =CAPEX!C10 -> Custos diversos
A41: =CAPEX!C11 -> Desmatamento das áreas agrícolas (SAU) | B41: =CAPEX!D11 -> 35 | C41: =CAPEX!E11 -> 29604917.08
A42: =CAPEX!C12 -> M. Ambiente (Estudos, Licenças e Exec. PBAs ) | B42: =CAPEX!D12 -> 35 | C42: =CAPEX!E12 -> 49646210.06
A43: =CAPEX!C13 -> Consultoria (projetos) | B43: =CAPEX!D13 -> 35 | C43: =CAPEX!E13 -> 2341761.651
A44: =CAPEX!C14 -> Consultoria (supervisão de obras) | B44: =CAPEX!D14 -> 35 | C44: =CAPEX!E14 -> 2341761.651
A45: =CAPEX!C15 -> Serviços preliminares
A46: =CAPEX!C16 -> Mobilização e desmobilização | B46: =CAPEX!D16 -> 35 | C46: =CAPEX!E16 -> 3274385.912
A47: =CAPEX!C17 -> Administração direta | B47: =CAPEX!D17 -> 35 | C47: =CAPEX!E17 -> 14902875.19
A48: =CAPEX!C18 -> Implantação do canteiro de obras | B48: =CAPEX!D18 -> 35 | C48: =CAPEX!E18 -> 1637192.956
A49: =CAPEX!C19 -> Infraestrutura
A50: =CAPEX!C20 -> Canal de aproximação | B50: =CAPEX!D20 -> 35 | C50: =CAPEX!E20 -> 1025379.482
A51: =CAPEX!C21 -> EBP-1 - Fase 1 | B51: =CAPEX!D21 -> 30 | C51: =CAPEX!E21 -> 1499645.784
A52: =CAPEX!C22 -> Adutora EBP-1 - Fase 1 | B52: =CAPEX!D22 -> 30 | C52: =CAPEX!E22 -> 166262.826
A53: =CAPEX!C23 -> EBP-1 - Fase 2 | B53: =CAPEX!D23 -> 30 | C53: =CAPEX!E23 -> 64763.91131
A54: =CAPEX!C24 -> Adutora Principal 1 | B54: =CAPEX!D24 -> 30 | C54: =CAPEX!E24 -> 38695.81093
A55: =CAPEX!C25 -> Reservatório pulmão e canal principal | B55: =CAPEX!D25 -> 35 | C55: =CAPEX!E25 -> 1678934.084
A56: =CAPEX!C26 -> Canais CS-2 e CT-2.4 | B56: =CAPEX!D26 -> 35 | C56: =CAPEX!E26 -> 6881742.03
A57: =CAPEX!C27 -> Adutora para lotes Área INCRA (antigo CT-2.2) | B57: =CAPEX!D27 -> 30 | C57: =CAPEX!E27 -> 184216.6699
A58: =CAPEX!C28 -> Tomadas e elevatórias p/ parcelas junto aos canais | B58: =CAPEX!D28 -> 35 | C58: =CAPEX!E28 -> 8559952.246
A59: =CAPEX!C29 -> EBP-2 | B59: =CAPEX!D29 -> 30 | C59: =CAPEX!E29 -> 2705026.179
A60: =CAPEX!C30 -> Adutora Principal 2 | B60: =CAPEX!D30 -> 30 | C60: =CAPEX!E30 -> 25723.88709
A61: =CAPEX!C31 -> Proteção catódica | B61: =CAPEX!D31 -> 30 | C61: =CAPEX!E31 -> 607274.4338
A62: =CAPEX!C32 -> Estações de bombeamento (EBS 1, 2, 3 e 4)) | B62: =CAPEX!D32 -> 30 | C62: =CAPEX!E32 -> 21496784.37
A63: =CAPEX!C33 -> Redes de adutoras pressurizadas (SH 1, 2, 3 e 4) | B63: =CAPEX!D33 -> 30 | C63: =CAPEX!E33 -> 3624650.545
A64: =CAPEX!C34 -> Sistema de drenagem | B64: =CAPEX!D34 -> 35 | C64: =CAPEX!E34 -> 2552717.749
A65: =CAPEX!C35 -> Sistema viário | B65: =CAPEX!D35 -> 35 | C65: =CAPEX!E35 -> 872849.8103
A66: =CAPEX!C36 -> Suprimento de energia elétrica
A67: =CAPEX!C37 -> Bay de saída e LT de 69kV - Serviços | B67: =CAPEX!D37 -> 20 | C67: =CAPEX!E37 -> 2188919.945
A68: =CAPEX!C38 -> Subestações EBP-I/II, EBS-1, 2, 3 e 4 | B68: =CAPEX!D38 -> 20 | C68: =CAPEX!E38 -> 10472406.54
A69: =CAPEX!C39 -> Linha de transmissão de 34,5kv | B69: =CAPEX!D39 -> 20 | C69: =CAPEX!E39 -> 2201756.08
A70: =CAPEX!C40 -> Linha de distrib. 13,8/0,38/0,22kv (postos 34,5/13,8kv, 5km linha, 26 pontos de entrega 380/220v) | B70: =CAPEX!D40 -> 20 | C70: =CAPEX!E40 -> 5442917.361
A71: =CAPEX!C41 -> Instrumentação, automação e CFTV (EBPI+II, SE EBP, R. Pulmão, 4 x EBS e SES, 3x comportas) | B71: =CAPEX!D41 -> 20 | C71: =CAPEX!E41 -> 2155695.56
A72: =CAPEX!C48 -> Infraestrutura de Irrigação e de Apoio | C72: =CAPEX!E48 -> 178195419.8
A74: Tabela 4 - Capex - On Farm
A75: =CAPEX!C50 -> Discriminação | B75: =CAPEX!D50 -> Vida Útil (anos) | C75: =CAPEX!E50 -> Valores (R$)
A76: =CAPEX!C51 -> Investimento on farm
A77: =CAPEX!C52 -> Ramais móveis e emissores | B77: =CAPEX!D52 -> 5 | C77: =CAPEX!E52 -> 41208749.46
A78: =CAPEX!C53 -> Rede de distribuição e cavaletes (fornec.) | B78: =CAPEX!D53 -> 15 | C78: =CAPEX!E53 -> 33676814.36
A79: =CAPEX!C54 -> Assentam. e montagem dos tubos da rede e cavaletes | B79: =CAPEX!D54 -> 15 | C79: =CAPEX!E54 -> 18194600.31
A80: =CAPEX!C55 -> Investimento on farm | C80: =CAPEX!E55 -> 93080164.13
A82: Tabela 5 - Capex - Reinvestimentos
A83: =CAPEX!C57 -> Discriminação | B83: =CAPEX!D57 -> Vida Útil (anos) | C83: =CAPEX!E57 -> Valores (R$)
A85: =CAPEX!C59 -> Ramais móveis e emissores | B85: =CAPEX!D59 -> 5 | C85: =CAPEX!E59 -> 206043747.3
A86: =CAPEX!C60 -> Rede de distribuição e cavaletes | B86: =CAPEX!D60 -> 15 | C86: =CAPEX!E60 -> 103742829.3
A87: =CAPEX!C61 -> Equipamentos EBPs, EBS, EBAs - Redes e Equip. Elétricos | B87: =CAPEX!D61 -> 20 | C87: =CAPEX!E61 -> 135444024.9
A88: =CAPEX!C62 -> Equipamentos Adutoras, Canais, Sifões Inv. e Redes Tubos Setores | B88: =CAPEX!D62 -> 30 | C88: =CAPEX!E62 -> 137038907.4
A89: =CAPEX!C63 -> Reinvestimento | C89: =CAPEX!E63 -> 582269508.9
A91: Tabela 6 - Capex - Resumo
A92: =CAPEX!C65 -> Discriminação | B92: =CAPEX!E65 -> Valores (R$)
A93: Infraestrutura de Irrigação e de Apoio | B93: =CAPEX!E66 -> 178195419.8 | C93: =B93+B94 -> 271275583.9 | D93: =C93/1000 -> 271275.5839
A94: =CAPEX!C67 -> Investimento on farm | B94: =CAPEX!E67 -> 93080164.13
A95: =CAPEX!C68 -> Reinvestimento | B95: =CAPEX!E68 -> 582269508.9
A96: =CAPEX!C69 -> Investimento Total | B96: =CAPEX!E69 -> 853545092.8
A98: Tabela 7 - Cronograma Físico-Financeiro dos Investimentos em Infraestrutura de Irrigação e de Apoio
A99: =A39 -> Discriminação | B99: =CAPEX!F9 -> 1 | C99: =CAPEX!G9 -> 2 | D99: =CAPEX!H9 -> 3 | E99: =CAPEX!I9 -> 4 | F99: =CAPEX!J9 -> 5 | G99: =CAPEX!K9 -> 6 | H99: =CAPEX!L9 -> 7
A100: =A40 -> Custos diversos
A101: =A41 -> Desmatamento das áreas agrícolas (SAU) | B101: =CAPEX!F11 -> 0 | C101: =CAPEX!G11 -> 0 | D101: =CAPEX!H11 -> 8776810.567 | E101: =CAPEX!I11 -> 5146751.573 | F101: =CAPEX!J11 -> 5825768.511 | G101: =CAPEX!K11 -> 5048343.322 | H101: =CAPEX!L11 -> 4807243.104
A102: =A42 -> M. Ambiente (Estudos, Licenças e Exec. PBAs ) | B102: =CAPEX!F12 -> 2532964.65 | C102: =CAPEX!G12 -> 4726100.414 | D102: =CAPEX!H12 -> 8553411.005 | E102: =CAPEX!I12 -> 8060282.146 | F102: =CAPEX!J12 -> 8886621.61 | G102: =CAPEX!K12 -> 8731314.567 | H102: =CAPEX!L12 -> 8155515.665
A103: Consultoria (projetos) | B103: =CAPEX!F13 -> 2341761.651 | C103: =CAPEX!G13 -> 0 | D103: =CAPEX!H13 -> 0 | E103: =CAPEX!I13 -> 0 | F103: =CAPEX!J13 -> 0 | G103: =CAPEX!K13 -> 0 | H103: =CAPEX!L13 -> 0
A104: Consultoria (supervisão de obras) | B104: =CAPEX!F14 -> 0 | C104: =CAPEX!G14 -> 390293.6085 | D104: =CAPEX!H14 -> 390293.6085 | E104: =CAPEX!I14 -> 390293.6085 | F104: =CAPEX!J14 -> 390293.6085 | G104: =CAPEX!K14 -> 390293.6085 | H104: =CAPEX!L14 -> 390293.6085
A105: Serviços preliminares
A106: Mobilização e desmobilização | B106: =CAPEX!F16 -> 0 | C106: =CAPEX!G16 -> 1637192.956 | D106: =CAPEX!H16 -> 0 | E106: =CAPEX!I16 -> 0 | F106: =CAPEX!J16 -> 0 | G106: =CAPEX!K16 -> 0 | H106: =CAPEX!L16 -> 1637192.956
A107: Administração direta | B107: =CAPEX!F17 -> 0 | C107: =CAPEX!G17 -> 2483812.532 | D107: =CAPEX!H17 -> 2483812.532 | E107: =CAPEX!I17 -> 2483812.532 | F107: =CAPEX!J17 -> 2483812.532 | G107: =CAPEX!K17 -> 2483812.532 | H107: =CAPEX!L17 -> 2483812.532
A108: Implantação do canteiro de obras | B108: =CAPEX!F18 -> 0 | C108: =CAPEX!G18 -> 1637192.956 | D108: =CAPEX!H18 -> 0 | E108: =CAPEX!I18 -> 0 | F108: =CAPEX!J18 -> 0 | G108: =CAPEX!K18 -> 0 | H108: =CAPEX!L18 -> 0
A109: Infraestrutura
A110: Canal de aproximação | B110: =CAPEX!F20 -> 0 | C110: =CAPEX!G20 -> 1025379.482 | D110: =CAPEX!H20 -> 0 | E110: =CAPEX!I20 -> 0 | F110: =CAPEX!J20 -> 0 | G110: =CAPEX!K20 -> 0 | H110: =CAPEX!L20 -> 0
A111: EBP-1 - Fase 1 | B111: =CAPEX!F21 -> 0 | C111: =CAPEX!G21 -> 599858.3137 | D111: =CAPEX!H21 -> 899787.4705 | E111: =CAPEX!I21 -> 0 | F111: =CAPEX!J21 -> 0 | G111: =CAPEX!K21 -> 0 | H111: =CAPEX!L21 -> 0
A112: Adutora EBP-1 - Fase 1 | B112: =CAPEX!F22 -> 0 | C112: =CAPEX!G22 -> 166262.826 | D112: =CAPEX!H22 -> 0 | E112: =CAPEX!I22 -> 0 | F112: =CAPEX!J22 -> 0 | G112: =CAPEX!K22 -> 0 | H112: =CAPEX!L22 -> 0
A113: EBP-1 - Fase 2 | B113: =CAPEX!F23 -> 0 | C113: =CAPEX!G23 -> 64763.91131 | D113: =CAPEX!H23 -> 0 | E113: =CAPEX!I23 -> 0 | F113: =CAPEX!J23 -> 0 | G113: =CAPEX!K23 -> 0 | H113: =CAPEX!L23 -> 0
A114: Adutora Principal 1 | B114: =CAPEX!F24 -> 0 | C114: =CAPEX!G24 -> 38695.81093 | D114: =CAPEX!H24 -> 0 | E114: =CAPEX!I24 -> 0 | F114: =CAPEX!J24 -> 0 | G114: =CAPEX!K24 -> 0 | H114: =CAPEX!L24 -> 0
A115: Reservatório pulmão e canal principal | B115: =CAPEX!F25 -> 0 | C115: =CAPEX!G25 -> 1678934.084 | D115: =CAPEX!H25 -> 0 | E115: =CAPEX!I25 -> 0 | F115: =CAPEX!J25 -> 0 | G115: =CAPEX!K25 -> 0 | H115: =CAPEX!L25 -> 0
A116: Canais CS-2 e CT-2.4 | B116: =CAPEX!F26 -> 0 | C116: =CAPEX!G26 -> 3440871.015 | D116: =CAPEX!H26 -> 3440871.015 | E116: =CAPEX!I26 -> 0 | F116: =CAPEX!J26 -> 0 | G116: =CAPEX!K26 -> 0 | H116: =CAPEX!L26 -> 0
A117: Adutora para lotes Área INCRA (antigo CT-2.2) | B117: =CAPEX!F27 -> 0 | C117: =CAPEX!G27 -> 184216.6699 | D117: =CAPEX!H27 -> 0 | E117: =CAPEX!I27 -> 0 | F117: =CAPEX!J27 -> 0 | G117: =CAPEX!K27 -> 0 | H117: =CAPEX!L27 -> 0
A118: Tomadas e elevatórias p/ parcelas junto aos canais | B118: =CAPEX!F28 -> 0 | C118: =CAPEX!G28 -> 8559952.246 | D118: =CAPEX!H28 -> 0 | E118: =CAPEX!I28 -> 0 | F118: =CAPEX!J28 -> 0 | G118: =CAPEX!K28 -> 0 | H118: =CAPEX!L28 -> 0
A119: EBP-2 | B119: =CAPEX!F29 -> 0 | C119: =CAPEX!G29 -> 0 | D119: =CAPEX!H29 -> 1082010.471 | E119: =CAPEX!I29 -> 1623015.707 | F119: =CAPEX!J29 -> 0 | G119: =CAPEX!K29 -> 0 | H119: =CAPEX!L29 -> 0
A120: Adutora Principal 2 | B120: =CAPEX!F30 -> 0 | C120: =CAPEX!G30 -> 0 | D120: =CAPEX!H30 -> 10289.55484 | E120: =CAPEX!I30 -> 15434.33225 | F120: =CAPEX!J30 -> 0 | G120: =CAPEX!K30 -> 0 | H120: =CAPEX!L30 -> 0
A121: Proteção catódica | B121: =CAPEX!F31 -> 0 | C121: =CAPEX!G31 -> 0 | D121: =CAPEX!H31 -> 303637.2169 | E121: =CAPEX!I31 -> 303637.2169 | F121: =CAPEX!J31 -> 0 | G121: =CAPEX!K31 -> 0 | H121: =CAPEX!L31 -> 0
A122: Estações de bombeamento (EBS 1, 2, 3 e 4)) | B122: =CAPEX!F32 -> 0 | C122: =CAPEX!G32 -> 0 | D122: =CAPEX!H32 -> 0 | E122: =CAPEX!I32 -> 5374196.093 | F122: =CAPEX!J32 -> 5374196.093 | G122: =CAPEX!K32 -> 5374196.093 | H122: =CAPEX!L32 -> 5374196.093
A123: Redes de adutoras pressurizadas (SH 1, 2, 3 e 4) | B123: =CAPEX!F33 -> 0 | C123: =CAPEX!G33 -> 0 | D123: =CAPEX!H33 -> 0 | E123: =CAPEX!I33 -> 906162.6364 | F123: =CAPEX!J33 -> 906162.6364 | G123: =CAPEX!K33 -> 906162.6364 | H123: =CAPEX!L33 -> 906162.6364
A124: Sistema de drenagem | B124: =CAPEX!F34 -> 0 | C124: =CAPEX!G34 -> 1021087.1 | D124: =CAPEX!H34 -> 0 | E124: =CAPEX!I34 -> 382907.6623 | F124: =CAPEX!J34 -> 382907.6623 | G124: =CAPEX!K34 -> 382907.6623 | H124: =CAPEX!L34 -> 382907.6623
A125: Sistema viário | B125: =CAPEX!F35 -> 0 | C125: =CAPEX!G35 -> 349139.9241 | D125: =CAPEX!H35 -> 0 | E125: =CAPEX!I35 -> 130927.4715 | F125: =CAPEX!J35 -> 130927.4715 | G125: =CAPEX!K35 -> 130927.4715 | H125: =CAPEX!L35 -> 130927.4715
A126: Suprimento de energia elétrica
A127: Bay de saída e LT de 69kV - Serviços | B127: =CAPEX!F37 -> 0 | C127: =CAPEX!G37 -> 875567.9779 | D127: =CAPEX!H37 -> 1313351.967 | E127: =CAPEX!I37 -> 0 | F127: =CAPEX!J37 -> 0 | G127: =CAPEX!K37 -> 0 | H127: =CAPEX!L37 -> 0
A128: Subestações EBP-I/II, EBS-1, 2, 3 e 4 | B128: =CAPEX!F38 -> 0 | C128: =CAPEX!G38 -> 4188962.617 | D128: =CAPEX!H38 -> 1570860.982 | E128: =CAPEX!I38 -> 1570860.982 | F128: =CAPEX!J38 -> 1570860.982 | G128: =CAPEX!K38 -> 1570860.982 | H128: =CAPEX!L38 -> 0
A129: Linha de transmissão de 34,5kv | B129: =CAPEX!F39 -> 0 | C129: =CAPEX!G39 -> 1321053.648 | D129: =CAPEX!H39 -> 880702.432 | E129: =CAPEX!I39 -> 0 | F129: =CAPEX!J39 -> 0 | G129: =CAPEX!K39 -> 0 | H129: =CAPEX!L39 -> 0
A130: Linha de distrib. 13,8/0,38/0,22kv (postos 34,5/13,8kv, 5km linha, 26 pontos de entrega 380/220v) | B130: =CAPEX!F40 -> 0 | C130: =CAPEX!G40 -> 5442917.361 | D130: =CAPEX!H40 -> 0 | E130: =CAPEX!I40 -> 0 | F130: =CAPEX!J40 -> 0 | G130: =CAPEX!K40 -> 0 | H130: =CAPEX!L40 -> 0
A131: Instrumentação, automação e CFTV (EBPI+II, SE EBP, R. Pulmão, 4 x EBS e SES, 3x comportas) | B131: =CAPEX!F41 -> 0 | C131: =CAPEX!G41 -> 862278.2242 | D131: =CAPEX!H41 -> 258683.4673 | E131: =CAPEX!I41 -> 258683.4673 | F131: =CAPEX!J41 -> 258683.4673 | G131: =CAPEX!K41 -> 258683.4673 | H131: =CAPEX!L41 -> 258683.4673
A132: Infraestrutura de Irrigação e de Apoio | B132: =CAPEX!F48 -> 4874726.3 | C132: =CAPEX!G48 -> 40694533.68 | D132: =CAPEX!H48 -> 29964522.29 | E132: =CAPEX!I48 -> 26646965.43 | F132: =CAPEX!J48 -> 26210234.57 | G132: =CAPEX!K48 -> 25277502.34 | H132: =CAPEX!L48 -> 24526935.2
A134: Tabela 8 - Cronograma Físico-Financeiro dos Investimentos on Farm
A135: =A75 -> Discriminação | B135: =CAPEX!I50 -> 4 | C135: =CAPEX!J50 -> 5 | D135: =CAPEX!K50 -> 6 | E135: =CAPEX!L50 -> 7 | F135: =CAPEX!M50 -> 8
A136: =A77 -> Ramais móveis e emissores | B136: =CAPEX!I52 -> 12216960.45 | C136: =CAPEX!J52 -> 7164047.084 | D136: =CAPEX!K52 -> 8109208.171 | E136: =CAPEX!L52 -> 7027067.216 | F136: =CAPEX!M52 -> 6691466.54
A137: =A78 -> Rede de distribuição e cavaletes (fornec.) | B137: =CAPEX!I53 -> 9984003.746 | C137: =CAPEX!J53 -> 5854637.349 | D137: =CAPEX!K53 -> 6627046.483 | E137: =CAPEX!L53 -> 5742693.997 | F137: =CAPEX!M53 -> 5468432.782
A138: =A79 -> Assentam. e montagem dos tubos da rede e cavaletes | B138: =CAPEX!I54 -> 5394065.951 | C138: =CAPEX!J54 -> 3163089.757 | D138: =CAPEX!K54 -> 3580399.878 | E138: =CAPEX!L54 -> 3102610.029 | F138: =CAPEX!M54 -> 2954434.696
A139: Total | B139: =CAPEX!I55 -> 27595030.14 | C139: =CAPEX!J55 -> 16181774.19 | D139: =CAPEX!K55 -> 18316654.53 | E139: =CAPEX!L55 -> 15872371.24 | F139: =CAPEX!M55 -> 15114334.02
A141: Tabela 9 - Cronograma Físico-Financeiro dos Reinvestimentos
A142: =A83 -> Discriminação | B142: =CAPEX!Q57 -> 12 | C142: =CAPEX!R57 -> 13 | D142: =CAPEX!S57 -> 14 | E142: =CAPEX!T57 -> 15 | F142: =CAPEX!U57 -> 16 | G142: =CAPEX!V57 -> 17 | H142: =CAPEX!W57 -> 18
A143: =A85 -> Ramais móveis e emissores | B143: =CAPEX!Q59 -> 13736249.82 | C143: =CAPEX!R59 -> 13736249.82 | D143: =CAPEX!S59 -> 13736249.82 | E143: =CAPEX!T59 -> 0 | F143: =CAPEX!U59 -> 0 | G143: =CAPEX!V59 -> 13736249.82 | H143: =CAPEX!W59 -> 13736249.82
A144: =A86 -> Rede de distribuição e cavaletes | B144: =CAPEX!Q60 -> 0 | C144: =CAPEX!R60 -> 0 | D144: =CAPEX!S60 -> 0 | E144: =CAPEX!T60 -> 17290471.56 | F144: =CAPEX!U60 -> 17290471.56 | G144: =CAPEX!V60 -> 17290471.56 | H144: =CAPEX!W60 -> 0
A145: =A87 -> Equipamentos EBPs, EBS, EBAs - Redes e Equip. Elétricos | B145: =CAPEX!Q61 -> 0 | C145: =CAPEX!R61 -> 0 | D145: =CAPEX!S61 -> 0 | E145: =CAPEX!T61 -> 0 | F145: =CAPEX!U61 -> 0 | G145: =CAPEX!V61 -> 0 | H145: =CAPEX!W61 -> 0
A146: =A88 -> Equipamentos Adutoras, Canais, Sifões Inv. e Redes Tubos Setores | B146: =CAPEX!Q62 -> 0 | C146: =CAPEX!R62 -> 0 | D146: =CAPEX!S62 -> 0 | E146: =CAPEX!T62 -> 0 | F146: =CAPEX!U62 -> 0 | G146: =CAPEX!V62 -> 0 | H146: =CAPEX!W62 -> 0
A147: Total | B147: =CAPEX!Q63 -> 13736249.82 | C147: =CAPEX!R63 -> 13736249.82 | D147: =CAPEX!S63 -> 13736249.82 | E147: =CAPEX!T63 -> 17290471.56 | F147: =CAPEX!U63 -> 17290471.56 | G147: =CAPEX!V63 -> 31026721.38 | H147: =CAPEX!W63 -> 13736249.82
A148: =A142 -> Discriminação | B148: =CAPEX!X57 -> 19 | C148: =CAPEX!Y57 -> 20 | D148: =CAPEX!Z57 -> 21 | E148: =CAPEX!AA57 -> 22 | F148: =CAPEX!AB57 -> 23 | G148: =CAPEX!AC57 -> 24 | H148: =CAPEX!AF57 -> 27
A149: =A143 -> Ramais móveis e emissores | B149: =CAPEX!X59 -> 13736249.82 | C149: =CAPEX!Y59 -> 0 | D149: =CAPEX!Z59 -> 0 | E149: =CAPEX!AA59 -> 13736249.82 | F149: =CAPEX!AB59 -> 13736249.82 | G149: =CAPEX!AC59 -> 13736249.82 | H149: =CAPEX!AF59 -> 13736249.82
A150: Rede de distribuição e cavaletes | B150: =CAPEX!X60 -> 0 | C150: =CAPEX!Y60 -> 0 | D150: =CAPEX!Z60 -> 0 | E150: =CAPEX!AA60 -> 0 | F150: =CAPEX!AB60 -> 0 | G150: =CAPEX!AC60 -> 0 | H150: =CAPEX!AF60 -> 0
A151: Equipamentos EBPs, EBS, EBAs - Redes e Equip. Elétricos | B151: =CAPEX!X61 -> 0 | C151: =CAPEX!Y61 -> 45148008.29 | D151: =CAPEX!Z61 -> 45148008.29 | E151: =CAPEX!AA61 -> 45148008.29 | F151: =CAPEX!AB61 -> 0 | G151: =CAPEX!AC61 -> 0 | H151: =CAPEX!AF61 -> 0
A152: Equipamentos Adutoras, Canais, Sifões Inv. e Redes Tubos Setores | B152: =CAPEX!X62 -> 0 | C152: =CAPEX!Y62 -> 0 | D152: =CAPEX!Z62 -> 0 | E152: =CAPEX!AA62 -> 0 | F152: =CAPEX!AB62 -> 0 | G152: =CAPEX!AC62 -> 0 | H152: =CAPEX!AF62 -> 0
A153: Total | B153: =CAPEX!X63 -> 13736249.82 | C153: =CAPEX!Y63 -> 45148008.29 | D153: =CAPEX!Z63 -> 45148008.29 | E153: =CAPEX!AA63 -> 58884258.11 | F153: =CAPEX!AB63 -> 13736249.82 | G153: =CAPEX!AC63 -> 13736249.82 | H153: =CAPEX!AF63 -> 13736249.82
A154: =A148 -> Discriminação | B154: =CAPEX!AG57 -> 28 | C154: =CAPEX!AH57 -> 29 | D154: =CAPEX!AI57 -> 30 | E154: =CAPEX!AJ57 -> 31 | F154: =CAPEX!AK57 -> 32 | G154: =CAPEX!AL57 -> 33 | H154: =CAPEX!AM57 -> 34
A155: =A149 -> Ramais móveis e emissores | B155: =CAPEX!AG59 -> 13736249.82 | C155: =CAPEX!AH59 -> 13736249.82 | D155: =CAPEX!AI59 -> 0 | E155: =CAPEX!AJ59 -> 0 | F155: =CAPEX!AK59 -> 13736249.82 | G155: =CAPEX!AL59 -> 13736249.82 | H155: =CAPEX!AM59 -> 13736249.82
A156: Rede de distribuição e cavaletes | B156: =CAPEX!AG60 -> 0 | C156: =CAPEX!AH60 -> 0 | D156: =CAPEX!AI60 -> 17290471.56 | E156: =CAPEX!AJ60 -> 17290471.56 | F156: =CAPEX!AK60 -> 17290471.56 | G156: =CAPEX!AL60 -> 0 | H156: =CAPEX!AM60 -> 0
A157: Equipamentos EBPs, EBS, EBAs - Redes e Equip. Elétricos | B157: =CAPEX!AG61 -> 0 | C157: =CAPEX!AH61 -> 0 | D157: =CAPEX!AI61 -> 0 | E157: =CAPEX!AJ61 -> 0 | F157: =CAPEX!AK61 -> 0 | G157: =CAPEX!AL61 -> 0 | H157: =CAPEX!AM61 -> 0
A158: Equipamentos Adutoras, Canais, Sifões Inv. e Redes Tubos Setores | B158: =CAPEX!AG62 -> 0 | C158: =CAPEX!AH62 -> 0 | D158: =CAPEX!AI62 -> 45679635.79 | E158: =CAPEX!AJ62 -> 45679635.79 | F158: =CAPEX!AK62 -> 45679635.79 | G158: =CAPEX!AL62 -> 0 | H158: =CAPEX!AM62 -> 0
A159: Total | B159: =CAPEX!AG63 -> 13736249.82 | C159: =CAPEX!AH62 -> 0 | D159: =CAPEX!AI63 -> 62970107.35 | E159: =CAPEX!AJ63 -> 62970107.35 | F159: =CAPEX!AK63 -> 76706357.16 | G159: =CAPEX!AL63 -> 13736249.82 | H159: =CAPEX!AM63 -> 13736249.82
A161: Tabela 10 - Cronograma Físico-Financeiro dos Investimentos - Resumo
A162: =A92 -> Discriminação | B162: =CAPEX!F65 -> 1 | C162: =CAPEX!G65 -> 2 | D162: =CAPEX!H65 -> 3 | E162: =CAPEX!I65 -> 4 | F162: =CAPEX!J65 -> 5 | G162: =CAPEX!K65 -> 6 | H162: =CAPEX!L65 -> 7
A163: =A93 -> Infraestrutura de Irrigação e de Apoio | B163: =CAPEX!F66 -> 4874726.3 | C163: =CAPEX!G66 -> 40694533.68 | D163: =CAPEX!H66 -> 29964522.29 | E163: =CAPEX!I66 -> 26646965.43 | F163: =CAPEX!J66 -> 26210234.57 | G163: =CAPEX!K66 -> 25277502.34 | H163: =CAPEX!L66 -> 24526935.2
A164: =A94 -> Investimento on farm | B164: =CAPEX!F67 -> 0 | C164: =CAPEX!G67 -> 0 | D164: =CAPEX!H67 -> 0 | E164: =CAPEX!I67 -> 27595030.14 | F164: =CAPEX!J67 -> 16181774.19 | G164: =CAPEX!K67 -> 18316654.53 | H164: =CAPEX!L67 -> 15872371.24
A165: =A95 -> Reinvestimento | B165: =CAPEX!F68 -> 0 | C165: =CAPEX!G68 -> 0 | D165: =CAPEX!H68 -> 0 | E165: =CAPEX!I68 -> 0 | F165: =CAPEX!J68 -> 0 | G165: =CAPEX!K68 -> 0 | H165: =CAPEX!L68 -> 0
A166: =A96 -> Investimento Total | B166: =CAPEX!F69 -> 4874726.3 | C166: =CAPEX!G69 -> 40694533.68 | D166: =CAPEX!H69 -> 29964522.29 | E166: =CAPEX!I69 -> 54241995.57 | F166: =CAPEX!J69 -> 42392008.76 | G166: =CAPEX!K69 -> 43594156.87 | H166: =CAPEX!L69 -> 40399306.44
A167: =A162 -> Discriminação | B167: =CAPEX!M65 -> 8 | C167: =CAPEX!Q65 -> 12 | D167: =CAPEX!R65 -> 13 | E167: =CAPEX!S65 -> 14 | F167: =CAPEX!T65 -> 15 | G167: =CAPEX!U65 -> 16 | H167: =CAPEX!V65 -> 17
A168: =A163 -> Infraestrutura de Irrigação e de Apoio | B168: =CAPEX!M66 -> 0 | C168: =CAPEX!Q66 -> 0 | D168: =CAPEX!R66 -> 0 | E168: =CAPEX!S66 -> 0 | F168: =CAPEX!T66 -> 0 | G168: =CAPEX!U66 -> 0 | H168: =CAPEX!V66 -> 0
A169: =A164 -> Investimento on farm | B169: =CAPEX!M67 -> 15114334.02 | C169: =CAPEX!Q67 -> 0 | D169: =CAPEX!R67 -> 0 | E169: =CAPEX!S67 -> 0 | F169: =CAPEX!T67 -> 0 | G169: =CAPEX!U67 -> 0 | H169: =CAPEX!V67 -> 0
A170: Reinvestimento | B170: =CAPEX!M68 -> 0 | C170: =CAPEX!Q68 -> 13736249.82 | D170: =CAPEX!R68 -> 13736249.82 | E170: =CAPEX!S68 -> 13736249.82 | F170: =CAPEX!T68 -> 17290471.56 | G170: =CAPEX!U68 -> 17290471.56 | H170: =CAPEX!V68 -> 31026721.38
A171: Investimento Total | B171: =CAPEX!M69 -> 15114334.02 | C171: =CAPEX!Q69 -> 13736249.82 | D171: =CAPEX!R69 -> 13736249.82 | E171: =CAPEX!S69 -> 13736249.82 | F171: =CAPEX!T69 -> 17290471.56 | G171: =CAPEX!U69 -> 17290471.56 | H171: =CAPEX!V69 -> 31026721.38
A172: =A167 -> Discriminação | B172: =CAPEX!W65 -> 18 | C172: =CAPEX!X65 -> 19 | D172: =CAPEX!Y65 -> 20 | E172: =CAPEX!Z65 -> 21 | F172: =CAPEX!AA65 -> 22 | G172: =CAPEX!AB65 -> 23 | H172: =CAPEX!AC65 -> 24
A173: Infraestrutura de Irrigação e de Apoio | B173: =CAPEX!W66 -> 0 | C173: =CAPEX!X66 -> 0 | D173: =CAPEX!Y66 -> 0 | E173: =CAPEX!Z66 -> 0 | F173: =CAPEX!AA66 -> 0 | G173: =CAPEX!AB66 -> 0 | H173: =CAPEX!AC66 -> 0
A174: Investimento on farm | B174: =CAPEX!W67 -> 0 | C174: =CAPEX!X67 -> 0 | D174: =CAPEX!Y67 -> 0 | E174: =CAPEX!Z67 -> 0 | F174: =CAPEX!AA67 -> 0 | G174: =CAPEX!AB67 -> 0 | H174: =CAPEX!AC67 -> 0
A175: Reinvestimento | B175: =CAPEX!W68 -> 13736249.82 | C175: =CAPEX!X68 -> 13736249.82 | D175: =CAPEX!Y68 -> 45148008.29 | E175: =CAPEX!Z68 -> 45148008.29 | F175: =CAPEX!AA68 -> 58884258.11 | G175: =CAPEX!AB68 -> 13736249.82 | H175: =CAPEX!AC68 -> 13736249.82
A176: Investimento Total | B176: =CAPEX!W69 -> 13736249.82 | C176: =CAPEX!X69 -> 13736249.82 | D176: =CAPEX!Y69 -> 45148008.29 | E176: =CAPEX!Z69 -> 45148008.29 | F176: =CAPEX!AA69 -> 58884258.11 | G176: =CAPEX!AB69 -> 13736249.82 | H176: =CAPEX!AC69 -> 13736249.82
A177: =A172 -> Discriminação | B177: =CAPEX!AF65 -> 27 | C177: =CAPEX!AG65 -> 28 | D177: =CAPEX!AH65 -> 29 | E177: =CAPEX!AI65 -> 30 | F177: =CAPEX!AJ65 -> 31 | G177: =CAPEX!AK65 -> 32 | H177: =CAPEX!AL65 -> 33 | I177: =CAPEX!AM65 -> 34
A178: Infraestrutura de Irrigação e de Apoio | B178: =CAPEX!AF66 -> 0 | C178: =CAPEX!AG66 -> 0 | D178: =CAPEX!AH66 -> 0 | E178: =CAPEX!AI66 -> 0 | F178: =CAPEX!AJ66 -> 0 | G178: =CAPEX!AK66 -> 0 | H178: =CAPEX!AL66 -> 0 | I178: =CAPEX!AM66 -> 0
A179: Investimento on farm | B179: =CAPEX!AF67 -> 0 | C179: =CAPEX!AG67 -> 0 | D179: =CAPEX!AH67 -> 0 | E179: =CAPEX!AI67 -> 0 | F179: =CAPEX!AJ67 -> 0 | G179: =CAPEX!AK67 -> 0 | H179: =CAPEX!AL67 -> 0 | I179: =CAPEX!AM67 -> 0
A180: Reinvestimento | B180: =CAPEX!AF68 -> 13736249.82 | C180: =CAPEX!AG68 -> 13736249.82 | D180: =CAPEX!AH68 -> 13736249.82 | E180: =CAPEX!AI68 -> 62970107.35 | F180: =CAPEX!AJ68 -> 62970107.35 | G180: =CAPEX!AK68 -> 76706357.16 | H180: =CAPEX!AL68 -> 13736249.82 | I180: =CAPEX!AM68 -> 13736249.82
A181: Investimento Total | B181: =CAPEX!AF69 -> 13736249.82 | C181: =CAPEX!AG69 -> 13736249.82 | D181: =CAPEX!AH69 -> 13736249.82 | E181: =CAPEX!AI69 -> 62970107.35 | F181: =CAPEX!AJ69 -> 62970107.35 | G181: =CAPEX!AK69 -> 76706357.16 | H181: =CAPEX!AL69 -> 13736249.82 | I181: =CAPEX!AM69 -> 13736249.82
A183: Tabela 11 - Depreciação dos Investimentos
A184: 1 | B184: =HLOOKUP(A184,Depreciação!$F$4:$AN$27,24,FALSE) -> 139277.8943 | C184: 19 | D184: =HLOOKUP(C184,Depreciação!$F$4:$AN$27,24,FALSE) -> 19850177.64
A185: 2 | B185: =HLOOKUP(A185,Depreciação!$F$4:$AN$27,24,FALSE) -> 1578942.222 | C185: 20 | D185: =HLOOKUP(C185,Depreciação!$F$4:$AN$27,24,FALSE) -> 21506396.25
A186: 3 | B186: =HLOOKUP(A186,Depreciação!$F$4:$AN$27,24,FALSE) -> 2532223.428 | C186: 21 | D186: =HLOOKUP(C186,Depreciação!$F$4:$AN$27,24,FALSE) -> 23083300.24
A187: 4 | B187: =HLOOKUP(A187,Depreciação!$F$4:$AN$27,24,FALSE) -> 6840521.062 | C187: 22 | D187: =HLOOKUP(C187,Depreciação!$F$4:$AN$27,24,FALSE) -> 24116474.73
A188: 5 | B188: =HLOOKUP(A188,Depreciação!$F$4:$AN$27,24,FALSE) -> 9692487.125 | C188: 23 | D188: =HLOOKUP(C188,Depreciação!$F$4:$AN$27,24,FALSE) -> 23353770.29
A189: 6 | B189: =HLOOKUP(A189,Depreciação!$F$4:$AN$27,24,FALSE) -> 12786150.53 | C189: 24 | D189: =HLOOKUP(C189,Depreciação!$F$4:$AN$27,24,FALSE) -> 23262293.07
A190: 7 | B190: =HLOOKUP(A190,Depreciação!$F$4:$AN$27,24,FALSE) -> 15517470.17 | C190: 25 | D190: =HLOOKUP(C190,Depreciação!$F$4:$AN$27,24,FALSE) -> 23170815.84
A191: 8 | B191: =HLOOKUP(A191,Depreciação!$F$4:$AN$27,24,FALSE) -> 17417287.98 | C191: 26 | D191: =HLOOKUP(C191,Depreciação!$F$4:$AN$27,24,FALSE) -> 23079338.62
A192: 9 | B192: =HLOOKUP(A192,Depreciação!$F$4:$AN$27,24,FALSE) -> 14973895.89 | C192: 27 | D192: =HLOOKUP(C192,Depreciação!$F$4:$AN$27,24,FALSE) -> 23066404.45
A193: 10 | B193: =HLOOKUP(A193,Depreciação!$F$4:$AN$27,24,FALSE) -> 13541086.47 | C193: 28 | D193: =HLOOKUP(C193,Depreciação!$F$4:$AN$27,24,FALSE) -> 23066404.45
A194: 11 | B194: =HLOOKUP(A194,Depreciação!$F$4:$AN$27,24,FALSE) -> 11919244.84 | C194: 29 | D194: =HLOOKUP(C194,Depreciação!$F$4:$AN$27,24,FALSE) -> 23066404.45
A195: 12 | B195: =HLOOKUP(A195,Depreciação!$F$4:$AN$27,24,FALSE) -> 13261081.36 | C195: 30 | D195: =HLOOKUP(C195,Depreciação!$F$4:$AN$27,24,FALSE) -> 24589058.97
A196: 13 | B196: =HLOOKUP(A196,Depreciação!$F$4:$AN$27,24,FALSE) -> 14670038.01 | C196: 31 | D196: =HLOOKUP(C196,Depreciação!$F$4:$AN$27,24,FALSE) -> 26111713.5
A197: 14 | B197: =HLOOKUP(A197,Depreciação!$F$4:$AN$27,24,FALSE) -> 17417287.98 | C197: 32 | D197: =HLOOKUP(C197,Depreciação!$F$4:$AN$27,24,FALSE) -> 27599241.44
A198: 15 | B198: =HLOOKUP(A198,Depreciação!$F$4:$AN$27,24,FALSE) -> 18569986.08 | C198: 33 | D198: =HLOOKUP(C198,Depreciação!$F$4:$AN$27,24,FALSE) -> 27522717.29
A199: 16 | B199: =HLOOKUP(A199,Depreciação!$F$4:$AN$27,24,FALSE) -> 19722684.19 | C199: 34 | D199: =HLOOKUP(C199,Depreciação!$F$4:$AN$27,24,FALSE) -> 27248635.75
A200: 17 | B200: =HLOOKUP(A200,Depreciação!$F$4:$AN$27,24,FALSE) -> 20875382.29 | C200: 35 | D200: =HLOOKUP(C200,Depreciação!$F$4:$AN$27,24,FALSE) -> 27039290.46
A201: 18 | B201: =HLOOKUP(A201,Depreciação!$F$4:$AN$27,24,FALSE) -> 20875382.29
A203: Tabela 12 - Opex
B204: Média Anual | C204: Total (35 Anos)
A205: ='FC Projeto'!B25 -> Despesas Agrícolas | B205: =-'FC Projeto'!C25/35 -> 127845.1236 | C205: =B205*35 -> 4474579.326 | D205: =C205/SUM(B22:B36,D19:D35) -> 0.5296935201
A206: ='FC Projeto'!B26 -> Energia | B206: =-'FC Projeto'!C26/35 -> 6868.661071 | C206: 240403.1375
A207: ='FC Projeto'!B27 -> Manutenção de Equipamentos | B207: =-'FC Projeto'!C27/35 -> 2156.556345 | C207: 75479.47208
A208: ='FC Projeto'!B28 -> Manutenção de Obras Civis | B208: =-'FC Projeto'!C28/35 -> 1742.940938 | C208: 61002.93284
A209: ='FC Projeto'!B29 -> Despesas de Pessoal | B209: =-'FC Projeto'!C29/35 -> 3324.411104 | C209: 116354.3886
A210: Meio Ambiente | B210: =-'FC Projeto'!C30/35 -> 814.259173 | C210: 28499.07105
A211: ='FC Projeto'!B31 -> Outras Despesas | B211: =-'FC Projeto'!C31/35 -> 881.8512994 | C211: 30864.79548
A212: ='FC Projeto'!B24 -> Custos e Despesas Operacionais | B212: =-'FC Projeto'!C24/35 -> 155092.0874 | C212: =B212*35 -> 5428223.058
... 261 more rows

Sheet Gráficos
A1: Gráfico 1 - Ocupação da Área
A14: Gráfico 2 - Investimento
A27: Gráfico 7 - Fluxo de Caixa Operacional
A41: Gráfico 8 - Fluxo de Caixa do Projeto Acumulado
A55: Gráfico 9 - Fluxo de Caixa do Acionista Acumulado

Sheet Painel de Controle
B2: PAINEL DE CONTROLE
B4: Área Concedida | C4: Área Irrigável (ha) | D4: Área Total (ha) | F4: Tributos | I4: Outros Parâmetros | L4: Parcelas de Outorga | Q4: Resultados
B5: Área Total | C5: =C21 -> 6016.76 | D5: 9846.92 | F5: Tributos | G5: Parâmetros | I5: Tarifas de Energia | J5: Valor | L5: % | M5: Parcela | N5: Valor Presente (R$) | O5: Valor a Pagar (R$) | Q5: Fluxo de Caixa do Projeto
B6: *Área total está considerando APP e RL, estimado pelo Grupo 2 | F6: PIS | G6: 0.0165 | I6: Tarifa de Consumo (R$/kWh) | J6: 0.12 | L6: =N6/$J$32 -> 0 | M6: 1 | N6: 0 | O6: =N6*(1+WACC!$D$22)^(M6-1) -> 0 | Q6: TIR | R6: ='FC Projeto'!C64 -> 0.1014206713
F7: COFINS | G7: 0.076 | I7: Tarifa de Demanda (R$/kW) | J7: 42.380871 | L7: =N7/$J$32 -> 0.2 | M7: 2 | N7: =20%*J32 -> 44845272.51 | O7: =N7*(1+WACC!$D$22)^(M7-1) -> 48966248.88 | Q7: VPL 35 anos (R$ mil) | R7: ='FC Projeto'!C61 -> 10187.143
F8: FUNRURAL | G8: 0.0205 | I8: NCG (dias) | J8: 120 | L8: 0 | M8: 3 | N8: 0 | O8: =N8*(1+WACC!$D$22)^(M8-1) -> 0 | Q8: VPL Perpetuidade (R$ mil) | R8: ='FC Projeto'!C62 -> 22178.42259
B9: Ocupação Agrícola | F9: IRPJ | G9: 0.15 | L9: 0 | M9: 4 | N9: 0 | O9: =N9*(1+WACC!$D$22)^(M9-1) -> 0 | Q9: VPL Total (R$ mil) | R9: ='FC Projeto'!C63 -> 32365.5656
B10: Ano | C10: Área SAU (ha) | D10: Setores | F10: IRPJ Alíquota Adicional | G10: 0.1 | I10: Financiamento | L10: 0 | M10: 5 | N10: 0 | O10: =N10*(1+WACC!$D$22)^(M10-1) -> 0 | Q10: Payback | R10: ='FC Projeto'!C65 -> 15
B11: 1 | F11: Limite Alíquota Adic (R$ mil) | G11: 240 | I11: Alavancagem CaPex | J11: 0.6 | K11: =(J32-N7)/31 -> 5786486.776 | L11: 0.3 | M11: 6 | N11: =30%*J32 -> 67267908.77 | O11: =N11*(1+WACC!$D$22)^(M11-1) -> 104401987.7 | Q11: Fluxo de Caixa do Acionista
B12: 2 | F12: CSLL | G12: 0.09 | I12: Alavancagem Outorga | J12: 0.7 | K12: =K11*31+N7 -> 224226362.6 | L12: 0.01612903226 | M12: 7 | N12: =50%*$J$32/31 -> 3616554.235 | O12: =N12*(1+WACC!$D$22)^(M12-1) -> 6128807.648 | Q12: TIR | R12: ='FC Acionista'!C73 -> 0.1489637557
B13: 3 | F13: Aplicação de benefício SUDENE | G13: S | I13: Juros | J13: =WACC!D20 -> 0.06798317143 | L13: 0.01612903226 | M13: 8 | N13: =50%*$J$32/31 -> 3616554.235 | O13: =N13*(1+WACC!$D$22)^(M13-1) -> 6692003.5 | Q13: VPL 35 anos (R$ mil) | R13: ='FC Acionista'!C70 -> 14393.1814
B14: 4 | C14: 1783.76 | D14: LE-01 a 26 | F14: Benefício Sudene | G14: 0.75 | I14: Prazo | J14: 20 | L14: 0.01612903226 | M14: 9 | N14: =50%*$J$32/31 -> 3616554.235 | O14: =N14*(1+WACC!$D$22)^(M14-1) -> 7306953.231 | Q14: VPL Perpetuidade (R$ mil) | R14: ='FC Acionista'!C71 -> 7187.990292
B15: 5 | C15: 1046 | D15: SH-1 | F15: Prazo Benefício Sudene (anos) | G15: 10 | I15: Carência | J15: 3 | L15: 0.4516129032 | M15: 10 | N15: =J32-SUM(N6:N14) -> 101263518.6 | O15: =N15*(1+WACC!$D$22)^(M15-1) -> 223395554.8 | Q15: VPL Total (R$ mil) | R15: ='FC Acionista'!C72 -> 21581.1717
B16: 6 | C16: 1184 | D16: SH-2 | F16: Aplicação de desconto do REIDI | G16: S | I16: Financiamento da outorga? | J16: Sim | L16: 0 | M16: 11 | O16: =N16*(1+WACC!$D$22)^(M16-1) -> 0 | Q16: Payback | R16: ='FC Acionista'!C74 -> 11
B17: 7 | C17: 1026 | D17: SH-3 | F17: Desconto REIDI | G17: 0.0365 | I17: Financiamento de reinvestimento? | J17: Sim | L17: 0 | M17: 12 | O17: =N17*(1+WACC!$D$22)^(M17-1) -> 0
B18: 8 | C18: 977 | D18: SH-4 | F18: ITR (% do valor da terra nua) | G18: 0.05 | L18: 0 | M18: 13 | O18: =N18*(1+WACC!$D$22)^(M18-1) -> 0 | Q18: Sensibilidade
B19: 9 | F19: ITR (R$ /ha) | G19: =G18*J28 -> 98.6125 | L19: 0 | M19: 14 | O19: =N19*(1+WACC!$D$22)^(M19-1) -> 0 | Q19: Variável | R19: Variação
B20: 10 | L20: 0 | M20: 15 | O20: =N20*(1+WACC!$D$22)^(M20-1) -> 0 | Q20: Receita Agrícola | R20: 0.1
B21: Total | C21: =SUM(C14:C18) -> 6016.76 | F21: Seguros e Garantias | L21: 0 | M21: 16 | O21: =N21*(1+WACC!$D$22)^(M21-1) -> 0 | Q21: Capex | R21: 0.1
F22: Seguros / Garantias | G22: Parâmetros | L22: 0 | M22: 17 | O22: =N22*(1+WACC!$D$22)^(M22-1) -> 0 | Q22: Opex | R22: 0.05
B23: Distribuição da Área por Cultivo | F23: Garantia de Execução | L23: 0 | M23: 18 | O23: =N23*(1+WACC!$D$22)^(M23-1) -> 0
B24: Cultivo | C24: % Área | D24: Área (ha) | F24: CAPEX implantação IUC | G24: =CAPEX!E48/1000 -> 178195.4198 | L24: 0 | M24: 19 | O24: =N24*(1+WACC!$D$22)^(M24-1) -> 0
B25: Melancia | C25: 0.025 | D25: =$C$21*C25 -> 150.419 | F25: Valor IUC compartilhada 1a Etapa | G25: ='Base Ativos'!D51/1000*20% -> 146918.2109 | L25: 0 | M25: 20 | O25: =N25*(1+WACC!$D$22)^(M25-1) -> 0
B26: Melão | C26: 0.025 | D26: =$C$21*C26 -> 150.419 | F26: % Cobertura | G26: 0.05 | L26: 0 | M26: 21 | O26: =N26*(1+WACC!$D$22)^(M26-1) -> 0
B27: Tomate | C27: 0.05 | D27: =$C$21*C27 -> 300.838 | F27: Prêmio | G27: 0.0025 | I27: Valor da Terra | L27: 0 | M27: 22 | O27: =N27*(1+WACC!$D$22)^(M27-1) -> 0
B28: Feijão | C28: 0.1 | D28: =$C$21*C28 -> 601.676 | F28: IOF | G28: 0.0738 | I28: Preço da terra nua (R$/hectare) | J28: 1972.25 | L28: 0 | M28: 23 | O28: =N28*(1+WACC!$D$22)^(M28-1) -> 0
B29: Abacaxi | C29: 0.025 | D29: 150.419 | F29: Responsabilidade civil | I29: Área CDRU (hectare) | J29: =D5 -> 9846.92 | L29: 0 | M29: 24 | O29: =N29*(1+WACC!$D$22)^(M29-1) -> 0
B30: Acerola | C30: 0.1 | D30: 601.676 | F30: Opex Médio | G30: =-SUM('FC Projeto'!$C$25:$C$31)/35 -> 143633.8035 | I30: Preço da terra nua (R$) | J30: =J29*J28 -> 19420587.97 | L30: 0 | M30: 25 | O30: =N30*(1+WACC!$D$22)^(M30-1) -> 0
B31: Banana | C31: 0.4 | D31: =$C$21*C31 -> 2406.704 | F31: % Cobertura | G31: 0.1 | I31: Valor da Infraestrutura (R$) | J31: ='Investimentos Prévios - CDRU'!G94 -> 204805774.6 | L31: 0 | M31: 26 | O31: =N31*(1+WACC!$D$22)^(M31-1) -> 0
B32: Coco | C32: 0.1 | D32: 601.676 | F32: Prêmio | G32: 0.002 | I32: Preço da área com Infraestrutura (R$) | J32: =J30+J31 -> 224226362.6 | L32: 0 | M32: 27 | O32: =N32*(1+WACC!$D$22)^(M32-1) -> 0
B33: Goiaba | C33: 0.1 | D33: 601.676 | F33: IOF | G33: 0.0738 | I33: Preço da área com Infraestrutura (R$/ha) | J33: =J32/J29 -> 22771.21806 | L33: 0 | M33: 28 | O33: =N33*(1+WACC!$D$22)^(M33-1) -> 0
B34: Laranja | C34: 0.1 | D34: 601.676 | F34: Risco de Engenharia | L34: 0 | M34: 29 | O34: =N34*(1+WACC!$D$22)^(M34-1) -> 0
B35: Mamão | C35: 0.025 | D35: 150.419 | F35: % Cobertura (CAPEX anual) | G35: 0.15 | L35: 0 | M35: 30 | O35: =N35*(1+WACC!$D$22)^(M35-1) -> 0
B36: Maracujá | C36: 0.025 | D36: 150.419 | F36: Prêmio | G36: 0.002 | L36: 0 | M36: 31 | O36: =N36*(1+WACC!$D$22)^(M36-1) -> 0
B37: Uva | C37: 0.025 | D37: 150.419 | F37: IOF | G37: 0.0738 | L37: 0 | M37: 32 | O37: =N37*(1+WACC!$D$22)^(M37-1) -> 0
L38: 0 | M38: 33 | O38: =N38*(1+WACC!$D$22)^(M38-1) -> 0
L39: 0 | M39: 34 | O39: =N39*(1+WACC!$D$22)^(M39-1) -> 0
L40: 0 | M40: 35 | O40: =N40*(1+WACC!$D$22)^(M40-1) -> 0
M41: Total | N41: =SUM(N6:N40) -> 224226362.6 | O41: =SUM(O6:O40) -> 396891555.8

Sheet DRE >>>>

Sheet FC Projeto
B2: FLUXO DE CAIXA DO PROJETO
D4: 2025 | E4: 2026 | F4: 2027 | G4: 2028 | H4: 2029 | I4: 2030 | J4: 2031 | K4: 2032 | L4: 2033 | M4: 2034 | N4: 2035 | O4: 2036 | P4: 2037 | Q4: 2038 | R4: 2039 | S4: 2040 | T4: 2041 | U4: 2042 | V4: 2043 | W4: 2044 | X4: 2045 | Y4: 2046 | Z4: 2047 | AA4: 2048 | AB4: 2049 | AC4: 2050 | AD4: 2051 | AE4: 2052 | AF4: 2053 | AG4: 2054 | AH4: 2055 | AI4: 2056 | AJ4: 2057 | AK4: 2058 | AL4: 2059
D5: 1 | E5: =D5+1 -> 2 | F5: =E5+1 -> 3 | G5: =F5+1 -> 4 | H5: =G5+1 -> 5 | I5: =H5+1 -> 6 | J5: =I5+1 -> 7 | K5: =J5+1 -> 8 | L5: =K5+1 -> 9 | M5: =L5+1 -> 10 | N5: =M5+1 -> 11 | O5: =N5+1 -> 12 | P5: =O5+1 -> 13 | Q5: =P5+1 -> 14 | R5: =Q5+1 -> 15 | S5: =R5+1 -> 16 | T5: =S5+1 -> 17 | U5: =T5+1 -> 18 | V5: =U5+1 -> 19 | W5: =V5+1 -> 20 | X5: =W5+1 -> 21 | Y5: =X5+1 -> 22 | Z5: =Y5+1 -> 23 | AA5: =Z5+1 -> 24 | AB5: =AA5+1 -> 25 | AC5: =AB5+1 -> 26 | AD5: =AC5+1 -> 27 | AE5: =AD5+1 -> 28 | AF5: =AE5+1 -> 29 | AG5: =AF5+1 -> 30 | AH5: =AG5+1 -> 31 | AI5: =AH5+1 -> 32 | AJ5: =AI5+1 -> 33 | AK5: =AJ5+1 -> 34 | AL5: =AK5+1 -> 35
B6: Área com início de cultivo no ano | D6: =IF(D5<10,VLOOKUP(D5,'Painel de Controle'!$B$10:$C$20,2,FALSE),0) -> 0 | E6: =IF(E5<10,VLOOKUP(E5,'Painel de Controle'!$B$10:$C$20,2,FALSE),0) -> 0 | F6: =IF(F5<10,VLOOKUP(F5,'Painel de Controle'!$B$10:$C$20,2,FALSE),0) -> 0 | G6: =IF(G5<10,VLOOKUP(G5,'Painel de Controle'!$B$10:$C$20,2,FALSE),0) -> 1783.76 | H6: =IF(H5<10,VLOOKUP(H5,'Painel de Controle'!$B$10:$C$20,2,FALSE),0) -> 1046 | I6: =IF(I5<10,VLOOKUP(I5,'Painel de Controle'!$B$10:$C$20,2,FALSE),0) -> 1184 | J6: =IF(J5<10,VLOOKUP(J5,'Painel de Controle'!$B$10:$C$20,2,FALSE),0) -> 1026 | K6: =IF(K5<10,VLOOKUP(K5,'Painel de Controle'!$B$10:$C$20,2,FALSE),0) -> 977 | L6: =IF(L5<10,VLOOKUP(L5,'Painel de Controle'!$B$10:$C$20,2,FALSE),0) -> 0 | M6: =IF(M5<10,VLOOKUP(M5,'Painel de Controle'!$B$10:$C$20,2,FALSE),0) -> 0 | N6: =IF(N5<10,VLOOKUP(N5,'Painel de Controle'!$B$10:$C$20,2,FALSE),0) -> 0 | O6: =IF(O5<10,VLOOKUP(O5,'Painel de Controle'!$B$10:$C$20,2,FALSE),0) -> 0 | P6: =IF(P5<10,VLOOKUP(P5,'Painel de Controle'!$B$10:$C$20,2,FALSE),0) -> 0 | Q6: =IF(Q5<10,VLOOKUP(Q5,'Painel de Controle'!$B$10:$C$20,2,FALSE),0) -> 0 | R6: =IF(R5<10,VLOOKUP(R5,'Painel de Controle'!$B$10:$C$20,2,FALSE),0) -> 0 | S6: =IF(S5<10,VLOOKUP(S5,'Painel de Controle'!$B$10:$C$20,2,FALSE),0) -> 0 | T6: =IF(T5<10,VLOOKUP(T5,'Painel de Controle'!$B$10:$C$20,2,FALSE),0) -> 0 | U6: =IF(U5<10,VLOOKUP(U5,'Painel de Controle'!$B$10:$C$20,2,FALSE),0) -> 0 | V6: =IF(V5<10,VLOOKUP(V5,'Painel de Controle'!$B$10:$C$20,2,FALSE),0) -> 0 | W6: =IF(W5<10,VLOOKUP(W5,'Painel de Controle'!$B$10:$C$20,2,FALSE),0) -> 0 | X6: =IF(X5<10,VLOOKUP(X5,'Painel de Controle'!$B$10:$C$20,2,FALSE),0) -> 0 | Y6: =IF(Y5<10,VLOOKUP(Y5,'Painel de Controle'!$B$10:$C$20,2,FALSE),0) -> 0 | Z6: =IF(Z5<10,VLOOKUP(Z5,'Painel de Controle'!$B$10:$C$20,2,FALSE),0) -> 0 | AA6: =IF(AA5<10,VLOOKUP(AA5,'Painel de Controle'!$B$10:$C$20,2,FALSE),0) -> 0 | AB6: =IF(AB5<10,VLOOKUP(AB5,'Painel de Controle'!$B$10:$C$20,2,FALSE),0) -> 0 | AC6: =IF(AC5<10,VLOOKUP(AC5,'Painel de Controle'!$B$10:$C$20,2,FALSE),0) -> 0 | AD6: =IF(AD5<10,VLOOKUP(AD5,'Painel de Controle'!$B$10:$C$20,2,FALSE),0) -> 0 | AE6: =IF(AE5<10,VLOOKUP(AE5,'Painel de Controle'!$B$10:$C$20,2,FALSE),0) -> 0 | AF6: =IF(AF5<10,VLOOKUP(AF5,'Painel de Controle'!$B$10:$C$20,2,FALSE),0) -> 0 | AG6: =IF(AG5<10,VLOOKUP(AG5,'Painel de Controle'!$B$10:$C$20,2,FALSE),0) -> 0 | AH6: =IF(AH5<10,VLOOKUP(AH5,'Painel de Controle'!$B$10:$C$20,2,FALSE),0) -> 0 | AI6: =IF(AI5<10,VLOOKUP(AI5,'Painel de Controle'!$B$10:$C$20,2,FALSE),0) -> 0 | AJ6: =IF(AJ5<10,VLOOKUP(AJ5,'Painel de Controle'!$B$10:$C$20,2,FALSE),0) -> 0 | AK6: =IF(AK5<10,VLOOKUP(AK5,'Painel de Controle'!$B$10:$C$20,2,FALSE),0) -> 0 | AL6: =IF(AL5<10,VLOOKUP(AL5,'Painel de Controle'!$B$10:$C$20,2,FALSE),0) -> 0
B7: Área Cultivada | D7: =D6 -> 0 | E7: =D7+E6 -> 0 | F7: =E7+F6 -> 0 | G7: 1783.76 | H7: 2829.76 | I7: 4013.76 | J7: 5039.76 | K7: 6016.76 | L7: 6016.76 | M7: 6016.76 | N7: 6016.76 | O7: 6016.76 | P7: 6016.76 | Q7: 6016.76 | R7: 6016.76 | S7: 6016.76 | T7: 6016.76 | U7: 6016.76 | V7: 6016.76 | W7: 6016.76 | X7: 6016.76 | Y7: 6016.76 | Z7: 6016.76 | AA7: 6016.76 | AB7: 6016.76 | AC7: 6016.76 | AD7: 6016.76 | AE7: 6016.76 | AF7: 6016.76 | AG7: 6016.76 | AH7: 6016.76 | AI7: 6016.76 | AJ7: 6016.76 | AK7: 6016.76 | AL7: 6016.76
B8: % Área Cultivada | D8: =D7/SUM($D$6:$AL$6) -> 0 | E8: =E7/SUM($D$6:$AL$6) -> 0 | F8: 0 | G8: =G7/SUM($D$6:$AL$6) -> 0.2964652072 | H8: 0.4703129259 | I8: 0.6670965769 | J8: 0.8376202474 | K8: 1 | L8: 1 | M8: 1 | N8: 1 | O8: 1 | P8: 1 | Q8: 1 | R8: 1 | S8: 1 | T8: 1 | U8: 1 | V8: 1 | W8: 1 | X8: 1 | Y8: 1 | Z8: 1 | AA8: 1 | AB8: 1 | AC8: 1 | AD8: 1 | AE8: 1 | AF8: 1 | AG8: 1 | AH8: 1 | AI8: 1 | AJ8: 1 | AK8: 1 | AL8: 1
B9: % CAPEX Infraestrutura de Irrigação | D9: =SUM(CAPEX!F$20:F$47)/SUM(CAPEX!$E$20:$E$47) -> 0 | E9: =SUM(CAPEX!G$20:G$47)/SUM(CAPEX!$E$20:$E$47) -> 0.4005563081 | F9: =SUM(CAPEX!H$20:H$47)/SUM(CAPEX!$E$20:$E$47) -> 0.1311037966 | G9: =SUM(CAPEX!I$20:I$47)/SUM(CAPEX!$E$20:$E$47) -> 0.1419254334 | H9: =SUM(CAPEX!J$20:J$47)/SUM(CAPEX!$E$20:$E$47) -> 0.1158383498 | I9: =SUM(CAPEX!K$20:K$47)/SUM(CAPEX!$E$20:$E$47) -> 0.1158383498 | J9: =SUM(CAPEX!L$20:L$47)/SUM(CAPEX!$E$20:$E$47) -> 0.09473776238
B10: % Implantação Infraestrutura de Irrigação | D10: =D9 -> 0 | E10: =D10+E9 -> 0.4005563081 | F10: =E10+F9 -> 0.5316601047 | G10: 0.6735855381 | H10: 0.7894238879 | I10: 0.9052622376 | J10: 1 | K10: =J10 -> 1 | L10: =K10 -> 1 | M10: 1 | N10: 1 | O10: 1 | P10: 1 | Q10: 1 | R10: 1 | S10: 1 | T10: 1 | U10: 1 | V10: 1 | W10: 1 | X10: 1 | Y10: 1 | Z10: 1 | AA10: 1 | AB10: 1 | AC10: 1 | AD10: 1 | AE10: 1 | AF10: 1 | AG10: 1 | AH10: 1 | AI10: 1 | AJ10: 1 | AK10: 1 | AL10: 1
B12: Demonstração de Resultados do Exercício (R$ mil) | C12: TOTAL | D12: 1 | E12: =D12+1 -> 2 | F12: =E12+1 -> 3 | G12: 4 | H12: 5 | I12: 6 | J12: 7 | K12: 8 | L12: 9 | M12: 10 | N12: 11 | O12: 12 | P12: 13 | Q12: 14 | R12: 15 | S12: 16 | T12: 17 | U12: 18 | V12: 19 | W12: 20 | X12: 21 | Y12: 22 | Z12: 23 | AA12: 24 | AB12: 25 | AC12: 26 | AD12: 27 | AE12: 28 | AF12: 29 | AG12: 30 | AH12: 31 | AI12: 32 | AJ12: 33 | AK12: 34 | AL12: 35
B14: Receita Operacional Bruta | C14: =SUM(D14:AL14) -> 8447487.379 | D14: ='Resultados Cultivos'!D6*(1+Sensibilidade!$D3) -> 0 | E14: ='Resultados Cultivos'!E6*(1+Sensibilidade!$D3) -> 0 | F14: ='Resultados Cultivos'!F6*(1+Sensibilidade!$D3) -> 0 | G14: ='Resultados Cultivos'!G6*(1+Sensibilidade!$D3) -> 82730.83637 | H14: ='Resultados Cultivos'!H6*(1+Sensibilidade!$D3) -> 131244.3443 | I14: ='Resultados Cultivos'!I6*(1+Sensibilidade!$D3) -> 186158.2958 | J14: ='Resultados Cultivos'!J6*(1+Sensibilidade!$D3) -> 233744.2032 | K14: ='Resultados Cultivos'!K6*(1+Sensibilidade!$D3) -> 279057.4892 | L14: ='Resultados Cultivos'!L6*(1+Sensibilidade!$D3) -> 279057.4892 | M14: ='Resultados Cultivos'!M6*(1+Sensibilidade!$D3) -> 279057.4892 | N14: ='Resultados Cultivos'!N6*(1+Sensibilidade!$D3) -> 279057.4892 | O14: ='Resultados Cultivos'!O6*(1+Sensibilidade!$D3) -> 279057.4892 | P14: ='Resultados Cultivos'!P6*(1+Sensibilidade!$D3) -> 279057.4892 | Q14: ='Resultados Cultivos'!Q6*(1+Sensibilidade!$D3) -> 279057.4892 | R14: ='Resultados Cultivos'!R6*(1+Sensibilidade!$D3) -> 279057.4892 | S14: ='Resultados Cultivos'!S6*(1+Sensibilidade!$D3) -> 279057.4892 | T14: ='Resultados Cultivos'!T6*(1+Sensibilidade!$D3) -> 279057.4892 | U14: ='Resultados Cultivos'!U6*(1+Sensibilidade!$D3) -> 279057.4892 | V14: ='Resultados Cultivos'!V6*(1+Sensibilidade!$D3) -> 279057.4892 | W14: ='Resultados Cultivos'!W6*(1+Sensibilidade!$D3) -> 279057.4892 | X14: ='Resultados Cultivos'!X6*(1+Sensibilidade!$D3) -> 279057.4892 | Y14: ='Resultados Cultivos'!Y6*(1+Sensibilidade!$D3) -> 279057.4892 | Z14: ='Resultados Cultivos'!Z6*(1+Sensibilidade!$D3) -> 279057.4892 | AA14: ='Resultados Cultivos'!AA6*(1+Sensibilidade!$D3) -> 279057.4892 | AB14: ='Resultados Cultivos'!AB6*(1+Sensibilidade!$D3) -> 279057.4892 | AC14: ='Resultados Cultivos'!AC6*(1+Sensibilidade!$D3) -> 279057.4892 | AD14: ='Resultados Cultivos'!AD6*(1+Sensibilidade!$D3) -> 279057.4892 | AE14: ='Resultados Cultivos'!AE6*(1+Sensibilidade!$D3) -> 279057.4892 | AF14: ='Resultados Cultivos'!AF6*(1+Sensibilidade!$D3) -> 279057.4892 | AG14: ='Resultados Cultivos'!AG6*(1+Sensibilidade!$D3) -> 279057.4892 | AH14: ='Resultados Cultivos'!AH6*(1+Sensibilidade!$D3) -> 279057.4892 | AI14: ='Resultados Cultivos'!AI6*(1+Sensibilidade!$D3) -> 279057.4892 | AJ14: ='Resultados Cultivos'!AJ6*(1+Sensibilidade!$D3) -> 279057.4892 | AK14: ='Resultados Cultivos'!AK6*(1+Sensibilidade!$D3) -> 279057.4892 | AL14: ='Resultados Cultivos'!AL6*(1+Sensibilidade!$D3) -> 279057.4892
B16: Deduções sobre a Receita Operacional | C16: =SUM(D16:AL16) -> -539791.6024 | D16: =SUM(D17:D20) -> -971.0293985 | E16: =SUM(E17:E20) -> -971.0293985 | F16: -971.0293985 | G16: -5924.65836 | H16: -8829.475092 | I16: -12117.52768 | J16: -14966.80299 | K16: -17680.00179 | L16: -17680.00179 | M16: -17680.00179 | N16: -17680.00179 | O16: -17680.00179 | P16: -17680.00179 | Q16: -17680.00179 | R16: -17680.00179 | S16: -17680.00179 | T16: -17680.00179 | U16: -17680.00179 | V16: -17680.00179 | W16: -17680.00179 | X16: -17680.00179 | Y16: -17680.00179 | Z16: -17680.00179 | AA16: -17680.00179 | AB16: -17680.00179 | AC16: -17680.00179 | AD16: -17680.00179 | AE16: -17680.00179 | AF16: -17680.00179 | AG16: -17680.00179 | AH16: -17680.00179 | AI16: -17680.00179 | AJ16: -17680.00179 | AK16: -17680.00179 | AL16: -17680.00179
B17: PIS | C17: =SUM(D17:AL17) -> -59334.37142 | D17: =-Tributação!D16 -> 0 | E17: =-Tributação!E16 -> 0 | F17: =-Tributação!F16 -> 0 | G17: =-Tributação!G16 -> -581.0937564 | H17: =-Tributação!H16 -> -921.8481567 | I17: =-Tributação!I16 -> -1307.558683 | J17: =-Tributação!J16 -> -1641.797702 | K17: =-Tributação!K16 -> -1960.07404 | L17: =-Tributação!L16 -> -1960.07404 | M17: =-Tributação!M16 -> -1960.07404 | N17: =-Tributação!N16 -> -1960.07404 | O17: =-Tributação!O16 -> -1960.07404 | P17: =-Tributação!P16 -> -1960.07404 | Q17: =-Tributação!Q16 -> -1960.07404 | R17: =-Tributação!R16 -> -1960.07404 | S17: =-Tributação!S16 -> -1960.07404 | T17: =-Tributação!T16 -> -1960.07404 | U17: =-Tributação!U16 -> -1960.07404 | V17: =-Tributação!V16 -> -1960.07404 | W17: =-Tributação!W16 -> -1960.07404 | X17: =-Tributação!X16 -> -1960.07404 | Y17: =-Tributação!Y16 -> -1960.07404 | Z17: =-Tributação!Z16 -> -1960.07404 | AA17: =-Tributação!AA16 -> -1960.07404 | AB17: =-Tributação!AB16 -> -1960.07404 | AC17: =-Tributação!AC16 -> -1960.07404 | AD17: =-Tributação!AD16 -> -1960.07404 | AE17: =-Tributação!AE16 -> -1960.07404 | AF17: =-Tributação!AF16 -> -1960.07404 | AG17: =-Tributação!AG16 -> -1960.07404 | AH17: =-Tributação!AH16 -> -1960.07404 | AI17: =-Tributação!AI16 -> -1960.07404 | AJ17: =-Tributação!AJ16 -> -1960.07404 | AK17: =-Tributação!AK16 -> -1960.07404 | AL17: =-Tributação!AL16 -> -1960.07404
B18: COFINS | C18: -273297.7108 | D18: =-Tributação!D17 -> 0 | E18: =-Tributação!E17 -> 0 | F18: =-Tributação!F17 -> 0 | G18: =-Tributação!G17 -> -2676.55306 | H18: =-Tributação!H17 -> -4246.08848 | I18: =-Tributação!I17 -> -6022.694538 | J18: =-Tributação!J17 -> -7562.21972 | K18: =-Tributação!K17 -> -9028.219821 | L18: =-Tributação!L17 -> -9028.219821 | M18: =-Tributação!M17 -> -9028.219821 | N18: =-Tributação!N17 -> -9028.219821 | O18: =-Tributação!O17 -> -9028.219821 | P18: =-Tributação!P17 -> -9028.219821 | Q18: =-Tributação!Q17 -> -9028.219821 | R18: =-Tributação!R17 -> -9028.219821 | S18: =-Tributação!S17 -> -9028.219821 | T18: =-Tributação!T17 -> -9028.219821 | U18: =-Tributação!U17 -> -9028.219821 | V18: =-Tributação!V17 -> -9028.219821 | W18: =-Tributação!W17 -> -9028.219821 | X18: =-Tributação!X17 -> -9028.219821 | Y18: =-Tributação!Y17 -> -9028.219821 | Z18: =-Tributação!Z17 -> -9028.219821 | AA18: =-Tributação!AA17 -> -9028.219821 | AB18: =-Tributação!AB17 -> -9028.219821 | AC18: =-Tributação!AC17 -> -9028.219821 | AD18: =-Tributação!AD17 -> -9028.219821 | AE18: =-Tributação!AE17 -> -9028.219821 | AF18: =-Tributação!AF17 -> -9028.219821 | AG18: =-Tributação!AG17 -> -9028.219821 | AH18: =-Tributação!AH17 -> -9028.219821 | AI18: =-Tributação!AI17 -> -9028.219821 | AJ18: =-Tributação!AJ17 -> -9028.219821 | AK18: =-Tributação!AK17 -> -9028.219821 | AL18: =-Tributação!AL17 -> -9028.219821
B19: FUNRURAL | C19: -173173.4913 | D19: =-'Painel de Controle'!$G$8*'FC Projeto'!D14 -> 0 | E19: =-'Painel de Controle'!$G$8*'FC Projeto'!E14 -> 0 | F19: =-'Painel de Controle'!$G$8*'FC Projeto'!F14 -> 0 | G19: =-'Painel de Controle'!$G$8*'FC Projeto'!G14 -> -1695.982146 | H19: =-'Painel de Controle'!$G$8*'FC Projeto'!H14 -> -2690.509057 | I19: =-'Painel de Controle'!$G$8*'FC Projeto'!I14 -> -3816.245065 | J19: =-'Painel de Controle'!$G$8*'FC Projeto'!J14 -> -4791.756165 | K19: =-'Painel de Controle'!$G$8*'FC Projeto'!K14 -> -5720.67853 | L19: =-'Painel de Controle'!$G$8*'FC Projeto'!L14 -> -5720.67853 | M19: =-'Painel de Controle'!$G$8*'FC Projeto'!M14 -> -5720.67853 | N19: =-'Painel de Controle'!$G$8*'FC Projeto'!N14 -> -5720.67853 | O19: =-'Painel de Controle'!$G$8*'FC Projeto'!O14 -> -5720.67853 | P19: =-'Painel de Controle'!$G$8*'FC Projeto'!P14 -> -5720.67853 | Q19: =-'Painel de Controle'!$G$8*'FC Projeto'!Q14 -> -5720.67853 | R19: =-'Painel de Controle'!$G$8*'FC Projeto'!R14 -> -5720.67853 | S19: =-'Painel de Controle'!$G$8*'FC Projeto'!S14 -> -5720.67853 | T19: =-'Painel de Controle'!$G$8*'FC Projeto'!T14 -> -5720.67853 | U19: =-'Painel de Controle'!$G$8*'FC Projeto'!U14 -> -5720.67853 | V19: =-'Painel de Controle'!$G$8*'FC Projeto'!V14 -> -5720.67853 | W19: =-'Painel de Controle'!$G$8*'FC Projeto'!W14 -> -5720.67853 | X19: =-'Painel de Controle'!$G$8*'FC Projeto'!X14 -> -5720.67853 | Y19: =-'Painel de Controle'!$G$8*'FC Projeto'!Y14 -> -5720.67853 | Z19: =-'Painel de Controle'!$G$8*'FC Projeto'!Z14 -> -5720.67853 | AA19: =-'Painel de Controle'!$G$8*'FC Projeto'!AA14 -> -5720.67853 | AB19: =-'Painel de Controle'!$G$8*'FC Projeto'!AB14 -> -5720.67853 | AC19: =-'Painel de Controle'!$G$8*'FC Projeto'!AC14 -> -5720.67853 | AD19: =-'Painel de Controle'!$G$8*'FC Projeto'!AD14 -> -5720.67853 | AE19: =-'Painel de Controle'!$G$8*'FC Projeto'!AE14 -> -5720.67853 | AF19: =-'Painel de Controle'!$G$8*'FC Projeto'!AF14 -> -5720.67853 | AG19: =-'Painel de Controle'!$G$8*'FC Projeto'!AG14 -> -5720.67853 | AH19: =-'Painel de Controle'!$G$8*'FC Projeto'!AH14 -> -5720.67853 | AI19: =-'Painel de Controle'!$G$8*'FC Projeto'!AI14 -> -5720.67853 | AJ19: =-'Painel de Controle'!$G$8*'FC Projeto'!AJ14 -> -5720.67853 | AK19: =-'Painel de Controle'!$G$8*'FC Projeto'!AK14 -> -5720.67853 | AL19: =-'Painel de Controle'!$G$8*'FC Projeto'!AL14 -> -5720.67853
B20: ITR | C20: =SUM(D20:AL20) -> -33986.02895 | D20: =-'Painel de Controle'!$D$5*'Painel de Controle'!$G$19/1000 -> -971.0293985 | E20: =-'Painel de Controle'!$D$5*'Painel de Controle'!$G$19/1000 -> -971.0293985 | F20: =-'Painel de Controle'!$D$5*'Painel de Controle'!$G$19/1000 -> -971.0293985 | G20: =-'Painel de Controle'!$D$5*'Painel de Controle'!$G$19/1000 -> -971.0293985 | H20: =-'Painel de Controle'!$D$5*'Painel de Controle'!$G$19/1000 -> -971.0293985 | I20: =-'Painel de Controle'!$D$5*'Painel de Controle'!$G$19/1000 -> -971.0293985 | J20: =-'Painel de Controle'!$D$5*'Painel de Controle'!$G$19/1000 -> -971.0293985 | K20: =-'Painel de Controle'!$D$5*'Painel de Controle'!$G$19/1000 -> -971.0293985 | L20: =-'Painel de Controle'!$D$5*'Painel de Controle'!$G$19/1000 -> -971.0293985 | M20: =-'Painel de Controle'!$D$5*'Painel de Controle'!$G$19/1000 -> -971.0293985 | N20: =-'Painel de Controle'!$D$5*'Painel de Controle'!$G$19/1000 -> -971.0293985 | O20: =-'Painel de Controle'!$D$5*'Painel de Controle'!$G$19/1000 -> -971.0293985 | P20: =-'Painel de Controle'!$D$5*'Painel de Controle'!$G$19/1000 -> -971.0293985 | Q20: =-'Painel de Controle'!$D$5*'Painel de Controle'!$G$19/1000 -> -971.0293985 | R20: =-'Painel de Controle'!$D$5*'Painel de Controle'!$G$19/1000 -> -971.0293985 | S20: =-'Painel de Controle'!$D$5*'Painel de Controle'!$G$19/1000 -> -971.0293985 | T20: =-'Painel de Controle'!$D$5*'Painel de Controle'!$G$19/1000 -> -971.0293985 | U20: =-'Painel de Controle'!$D$5*'Painel de Controle'!$G$19/1000 -> -971.0293985 | V20: =-'Painel de Controle'!$D$5*'Painel de Controle'!$G$19/1000 -> -971.0293985 | W20: =-'Painel de Controle'!$D$5*'Painel de Controle'!$G$19/1000 -> -971.0293985 | X20: =-'Painel de Controle'!$D$5*'Painel de Controle'!$G$19/1000 -> -971.0293985 | Y20: =-'Painel de Controle'!$D$5*'Painel de Controle'!$G$19/1000 -> -971.0293985 | Z20: =-'Painel de Controle'!$D$5*'Painel de Controle'!$G$19/1000 -> -971.0293985 | AA20: =-'Painel de Controle'!$D$5*'Painel de Controle'!$G$19/1000 -> -971.0293985 | AB20: =-'Painel de Controle'!$D$5*'Painel de Controle'!$G$19/1000 -> -971.0293985 | AC20: =-'Painel de Controle'!$D$5*'Painel de Controle'!$G$19/1000 -> -971.0293985 | AD20: =-'Painel de Controle'!$D$5*'Painel de Controle'!$G$19/1000 -> -971.0293985 | AE20: =-'Painel de Controle'!$D$5*'Painel de Controle'!$G$19/1000 -> -971.0293985 | AF20: =-'Painel de Controle'!$D$5*'Painel de Controle'!$G$19/1000 -> -971.0293985 | AG20: =-'Painel de Controle'!$D$5*'Painel de Controle'!$G$19/1000 -> -971.0293985 | AH20: =-'Painel de Controle'!$D$5*'Painel de Controle'!$G$19/1000 -> -971.0293985 | AI20: =-'Painel de Controle'!$D$5*'Painel de Controle'!$G$19/1000 -> -971.0293985 | AJ20: =-'Painel de Controle'!$D$5*'Painel de Controle'!$G$19/1000 -> -971.0293985 | AK20: =-'Painel de Controle'!$D$5*'Painel de Controle'!$G$19/1000 -> -971.0293985 | AL20: =-'Painel de Controle'!$D$5*'Painel de Controle'!$G$19/1000 -> -971.0293985
B22: Receita Operacional Líquida | C22: =C14+C16 -> 7907695.776 | D22: =D14+D16 -> -971.0293985 | E22: =E14+E16 -> -971.0293985 | F22: -971.0293985 | G22: 76806.17801 | H22: 122414.8692 | I22: 174040.7682 | J22: 218777.4002 | K22: 261377.4875 | L22: 261377.4875 | M22: 261377.4875 | N22: 261377.4875 | O22: 261377.4875 | P22: 261377.4875 | Q22: 261377.4875 | R22: 261377.4875 | S22: 261377.4875 | T22: 261377.4875 | U22: 261377.4875 | V22: 261377.4875 | W22: 261377.4875 | X22: 261377.4875 | Y22: 261377.4875 | Z22: 261377.4875 | AA22: 261377.4875 | AB22: 261377.4875 | AC22: 261377.4875 | AD22: 261377.4875 | AE22: 261377.4875 | AF22: 261377.4875 | AG22: 261377.4875 | AH22: 261377.4875 | AI22: 261377.4875 | AJ22: 261377.4875 | AK22: 261377.4875 | AL22: 261377.4875
D23: 0 | E23: =E15 -> 0 | F23: 0 | G23: 0 | H23: 0 | I23: 0 | J23: 0 | K23: 0 | L23: 0 | M23: 0 | N23: 0 | P23: 0 | Q23: 0 | R23: 0 | S23: 0 | T23: 0 | U23: 0 | V23: 0 | W23: 0 | X23: 0 | Y23: 0 | Z23: 0 | AA23: 0 | AB23: 0 | AC23: 0 | AD23: 0 | AE23: 0 | AF23: 0 | AG23: 0 | AH23: 0 | AI23: 0 | AJ23: 0 | AK23: 0 | AL23: 0
B24: Custos e Despesas Operacionais | C24: =SUM(C25:C36) -> -5428223.058 | D24: =SUM(D25:D36)*(1+Sensibilidade!$D5) -> -112.6708404 | E24: =SUM(E25:E36)*(1+Sensibilidade!$D5) -> -50927.65349 | F24: =SUM(F25:F36)*(1+Sensibilidade!$D5) -> -2552.036441 | G24: =SUM(G25:G36)*(1+Sensibilidade!$D5) -> -50727.57871 | H24: =SUM(H25:H36)*(1+Sensibilidade!$D5) -> -79109.63815 | I24: =SUM(I25:I36)*(1+Sensibilidade!$D5) -> -215577.9246 | J24: =SUM(J25:J36)*(1+Sensibilidade!$D5) -> -145063.479 | K24: =SUM(K25:K36)*(1+Sensibilidade!$D5) -> -174195.5932 | L24: =SUM(L25:L36)*(1+Sensibilidade!$D5) -> -174460.5127 | M24: =SUM(M25:M36)*(1+Sensibilidade!$D5) -> -390393.8072 | N24: =SUM(N25:N36)*(1+Sensibilidade!$D5) -> -166369.1569 | O24: =SUM(O25:O36)*(1+Sensibilidade!$D5) -> -166378.0069 | P24: =SUM(P25:P36)*(1+Sensibilidade!$D5) -> -165862.2815 | Q24: =SUM(Q25:Q36)*(1+Sensibilidade!$D5) -> -165706.9745 | R24: =SUM(R25:R36)*(1+Sensibilidade!$D5) -> -165709.2644 | S24: =SUM(S25:S36)*(1+Sensibilidade!$D5) -> -165709.2644 | T24: =SUM(T25:T36)*(1+Sensibilidade!$D5) -> -165873.4214 | U24: =SUM(U25:U36)*(1+Sensibilidade!$D5) -> -165706.9745 | V24: =SUM(V25:V36)*(1+Sensibilidade!$D5) -> -165706.9745 | W24: =SUM(W25:W36)*(1+Sensibilidade!$D5) -> -165727.2125 | X24: =SUM(X25:X36)*(1+Sensibilidade!$D5) -> -165882.5195 | Y24: =SUM(Y25:Y36)*(1+Sensibilidade!$D5) -> -165736.0624 | Z24: =SUM(Z25:Z36)*(1+Sensibilidade!$D5) -> -165706.9745 | AA24: =SUM(AA25:AA36)*(1+Sensibilidade!$D5) -> -165706.9745 | AB24: =SUM(AB25:AB36)*(1+Sensibilidade!$D5) -> -165853.4315 | AC24: =SUM(AC25:AC36)*(1+Sensibilidade!$D5) -> -165698.1245 | AD24: =SUM(AD25:AD36)*(1+Sensibilidade!$D5) -> -165706.9745 | AE24: =SUM(AE25:AE36)*(1+Sensibilidade!$D5) -> -165706.9745 | AF24: =SUM(AF25:AF36)*(1+Sensibilidade!$D5) -> -165862.2815 | AG24: =SUM(AG25:AG36)*(1+Sensibilidade!$D5) -> -165738.6949 | AH24: =SUM(AH25:AH36)*(1+Sensibilidade!$D5) -> -165738.6949 | AI24: =SUM(AI25:AI36)*(1+Sensibilidade!$D5) -> -165747.5449 | AJ24: =SUM(AJ25:AJ36)*(1+Sensibilidade!$D5) -> -165862.2815 | AK24: =SUM(AK25:AK36)*(1+Sensibilidade!$D5) -> -165706.9745 | AL24: =SUM(AL25:AL36)*(1+Sensibilidade!$D5) -> -165698.1245
B25: Despesas Agrícolas | C25: =SUM(D25:AL25) -> -4474579.326 | D25: =-'Resultados Cultivos'!D7 -> 0 | E25: =-'Resultados Cultivos'!E7 -> 0 | F25: =-'Resultados Cultivos'!F7 -> 0 | G25: =-'Resultados Cultivos'!G7 -> -43821.98794 | H25: =-'Resultados Cultivos'!H7 -> -69519.27871 | I25: =-'Resultados Cultivos'!I7 -> -98606.84302 | J25: =-'Resultados Cultivos'!J7 -> -123812.7898 | K25: =-'Resultados Cultivos'!K7 -> -147814.9438 | L25: =-'Resultados Cultivos'!L7 -> -147814.9438 | M25: =-'Resultados Cultivos'!M7 -> -147814.9438 | N25: =-'Resultados Cultivos'!N7 -> -147814.9438 | O25: =-'Resultados Cultivos'!O7 -> -147814.9438 | P25: =-'Resultados Cultivos'!P7 -> -147814.9438 | Q25: =-'Resultados Cultivos'!Q7 -> -147814.9438 | R25: =-'Resultados Cultivos'!R7 -> -147814.9438 | S25: =-'Resultados Cultivos'!S7 -> -147814.9438 | T25: =-'Resultados Cultivos'!T7 -> -147814.9438 | U25: =-'Resultados Cultivos'!U7 -> -147814.9438 | V25: =-'Resultados Cultivos'!V7 -> -147814.9438 | W25: =-'Resultados Cultivos'!W7 -> -147814.9438 | X25: =-'Resultados Cultivos'!X7 -> -147814.9438 | Y25: =-'Resultados Cultivos'!Y7 -> -147814.9438 | Z25: =-'Resultados Cultivos'!Z7 -> -147814.9438 | AA25: =-'Resultados Cultivos'!AA7 -> -147814.9438 | AB25: =-'Resultados Cultivos'!AB7 -> -147814.9438 | AC25: =-'Resultados Cultivos'!AC7 -> -147814.9438 | AD25: =-'Resultados Cultivos'!AD7 -> -147814.9438 | AE25: =-'Resultados Cultivos'!AE7 -> -147814.9438 | AF25: =-'Resultados Cultivos'!AF7 -> -147814.9438 | AG25: =-'Resultados Cultivos'!AG7 -> -147814.9438 | AH25: =-'Resultados Cultivos'!AH7 -> -147814.9438 | AI25: =-'Resultados Cultivos'!AI7 -> -147814.9438 | AJ25: =-'Resultados Cultivos'!AJ7 -> -147814.9438 | AK25: =-'Resultados Cultivos'!AK7 -> -147814.9438 | AL25: =-'Resultados Cultivos'!AL7 -> -147814.9438
B26: Energia | C26: =SUM(D26:AL26) -> -240403.1375 | D26: =-D7*Energia!$I$18/1000 -> 0 | E26: =-E7*Energia!$I$18/1000 -> 0 | F26: =-F7*Energia!$I$18/1000 -> 0 | G26: =-G7*Energia!$I$18/1000 -> -2354.39862 | H26: =-H7*Energia!$I$18/1000 -> -3735.02211 | I26: =-I7*Energia!$I$18/1000 -> -5297.792868 | J26: =-J7*Energia!$I$18/1000 -> -6652.018203 | K26: =-K7*Energia!$I$18/1000 -> -7941.56806 | L26: =-L7*Energia!$I$18/1000 -> -7941.56806 | M26: =-M7*Energia!$I$18/1000 -> -7941.56806 | N26: =-N7*Energia!$I$18/1000 -> -7941.56806 | O26: =-O7*Energia!$I$18/1000 -> -7941.56806 | P26: =-P7*Energia!$I$18/1000 -> -7941.56806 | Q26: =-Q7*Energia!$I$18/1000 -> -7941.56806 | R26: =-R7*Energia!$I$18/1000 -> -7941.56806 | S26: =-S7*Energia!$I$18/1000 -> -7941.56806 | T26: =-T7*Energia!$I$18/1000 -> -7941.56806 | U26: =-U7*Energia!$I$18/1000 -> -7941.56806 | V26: =-V7*Energia!$I$18/1000 -> -7941.56806 | W26: =-W7*Energia!$I$18/1000 -> -7941.56806 | X26: =-X7*Energia!$I$18/1000 -> -7941.56806 | Y26: =-Y7*Energia!$I$18/1000 -> -7941.56806 | Z26: =-Z7*Energia!$I$18/1000 -> -7941.56806 | AA26: =-AA7*Energia!$I$18/1000 -> -7941.56806 | AB26: =-AB7*Energia!$I$18/1000 -> -7941.56806 | AC26: =-AC7*Energia!$I$18/1000 -> -7941.56806 | AD26: =-AD7*Energia!$I$18/1000 -> -7941.56806 | AE26: =-AE7*Energia!$I$18/1000 -> -7941.56806 | AF26: =-AF7*Energia!$I$18/1000 -> -7941.56806 | AG26: =-AG7*Energia!$I$18/1000 -> -7941.56806 | AH26: =-AH7*Energia!$I$18/1000 -> -7941.56806 | AI26: =-AI7*Energia!$I$18/1000 -> -7941.56806 | AJ26: =-AJ7*Energia!$I$18/1000 -> -7941.56806 | AK26: =-AK7*Energia!$I$18/1000 -> -7941.56806 | AL26: =-AL7*Energia!$I$18/1000 -> -7941.56806
B27: Manutenção de Equipamentos | C27: =SUM(D27:AL27) -> -75479.47208 | D27: =-D8*'Base Ativos'!$K$6/1000 -> 0 | E27: =-E8*'Base Ativos'!$K$6/1000 -> 0 | F27: =-F8*'Base Ativos'!$K$6/1000 -> 0 | G27: =-G8*'Base Ativos'!$K$6/1000 -> -739.2115044 | H27: =-H8*'Base Ativos'!$K$6/1000 -> -1172.68643 | I27: =-I8*'Base Ativos'!$K$6/1000 -> -1663.350209 | J27: =-J8*'Base Ativos'!$K$6/1000 -> -2088.536895 | K27: =-K8*'Base Ativos'!$K$6/1000 -> -2493.417394 | L27: =-L8*'Base Ativos'!$K$6/1000 -> -2493.417394 | M27: =-M8*'Base Ativos'!$K$6/1000 -> -2493.417394 | N27: =-N8*'Base Ativos'!$K$6/1000 -> -2493.417394 | O27: =-O8*'Base Ativos'!$K$6/1000 -> -2493.417394 | P27: =-P8*'Base Ativos'!$K$6/1000 -> -2493.417394 | Q27: =-Q8*'Base Ativos'!$K$6/1000 -> -2493.417394 | R27: =-R8*'Base Ativos'!$K$6/1000 -> -2493.417394 | S27: =-S8*'Base Ativos'!$K$6/1000 -> -2493.417394 | T27: =-T8*'Base Ativos'!$K$6/1000 -> -2493.417394 | U27: =-U8*'Base Ativos'!$K$6/1000 -> -2493.417394 | V27: =-V8*'Base Ativos'!$K$6/1000 -> -2493.417394 | W27: =-W8*'Base Ativos'!$K$6/1000 -> -2493.417394 | X27: =-X8*'Base Ativos'!$K$6/1000 -> -2493.417394 | Y27: =-Y8*'Base Ativos'!$K$6/1000 -> -2493.417394 | Z27: =-Z8*'Base Ativos'!$K$6/1000 -> -2493.417394 | AA27: =-AA8*'Base Ativos'!$K$6/1000 -> -2493.417394 | AB27: =-AB8*'Base Ativos'!$K$6/1000 -> -2493.417394 | AC27: =-AC8*'Base Ativos'!$K$6/1000 -> -2493.417394 | AD27: =-AD8*'Base Ativos'!$K$6/1000 -> -2493.417394 | AE27: =-AE8*'Base Ativos'!$K$6/1000 -> -2493.417394 | AF27: =-AF8*'Base Ativos'!$K$6/1000 -> -2493.417394 | AG27: =-AG8*'Base Ativos'!$K$6/1000 -> -2493.417394 | AH27: =-AH8*'Base Ativos'!$K$6/1000 -> -2493.417394 | AI27: =-AI8*'Base Ativos'!$K$6/1000 -> -2493.417394 | AJ27: =-AJ8*'Base Ativos'!$K$6/1000 -> -2493.417394 | AK27: =-AK8*'Base Ativos'!$K$6/1000 -> -2493.417394 | AL27: =-AL8*'Base Ativos'!$K$6/1000 -> -2493.417394
B28: Manutenção de Obras Civis | C28: -61002.93284 | D28: =-D8*'Base Ativos'!$K$7/1000 -> 0 | E28: =-E8*'Base Ativos'!$K$7/1000 -> 0 | F28: =-F8*'Base Ativos'!$K$7/1000 -> 0 | G28: =-G8*'Base Ativos'!$K$7/1000 -> -597.4348855 | H28: =-H8*'Base Ativos'!$K$7/1000 -> -947.7717527 | I28: =-I8*'Base Ativos'!$K$7/1000 -> -1344.328971 | J28: =-J8*'Base Ativos'!$K$7/1000 -> -1687.967237 | K28: =-K8*'Base Ativos'!$K$7/1000 -> -2015.193928 | L28: =-L8*'Base Ativos'!$K$7/1000 -> -2015.193928 | M28: =-M8*'Base Ativos'!$K$7/1000 -> -2015.193928 | N28: =-N8*'Base Ativos'!$K$7/1000 -> -2015.193928 | O28: =-O8*'Base Ativos'!$K$7/1000 -> -2015.193928 | P28: =-P8*'Base Ativos'!$K$7/1000 -> -2015.193928 | Q28: =-Q8*'Base Ativos'!$K$7/1000 -> -2015.193928 | R28: =-R8*'Base Ativos'!$K$7/1000 -> -2015.193928 | S28: =-S8*'Base Ativos'!$K$7/1000 -> -2015.193928 | T28: =-T8*'Base Ativos'!$K$7/1000 -> -2015.193928 | U28: =-U8*'Base Ativos'!$K$7/1000 -> -2015.193928 | V28: =-V8*'Base Ativos'!$K$7/1000 -> -2015.193928 | W28: =-W8*'Base Ativos'!$K$7/1000 -> -2015.193928 | X28: =-X8*'Base Ativos'!$K$7/1000 -> -2015.193928 | Y28: =-Y8*'Base Ativos'!$K$7/1000 -> -2015.193928 | Z28: =-Z8*'Base Ativos'!$K$7/1000 -> -2015.193928 | AA28: =-AA8*'Base Ativos'!$K$7/1000 -> -2015.193928 | AB28: =-AB8*'Base Ativos'!$K$7/1000 -> -2015.193928 | AC28: =-AC8*'Base Ativos'!$K$7/1000 -> -2015.193928 | AD28: =-AD8*'Base Ativos'!$K$7/1000 -> -2015.193928 | AE28: =-AE8*'Base Ativos'!$K$7/1000 -> -2015.193928 | AF28: =-AF8*'Base Ativos'!$K$7/1000 -> -2015.193928 | AG28: =-AG8*'Base Ativos'!$K$7/1000 -> -2015.193928 | AH28: =-AH8*'Base Ativos'!$K$7/1000 -> -2015.193928 | AI28: =-AI8*'Base Ativos'!$K$7/1000 -> -2015.193928 | AJ28: =-AJ8*'Base Ativos'!$K$7/1000 -> -2015.193928 | AK28: =-AK8*'Base Ativos'!$K$7/1000 -> -2015.193928 | AL28: =-AL8*'Base Ativos'!$K$7/1000 -> -2015.193928
B29: Despesas de Pessoal | C29: -116354.3886 | D29: =-D10*Despesas!$I$25/1000 -> 0 | E29: =-E10*Despesas!$I$25/1000 -> -1442.903409 | F29: =-F10*Despesas!$I$25/1000 -> -1915.171879 | G29: =-G10*Despesas!$I$25/1000 -> -2426.422576 | H29: =-H10*Despesas!$I$25/1000 -> -2843.701112 | I29: =-I10*Despesas!$I$25/1000 -> -3260.979648 | J29: =-J10*Despesas!$I$25/1000 -> -3602.248621 | K29: =-K10*Despesas!$I$25/1000 -> -3602.248621 | L29: =-L10*Despesas!$I$25/1000 -> -3602.248621 | M29: =-M10*Despesas!$I$25/1000 -> -3602.248621 | N29: =-N10*Despesas!$I$25/1000 -> -3602.248621 | O29: =-O10*Despesas!$I$25/1000 -> -3602.248621 | P29: =-P10*Despesas!$I$25/1000 -> -3602.248621 | Q29: =-Q10*Despesas!$I$25/1000 -> -3602.248621 | R29: =-R10*Despesas!$I$25/1000 -> -3602.248621 | S29: =-S10*Despesas!$I$25/1000 -> -3602.248621 | T29: =-T10*Despesas!$I$25/1000 -> -3602.248621 | U29: =-U10*Despesas!$I$25/1000 -> -3602.248621 | V29: =-V10*Despesas!$I$25/1000 -> -3602.248621 | W29: =-W10*Despesas!$I$25/1000 -> -3602.248621 | X29: =-X10*Despesas!$I$25/1000 -> -3602.248621 | Y29: =-Y10*Despesas!$I$25/1000 -> -3602.248621 | Z29: =-Z10*Despesas!$I$25/1000 -> -3602.248621 | AA29: =-AA10*Despesas!$I$25/1000 -> -3602.248621 | AB29: =-AB10*Despesas!$I$25/1000 -> -3602.248621 | AC29: =-AC10*Despesas!$I$25/1000 -> -3602.248621 | AD29: =-AD10*Despesas!$I$25/1000 -> -3602.248621 | AE29: =-AE10*Despesas!$I$25/1000 -> -3602.248621 | AF29: =-AF10*Despesas!$I$25/1000 -> -3602.248621 | AG29: =-AG10*Despesas!$I$25/1000 -> -3602.248621 | AH29: =-AH10*Despesas!$I$25/1000 -> -3602.248621 | AI29: =-AI10*Despesas!$I$25/1000 -> -3602.248621 | AJ29: =-AJ10*Despesas!$I$25/1000 -> -3602.248621 | AK29: =-AK10*Despesas!$I$25/1000 -> -3602.248621 | AL29: =-AL10*Despesas!$I$25/1000 -> -3602.248621
B30: Meio Ambiente | C30: =SUM(D30:AL30) -> -28499.07105 | D30: 0 | E30: 0 | F30: 0 | G30: 0 | H30: 0 | I30: 0 | J30: 0 | K30: =-IF('Painel de Controle'!$G$16="S",CAPEX!M75*(1-'Painel de Controle'!$G$17),CAPEX!M75)/1000 -> -2569.794273 | L30: =-IF('Painel de Controle'!$G$16="S",CAPEX!N75*(1-'Painel de Controle'!$G$17),CAPEX!N75)/1000 -> -2229.501848 | M30: =-IF('Painel de Controle'!$G$16="S",CAPEX!O75*(1-'Painel de Controle'!$G$17),CAPEX!O75)/1000 -> -2074.194805 | N30: =-IF('Painel de Controle'!$G$16="S",CAPEX!P75*(1-'Painel de Controle'!$G$17),CAPEX!P75)/1000 -> -1445.099342 | O30: =-IF('Painel de Controle'!$G$16="S",CAPEX!Q75*(1-'Painel de Controle'!$G$17),CAPEX!Q75)/1000 -> -1445.099342 | P30: =-IF('Painel de Controle'!$G$16="S",CAPEX!R75*(1-'Painel de Controle'!$G$17),CAPEX!R75)/1000 -> -929.3739638 | Q30: =-IF('Painel de Controle'!$G$16="S",CAPEX!S75*(1-'Painel de Controle'!$G$17),CAPEX!S75)/1000 -> -774.0669212 | R30: =-IF('Painel de Controle'!$G$16="S",CAPEX!T75*(1-'Painel de Controle'!$G$17),CAPEX!T75)/1000 -> -774.0669212 | S30: =-IF('Painel de Controle'!$G$16="S",CAPEX!U75*(1-'Painel de Controle'!$G$17),CAPEX!U75)/1000 -> -774.0669212 | T30: =-IF('Painel de Controle'!$G$16="S",CAPEX!V75*(1-'Painel de Controle'!$G$17),CAPEX!V75)/1000 -> -929.3739638 | U30: =-IF('Painel de Controle'!$G$16="S",CAPEX!W75*(1-'Painel de Controle'!$G$17),CAPEX!W75)/1000 -> -774.0669212 | V30: =-IF('Painel de Controle'!$G$16="S",CAPEX!X75*(1-'Painel de Controle'!$G$17),CAPEX!X75)/1000 -> -774.0669212 | W30: =-IF('Painel de Controle'!$G$16="S",CAPEX!Y75*(1-'Painel de Controle'!$G$17),CAPEX!Y75)/1000 -> -774.0669212 | X30: =-IF('Painel de Controle'!$G$16="S",CAPEX!Z75*(1-'Painel de Controle'!$G$17),CAPEX!Z75)/1000 -> -929.3739638 | Y30: =-IF('Painel de Controle'!$G$16="S",CAPEX!AA75*(1-'Painel de Controle'!$G$17),CAPEX!AA75)/1000 -> -774.0669212 | Z30: =-IF('Painel de Controle'!$G$16="S",CAPEX!AB75*(1-'Painel de Controle'!$G$17),CAPEX!AB75)/1000 -> -774.0669212 | AA30: =-IF('Painel de Controle'!$G$16="S",CAPEX!AC75*(1-'Painel de Controle'!$G$17),CAPEX!AC75)/1000 -> -774.0669212 | AB30: =-IF('Painel de Controle'!$G$16="S",CAPEX!AD75*(1-'Painel de Controle'!$G$17),CAPEX!AD75)/1000 -> -929.3739638 | AC30: =-IF('Painel de Controle'!$G$16="S",CAPEX!AE75*(1-'Painel de Controle'!$G$17),CAPEX!AE75)/1000 -> -774.0669212 | AD30: =-IF('Painel de Controle'!$G$16="S",CAPEX!AF75*(1-'Painel de Controle'!$G$17),CAPEX!AF75)/1000 -> -774.0669212 | AE30: =-IF('Painel de Controle'!$G$16="S",CAPEX!AG75*(1-'Painel de Controle'!$G$17),CAPEX!AG75)/1000 -> -774.0669212 | AF30: =-IF('Painel de Controle'!$G$16="S",CAPEX!AH75*(1-'Painel de Controle'!$G$17),CAPEX!AH75)/1000 -> -929.3739638 | AG30: =-IF('Painel de Controle'!$G$16="S",CAPEX!AI75*(1-'Painel de Controle'!$G$17),CAPEX!AI75)/1000 -> -774.0669212 | AH30: =-IF('Painel de Controle'!$G$16="S",CAPEX!AJ75*(1-'Painel de Controle'!$G$17),CAPEX!AJ75)/1000 -> -774.0669212 | AI30: =-IF('Painel de Controle'!$G$16="S",CAPEX!AK75*(1-'Painel de Controle'!$G$17),CAPEX!AK75)/1000 -> -774.0669212 | AJ30: =-IF('Painel de Controle'!$G$16="S",CAPEX!AL75*(1-'Painel de Controle'!$G$17),CAPEX!AL75)/1000 -> -929.3739638 | AK30: =-IF('Painel de Controle'!$G$16="S",CAPEX!AM75*(1-'Painel de Controle'!$G$17),CAPEX!AM75)/1000 -> -774.0669212 | AL30: =-IF('Painel de Controle'!$G$16="S",CAPEX!AN75*(1-'Painel de Controle'!$G$17),CAPEX!AN75)/1000 -> -774.0669212
B31: Outras Despesas | C31: =SUM(D31:AL31) -> -30864.79548 | D31: =-D10*(Despesas!$I$38+Despesas!$I$46)/1000 -> 0 | E31: =-E10*(Despesas!$I$38+Despesas!$I$46)/1000 -> -382.7523751 | F31: =-F10*(Despesas!$I$38+Despesas!$I$46)/1000 -> -508.0288681 | G31: =-G10*(Despesas!$I$38+Despesas!$I$46)/1000 -> -643.6459976 | H31: =-H10*(Despesas!$I$38+Despesas!$I$46)/1000 -> -754.3355626 | I31: =-I10*(Despesas!$I$38+Despesas!$I$46)/1000 -> -865.0251276 | J31: =-J10*(Despesas!$I$38+Despesas!$I$46)/1000 -> -955.5519845 | K31: =-K10*(Despesas!$I$38+Despesas!$I$46)/1000 -> -955.5519845 | L31: =-L10*(Despesas!$I$38+Despesas!$I$46)/1000 -> -955.5519845 | M31: =-M10*(Despesas!$I$38+Despesas!$I$46)/1000 -> -955.5519845 | N31: =-N10*(Despesas!$I$38+Despesas!$I$46)/1000 -> -955.5519845 | O31: =-O10*(Despesas!$I$38+Despesas!$I$46)/1000 -> -955.5519845 | P31: =-P10*(Despesas!$I$38+Despesas!$I$46)/1000 -> -955.5519845 | Q31: =-Q10*(Despesas!$I$38+Despesas!$I$46)/1000 -> -955.5519845 | R31: =-R10*(Despesas!$I$38+Despesas!$I$46)/1000 -> -955.5519845 | S31: =-S10*(Despesas!$I$38+Despesas!$I$46)/1000 -> -955.5519845 | T31: =-T10*(Despesas!$I$38+Despesas!$I$46)/1000 -> -955.5519845 | U31: =-U10*(Despesas!$I$38+Despesas!$I$46)/1000 -> -955.5519845 | V31: =-V10*(Despesas!$I$38+Despesas!$I$46)/1000 -> -955.5519845 | W31: =-W10*(Despesas!$I$38+Despesas!$I$46)/1000 -> -955.5519845 | X31: =-X10*(Despesas!$I$38+Despesas!$I$46)/1000 -> -955.5519845 | Y31: =-Y10*(Despesas!$I$38+Despesas!$I$46)/1000 -> -955.5519845 | Z31: =-Z10*(Despesas!$I$38+Despesas!$I$46)/1000 -> -955.5519845 | AA31: =-AA10*(Despesas!$I$38+Despesas!$I$46)/1000 -> -955.5519845 | AB31: =-AB10*(Despesas!$I$38+Despesas!$I$46)/1000 -> -955.5519845 | AC31: =-AC10*(Despesas!$I$38+Despesas!$I$46)/1000 -> -955.5519845 | AD31: =-AD10*(Despesas!$I$38+Despesas!$I$46)/1000 -> -955.5519845 | AE31: =-AE10*(Despesas!$I$38+Despesas!$I$46)/1000 -> -955.5519845 | AF31: =-AF10*(Despesas!$I$38+Despesas!$I$46)/1000 -> -955.5519845 | AG31: =-AG10*(Despesas!$I$38+Despesas!$I$46)/1000 -> -955.5519845 | AH31: =-AH10*(Despesas!$I$38+Despesas!$I$46)/1000 -> -955.5519845 | AI31: =-AI10*(Despesas!$I$38+Despesas!$I$46)/1000 -> -955.5519845 | AJ31: =-AJ10*(Despesas!$I$38+Despesas!$I$46)/1000 -> -955.5519845 | AK31: =-AK10*(Despesas!$I$38+Despesas!$I$46)/1000 -> -955.5519845 | AL31: =-AL10*(Despesas!$I$38+Despesas!$I$46)/1000 -> -955.5519845
B32: Outorga da Terra | C32: =SUM(D32:AL32) -> -396891.5558 | D32: =-VLOOKUP(D12,'Painel de Controle'!$M$6:$O$41,3,FALSE)/1000 -> 0 | E32: =-VLOOKUP(E12,'Painel de Controle'!$M$6:$O$41,3,FALSE)/1000 -> -48966.24888 | F32: =-VLOOKUP(F12,'Painel de Controle'!$M$6:$O$41,3,FALSE)/1000 -> 0 | G32: =-VLOOKUP(G12,'Painel de Controle'!$M$6:$O$41,3,FALSE)/1000 -> 0 | H32: =-VLOOKUP(H12,'Painel de Controle'!$M$6:$O$41,3,FALSE)/1000 -> 0 | I32: =-VLOOKUP(I12,'Painel de Controle'!$M$6:$O$41,3,FALSE)/1000 -> -104401.9877 | J32: =-VLOOKUP(J12,'Painel de Controle'!$M$6:$O$41,3,FALSE)/1000 -> -6128.807648 | K32: =-VLOOKUP(K12,'Painel de Controle'!$M$6:$O$41,3,FALSE)/1000 -> -6692.0035 | L32: =-VLOOKUP(L12,'Painel de Controle'!$M$6:$O$41,3,FALSE)/1000 -> -7306.953231 | M32: =-VLOOKUP(M12,'Painel de Controle'!$M$6:$O$41,3,FALSE)/1000 -> -223395.5548 | N32: =-VLOOKUP(N12,'Painel de Controle'!$M$6:$O$41,3,FALSE)/1000 -> 0 | O32: =-VLOOKUP(O12,'Painel de Controle'!$M$6:$O$41,3,FALSE)/1000 -> 0 | P32: =-VLOOKUP(P12,'Painel de Controle'!$M$6:$O$41,3,FALSE)/1000 -> 0 | Q32: =-VLOOKUP(Q12,'Painel de Controle'!$M$6:$O$41,3,FALSE)/1000 -> 0 | R32: =-VLOOKUP(R12,'Painel de Controle'!$M$6:$O$41,3,FALSE)/1000 -> 0 | S32: =-VLOOKUP(S12,'Painel de Controle'!$M$6:$O$41,3,FALSE)/1000 -> 0 | T32: =-VLOOKUP(T12,'Painel de Controle'!$M$6:$O$41,3,FALSE)/1000 -> 0 | U32: =-VLOOKUP(U12,'Painel de Controle'!$M$6:$O$41,3,FALSE)/1000 -> 0 | V32: =-VLOOKUP(V12,'Painel de Controle'!$M$6:$O$41,3,FALSE)/1000 -> 0 | W32: =-VLOOKUP(W12,'Painel de Controle'!$M$6:$O$41,3,FALSE)/1000 -> 0 | X32: =-VLOOKUP(X12,'Painel de Controle'!$M$6:$O$41,3,FALSE)/1000 -> 0 | Y32: =-VLOOKUP(Y12,'Painel de Controle'!$M$6:$O$41,3,FALSE)/1000 -> 0 | Z32: =-VLOOKUP(Z12,'Painel de Controle'!$M$6:$O$41,3,FALSE)/1000 -> 0 | AA32: =-VLOOKUP(AA12,'Painel de Controle'!$M$6:$O$41,3,FALSE)/1000 -> 0 | AB32: =-VLOOKUP(AB12,'Painel de Controle'!$M$6:$O$41,3,FALSE)/1000 -> 0 | AC32: =-VLOOKUP(AC12,'Painel de Controle'!$M$6:$O$41,3,FALSE)/1000 -> 0 | AD32: =-VLOOKUP(AD12,'Painel de Controle'!$M$6:$O$41,3,FALSE)/1000 -> 0 | AE32: =-VLOOKUP(AE12,'Painel de Controle'!$M$6:$O$41,3,FALSE)/1000 -> 0 | AF32: =-VLOOKUP(AF12,'Painel de Controle'!$M$6:$O$41,3,FALSE)/1000 -> 0 | AG32: =-VLOOKUP(AG12,'Painel de Controle'!$M$6:$O$41,3,FALSE)/1000 -> 0 | AH32: =-VLOOKUP(AH12,'Painel de Controle'!$M$6:$O$41,3,FALSE)/1000 -> 0 | AI32: =-VLOOKUP(AI12,'Painel de Controle'!$M$6:$O$41,3,FALSE)/1000 -> 0 | AJ32: =-VLOOKUP(AJ12,'Painel de Controle'!$M$6:$O$41,3,FALSE)/1000 -> 0 | AK32: =-VLOOKUP(AK12,'Painel de Controle'!$M$6:$O$41,3,FALSE)/1000 -> 0 | AL32: =-VLOOKUP(AL12,'Painel de Controle'!$M$6:$O$41,3,FALSE)/1000 -> 0
B33: Seguros e Garantias | C33: -2074.189537 | D33: =SUM(D34:D36) -> -56.3354202 | E33: =SUM(E34:E36) -> -67.87441295 | F33: -64.41784708 | G33: -72.23859232 | H33: -68.42123757 | I33: -68.80849756 | J33: -67.77930844 | K33: -55.43582407 | L33: -50.5668925 | M33: -50.5668925 | N33: -50.5668925 | O33: -54.99188802 | P33: -54.99188802 | Q33: -54.99188802 | R33: -56.13684501 | S33: -56.13684501 | T33: -60.56184053 | U33: -54.99188802 | V33: -54.99188802 | W33: -65.1108719 | X33: -65.1108719 | Y33: -69.53586741 | Z33: -54.99188802 | AA33: -54.99188802 | AB33: -50.5668925 | AC33: -50.5668925 | AD33: -54.99188802 | AE33: -54.99188802 | AF33: -54.99188802 | AG33: -70.85208289 | AH33: -70.85208289 | AI33: -75.2770784 | AJ33: -54.99188802 | AK33: -54.99188802 | AL33: -50.5668925
B34: Garantia de Execução | C34: -719.5906736 | D34: =-IF(D5<=7,'Painel de Controle'!$G$24,'Painel de Controle'!$G$25)*'Painel de Controle'!$G$26*'Painel de Controle'!$G$27*(1+'Painel de Controle'!$G$28) -> -23.91828022 | E34: =-IF(E5<=7,'Painel de Controle'!$G$24,'Painel de Controle'!$G$25)*'Painel de Controle'!$G$26*'Painel de Controle'!$G$27*(1+'Painel de Controle'!$G$28) -> -23.91828022 | F34: =-IF(F5<=7,'Painel de Controle'!$G$24,'Painel de Controle'!$G$25)*'Painel de Controle'!$G$26*'Painel de Controle'!$G$27*(1+'Painel de Controle'!$G$28) -> -23.91828022 | G34: =-IF(G5<=7,'Painel de Controle'!$G$24,'Painel de Controle'!$G$25)*'Painel de Controle'!$G$26*'Painel de Controle'!$G$27*(1+'Painel de Controle'!$G$28) -> -23.91828022 | H34: =-IF(H5<=7,'Painel de Controle'!$G$24,'Painel de Controle'!$G$25)*'Painel de Controle'!$G$26*'Painel de Controle'!$G$27*(1+'Painel de Controle'!$G$28) -> -23.91828022 | I34: =-IF(I5<=7,'Painel de Controle'!$G$24,'Painel de Controle'!$G$25)*'Painel de Controle'!$G$26*'Painel de Controle'!$G$27*(1+'Painel de Controle'!$G$28) -> -23.91828022 | J34: =-IF(J5<=7,'Painel de Controle'!$G$24,'Painel de Controle'!$G$25)*'Painel de Controle'!$G$26*'Painel de Controle'!$G$27*(1+'Painel de Controle'!$G$28) -> -23.91828022 | K34: =-IF(K5<=7,'Painel de Controle'!$G$24,'Painel de Controle'!$G$25)*'Painel de Controle'!$G$26*'Painel de Controle'!$G$27*(1+'Painel de Controle'!$G$28) -> -19.72009686 | L34: =-IF(L5<=7,'Painel de Controle'!$G$24,'Painel de Controle'!$G$25)*'Painel de Controle'!$G$26*'Painel de Controle'!$G$27*(1+'Painel de Controle'!$G$28) -> -19.72009686 | M34: =-IF(M5<=7,'Painel de Controle'!$G$24,'Painel de Controle'!$G$25)*'Painel de Controle'!$G$26*'Painel de Controle'!$G$27*(1+'Painel de Controle'!$G$28) -> -19.72009686 | N34: =-IF(N5<=7,'Painel de Controle'!$G$24,'Painel de Controle'!$G$25)*'Painel de Controle'!$G$26*'Painel de Controle'!$G$27*(1+'Painel de Controle'!$G$28) -> -19.72009686 | O34: =-IF(O5<=7,'Painel de Controle'!$G$24,'Painel de Controle'!$G$25)*'Painel de Controle'!$G$26*'Painel de Controle'!$G$27*(1+'Painel de Controle'!$G$28) -> -19.72009686 | P34: =-IF(P5<=7,'Painel de Controle'!$G$24,'Painel de Controle'!$G$25)*'Painel de Controle'!$G$26*'Painel de Controle'!$G$27*(1+'Painel de Controle'!$G$28) -> -19.72009686 | Q34: =-IF(Q5<=7,'Painel de Controle'!$G$24,'Painel de Controle'!$G$25)*'Painel de Controle'!$G$26*'Painel de Controle'!$G$27*(1+'Painel de Controle'!$G$28) -> -19.72009686 | R34: =-IF(R5<=7,'Painel de Controle'!$G$24,'Painel de Controle'!$G$25)*'Painel de Controle'!$G$26*'Painel de Controle'!$G$27*(1+'Painel de Controle'!$G$28) -> -19.72009686 | S34: =-IF(S5<=7,'Painel de Controle'!$G$24,'Painel de Controle'!$G$25)*'Painel de Controle'!$G$26*'Painel de Controle'!$G$27*(1+'Painel de Controle'!$G$28) -> -19.72009686 | T34: =-IF(T5<=7,'Painel de Controle'!$G$24,'Painel de Controle'!$G$25)*'Painel de Controle'!$G$26*'Painel de Controle'!$G$27*(1+'Painel de Controle'!$G$28) -> -19.72009686 | U34: =-IF(U5<=7,'Painel de Controle'!$G$24,'Painel de Controle'!$G$25)*'Painel de Controle'!$G$26*'Painel de Controle'!$G$27*(1+'Painel de Controle'!$G$28) -> -19.72009686 | V34: =-IF(V5<=7,'Painel de Controle'!$G$24,'Painel de Controle'!$G$25)*'Painel de Controle'!$G$26*'Painel de Controle'!$G$27*(1+'Painel de Controle'!$G$28) -> -19.72009686 | W34: =-IF(W5<=7,'Painel de Controle'!$G$24,'Painel de Controle'!$G$25)*'Painel de Controle'!$G$26*'Painel de Controle'!$G$27*(1+'Painel de Controle'!$G$28) -> -19.72009686 | X34: =-IF(X5<=7,'Painel de Controle'!$G$24,'Painel de Controle'!$G$25)*'Painel de Controle'!$G$26*'Painel de Controle'!$G$27*(1+'Painel de Controle'!$G$28) -> -19.72009686 | Y34: =-IF(Y5<=7,'Painel de Controle'!$G$24,'Painel de Controle'!$G$25)*'Painel de Controle'!$G$26*'Painel de Controle'!$G$27*(1+'Painel de Controle'!$G$28) -> -19.72009686 | Z34: =-IF(Z5<=7,'Painel de Controle'!$G$24,'Painel de Controle'!$G$25)*'Painel de Controle'!$G$26*'Painel de Controle'!$G$27*(1+'Painel de Controle'!$G$28) -> -19.72009686 | AA34: =-IF(AA5<=7,'Painel de Controle'!$G$24,'Painel de Controle'!$G$25)*'Painel de Controle'!$G$26*'Painel de Controle'!$G$27*(1+'Painel de Controle'!$G$28) -> -19.72009686 | AB34: =-IF(AB5<=7,'Painel de Controle'!$G$24,'Painel de Controle'!$G$25)*'Painel de Controle'!$G$26*'Painel de Controle'!$G$27*(1+'Painel de Controle'!$G$28) -> -19.72009686 | AC34: =-IF(AC5<=7,'Painel de Controle'!$G$24,'Painel de Controle'!$G$25)*'Painel de Controle'!$G$26*'Painel de Controle'!$G$27*(1+'Painel de Controle'!$G$28) -> -19.72009686 | AD34: =-IF(AD5<=7,'Painel de Controle'!$G$24,'Painel de Controle'!$G$25)*'Painel de Controle'!$G$26*'Painel de Controle'!$G$27*(1+'Painel de Controle'!$G$28) -> -19.72009686 | AE34: =-IF(AE5<=7,'Painel de Controle'!$G$24,'Painel de Controle'!$G$25)*'Painel de Controle'!$G$26*'Painel de Controle'!$G$27*(1+'Painel de Controle'!$G$28) -> -19.72009686 | AF34: =-IF(AF5<=7,'Painel de Controle'!$G$24,'Painel de Controle'!$G$25)*'Painel de Controle'!$G$26*'Painel de Controle'!$G$27*(1+'Painel de Controle'!$G$28) -> -19.72009686 | AG34: =-IF(AG5<=7,'Painel de Controle'!$G$24,'Painel de Controle'!$G$25)*'Painel de Controle'!$G$26*'Painel de Controle'!$G$27*(1+'Painel de Controle'!$G$28) -> -19.72009686 | AH34: =-IF(AH5<=7,'Painel de Controle'!$G$24,'Painel de Controle'!$G$25)*'Painel de Controle'!$G$26*'Painel de Controle'!$G$27*(1+'Painel de Controle'!$G$28) -> -19.72009686 | AI34: =-IF(AI5<=7,'Painel de Controle'!$G$24,'Painel de Controle'!$G$25)*'Painel de Controle'!$G$26*'Painel de Controle'!$G$27*(1+'Painel de Controle'!$G$28) -> -19.72009686 | AJ34: =-IF(AJ5<=7,'Painel de Controle'!$G$24,'Painel de Controle'!$G$25)*'Painel de Controle'!$G$26*'Painel de Controle'!$G$27*(1+'Painel de Controle'!$G$28) -> -19.72009686 | AK34: =-IF(AK5<=7,'Painel de Controle'!$G$24,'Painel de Controle'!$G$25)*'Painel de Controle'!$G$26*'Painel de Controle'!$G$27*(1+'Painel de Controle'!$G$28) -> -19.72009686 | AL34: =-IF(AL5<=7,'Painel de Controle'!$G$24,'Painel de Controle'!$G$25)*'Painel de Controle'!$G$26*'Painel de Controle'!$G$27*(1+'Painel de Controle'!$G$28) -> -19.72009686
B35: Seguro de Responsabilidade Civil | C35: -1079.637848 | D35: =-'Painel de Controle'!$G$30*'Painel de Controle'!$G$31*'Painel de Controle'!$G$32*(1+'Painel de Controle'!$G$33) -> -30.84679565 | E35: =-'Painel de Controle'!$G$30*'Painel de Controle'!$G$31*'Painel de Controle'!$G$32*(1+'Painel de Controle'!$G$33) -> -30.84679565 | F35: =-'Painel de Controle'!$G$30*'Painel de Controle'!$G$31*'Painel de Controle'!$G$32*(1+'Painel de Controle'!$G$33) -> -30.84679565 | G35: =-'Painel de Controle'!$G$30*'Painel de Controle'!$G$31*'Painel de Controle'!$G$32*(1+'Painel de Controle'!$G$33) -> -30.84679565 | H35: =-'Painel de Controle'!$G$30*'Painel de Controle'!$G$31*'Painel de Controle'!$G$32*(1+'Painel de Controle'!$G$33) -> -30.84679565 | I35: =-'Painel de Controle'!$G$30*'Painel de Controle'!$G$31*'Painel de Controle'!$G$32*(1+'Painel de Controle'!$G$33) -> -30.84679565 | J35: =-'Painel de Controle'!$G$30*'Painel de Controle'!$G$31*'Painel de Controle'!$G$32*(1+'Painel de Controle'!$G$33) -> -30.84679565 | K35: =-'Painel de Controle'!$G$30*'Painel de Controle'!$G$31*'Painel de Controle'!$G$32*(1+'Painel de Controle'!$G$33) -> -30.84679565 | L35: =-'Painel de Controle'!$G$30*'Painel de Controle'!$G$31*'Painel de Controle'!$G$32*(1+'Painel de Controle'!$G$33) -> -30.84679565 | M35: =-'Painel de Controle'!$G$30*'Painel de Controle'!$G$31*'Painel de Controle'!$G$32*(1+'Painel de Controle'!$G$33) -> -30.84679565 | N35: =-'Painel de Controle'!$G$30*'Painel de Controle'!$G$31*'Painel de Controle'!$G$32*(1+'Painel de Controle'!$G$33) -> -30.84679565 | O35: =-'Painel de Controle'!$G$30*'Painel de Controle'!$G$31*'Painel de Controle'!$G$32*(1+'Painel de Controle'!$G$33) -> -30.84679565 | P35: =-'Painel de Controle'!$G$30*'Painel de Controle'!$G$31*'Painel de Controle'!$G$32*(1+'Painel de Controle'!$G$33) -> -30.84679565 | Q35: =-'Painel de Controle'!$G$30*'Painel de Controle'!$G$31*'Painel de Controle'!$G$32*(1+'Painel de Controle'!$G$33) -> -30.84679565 | R35: =-'Painel de Controle'!$G$30*'Painel de Controle'!$G$31*'Painel de Controle'!$G$32*(1+'Painel de Controle'!$G$33) -> -30.84679565 | S35: =-'Painel de Controle'!$G$30*'Painel de Controle'!$G$31*'Painel de Controle'!$G$32*(1+'Painel de Controle'!$G$33) -> -30.84679565 | T35: =-'Painel de Controle'!$G$30*'Painel de Controle'!$G$31*'Painel de Controle'!$G$32*(1+'Painel de Controle'!$G$33) -> -30.84679565 | U35: =-'Painel de Controle'!$G$30*'Painel de Controle'!$G$31*'Painel de Controle'!$G$32*(1+'Painel de Controle'!$G$33) -> -30.84679565 | V35: =-'Painel de Controle'!$G$30*'Painel de Controle'!$G$31*'Painel de Controle'!$G$32*(1+'Painel de Controle'!$G$33) -> -30.84679565 | W35: =-'Painel de Controle'!$G$30*'Painel de Controle'!$G$31*'Painel de Controle'!$G$32*(1+'Painel de Controle'!$G$33) -> -30.84679565 | X35: =-'Painel de Controle'!$G$30*'Painel de Controle'!$G$31*'Painel de Controle'!$G$32*(1+'Painel de Controle'!$G$33) -> -30.84679565 | Y35: =-'Painel de Controle'!$G$30*'Painel de Controle'!$G$31*'Painel de Controle'!$G$32*(1+'Painel de Controle'!$G$33) -> -30.84679565 | Z35: =-'Painel de Controle'!$G$30*'Painel de Controle'!$G$31*'Painel de Controle'!$G$32*(1+'Painel de Controle'!$G$33) -> -30.84679565 | AA35: =-'Painel de Controle'!$G$30*'Painel de Controle'!$G$31*'Painel de Controle'!$G$32*(1+'Painel de Controle'!$G$33) -> -30.84679565 | AB35: =-'Painel de Controle'!$G$30*'Painel de Controle'!$G$31*'Painel de Controle'!$G$32*(1+'Painel de Controle'!$G$33) -> -30.84679565 | AC35: =-'Painel de Controle'!$G$30*'Painel de Controle'!$G$31*'Painel de Controle'!$G$32*(1+'Painel de Controle'!$G$33) -> -30.84679565 | AD35: =-'Painel de Controle'!$G$30*'Painel de Controle'!$G$31*'Painel de Controle'!$G$32*(1+'Painel de Controle'!$G$33) -> -30.84679565 | AE35: =-'Painel de Controle'!$G$30*'Painel de Controle'!$G$31*'Painel de Controle'!$G$32*(1+'Painel de Controle'!$G$33) -> -30.84679565 | AF35: =-'Painel de Controle'!$G$30*'Painel de Controle'!$G$31*'Painel de Controle'!$G$32*(1+'Painel de Controle'!$G$33) -> -30.84679565 | AG35: =-'Painel de Controle'!$G$30*'Painel de Controle'!$G$31*'Painel de Controle'!$G$32*(1+'Painel de Controle'!$G$33) -> -30.84679565 | AH35: =-'Painel de Controle'!$G$30*'Painel de Controle'!$G$31*'Painel de Controle'!$G$32*(1+'Painel de Controle'!$G$33) -> -30.84679565 | AI35: =-'Painel de Controle'!$G$30*'Painel de Controle'!$G$31*'Painel de Controle'!$G$32*(1+'Painel de Controle'!$G$33) -> -30.84679565 | AJ35: =-'Painel de Controle'!$G$30*'Painel de Controle'!$G$31*'Painel de Controle'!$G$32*(1+'Painel de Controle'!$G$33) -> -30.84679565 | AK35: =-'Painel de Controle'!$G$30*'Painel de Controle'!$G$31*'Painel de Controle'!$G$32*(1+'Painel de Controle'!$G$33) -> -30.84679565 | AL35: =-'Painel de Controle'!$G$30*'Painel de Controle'!$G$31*'Painel de Controle'!$G$32*(1+'Painel de Controle'!$G$33) -> -30.84679565
B36: Seguro de Engenharia | C36: -274.9610162 | D36: ='Painel de Controle'!$G$35*'FC Projeto'!D57*'Painel de Controle'!$G$36*(1+'Painel de Controle'!$G$37) -> -1.57034433 | E36: ='Painel de Controle'!$G$35*'FC Projeto'!E57*'Painel de Controle'!$G$36*(1+'Painel de Controle'!$G$37) -> -13.10933708 | F36: ='Painel de Controle'!$G$35*'FC Projeto'!F57*'Painel de Controle'!$G$36*(1+'Painel de Controle'!$G$37) -> -9.65277121 | G36: ='Painel de Controle'!$G$35*'FC Projeto'!G57*'Painel de Controle'!$G$36*(1+'Painel de Controle'!$G$37) -> -17.47351645 | H36: ='Painel de Controle'!$G$35*'FC Projeto'!H57*'Painel de Controle'!$G$36*(1+'Painel de Controle'!$G$37) -> -13.6561617 | I36: ='Painel de Controle'!$G$35*'FC Projeto'!I57*'Painel de Controle'!$G$36*(1+'Painel de Controle'!$G$37) -> -14.0434217 | J36: ='Painel de Controle'!$G$35*'FC Projeto'!J57*'Painel de Controle'!$G$36*(1+'Painel de Controle'!$G$37) -> -13.01423258 | K36: ='Painel de Controle'!$G$35*'FC Projeto'!K57*'Painel de Controle'!$G$36*(1+'Painel de Controle'!$G$37) -> -4.868931561 | L36: ='Painel de Controle'!$G$35*'FC Projeto'!L57*'Painel de Controle'!$G$36*(1+'Painel de Controle'!$G$37) -> 0 | M36: ='Painel de Controle'!$G$35*'FC Projeto'!M57*'Painel de Controle'!$G$36*(1+'Painel de Controle'!$G$37) -> 0 | N36: ='Painel de Controle'!$G$35*'FC Projeto'!N57*'Painel de Controle'!$G$36*(1+'Painel de Controle'!$G$37) -> 0 | O36: ='Painel de Controle'!$G$35*'FC Projeto'!O57*'Painel de Controle'!$G$36*(1+'Painel de Controle'!$G$37) -> -4.424995517 | P36: ='Painel de Controle'!$G$35*'FC Projeto'!P57*'Painel de Controle'!$G$36*(1+'Painel de Controle'!$G$37) -> -4.424995517 | Q36: ='Painel de Controle'!$G$35*'FC Projeto'!Q57*'Painel de Controle'!$G$36*(1+'Painel de Controle'!$G$37) -> -4.424995517 | R36: ='Painel de Controle'!$G$35*'FC Projeto'!R57*'Painel de Controle'!$G$36*(1+'Painel de Controle'!$G$37) -> -5.569952507 | S36: ='Painel de Controle'!$G$35*'FC Projeto'!S57*'Painel de Controle'!$G$36*(1+'Painel de Controle'!$G$37) -> -5.569952507 | T36: ='Painel de Controle'!$G$35*'FC Projeto'!T57*'Painel de Controle'!$G$36*(1+'Painel de Controle'!$G$37) -> -9.994948024 | U36: ='Painel de Controle'!$G$35*'FC Projeto'!U57*'Painel de Controle'!$G$36*(1+'Painel de Controle'!$G$37) -> -4.424995517 | V36: ='Painel de Controle'!$G$35*'FC Projeto'!V57*'Painel de Controle'!$G$36*(1+'Painel de Controle'!$G$37) -> -4.424995517 | W36: ='Painel de Controle'!$G$35*'FC Projeto'!W57*'Painel de Controle'!$G$36*(1+'Painel de Controle'!$G$37) -> -14.54397939 | X36: ='Painel de Controle'!$G$35*'FC Projeto'!X57*'Painel de Controle'!$G$36*(1+'Painel de Controle'!$G$37) -> -14.54397939 | Y36: ='Painel de Controle'!$G$35*'FC Projeto'!Y57*'Painel de Controle'!$G$36*(1+'Painel de Controle'!$G$37) -> -18.96897491 | Z36: ='Painel de Controle'!$G$35*'FC Projeto'!Z57*'Painel de Controle'!$G$36*(1+'Painel de Controle'!$G$37) -> -4.424995517 | AA36: ='Painel de Controle'!$G$35*'FC Projeto'!AA57*'Painel de Controle'!$G$36*(1+'Painel de Controle'!$G$37) -> -4.424995517 | AB36: ='Painel de Controle'!$G$35*'FC Projeto'!AB57*'Painel de Controle'!$G$36*(1+'Painel de Controle'!$G$37) -> 0 | AC36: ='Painel de Controle'!$G$35*'FC Projeto'!AC57*'Painel de Controle'!$G$36*(1+'Painel de Controle'!$G$37) -> 0 | AD36: ='Painel de Controle'!$G$35*'FC Projeto'!AD57*'Painel de Controle'!$G$36*(1+'Painel de Controle'!$G$37) -> -4.424995517 | AE36: ='Painel de Controle'!$G$35*'FC Projeto'!AE57*'Painel de Controle'!$G$36*(1+'Painel de Controle'!$G$37) -> -4.424995517 | AF36: ='Painel de Controle'!$G$35*'FC Projeto'!AF57*'Painel de Controle'!$G$36*(1+'Painel de Controle'!$G$37) -> -4.424995517 | AG36: ='Painel de Controle'!$G$35*'FC Projeto'!AG57*'Painel de Controle'!$G$36*(1+'Painel de Controle'!$G$37) -> -20.28519038 | AH36: ='Painel de Controle'!$G$35*'FC Projeto'!AH57*'Painel de Controle'!$G$36*(1+'Painel de Controle'!$G$37) -> -20.28519038 | AI36: ='Painel de Controle'!$G$35*'FC Projeto'!AI57*'Painel de Controle'!$G$36*(1+'Painel de Controle'!$G$37) -> -24.7101859 | AJ36: ='Painel de Controle'!$G$35*'FC Projeto'!AJ57*'Painel de Controle'!$G$36*(1+'Painel de Controle'!$G$37) -> -4.424995517 | AK36: ='Painel de Controle'!$G$35*'FC Projeto'!AK57*'Painel de Controle'!$G$36*(1+'Painel de Controle'!$G$37) -> -4.424995517 | AL36: ='Painel de Controle'!$G$35*'FC Projeto'!AL57*'Painel de Controle'!$G$36*(1+'Painel de Controle'!$G$37) -> 0
B38: EBITDA | C38: =C22+C24 -> 2479472.718 | D38: -1083.700239 | E38: -51898.68289 | F38: -3523.06584 | G38: 26078.5993 | H38: 43305.23102 | I38: -41537.15642 | J38: 73713.9212 | K38: 87181.89425 | L38: 86916.9748 | M38: -129016.3197 | N38: 95008.33054 | O38: 94999.48055 | P38: 95515.20593 | Q38: 95670.51297 | R38: 95668.22306 | S38: 95668.22306 | T38: 95504.06602 | U38: 95670.51297 | V38: 95670.51297 | W38: 95650.275 | X38: 95494.96796 | Y38: 95641.42501 | Z38: 95670.51297 | AA38: 95670.51297 | AB38: 95524.05592 | AC38: 95679.36296 | AD38: 95670.51297 | AE38: 95670.51297 | AF38: 95515.20593 | AG38: 95638.79258 | AH38: 95638.79258 | AI38: 95629.94259 | AJ38: 95515.20593 | AK38: 95670.51297 | AL38: 95679.36296
B39: Margem EBITDA | C39: =C38/C22 -> 0.3135518599 | D39: =IFERROR(D38/D22,0) -> 1.116032368 | E39: 53.44707685 | F39: 3.628176289 | G39: 0.3395377817 | H39: 0.3537579324 | I39: -0.238663371 | J39: 0.3369357216 | K39: 0.3335478319 | L39: 0.3325342808 | M39: -0.4936014994 | N39: 0.3634908709 | O39: 0.3634570118 | P39: 0.3654301174 | Q39: 0.3660243042 | R39: 0.3660155432 | S39: 0.3660155432 | T39: 0.3653874974 | U39: 0.3660243042 | V39: 0.3660243042 | W39: 0.365946876 | X39: 0.3653526893 | Y39: 0.365913017 | Z39: 0.3660243042 | AA39: 0.3660243042 | AB39: 0.3654639764 | AC39: 0.3660581632 | AD39: 0.3660243042 | AE39: 0.3660243042 | AF39: 0.3654301174 | AG39: 0.3659029456 | AH39: 0.3659029456 | AI39: 0.3658690866 | AJ39: 0.3654301174 | AK39: 0.3660243042 | AL39: 0.3660581632
B41: Depreciação | C41: =SUM(D41:AL41) -> -643062.8673 | D41: =-Depreciação!F27/1000 -> -139.2778943 | E41: =-Depreciação!G27/1000 -> -1578.942222 | F41: =-Depreciação!H27/1000 -> -2532.223428 | G41: =-Depreciação!I27/1000 -> -6840.521062 | H41: =-Depreciação!J27/1000 -> -9692.487125 | I41: =-Depreciação!K27/1000 -> -12786.15053 | J41: =-Depreciação!L27/1000 -> -15517.47017 | K41: =-Depreciação!M27/1000 -> -17417.28798 | L41: =-Depreciação!N27/1000 -> -14973.89589 | M41: =-Depreciação!O27/1000 -> -13541.08647 | N41: =-Depreciação!P27/1000 -> -11919.24484 | O41: =-Depreciação!Q27/1000 -> -13261.08136 | P41: =-Depreciação!R27/1000 -> -14670.03801 | Q41: =-Depreciação!S27/1000 -> -17417.28798 | R41: =-Depreciação!T27/1000 -> -18569.98608 | S41: =-Depreciação!U27/1000 -> -19722.68419 | T41: =-Depreciação!V27/1000 -> -20875.38229 | U41: =-Depreciação!W27/1000 -> -20875.38229 | V41: =-Depreciação!X27/1000 -> -19850.17764 | W41: =-Depreciação!Y27/1000 -> -21506.39625 | X41: =-Depreciação!Z27/1000 -> -23083.30024 | Y41: =-Depreciação!AA27/1000 -> -24116.47473 | Z41: =-Depreciação!AB27/1000 -> -23353.77029 | AA41: =-Depreciação!AC27/1000 -> -23262.29307 | AB41: =-Depreciação!AD27/1000 -> -23170.81584 | AC41: =-Depreciação!AE27/1000 -> -23079.33862 | AD41: =-Depreciação!AF27/1000 -> -23066.40445 | AE41: =-Depreciação!AG27/1000 -> -23066.40445 | AF41: =-Depreciação!AH27/1000 -> -23066.40445 | AG41: =-Depreciação!AI27/1000 -> -24589.05897 | AH41: =-Depreciação!AJ27/1000 -> -26111.7135 | AI41: =-Depreciação!AK27/1000 -> -27599.24144 | AJ41: =-Depreciação!AL27/1000 -> -27522.71729 | AK41: =-Depreciação!AM27/1000 -> -27248.63575 | AL41: =-Depreciação!AN27/1000 -> -27039.29046
D42: 0 | E42: =E15 -> 0 | F42: 0 | G42: 0 | H42: 0 | I42: 0 | J42: 0 | K42: 0 | L42: 0 | M42: 0 | N42: 0 | O42: 0 | P42: 0 | Q42: 0 | R42: 0 | S42: 0 | T42: 0 | U42: 0 | V42: 0 | W42: 0 | X42: 0 | Y42: 0 | Z42: 0 | AA42: 0 | AB42: 0 | AC42: 0 | AD42: 0 | AE42: 0 | AF42: 0 | AG42: 0 | AH42: 0 | AI42: 0 | AJ42: 0 | AK42: 0 | AL42: 0
B43: EBIT | C43: =SUM(D43:AL43) -> 1836409.851 | D43: =D38+D41 -> -1222.978133 | E43: =E38+E41 -> -53477.62511 | F43: =F38+F41 -> -6055.289268 | G43: =G38+G41 -> 19238.07824 | H43: =H38+H41 -> 33612.74389 | I43: -54323.30695 | J43: 58196.45103 | K43: 69764.60627 | L43: 71943.07891 | M43: -142557.4062 | N43: 83089.0857 | O43: 81738.39919 | P43: 80845.16791 | Q43: 78253.22499 | R43: 77098.23697 | S43: 75945.53887 | T43: 74628.68373 | U43: 74795.13068 | V43: 75820.33533 | W43: 74143.87875 | X43: 72411.66772 | Y43: 71524.95028 | Z43: 72316.74268 | AA43: 72408.2199 | AB43: 72353.24008 | AC43: 72600.02434 | AD43: 72604.10852 | AE43: 72604.10852 | AF43: 72448.80148 | AG43: 71049.73361 | AH43: 69527.07908 | AI43: 68030.70115 | AJ43: 67992.48864 | AK43: 68421.87722 | AL43: 68640.0725
B44: Margem EBIT | C44: =IFERROR(C43/C22,0) -> 0.2322307158 | D44: 1.259465609 | E44: 55.07312671 | F44: 6.235948445 | G44: 0.2504756614 | H44: 0.2745805646 | I44: -0.3121297816 | J44: 0.2660075994 | K44: 0.266911305 | L44: 0.2752458891 | M44: -0.5454081283 | N44: 0.3178892203 | O44: 0.3127216502 | P44: 0.3093042507 | Q44: 0.2993877772 | R44: 0.2949689268 | S44: 0.2905588374 | T44: 0.2855207021 | U44: 0.2861575089 | V44: 0.2900798231 | W44: 0.2836658944 | X44: 0.2770386556 | Y44: 0.2736461773 | Z44: 0.2766754834 | AA44: 0.2770254646 | AB44: 0.2768151182 | AC44: 0.2777592862 | AD44: 0.2777749118 | AE44: 0.2777749118 | AF44: 0.277180725 | AG44: 0.2718280534 | AH44: 0.2660025535 | AI44: 0.2602775848 | AJ44: 0.2601313881 | AK44: 0.2617741791 | AL44: 0.262608969
B46: Tributos Sobre o Lucro | C46: =SUM(D46:AL46) -> -590575.2609 | D46: =D47+D48 -> 0 | E46: =E47+E48 -> 0 | F46: 0 | G46: -2047.664852 | H46: -3582.16041 | I46: 0 | J46: -6206.471147 | K46: -7441.371719 | L46: -7673.923674 | M46: 0 | N46: -19751.2024 | O46: -19429.73901 | P46: -19217.14996 | Q46: -18600.26755 | R46: -18325.3804 | S46: -18051.03825 | T46: -17737.62673 | U46: -19853.93467 | V46: -25754.91401 | W46: -25184.91878 | X46: -24595.96702 | Y46: -24294.4831 | Z46: -24563.69251 | AA46: -24594.79477 | AB46: -24576.10163 | AC46: -24660.00828 | AD46: -24661.3969 | AE46: -24661.3969 | AF46: -24608.5925 | AG46: -24132.90943 | AH46: -23615.20689 | AI46: -23106.43839 | AJ46: -23093.44614 | AK46: -23239.43825 | AL46: -23313.62465
B47: IRPJ | C47: =SUM(E47:AL47) -> -425298.3744 | D47: =-Tributação!D26 -> 0 | E47: =-Tributação!E26 -> 0 | F47: =-Tributação!F26 -> 0 | G47: =-Tributação!G26 -> -835.6659229 | H47: =-Tributação!H26 -> -1464.557545 | I47: =-Tributação!I26 -> 0 | J47: =-Tributação!J26 -> -2540.094732 | K47: =-Tributação!K26 -> -3046.201524 | L47: =-Tributação!L26 -> -3141.509703 | M47: =-Tributação!M26 -> 0 | N47: =-Tributação!N26 -> -14516.59 | O47: =-Tributação!O26 -> -14280.21986 | P47: =-Tributação!P26 -> -14123.90438 | Q47: =-Tributação!Q26 -> -13670.31437 | R47: =-Tributação!R26 -> -13468.19147 | S47: =-Tributação!S26 -> -13266.4693 | T47: =-Tributação!T26 -> -13036.01965 | U47: =-Tributação!U26 -> -14592.12843 | V47: =-Tributação!V26 -> -18931.08383 | W47: =-Tributação!W26 -> -18511.96969 | X47: =-Tributação!X26 -> -18078.91693 | Y47: =-Tributação!Y26 -> -17857.23757 | Z47: =-Tributação!Z26 -> -18055.18567 | AA47: =-Tributação!AA26 -> -18078.05498 | AB47: =-Tributação!AB26 -> -18064.31002 | AC47: =-Tributação!AC26 -> -18126.00609 | AD47: =-Tributação!AD26 -> -18127.02713 | AE47: =-Tributação!AE26 -> -18127.02713 | AF47: =-Tributação!AF26 -> -18088.20037 | AG47: =-Tributação!AG26 -> -17738.4334 | AH47: =-Tributação!AH26 -> -17357.76977 | AI47: =-Tributação!AI26 -> -16983.67529 | AJ47: =-Tributação!AJ26 -> -16974.12216 | AK47: =-Tributação!AK26 -> -17081.4693 | AL47: =-Tributação!AL26 -> -17136.01813
B48: CSLL | C48: =SUM(E48:AL48) -> -165276.8865 | D48: =-Tributação!D25 -> 0 | E48: =-Tributação!E25 -> 0 | F48: =-Tributação!F25 -> 0 | G48: =-Tributação!G25 -> -1211.998929 | H48: =-Tributação!H25 -> -2117.602865 | I48: =-Tributação!I25 -> 0 | J48: =-Tributação!J25 -> -3666.376415 | K48: =-Tributação!K25 -> -4395.170195 | L48: =-Tributação!L25 -> -4532.413972 | M48: =-Tributação!M25 -> 0 | N48: =-Tributação!N25 -> -5234.612399 | O48: =-Tributação!O25 -> -5149.519149 | P48: =-Tributação!P25 -> -5093.245579 | Q48: =-Tributação!Q25 -> -4929.953175 | R48: =-Tributação!R25 -> -4857.188929 | S48: =-Tributação!S25 -> -4784.568949 | T48: =-Tributação!T25 -> -4701.607075 | U48: =-Tributação!U25 -> -5261.806237 | V48: =-Tributação!V25 -> -6823.830179 | W48: =-Tributação!W25 -> -6672.949088 | X48: =-Tributação!X25 -> -6517.050095 | Y48: =-Tributação!Y25 -> -6437.245525 | Z48: =-Tributação!Z25 -> -6508.506841 | AA48: =-Tributação!AA25 -> -6516.739791 | AB48: =-Tributação!AB25 -> -6511.791607 | AC48: =-Tributação!AC25 -> -6534.002191 | AD48: =-Tributação!AD25 -> -6534.369767 | AE48: =-Tributação!AE25 -> -6534.369767 | AF48: =-Tributação!AF25 -> -6520.392133 | AG48: =-Tributação!AG25 -> -6394.476025 | AH48: =-Tributação!AH25 -> -6257.437117 | AI48: =-Tributação!AI25 -> -6122.763103 | AJ48: =-Tributação!AJ25 -> -6119.323978 | AK48: =-Tributação!AK25 -> -6157.96895 | AL48: =-Tributação!AL25 -> -6177.606525
B50: LLE | C50: =SUM(D50:AL50) -> 1245834.59 | D50: =D43+D46 -> -1222.978133 | E50: =E43+E46 -> -53477.62511 | F50: -6055.289268 | G50: 17190.41339 | H50: 30030.58348 | I50: -54323.30695 | J50: 51989.97988 | K50: 62323.23455 | L50: 64269.15524 | M50: -142557.4062 | N50: 63337.88331 | O50: 62308.66018 | P50: 61628.01795 | Q50: 59652.95744 | R50: 58772.85657 | S50: 57894.50062 | T50: 56891.057 | U50: 54941.19601 | V50: 50065.42132 | W50: 48958.95998 | X50: 47815.70069 | Y50: 47230.46719 | Z50: 47753.05017 | AA50: 47813.42514 | AB50: 47777.13845 | AC50: 47940.01606 | AD50: 47942.71163 | AE50: 47942.71163 | AF50: 47840.20898 | AG50: 46916.82418 | AH50: 45911.87219 | AI50: 44924.26276 | AJ50: 44899.0425 | AK50: 45182.43896 | AL50: 45326.44785
B52: Fluxo de Caixa do Projeto | C52: TOTAL | D52: 1 | E52: =D52+1 -> 2 | F52: =E52+1 -> 3 | G52: =F52+1 -> 4 | H52: =G52+1 -> 5 | I52: =H52+1 -> 6 | J52: =I52+1 -> 7 | K52: =J52+1 -> 8 | L52: =K52+1 -> 9 | M52: =L52+1 -> 10 | N52: =M52+1 -> 11 | O52: =N52+1 -> 12 | P52: =O52+1 -> 13 | Q52: =P52+1 -> 14 | R52: =Q52+1 -> 15 | S52: =R52+1 -> 16 | T52: =S52+1 -> 17 | U52: =T52+1 -> 18 | V52: =U52+1 -> 19 | W52: =V52+1 -> 20 | X52: =W52+1 -> 21 | Y52: =X52+1 -> 22 | Z52: =Y52+1 -> 23 | AA52: =Z52+1 -> 24 | AB52: =AA52+1 -> 25 | AC52: =AB52+1 -> 26 | AD52: =AC52+1 -> 27 | AE52: =AD52+1 -> 28 | AF52: =AE52+1 -> 29 | AG52: =AF52+1 -> 30 | AH52: =AG52+1 -> 31 | AI52: =AH52+1 -> 32 | AJ52: =AI52+1 -> 33 | AK52: =AJ52+1 -> 34 | AL52: =AK52+1 -> 35
B53: (+) EBITDA | C53: =SUM(D53:AL53) -> 2479472.718 | D53: =D38 -> -1083.700239 | E53: =E38 -> -51898.68289 | F53: -3523.06584 | G53: 26078.5993 | H53: 43305.23102 | I53: -41537.15642 | J53: 73713.9212 | K53: 87181.89425 | L53: 86916.9748 | M53: -129016.3197 | N53: 95008.33054 | O53: 94999.48055 | P53: 95515.20593 | Q53: 95670.51297 | R53: 95668.22306 | S53: 95668.22306 | T53: 95504.06602 | U53: 95670.51297 | V53: 95670.51297 | W53: 95650.275 | X53: 95494.96796 | Y53: 95641.42501 | Z53: 95670.51297 | AA53: 95670.51297 | AB53: 95524.05592 | AC53: 95679.36296 | AD53: 95670.51297 | AE53: 95670.51297 | AF53: 95515.20593 | AG53: 95638.79258 | AH53: 95638.79258 | AI53: 95629.94259 | AJ53: 95515.20593 | AK53: 95670.51297 | AL53: 95679.36296
B54: (-) Tributos Sobre o Lucro | C54: -590575.2609 | D54: =D46 -> 0 | E54: =E46 -> 0 | F54: =F46 -> 0 | G54: =G46 -> -2047.664852 | H54: -3582.16041 | I54: 0 | J54: -6206.471147 | K54: -7441.371719 | L54: -7673.923674 | M54: 0 | N54: -19751.2024 | O54: -19429.73901 | P54: -19217.14996 | Q54: -18600.26755 | R54: -18325.3804 | S54: -18051.03825 | T54: -17737.62673 | U54: -19853.93467 | V54: -25754.91401 | W54: -25184.91878 | X54: -24595.96702 | Y54: -24294.4831 | Z54: -24563.69251 | AA54: -24594.79477 | AB54: -24576.10163 | AC54: -24660.00828 | AD54: -24661.3969 | AE54: -24661.3969 | AF54: -24608.5925 | AG54: -24132.90943 | AH54: -23615.20689 | AI54: -23106.43839 | AJ54: -23093.44614 | AK54: -23239.43825 | AL54: -23313.62465
B55: (+/-) Variação da NCG | C55: -91744.92797 | D55: =-D14/365*'Painel de Controle'!$J$8 -> 0 | E55: =-('Painel de Controle'!$J$8/365*'FC Projeto'!E14-'FC Projeto'!D55) -> 0 | F55: =-('Painel de Controle'!$J$8/365*'FC Projeto'!F14-'FC Projeto'!E55) -> 0 | G55: =-(G14-F14)*'Painel de Controle'!$J$8/365 -> -27199.17908 | H55: =-(H14-G14)*'Painel de Controle'!$J$8/365 -> -15949.64643 | I55: =-(I14-H14)*'Painel de Controle'!$J$8/365 -> -18053.90189 | J55: =-(J14-I14)*'Painel de Controle'!$J$8/365 -> -15644.68187 | K55: =-(K14-J14)*'Painel de Controle'!$J$8/365 -> -14897.5187 | L55: =-(L14-K14)*'Painel de Controle'!$J$8/365 -> 0 | M55: =-(M14-L14)*'Painel de Controle'!$J$8/365 -> 0 | N55: =-(N14-M14)*'Painel de Controle'!$J$8/365 -> 0 | O55: =-(O14-N14)*'Painel de Controle'!$J$8/365 -> 0 | P55: =-(P14-O14)*'Painel de Controle'!$J$8/365 -> 0 | Q55: =-(Q14-P14)*'Painel de Controle'!$J$8/365 -> 0 | R55: =-(R14-Q14)*'Painel de Controle'!$J$8/365 -> 0 | S55: =-(S14-R14)*'Painel de Controle'!$J$8/365 -> 0 | T55: =-(T14-S14)*'Painel de Controle'!$J$8/365 -> 0 | U55: =-(U14-T14)*'Painel de Controle'!$J$8/365 -> 0 | V55: =-(V14-U14)*'Painel de Controle'!$J$8/365 -> 0 | W55: =-(W14-V14)*'Painel de Controle'!$J$8/365 -> 0 | X55: =-(X14-W14)*'Painel de Controle'!$J$8/365 -> 0 | Y55: =-(Y14-X14)*'Painel de Controle'!$J$8/365 -> 0 | Z55: =-(Z14-Y14)*'Painel de Controle'!$J$8/365 -> 0 | AA55: =-(AA14-Z14)*'Painel de Controle'!$J$8/365 -> 0 | AB55: =-(AB14-AA14)*'Painel de Controle'!$J$8/365 -> 0 | AC55: =-(AC14-AB14)*'Painel de Controle'!$J$8/365 -> 0 | AD55: =-(AD14-AC14)*'Painel de Controle'!$J$8/365 -> 0 | AE55: =-(AE14-AD14)*'Painel de Controle'!$J$8/365 -> 0 | AF55: =-(AF14-AE14)*'Painel de Controle'!$J$8/365 -> 0 | AG55: =-(AG14-AF14)*'Painel de Controle'!$J$8/365 -> 0 | AH55: =-(AH14-AG14)*'Painel de Controle'!$J$8/365 -> 0 | AI55: =-(AI14-AH14)*'Painel de Controle'!$J$8/365 -> 0 | AJ55: =-(AJ14-AI14)*'Painel de Controle'!$J$8/365 -> 0 | AK55: =-(AK14-AJ14)*'Painel de Controle'!$J$8/365 -> 0 | AL55: =-(AL14-AK14)*'Painel de Controle'!$J$8/365 -> 0
B56: (=) Fluxo de Caixa Operacional | C56: 1797152.529 | D56: =SUM(D53:D55) -> -1083.700239 | E56: =SUM(E53:E55) -> -51898.68289 | F56: -3523.06584 | G56: -3168.244633 | H56: 23773.42417 | I56: -59591.0583 | J56: 51862.76818 | K56: 64843.00383 | L56: 79243.05113 | M56: -129016.3197 | N56: 75257.12814 | O56: 75569.74154 | P56: 76298.05597 | Q56: 77070.24542 | R56: 77342.84266 | S56: 77617.18481 | T56: 77766.43929 | U56: 75816.5783 | V56: 69915.59896 | W56: 70465.35623 | X56: 70899.00094 | Y56: 71346.94192 | Z56: 71106.82046 | AA56: 71075.7182 | AB56: 70947.95429 | AC56: 71019.35469 | AD56: 71009.11607 | AE56: 71009.11607 | AF56: 70906.61343 | AG56: 71505.88316 | AH56: 72023.58569 | AI56: 72523.5042 | AJ56: 72421.75979 | AK56: 72431.07472 | AL56: 72365.73831 | AM56: =AVERAGE(K56:AL56) -> 65742.18173
B57: (-) Fluxo de Caixa de Investimento | C57: -853545.0928 | D57: =(-CAPEX!F69/1000)*(1+Sensibilidade!$D4) -> -4874.7263 | E57: =(-CAPEX!G69/1000)*(1+Sensibilidade!$D4) -> -40694.53368 | F57: =(-CAPEX!H69/1000)*(1+Sensibilidade!$D4) -> -29964.52229 | G57: =(-CAPEX!I69/1000)*(1+Sensibilidade!$D4) -> -54241.99557 | H57: =(-CAPEX!J69/1000)*(1+Sensibilidade!$D4) -> -42392.00876 | I57: =(-CAPEX!K69/1000)*(1+Sensibilidade!$D4) -> -43594.15687 | J57: =(-CAPEX!L69/1000)*(1+Sensibilidade!$D4) -> -40399.30644 | K57: =(-CAPEX!M69/1000)*(1+Sensibilidade!$D4) -> -15114.33402 | L57: =(-CAPEX!N69/1000)*(1+Sensibilidade!$D4) -> 0 | M57: =(-CAPEX!O69/1000)*(1+Sensibilidade!$D4) -> 0 | N57: =(-CAPEX!P69/1000)*(1+Sensibilidade!$D4) -> 0 | O57: =(-CAPEX!Q69/1000)*(1+Sensibilidade!$D4) -> -13736.24982 | P57: =(-CAPEX!R69/1000)*(1+Sensibilidade!$D4) -> -13736.24982 | Q57: =(-CAPEX!S69/1000)*(1+Sensibilidade!$D4) -> -13736.24982 | R57: =(-CAPEX!T69/1000)*(1+Sensibilidade!$D4) -> -17290.47156 | S57: =(-CAPEX!U69/1000)*(1+Sensibilidade!$D4) -> -17290.47156 | T57: =(-CAPEX!V69/1000)*(1+Sensibilidade!$D4) -> -31026.72138 | U57: =(-CAPEX!W69/1000)*(1+Sensibilidade!$D4) -> -13736.24982 | V57: =(-CAPEX!X69/1000)*(1+Sensibilidade!$D4) -> -13736.24982 | W57: =(-CAPEX!Y69/1000)*(1+Sensibilidade!$D4) -> -45148.00829 | X57: =(-CAPEX!Z69/1000)*(1+Sensibilidade!$D4) -> -45148.00829 | Y57: =(-CAPEX!AA69/1000)*(1+Sensibilidade!$D4) -> -58884.25811 | Z57: =(-CAPEX!AB69/1000)*(1+Sensibilidade!$D4) -> -13736.24982 | AA57: =(-CAPEX!AC69/1000)*(1+Sensibilidade!$D4) -> -13736.24982 | AB57: =(-CAPEX!AD69/1000)*(1+Sensibilidade!$D4) -> 0 | AC57: =(-CAPEX!AE69/1000)*(1+Sensibilidade!$D4) -> 0 | AD57: =(-CAPEX!AF69/1000)*(1+Sensibilidade!$D4) -> -13736.24982 | AE57: =(-CAPEX!AG69/1000)*(1+Sensibilidade!$D4) -> -13736.24982 | AF57: =(-CAPEX!AH69/1000)*(1+Sensibilidade!$D4) -> -13736.24982 | AG57: =(-CAPEX!AI69/1000)*(1+Sensibilidade!$D4) -> -62970.10735 | AH57: =(-CAPEX!AJ69/1000)*(1+Sensibilidade!$D4) -> -62970.10735 | AI57: =(-CAPEX!AK69/1000)*(1+Sensibilidade!$D4) -> -76706.35716 | AJ57: =(-CAPEX!AL69/1000)*(1+Sensibilidade!$D4) -> -13736.24982 | AK57: =(-CAPEX!AM69/1000)*(1+Sensibilidade!$D4) -> -13736.24982 | AL57: =(-CAPEX!AN69/1000)*(1+Sensibilidade!$D4) -> 0 | AM57: =AVERAGE(K57:AL57) -> -21335.13725
B58: (+/-) Fluxo de Caixa do Projeto | C58: 943607.4361 | D58: =D56+D57 -> -5958.426539 | E58: =E56+E57 -> -92593.21656 | F58: -33487.58813 | G58: -57410.2402 | H58: -18618.58459 | I58: -103185.2152 | J58: 11463.46174 | K58: 49728.66981 | L58: 79243.05113 | M58: -129016.3197 | N58: 75257.12814 | O58: 61833.49172 | P58: 62561.80615 | Q58: 63333.9956 | R58: 60052.3711 | S58: 60326.71325 | T58: 46739.71792 | U58: 62080.32848 | V58: 56179.34914 | W58: 25317.34793 | X58: 25750.99264 | Y58: 12462.6838 | Z58: 57370.57064 | AA58: 57339.46838 | AB58: 70947.95429 | AC58: 71019.35469 | AD58: 57272.86625 | AE58: 57272.86625 | AF58: 57170.36361 | AG58: 8535.775809 | AH58: 9053.478348 | AI58: -4182.852965 | AJ58: 58685.50997 | AK58: 58694.8249 | AL58: 72365.73831 | AM58: =AVERAGE(L58:AL58)/WACC!D22 -> 481101.3109
B59: (=) Fluxo de Caixa do Projeto Acumulado | D59: =D58 -> -5958.426539 | E59: =D59+E58 -> -98551.6431 | F59: =E59+F58 -> -132039.2312 | G59: =F59+G58 -> -189449.4714 | H59: =G59+H58 -> -208068.056 | I59: -311253.2712 | J59: -299789.8095 | K59: -250061.1397 | L59: -170818.0885 | M59: -299834.4083 | N59: -224577.2801 | O59: -162743.7884 | P59: -100181.9822 | Q59: -36847.98663 | R59: 23204.38447 | S59: 83531.09772 | T59: 130270.8156 | U59: 192351.1441 | V59: 248530.4933 | W59: 273847.8412 | X59: 299598.8338 | Y59: 312061.5176 | Z59: 369432.0883 | AA59: 426771.5567 | AB59: 497719.511 | AC59: 568738.8656 | AD59: 626011.7319 | AE59: 683284.5981 | AF59: 740454.9618 | AG59: 748990.7376 | AH59: 758044.2159 | AI59: 753861.3629 | AJ59: 812546.8729 | AK59: 871241.6978 | AL59: 943607.4361
E60: =IF(AND(E59>0,D59<0),E52,"") ->  | F60: =IF(AND(F59>0,E59<0),F52,"") ->  | R60: 15
B61: VPL 35 anos | C61: =D58+NPV(WACC!D22,'FC Projeto'!E58:AL58) -> 10187.143
B62: VPL Perpetuidade | C62: =AM58/((1+WACC!$D$22)^35) -> 22178.42259
B63: VPL Total | C63: =C61+C62 -> 32365.5656
B64: TIR | C64: =IRR(D58:AM58) -> 0.1014206713
B65: Payback | C65: =SUM(D60:AL60) -> 15
C68: Fluxo de Caixa Operacional | D68: =D56 -> -1083.700239 | E68: =E56 -> -51898.68289 | F68: -3523.06584 | G68: -3168.244633 | H68: 23773.42417 | I68: -59591.0583 | J68: 51862.76818 | K68: 64843.00383 | L68: 79243.05113 | M68: -129016.3197 | N68: 75257.12814 | O68: 75569.74154 | P68: 76298.05597 | Q68: 77070.24542 | R68: 77342.84266 | S68: 77617.18481 | T68: 77766.43929 | U68: 75816.5783 | V68: 69915.59896 | W68: 70465.35623 | X68: 70899.00094 | Y68: 71346.94192 | Z68: 71106.82046 | AA68: 71075.7182 | AB68: 70947.95429 | AC68: 71019.35469 | AD68: 71009.11607 | AE68: 71009.11607 | AF68: 70906.61343 | AG68: 71505.88316 | AH68: 72023.58569 | AI68: 72523.5042 | AJ68: 72421.75979 | AK68: 72431.07472 | AL68: 72365.73831
C69: Investimento | D69: =-D57 -> 4874.7263 | E69: =-E57 -> 40694.53368 | F69: =-F57 -> 29964.52229 | G69: 54241.99557 | H69: 42392.00876 | I69: 43594.15687 | J69: 40399.30644 | K69: 15114.33402 | L69: 0 | M69: 0 | N69: 0 | O69: 13736.24982 | P69: 13736.24982 | Q69: 13736.24982 | R69: 17290.47156 | S69: 17290.47156 | T69: 31026.72138 | U69: 13736.24982 | V69: 13736.24982 | W69: 45148.00829 | X69: 45148.00829 | Y69: 58884.25811 | Z69: 13736.24982 | AA69: 13736.24982 | AB69: 0 | AC69: 0 | AD69: 13736.24982 | AE69: 13736.24982 | AF69: 13736.24982 | AG69: 62970.10735 | AH69: 62970.10735 | AI69: 76706.35716 | AJ69: 13736.24982 | AK69: 13736.24982 | AL69: 0
B71: Capex VPL | C71: =SUM(D71:AL71) -> -285684.4368 | D71: =D57/((1+WACC!$D$22)^(D12-1)) -> -4874.7263 | E71: =E57/((1+WACC!$D$22)^(E12-1)) -> -37269.70095 | F71: =F57/((1+WACC!$D$22)^(F12-1)) -> -25133.15572 | G71: =G57/((1+WACC!$D$22)^(G12-1)) -> -41667.28032 | H71: =H57/((1+WACC!$D$22)^(H12-1)) -> -29823.82371 | I71: =I57/((1+WACC!$D$22)^(I12-1)) -> -28088.4285 | J71: =J57/((1+WACC!$D$22)^(J12-1)) -> -23839.26714 | K71: =K57/((1+WACC!$D$22)^(K12-1)) -> -8168.227751 | L71: =L57/((1+WACC!$D$22)^(L12-1)) -> 0 | M71: =M57/((1+WACC!$D$22)^(M12-1)) -> 0 | N71: =N57/((1+WACC!$D$22)^(N12-1)) -> 0 | O71: =O57/((1+WACC!$D$22)^(O12-1)) -> -5222.594786 | P71: =P57/((1+WACC!$D$22)^(P12-1)) -> -4783.063676 | Q71: =Q57/((1+WACC!$D$22)^(Q12-1)) -> -4380.523298 | R71: =R57/((1+WACC!$D$22)^(R12-1)) -> -5049.919828 | S71: =S57/((1+WACC!$D$22)^(S12-1)) -> -4624.920962 | T71: =T57/((1+WACC!$D$22)^(T12-1)) -> -7600.693064 | U71: =U57/((1+WACC!$D$22)^(U12-1)) -> -3081.80618 | V71: =V57/((1+WACC!$D$22)^(V12-1)) -> -2822.442829 | W71: =W57/((1+WACC!$D$22)^(W12-1)) -> -8496.017551 | X71: =X57/((1+WACC!$D$22)^(X12-1)) -> -7780.996729 | Y71: =Y57/((1+WACC!$D$22)^(Y12-1)) -> -9294.278378 | Z71: =Z57/((1+WACC!$D$22)^(Z12-1)) -> -1985.658142 | AA71: =AA57/((1+WACC!$D$22)^(AA12-1)) -> -1818.546091 | AB71: =AB57/((1+WACC!$D$22)^(AB12-1)) -> 0 | AC71: =AC57/((1+WACC!$D$22)^(AC12-1)) -> 0 | AD71: =AD57/((1+WACC!$D$22)^(AD12-1)) -> -1396.959477 | AE71: =AE57/((1+WACC!$D$22)^(AE12-1)) -> -1279.392027 | AF71: =AF57/((1+WACC!$D$22)^(AF12-1)) -> -1171.718999 | AG71: =AG57/((1+WACC!$D$22)^(AG12-1)) -> -4919.370775 | AH71: =AH57/((1+WACC!$D$22)^(AH12-1)) -> -4505.358855 | AI71: =AI57/((1+WACC!$D$22)^(AI12-1)) -> -5026.273829 | AJ71: =AJ57/((1+WACC!$D$22)^(AJ12-1)) -> -824.3332149 | AK71: =AK57/((1+WACC!$D$22)^(AK12-1)) -> -754.957721 | AL71: =AL57/((1+WACC!$D$22)^(AL12-1)) -> 0
B72: Opex VPL | C72: -1452816.296 | D72: =D24/((1+WACC!$D$22)^(D12-1)) -> -112.6708404 | E72: =E24/((1+WACC!$D$22)^(E12-1)) -> -46641.60624 | F72: =F24/((1+WACC!$D$22)^(F12-1)) -> -2140.55571 | G72: =G24/((1+WACC!$D$22)^(G12-1)) -> -38967.59733 | H72: =H24/((1+WACC!$D$22)^(H12-1)) -> -55655.58159 | I72: =I24/((1+WACC!$D$22)^(I12-1)) -> -138900.3838 | J72: =J24/((1+WACC!$D$22)^(J12-1)) -> -85600.65341 | K72: =K24/((1+WACC!$D$22)^(K12-1)) -> -94140.38864 | L72: =L24/((1+WACC!$D$22)^(L12-1)) -> -86348.69909 | M72: =M24/((1+WACC!$D$22)^(M12-1)) -> -176962.5657 | N72: =N24/((1+WACC!$D$22)^(N12-1)) -> -69067.08616 | O72: =O24/((1+WACC!$D$22)^(O12-1)) -> -63257.79764 | P72: =P24/((1+WACC!$D$22)^(P12-1)) -> -57754.47189 | Q72: =Q24/((1+WACC!$D$22)^(Q12-1)) -> -52844.35504 | R72: =R24/((1+WACC!$D$22)^(R12-1)) -> -48397.66789 | S72: =S24/((1+WACC!$D$22)^(S12-1)) -> -44324.54303 | T72: =T24/((1+WACC!$D$22)^(T12-1)) -> -40634.42439 | U72: =U24/((1+WACC!$D$22)^(U12-1)) -> -37177.30711 | V72: =V24/((1+WACC!$D$22)^(V12-1)) -> -34048.48251 | W72: =W24/((1+WACC!$D$22)^(W12-1)) -> -31186.78673 | X72: =X24/((1+WACC!$D$22)^(X12-1)) -> -28588.88776 | Y72: =Y24/((1+WACC!$D$22)^(Y12-1)) -> -26159.74373 | Z72: =Z24/((1+WACC!$D$22)^(Z12-1)) -> -23953.94721 | AA72: =AA24/((1+WACC!$D$22)^(AA12-1)) -> -21937.99434 | AB72: =AB24/((1+WACC!$D$22)^(AB12-1)) -> -20109.46078 | AC72: =AC24/((1+WACC!$D$22)^(AC12-1)) -> -18399.81212 | AD72: =AD24/((1+WACC!$D$22)^(AD12-1)) -> -16852.19266 | AE72: =AE24/((1+WACC!$D$22)^(AE12-1)) -> -15433.92009 | AF72: =AF24/((1+WACC!$D$22)^(AF12-1)) -> -14148.25655 | AG72: =AG24/((1+WACC!$D$22)^(AG12-1)) -> -12947.89109 | AH72: =AH24/((1+WACC!$D$22)^(AH12-1)) -> -11858.20269 | AI72: =AI24/((1+WACC!$D$22)^(AI12-1)) -> -10860.80186 | AJ72: =AJ24/((1+WACC!$D$22)^(AJ12-1)) -> -9953.647434 | AK72: =AK24/((1+WACC!$D$22)^(AK12-1)) -> -9107.417342 | AL72: =AL24/((1+WACC!$D$22)^(AL12-1)) -> -8340.495934
B73: Receita VPL | C73: 2052867.509 | D73: =D14/((1+WACC!$D$22)^(D12-1)) -> 0 | E73: =E14/((1+WACC!$D$22)^(E12-1)) -> 0 | F73: =F14/((1+WACC!$D$22)^(F12-1)) -> 0 | G73: =G14/((1+WACC!$D$22)^(G12-1)) -> 63551.66166 | H73: =H14/((1+WACC!$D$22)^(H12-1)) -> 92333.63317 | I73: =I14/((1+WACC!$D$22)^(I12-1)) -> 119944.8357 | J73: =J14/((1+WACC!$D$22)^(J12-1)) -> 137930.3506 | K73: =K14/((1+WACC!$D$22)^(K12-1)) -> 150810.8214 | L73: =L14/((1+WACC!$D$22)^(L12-1)) -> 138118.6539 | M73: =M14/((1+WACC!$D$22)^(M12-1)) -> 126494.6533 | N73: =N14/((1+WACC!$D$22)^(N12-1)) -> 115848.923 | O73: =O14/((1+WACC!$D$22)^(O12-1)) -> 106099.1324 | P73: =P14/((1+WACC!$D$22)^(P12-1)) -> 97169.87956 | Q73: =Q14/((1+WACC!$D$22)^(Q12-1)) -> 88992.10841 | R73: =R14/((1+WACC!$D$22)^(R12-1)) -> 81502.57462 | S73: =S14/((1+WACC!$D$22)^(S12-1)) -> 74643.35645 | T73: =T14/((1+WACC!$D$22)^(T12-1)) -> 68361.40685 | U73: =U14/((1+WACC!$D$22)^(U12-1)) -> 62608.14315 | V73: =V14/((1+WACC!$D$22)^(V12-1)) -> 57339.07141 | W73: =W14/((1+WACC!$D$22)^(W12-1)) -> 52513.44226 | X73: =X14/((1+WACC!$D$22)^(X12-1)) -> 48093.93577 | Y73: =Y14/((1+WACC!$D$22)^(Y12-1)) -> 44046.37286 | Z73: =Z14/((1+WACC!$D$22)^(Z12-1)) -> 40339.45094 | AA73: =AA14/((1+WACC!$D$22)^(AA12-1)) -> 36944.50181 | AB73: =AB14/((1+WACC!$D$22)^(AB12-1)) -> 33835.26999 | AC73: =AC14/((1+WACC!$D$22)^(AC12-1)) -> 30987.70966 | AD73: =AD14/((1+WACC!$D$22)^(AD12-1)) -> 28379.79866 | AE73: =AE14/((1+WACC!$D$22)^(AE12-1)) -> 25991.36822 | AF73: =AF14/((1+WACC!$D$22)^(AF12-1)) -> 23803.94695 | AG73: =AG14/((1+WACC!$D$22)^(AG12-1)) -> 21800.61802 | AH73: =AH14/((1+WACC!$D$22)^(AH12-1)) -> 19965.88831 | AI73: =AI14/((1+WACC!$D$22)^(AI12-1)) -> 18285.56859 | AJ73: =AJ14/((1+WACC!$D$22)^(AJ12-1)) -> 16746.66377 | AK73: =AK14/((1+WACC!$D$22)^(AK12-1)) -> 15337.27246 | AL73: =AL14/((1+WACC!$D$22)^(AL12-1)) -> 14046.49486
B74: NCG VPL | C74: -61029.93137 | D74: =D55/((1+WACC!$D$22)^(D12-1)) -> 0 | E74: =E55/((1+WACC!$D$22)^(E12-1)) -> 0 | F74: =F55/((1+WACC!$D$22)^(F12-1)) -> 0 | G74: =G55/((1+WACC!$D$22)^(G12-1)) -> -20893.69698 | H74: =H55/((1+WACC!$D$22)^(H12-1)) -> -11220.96964 | I74: =I55/((1+WACC!$D$22)^(I12-1)) -> -11632.42436 | J74: =J55/((1+WACC!$D$22)^(J12-1)) -> -9231.785973 | K74: =K55/((1+WACC!$D$22)^(K12-1)) -> -8051.054418 | L74: =L55/((1+WACC!$D$22)^(L12-1)) -> 0 | M74: =M55/((1+WACC!$D$22)^(M12-1)) -> 0 | N74: =N55/((1+WACC!$D$22)^(N12-1)) -> 0 | O74: =O55/((1+WACC!$D$22)^(O12-1)) -> 0 | P74: =P55/((1+WACC!$D$22)^(P12-1)) -> 0 | Q74: =Q55/((1+WACC!$D$22)^(Q12-1)) -> 0 | R74: =R55/((1+WACC!$D$22)^(R12-1)) -> 0 | S74: =S55/((1+WACC!$D$22)^(S12-1)) -> 0 | T74: =T55/((1+WACC!$D$22)^(T12-1)) -> 0 | U74: =U55/((1+WACC!$D$22)^(U12-1)) -> 0 | V74: =V55/((1+WACC!$D$22)^(V12-1)) -> 0 | W74: =W55/((1+WACC!$D$22)^(W12-1)) -> 0 | X74: =X55/((1+WACC!$D$22)^(X12-1)) -> 0 | Y74: =Y55/((1+WACC!$D$22)^(Y12-1)) -> 0 | Z74: =Z55/((1+WACC!$D$22)^(Z12-1)) -> 0 | AA74: =AA55/((1+WACC!$D$22)^(AA12-1)) -> 0 | AB74: =AB55/((1+WACC!$D$22)^(AB12-1)) -> 0 | AC74: =AC55/((1+WACC!$D$22)^(AC12-1)) -> 0 | AD74: =AD55/((1+WACC!$D$22)^(AD12-1)) -> 0 | AE74: =AE55/((1+WACC!$D$22)^(AE12-1)) -> 0 | AF74: =AF55/((1+WACC!$D$22)^(AF12-1)) -> 0 | AG74: =AG55/((1+WACC!$D$22)^(AG12-1)) -> 0 | AH74: =AH55/((1+WACC!$D$22)^(AH12-1)) -> 0 | AI74: =AI55/((1+WACC!$D$22)^(AI12-1)) -> 0 | AJ74: =AJ55/((1+WACC!$D$22)^(AJ12-1)) -> 0 | AK74: =AK55/((1+WACC!$D$22)^(AK12-1)) -> 0 | AL74: =AL55/((1+WACC!$D$22)^(AL12-1)) -> 0
B75: Tributação VPL | C75: -243149.7012 | D75: =(D54+D16)/((1+WACC!$D$22)^(D12-1)) -> -971.0293985 | E75: =(E54+E16)/((1+WACC!$D$22)^(E12-1)) -> -889.3080232 | F75: =(F54+F16)/((1+WACC!$D$22)^(F12-1)) -> -814.4642802 | G75: =(G54+G16)/((1+WACC!$D$22)^(G12-1)) -> -6124.129885 | H75: =(H54+H16)/((1+WACC!$D$22)^(H12-1)) -> -8731.891694 | I75: =(I54+I16)/((1+WACC!$D$22)^(I12-1)) -> -7807.521336 | J75: =(J54+J16)/((1+WACC!$D$22)^(J12-1)) -> -12494.15851 | K75: =(K54+K16)/((1+WACC!$D$22)^(K12-1)) -> -13576.3243 | L75: =(L54+L16)/((1+WACC!$D$22)^(L12-1)) -> -12548.84814 | M75: =(M54+M16)/((1+WACC!$D$22)^(M12-1)) -> -8014.211344 | N75: =(N54+N16)/((1+WACC!$D$22)^(N12-1)) -> -15539.32383 | O75: =(O54+O16)/((1+WACC!$D$22)^(O12-1)) -> -14109.3196 | P75: =(P54+P16)/((1+WACC!$D$22)^(P12-1)) -> -12847.86085 | Q75: =(Q54+Q16)/((1+WACC!$D$22)^(Q12-1)) -> -11569.86566 | R75: =(R54+R16)/((1+WACC!$D$22)^(R12-1)) -> -10515.86666 | S75: =(S54+S16)/((1+WACC!$D$22)^(S12-1)) -> -9557.474216 | T75: =(T54+T16)/((1+WACC!$D$22)^(T12-1)) -> -8676.344502 | U75: =(U54+U16)/((1+WACC!$D$22)^(U12-1)) -> -8420.953235 | V75: =(V54+V16)/((1+WACC!$D$22)^(V12-1)) -> -8924.747891 | W75: =(W54+W16)/((1+WACC!$D$22)^(W12-1)) -> -8066.382798 | X75: =(X54+X16)/((1+WACC!$D$22)^(X12-1)) -> -7286.017423 | Y75: =(Y54+Y16)/((1+WACC!$D$22)^(Y12-1)) -> -6625.243483 | Z75: =(Z54+Z16)/((1+WACC!$D$22)^(Z12-1)) -> -6106.581974 | AA75: =(AA54+AA16)/((1+WACC!$D$22)^(AA12-1)) -> -5596.772558 | AB75: =(AB54+AB16)/((1+WACC!$D$22)^(AB12-1)) -> -5123.484311 | AC75: =(AC54+AC16)/((1+WACC!$D$22)^(AC12-1)) -> -4701.611637 | AD75: =(AD54+AD16)/((1+WACC!$D$22)^(AD12-1)) -> -4306.067445 | AE75: =(AE54+AE16)/((1+WACC!$D$22)^(AE12-1)) -> -3943.670844 | AF75: =(AF54+AF16)/((1+WACC!$D$22)^(AF12-1)) -> -3607.269089 | AG75: =(AG54+AG16)/((1+WACC!$D$22)^(AG12-1)) -> -3266.521562 | AH75: =(AH54+AH16)/((1+WACC!$D$22)^(AH12-1)) -> -2954.572287 | AI75: =(AI54+AI16)/((1+WACC!$D$22)^(AI12-1)) -> -2672.579228 | AJ75: =(AJ54+AJ16)/((1+WACC!$D$22)^(AJ12-1)) -> -2446.876539 | AK75: =(AK54+AK16)/((1+WACC!$D$22)^(AK12-1)) -> -2248.972435 | AL75: =(AL54+AL16)/((1+WACC!$D$22)^(AL12-1)) -> -2063.434186
B76: Fluxo de Caixa VPL | C76: 10187.143 | D76: =D58/((1+WACC!$D$22)^(D12-1)) -> -5958.426539 | E76: =E58/((1+WACC!$D$22)^(E12-1)) -> -84800.61521 | F76: =F58/((1+WACC!$D$22)^(F12-1)) -> -28088.17571 | G76: =G58/((1+WACC!$D$22)^(G12-1)) -> -44101.04287 | H76: =H58/((1+WACC!$D$22)^(H12-1)) -> -13098.63346 | I76: =I58/((1+WACC!$D$22)^(I12-1)) -> -66483.92231 | J76: =J58/((1+WACC!$D$22)^(J12-1)) -> 6764.485605 | K76: =K58/((1+WACC!$D$22)^(K12-1)) -> 26874.82626 | L76: =L58/((1+WACC!$D$22)^(L12-1)) -> 39221.10667 | M76: =M58/((1+WACC!$D$22)^(M12-1)) -> -58482.12378 | N76: =N58/((1+WACC!$D$22)^(N12-1)) -> 31242.51303 | O76: =O58/((1+WACC!$D$22)^(O12-1)) -> 23509.42038 | P76: =P58/((1+WACC!$D$22)^(P12-1)) -> 21784.48313 | Q76: =Q58/((1+WACC!$D$22)^(Q12-1)) -> 20197.36441 | R76: =R58/((1+WACC!$D$22)^(R12-1)) -> 17539.12024 | S76: =S58/((1+WACC!$D$22)^(S12-1)) -> 16136.41824 | T76: =T58/((1+WACC!$D$22)^(T12-1)) -> 11449.94489 | U76: =U58/((1+WACC!$D$22)^(U12-1)) -> 13928.07662 | V76: =V58/((1+WACC!$D$22)^(V12-1)) -> 11543.39818 | W76: =W58/((1+WACC!$D$22)^(W12-1)) -> 4764.25518 | X76: =X58/((1+WACC!$D$22)^(X12-1)) -> 4438.03386 | Y76: =Y58/((1+WACC!$D$22)^(Y12-1)) -> 1967.107277 | Z76: =Z58/((1+WACC!$D$22)^(Z12-1)) -> 8293.263606 | AA76: =AA58/((1+WACC!$D$22)^(AA12-1)) -> 7591.188823 | AB76: =AB58/((1+WACC!$D$22)^(AB12-1)) -> 8602.324903 | AC76: =AC58/((1+WACC!$D$22)^(AC12-1)) -> 7886.285902 | AD76: =AD58/((1+WACC!$D$22)^(AD12-1)) -> 5824.579076 | AE76: =AE58/((1+WACC!$D$22)^(AE12-1)) -> 5334.385254 | AF76: =AF58/((1+WACC!$D$22)^(AF12-1)) -> 4876.70231 | AG76: =AG58/((1+WACC!$D$22)^(AG12-1)) -> 666.8345954 | AH76: =AH58/((1+WACC!$D$22)^(AH12-1)) -> 647.7544753 | AI76: =AI58/((1+WACC!$D$22)^(AI12-1)) -> -274.086336 | AJ76: =AJ58/((1+WACC!$D$22)^(AJ12-1)) -> 3521.806587 | AK76: =AK58/((1+WACC!$D$22)^(AK12-1)) -> 3225.924967 | AL76: =AL58/((1+WACC!$D$22)^(AL12-1)) -> 3642.564742
B77: Fluxo de Caixa Acumulado VPL | D77: =D76 -> -5958.426539 | E77: =D77+E76 -> -90759.04175 | F77: =E77+F76 -> -118847.2175 | G77: -162948.2603 | H77: -176046.8938 | I77: -242530.8161 | J77: -235766.3305 | K77: -208891.5042 | L77: -169670.3976 | M77: -228152.5213 | N77: -196910.0083 | O77: -173400.5879 | P77: -151616.1048 | Q77: -131418.7404 | R77: -113879.6201 | S77: -97743.2019 | T77: -86293.25702 | U77: -72365.18039 | V77: -60821.78222 | W77: -56057.52704 | X77: -51619.49318 | Y77: -49652.3859 | Z77: -41359.12229 | AA77: -33767.93347 | AB77: -25165.60857 | AC77: -17279.32267 | AD77: -11454.74359 | AE77: -6120.358336 | AF77: -1243.656026 | AG77: -576.8214309 | AH77: 70.93304445 | AI77: -203.1532916 | AJ77: 3318.653296 | AK77: 6544.578263 | AL77: 10187.143
B78: Payback VPL | E78: =IF(AND(E77>0,D77<0),E52,"") ->  | F78: =IF(AND(F77>0,E77<0),F52,"") ->  | AH78: 31 | AJ78: 33

Sheet FC Acionista
B2: FLUXO DE CAIXA DO ACIONISTA
D4: 2025 | E4: 2026 | F4: 2027 | G4: 2028 | H4: 2029 | I4: 2030 | J4: 2031 | K4: 2032 | L4: 2033 | M4: 2034 | N4: 2035 | O4: 2036 | P4: 2037 | Q4: 2038 | R4: 2039 | S4: 2040 | T4: 2041 | U4: 2042 | V4: 2043 | W4: 2044 | X4: 2045 | Y4: 2046 | Z4: 2047 | AA4: 2048 | AB4: 2049 | AC4: 2050 | AD4: 2051 | AE4: 2052 | AF4: 2053 | AG4: 2054 | AH4: 2055 | AI4: 2056 | AJ4: 2057 | AK4: 2058 | AL4: 2059
D5: 1 | E5: =D5+1 -> 2 | F5: =E5+1 -> 3 | G5: 4 | H5: 5 | I5: 6 | J5: 7 | K5: 8 | L5: 9 | M5: 10 | N5: 11 | O5: 12 | P5: 13 | Q5: 14 | R5: 15 | S5: 16 | T5: 17 | U5: 18 | V5: 19 | W5: 20 | X5: 21 | Y5: 22 | Z5: 23 | AA5: 24 | AB5: 25 | AC5: 26 | AD5: 27 | AE5: 28 | AF5: 29 | AG5: 30 | AH5: 31 | AI5: 32 | AJ5: 33 | AK5: 34 | AL5: 35
B6: Área com início de cultivo no ano | D6: =IF(D5<10,VLOOKUP(D5,'Painel de Controle'!$B$10:$C$20,2,FALSE),0) -> 0 | E6: =IF(E5<10,VLOOKUP(E5,'Painel de Controle'!$B$10:$C$20,2,FALSE),0) -> 0 | F6: =IF(F5<10,VLOOKUP(F5,'Painel de Controle'!$B$10:$C$20,2,FALSE),0) -> 0 | G6: =IF(G5<10,VLOOKUP(G5,'Painel de Controle'!$B$10:$C$20,2,FALSE),0) -> 1783.76 | H6: =IF(H5<10,VLOOKUP(H5,'Painel de Controle'!$B$10:$C$20,2,FALSE),0) -> 1046 | I6: =IF(I5<10,VLOOKUP(I5,'Painel de Controle'!$B$10:$C$20,2,FALSE),0) -> 1184 | J6: =IF(J5<10,VLOOKUP(J5,'Painel de Controle'!$B$10:$C$20,2,FALSE),0) -> 1026 | K6: =IF(K5<10,VLOOKUP(K5,'Painel de Controle'!$B$10:$C$20,2,FALSE),0) -> 977 | L6: =IF(L5<10,VLOOKUP(L5,'Painel de Controle'!$B$10:$C$20,2,FALSE),0) -> 0 | M6: =IF(M5<10,VLOOKUP(M5,'Painel de Controle'!$B$10:$C$20,2,FALSE),0) -> 0 | N6: =IF(N5<10,VLOOKUP(N5,'Painel de Controle'!$B$10:$C$20,2,FALSE),0) -> 0 | O6: =IF(O5<10,VLOOKUP(O5,'Painel de Controle'!$B$10:$C$20,2,FALSE),0) -> 0 | P6: =IF(P5<10,VLOOKUP(P5,'Painel de Controle'!$B$10:$C$20,2,FALSE),0) -> 0 | Q6: =IF(Q5<10,VLOOKUP(Q5,'Painel de Controle'!$B$10:$C$20,2,FALSE),0) -> 0 | R6: =IF(R5<10,VLOOKUP(R5,'Painel de Controle'!$B$10:$C$20,2,FALSE),0) -> 0 | S6: =IF(S5<10,VLOOKUP(S5,'Painel de Controle'!$B$10:$C$20,2,FALSE),0) -> 0 | T6: =IF(T5<10,VLOOKUP(T5,'Painel de Controle'!$B$10:$C$20,2,FALSE),0) -> 0 | U6: =IF(U5<10,VLOOKUP(U5,'Painel de Controle'!$B$10:$C$20,2,FALSE),0) -> 0 | V6: =IF(V5<10,VLOOKUP(V5,'Painel de Controle'!$B$10:$C$20,2,FALSE),0) -> 0 | W6: =IF(W5<10,VLOOKUP(W5,'Painel de Controle'!$B$10:$C$20,2,FALSE),0) -> 0 | X6: =IF(X5<10,VLOOKUP(X5,'Painel de Controle'!$B$10:$C$20,2,FALSE),0) -> 0 | Y6: =IF(Y5<10,VLOOKUP(Y5,'Painel de Controle'!$B$10:$C$20,2,FALSE),0) -> 0 | Z6: =IF(Z5<10,VLOOKUP(Z5,'Painel de Controle'!$B$10:$C$20,2,FALSE),0) -> 0 | AA6: =IF(AA5<10,VLOOKUP(AA5,'Painel de Controle'!$B$10:$C$20,2,FALSE),0) -> 0 | AB6: =IF(AB5<10,VLOOKUP(AB5,'Painel de Controle'!$B$10:$C$20,2,FALSE),0) -> 0 | AC6: =IF(AC5<10,VLOOKUP(AC5,'Painel de Controle'!$B$10:$C$20,2,FALSE),0) -> 0 | AD6: =IF(AD5<10,VLOOKUP(AD5,'Painel de Controle'!$B$10:$C$20,2,FALSE),0) -> 0 | AE6: =IF(AE5<10,VLOOKUP(AE5,'Painel de Controle'!$B$10:$C$20,2,FALSE),0) -> 0 | AF6: =IF(AF5<10,VLOOKUP(AF5,'Painel de Controle'!$B$10:$C$20,2,FALSE),0) -> 0 | AG6: =IF(AG5<10,VLOOKUP(AG5,'Painel de Controle'!$B$10:$C$20,2,FALSE),0) -> 0 | AH6: =IF(AH5<10,VLOOKUP(AH5,'Painel de Controle'!$B$10:$C$20,2,FALSE),0) -> 0 | AI6: =IF(AI5<10,VLOOKUP(AI5,'Painel de Controle'!$B$10:$C$20,2,FALSE),0) -> 0 | AJ6: =IF(AJ5<10,VLOOKUP(AJ5,'Painel de Controle'!$B$10:$C$20,2,FALSE),0) -> 0 | AK6: =IF(AK5<10,VLOOKUP(AK5,'Painel de Controle'!$B$10:$C$20,2,FALSE),0) -> 0 | AL6: =IF(AL5<10,VLOOKUP(AL5,'Painel de Controle'!$B$10:$C$20,2,FALSE),0) -> 0
B7: Área Cultivada | D7: =D6 -> 0 | E7: =D7+E6 -> 0 | F7: =E7+F6 -> 0 | G7: 1783.76 | H7: 2829.76 | I7: 4013.76 | J7: 5039.76 | K7: 6016.76 | L7: 6016.76 | M7: 6016.76 | N7: 6016.76 | O7: 6016.76 | P7: 6016.76 | Q7: 6016.76 | R7: 6016.76 | S7: 6016.76 | T7: 6016.76 | U7: 6016.76 | V7: 6016.76 | W7: 6016.76 | X7: 6016.76 | Y7: 6016.76 | Z7: 6016.76 | AA7: 6016.76 | AB7: 6016.76 | AC7: 6016.76 | AD7: 6016.76 | AE7: 6016.76 | AF7: 6016.76 | AG7: 6016.76 | AH7: 6016.76 | AI7: 6016.76 | AJ7: 6016.76 | AK7: 6016.76 | AL7: 6016.76
B8: % Área Cultiva | D8: =D7/SUM($D$6:$AL$6) -> 0 | E8: =E7/SUM($D$6:$AL$6) -> 0 | F8: 0 | G8: 0.2964652072 | H8: 0.4703129259 | I8: 0.6670965769 | J8: 0.8376202474 | K8: 1 | L8: 1 | M8: 1 | N8: 1 | O8: 1 | P8: 1 | Q8: 1 | R8: 1 | S8: 1 | T8: 1 | U8: 1 | V8: 1 | W8: 1 | X8: 1 | Y8: 1 | Z8: 1 | AA8: 1 | AB8: 1 | AC8: 1 | AD8: 1 | AE8: 1 | AF8: 1 | AG8: 1 | AH8: 1 | AI8: 1 | AJ8: 1 | AK8: 1 | AL8: 1
B9: % CAPEX Infraestrutura de Irrigação | D9: =SUM(CAPEX!F$20:F$47)/SUM(CAPEX!$E$20:$E$47) -> 0 | E9: =SUM(CAPEX!G$20:G$47)/SUM(CAPEX!$E$20:$E$47) -> 0.4005563081 | F9: =SUM(CAPEX!H$20:H$47)/SUM(CAPEX!$E$20:$E$47) -> 0.1311037966 | G9: =SUM(CAPEX!I$20:I$47)/SUM(CAPEX!$E$20:$E$47) -> 0.1419254334 | H9: =SUM(CAPEX!J$20:J$47)/SUM(CAPEX!$E$20:$E$47) -> 0.1158383498 | I9: =SUM(CAPEX!K$20:K$47)/SUM(CAPEX!$E$20:$E$47) -> 0.1158383498 | J9: =SUM(CAPEX!L$20:L$47)/SUM(CAPEX!$E$20:$E$47) -> 0.09473776238
B10: % Implantação Infraestrutura de Irrigação | D10: =D9 -> 0 | E10: =D10+E9 -> 0.4005563081 | F10: =E10+F9 -> 0.5316601047 | G10: 0.6735855381 | H10: 0.7894238879 | I10: 0.9052622376 | J10: 1 | K10: =J10 -> 1 | L10: =K10 -> 1 | M10: 1 | N10: 1 | O10: 1 | P10: 1 | Q10: 1 | R10: 1 | S10: 1 | T10: 1 | U10: 1 | V10: 1 | W10: 1 | X10: 1 | Y10: 1 | Z10: 1 | AA10: 1 | AB10: 1 | AC10: 1 | AD10: 1 | AE10: 1 | AF10: 1 | AG10: 1 | AH10: 1 | AI10: 1 | AJ10: 1 | AK10: 1 | AL10: 1
B12: Demonstração de Resultados do Exercício (R$ mil) | C12: TOTAL | D12: 1 | E12: =D12+1 -> 2 | F12: =E12+1 -> 3 | G12: 4 | H12: 5 | I12: 6 | J12: 7 | K12: 8 | L12: 9 | M12: 10 | N12: 11 | O12: 12 | P12: 13 | Q12: 14 | R12: 15 | S12: 16 | T12: 17 | U12: 18 | V12: 19 | W12: 20 | X12: 21 | Y12: 22 | Z12: 23 | AA12: 24 | AB12: 25 | AC12: 26 | AD12: 27 | AE12: 28 | AF12: 29 | AG12: 30 | AH12: 31 | AI12: 32 | AJ12: 33 | AK12: 34 | AL12: 35
B14: Receita Operacional Bruta | C14: =SUM(D14:AL14) -> 8447487.379 | D14: ='FC Projeto'!D14 -> 0 | E14: ='FC Projeto'!E14 -> 0 | F14: ='FC Projeto'!F14 -> 0 | G14: ='FC Projeto'!G14 -> 82730.83637 | H14: ='FC Projeto'!H14 -> 131244.3443 | I14: ='FC Projeto'!I14 -> 186158.2958 | J14: ='FC Projeto'!J14 -> 233744.2032 | K14: ='FC Projeto'!K14 -> 279057.4892 | L14: ='FC Projeto'!L14 -> 279057.4892 | M14: ='FC Projeto'!M14 -> 279057.4892 | N14: ='FC Projeto'!N14 -> 279057.4892 | O14: ='FC Projeto'!O14 -> 279057.4892 | P14: ='FC Projeto'!P14 -> 279057.4892 | Q14: ='FC Projeto'!Q14 -> 279057.4892 | R14: ='FC Projeto'!R14 -> 279057.4892 | S14: ='FC Projeto'!S14 -> 279057.4892 | T14: ='FC Projeto'!T14 -> 279057.4892 | U14: ='FC Projeto'!U14 -> 279057.4892 | V14: ='FC Projeto'!V14 -> 279057.4892 | W14: ='FC Projeto'!W14 -> 279057.4892 | X14: ='FC Projeto'!X14 -> 279057.4892 | Y14: ='FC Projeto'!Y14 -> 279057.4892 | Z14: ='FC Projeto'!Z14 -> 279057.4892 | AA14: ='FC Projeto'!AA14 -> 279057.4892 | AB14: ='FC Projeto'!AB14 -> 279057.4892 | AC14: ='FC Projeto'!AC14 -> 279057.4892 | AD14: ='FC Projeto'!AD14 -> 279057.4892 | AE14: ='FC Projeto'!AE14 -> 279057.4892 | AF14: ='FC Projeto'!AF14 -> 279057.4892 | AG14: ='FC Projeto'!AG14 -> 279057.4892 | AH14: ='FC Projeto'!AH14 -> 279057.4892 | AI14: ='FC Projeto'!AI14 -> 279057.4892 | AJ14: ='FC Projeto'!AJ14 -> 279057.4892 | AK14: ='FC Projeto'!AK14 -> 279057.4892 | AL14: ='FC Projeto'!AL14 -> 279057.4892
B16: Deduções sobre a Receita Operacional | C16: =SUM(D16:AL16) -> -539791.6024 | D16: =SUM(D17:D20) -> -971.0293985 | E16: =SUM(E17:E20) -> -971.0293985 | F16: -971.0293985 | G16: -5924.65836 | H16: -8829.475092 | I16: -12117.52768 | J16: -14966.80299 | K16: -17680.00179 | L16: -17680.00179 | M16: -17680.00179 | N16: -17680.00179 | O16: -17680.00179 | P16: -17680.00179 | Q16: -17680.00179 | R16: -17680.00179 | S16: -17680.00179 | T16: -17680.00179 | U16: -17680.00179 | V16: -17680.00179 | W16: -17680.00179 | X16: -17680.00179 | Y16: -17680.00179 | Z16: -17680.00179 | AA16: -17680.00179 | AB16: -17680.00179 | AC16: -17680.00179 | AD16: -17680.00179 | AE16: -17680.00179 | AF16: -17680.00179 | AG16: -17680.00179 | AH16: -17680.00179 | AI16: -17680.00179 | AJ16: -17680.00179 | AK16: -17680.00179 | AL16: -17680.00179
B17: PIS | C17: -59334.37142 | D17: =-Tributação!D16 -> 0 | E17: =-Tributação!E16 -> 0 | F17: =-Tributação!F16 -> 0 | G17: =-Tributação!G16 -> -581.0937564 | H17: =-Tributação!H16 -> -921.8481567 | I17: =-Tributação!I16 -> -1307.558683 | J17: =-Tributação!J16 -> -1641.797702 | K17: =-Tributação!K16 -> -1960.07404 | L17: =-Tributação!L16 -> -1960.07404 | M17: =-Tributação!M16 -> -1960.07404 | N17: =-Tributação!N16 -> -1960.07404 | O17: =-Tributação!O16 -> -1960.07404 | P17: =-Tributação!P16 -> -1960.07404 | Q17: =-Tributação!Q16 -> -1960.07404 | R17: =-Tributação!R16 -> -1960.07404 | S17: =-Tributação!S16 -> -1960.07404 | T17: =-Tributação!T16 -> -1960.07404 | U17: =-Tributação!U16 -> -1960.07404 | V17: =-Tributação!V16 -> -1960.07404 | W17: =-Tributação!W16 -> -1960.07404 | X17: =-Tributação!X16 -> -1960.07404 | Y17: =-Tributação!Y16 -> -1960.07404 | Z17: =-Tributação!Z16 -> -1960.07404 | AA17: =-Tributação!AA16 -> -1960.07404 | AB17: =-Tributação!AB16 -> -1960.07404 | AC17: =-Tributação!AC16 -> -1960.07404 | AD17: =-Tributação!AD16 -> -1960.07404 | AE17: =-Tributação!AE16 -> -1960.07404 | AF17: =-Tributação!AF16 -> -1960.07404 | AG17: =-Tributação!AG16 -> -1960.07404 | AH17: =-Tributação!AH16 -> -1960.07404 | AI17: =-Tributação!AI16 -> -1960.07404 | AJ17: =-Tributação!AJ16 -> -1960.07404 | AK17: =-Tributação!AK16 -> -1960.07404 | AL17: =-Tributação!AL16 -> -1960.07404
B18: COFINS | C18: -273297.7108 | D18: =-Tributação!D17 -> 0 | E18: =-Tributação!E17 -> 0 | F18: =-Tributação!F17 -> 0 | G18: =-Tributação!G17 -> -2676.55306 | H18: =-Tributação!H17 -> -4246.08848 | I18: =-Tributação!I17 -> -6022.694538 | J18: =-Tributação!J17 -> -7562.21972 | K18: =-Tributação!K17 -> -9028.219821 | L18: =-Tributação!L17 -> -9028.219821 | M18: =-Tributação!M17 -> -9028.219821 | N18: =-Tributação!N17 -> -9028.219821 | O18: =-Tributação!O17 -> -9028.219821 | P18: =-Tributação!P17 -> -9028.219821 | Q18: =-Tributação!Q17 -> -9028.219821 | R18: =-Tributação!R17 -> -9028.219821 | S18: =-Tributação!S17 -> -9028.219821 | T18: =-Tributação!T17 -> -9028.219821 | U18: =-Tributação!U17 -> -9028.219821 | V18: =-Tributação!V17 -> -9028.219821 | W18: =-Tributação!W17 -> -9028.219821 | X18: =-Tributação!X17 -> -9028.219821 | Y18: =-Tributação!Y17 -> -9028.219821 | Z18: =-Tributação!Z17 -> -9028.219821 | AA18: =-Tributação!AA17 -> -9028.219821 | AB18: =-Tributação!AB17 -> -9028.219821 | AC18: =-Tributação!AC17 -> -9028.219821 | AD18: =-Tributação!AD17 -> -9028.219821 | AE18: =-Tributação!AE17 -> -9028.219821 | AF18: =-Tributação!AF17 -> -9028.219821 | AG18: =-Tributação!AG17 -> -9028.219821 | AH18: =-Tributação!AH17 -> -9028.219821 | AI18: =-Tributação!AI17 -> -9028.219821 | AJ18: =-Tributação!AJ17 -> -9028.219821 | AK18: =-Tributação!AK17 -> -9028.219821 | AL18: =-Tributação!AL17 -> -9028.219821
B19: FUNRURAL | C19: -173173.4913 | D19: =-'Painel de Controle'!$G$8*'FC Acionista'!D14 -> 0 | E19: =-'Painel de Controle'!$G$8*'FC Acionista'!E14 -> 0 | F19: =-'Painel de Controle'!$G$8*'FC Acionista'!F14 -> 0 | G19: =-'Painel de Controle'!$G$8*'FC Acionista'!G14 -> -1695.982146 | H19: =-'Painel de Controle'!$G$8*'FC Acionista'!H14 -> -2690.509057 | I19: =-'Painel de Controle'!$G$8*'FC Acionista'!I14 -> -3816.245065 | J19: =-'Painel de Controle'!$G$8*'FC Acionista'!J14 -> -4791.756165 | K19: =-'Painel de Controle'!$G$8*'FC Acionista'!K14 -> -5720.67853 | L19: =-'Painel de Controle'!$G$8*'FC Acionista'!L14 -> -5720.67853 | M19: =-'Painel de Controle'!$G$8*'FC Acionista'!M14 -> -5720.67853 | N19: =-'Painel de Controle'!$G$8*'FC Acionista'!N14 -> -5720.67853 | O19: =-'Painel de Controle'!$G$8*'FC Acionista'!O14 -> -5720.67853 | P19: =-'Painel de Controle'!$G$8*'FC Acionista'!P14 -> -5720.67853 | Q19: =-'Painel de Controle'!$G$8*'FC Acionista'!Q14 -> -5720.67853 | R19: =-'Painel de Controle'!$G$8*'FC Acionista'!R14 -> -5720.67853 | S19: =-'Painel de Controle'!$G$8*'FC Acionista'!S14 -> -5720.67853 | T19: =-'Painel de Controle'!$G$8*'FC Acionista'!T14 -> -5720.67853 | U19: =-'Painel de Controle'!$G$8*'FC Acionista'!U14 -> -5720.67853 | V19: =-'Painel de Controle'!$G$8*'FC Acionista'!V14 -> -5720.67853 | W19: =-'Painel de Controle'!$G$8*'FC Acionista'!W14 -> -5720.67853 | X19: =-'Painel de Controle'!$G$8*'FC Acionista'!X14 -> -5720.67853 | Y19: =-'Painel de Controle'!$G$8*'FC Acionista'!Y14 -> -5720.67853 | Z19: =-'Painel de Controle'!$G$8*'FC Acionista'!Z14 -> -5720.67853 | AA19: =-'Painel de Controle'!$G$8*'FC Acionista'!AA14 -> -5720.67853 | AB19: =-'Painel de Controle'!$G$8*'FC Acionista'!AB14 -> -5720.67853 | AC19: =-'Painel de Controle'!$G$8*'FC Acionista'!AC14 -> -5720.67853 | AD19: =-'Painel de Controle'!$G$8*'FC Acionista'!AD14 -> -5720.67853 | AE19: =-'Painel de Controle'!$G$8*'FC Acionista'!AE14 -> -5720.67853 | AF19: =-'Painel de Controle'!$G$8*'FC Acionista'!AF14 -> -5720.67853 | AG19: =-'Painel de Controle'!$G$8*'FC Acionista'!AG14 -> -5720.67853 | AH19: =-'Painel de Controle'!$G$8*'FC Acionista'!AH14 -> -5720.67853 | AI19: =-'Painel de Controle'!$G$8*'FC Acionista'!AI14 -> -5720.67853 | AJ19: =-'Painel de Controle'!$G$8*'FC Acionista'!AJ14 -> -5720.67853 | AK19: =-'Painel de Controle'!$G$8*'FC Acionista'!AK14 -> -5720.67853 | AL19: =-'Painel de Controle'!$G$8*'FC Acionista'!AL14 -> -5720.67853
B20: ITR | C20: =SUM(D20:AL20) -> -33986.02895 | D20: =-'Painel de Controle'!$D$5*'Painel de Controle'!$G$19/1000 -> -971.0293985 | E20: =-'Painel de Controle'!$D$5*'Painel de Controle'!$G$19/1000 -> -971.0293985 | F20: =-'Painel de Controle'!$D$5*'Painel de Controle'!$G$19/1000 -> -971.0293985 | G20: =-'Painel de Controle'!$D$5*'Painel de Controle'!$G$19/1000 -> -971.0293985 | H20: =-'Painel de Controle'!$D$5*'Painel de Controle'!$G$19/1000 -> -971.0293985 | I20: =-'Painel de Controle'!$D$5*'Painel de Controle'!$G$19/1000 -> -971.0293985 | J20: =-'Painel de Controle'!$D$5*'Painel de Controle'!$G$19/1000 -> -971.0293985 | K20: =-'Painel de Controle'!$D$5*'Painel de Controle'!$G$19/1000 -> -971.0293985 | L20: =-'Painel de Controle'!$D$5*'Painel de Controle'!$G$19/1000 -> -971.0293985 | M20: =-'Painel de Controle'!$D$5*'Painel de Controle'!$G$19/1000 -> -971.0293985 | N20: =-'Painel de Controle'!$D$5*'Painel de Controle'!$G$19/1000 -> -971.0293985 | O20: =-'Painel de Controle'!$D$5*'Painel de Controle'!$G$19/1000 -> -971.0293985 | P20: =-'Painel de Controle'!$D$5*'Painel de Controle'!$G$19/1000 -> -971.0293985 | Q20: =-'Painel de Controle'!$D$5*'Painel de Controle'!$G$19/1000 -> -971.0293985 | R20: =-'Painel de Controle'!$D$5*'Painel de Controle'!$G$19/1000 -> -971.0293985 | S20: =-'Painel de Controle'!$D$5*'Painel de Controle'!$G$19/1000 -> -971.0293985 | T20: =-'Painel de Controle'!$D$5*'Painel de Controle'!$G$19/1000 -> -971.0293985 | U20: =-'Painel de Controle'!$D$5*'Painel de Controle'!$G$19/1000 -> -971.0293985 | V20: =-'Painel de Controle'!$D$5*'Painel de Controle'!$G$19/1000 -> -971.0293985 | W20: =-'Painel de Controle'!$D$5*'Painel de Controle'!$G$19/1000 -> -971.0293985 | X20: =-'Painel de Controle'!$D$5*'Painel de Controle'!$G$19/1000 -> -971.0293985 | Y20: =-'Painel de Controle'!$D$5*'Painel de Controle'!$G$19/1000 -> -971.0293985 | Z20: =-'Painel de Controle'!$D$5*'Painel de Controle'!$G$19/1000 -> -971.0293985 | AA20: =-'Painel de Controle'!$D$5*'Painel de Controle'!$G$19/1000 -> -971.0293985 | AB20: =-'Painel de Controle'!$D$5*'Painel de Controle'!$G$19/1000 -> -971.0293985 | AC20: =-'Painel de Controle'!$D$5*'Painel de Controle'!$G$19/1000 -> -971.0293985 | AD20: =-'Painel de Controle'!$D$5*'Painel de Controle'!$G$19/1000 -> -971.0293985 | AE20: =-'Painel de Controle'!$D$5*'Painel de Controle'!$G$19/1000 -> -971.0293985 | AF20: =-'Painel de Controle'!$D$5*'Painel de Controle'!$G$19/1000 -> -971.0293985 | AG20: =-'Painel de Controle'!$D$5*'Painel de Controle'!$G$19/1000 -> -971.0293985 | AH20: =-'Painel de Controle'!$D$5*'Painel de Controle'!$G$19/1000 -> -971.0293985 | AI20: =-'Painel de Controle'!$D$5*'Painel de Controle'!$G$19/1000 -> -971.0293985 | AJ20: =-'Painel de Controle'!$D$5*'Painel de Controle'!$G$19/1000 -> -971.0293985 | AK20: =-'Painel de Controle'!$D$5*'Painel de Controle'!$G$19/1000 -> -971.0293985 | AL20: =-'Painel de Controle'!$D$5*'Painel de Controle'!$G$19/1000 -> -971.0293985
B22: Receita Operacional Líquida | C22: =C14+C16 -> 7907695.776 | D22: =D14+D16 -> -971.0293985 | E22: =E14+E16 -> -971.0293985 | F22: -971.0293985 | G22: 76806.17801 | H22: 122414.8692 | I22: 174040.7682 | J22: 218777.4002 | K22: 261377.4875 | L22: 261377.4875 | M22: 261377.4875 | N22: 261377.4875 | O22: 261377.4875 | P22: 261377.4875 | Q22: 261377.4875 | R22: 261377.4875 | S22: 261377.4875 | T22: 261377.4875 | U22: 261377.4875 | V22: 261377.4875 | W22: 261377.4875 | X22: 261377.4875 | Y22: 261377.4875 | Z22: 261377.4875 | AA22: 261377.4875 | AB22: 261377.4875 | AC22: 261377.4875 | AD22: 261377.4875 | AE22: 261377.4875 | AF22: 261377.4875 | AG22: 261377.4875 | AH22: 261377.4875 | AI22: 261377.4875 | AJ22: 261377.4875 | AK22: 261377.4875 | AL22: 261377.4875
D23: 0 | E23: =E15 -> 0 | F23: 0 | G23: 0 | H23: 0 | I23: 0 | J23: 0 | K23: 0 | L23: 0 | M23: 0 | N23: 0 | O23: 0 | P23: 0 | Q23: 0 | R23: 0 | S23: 0 | T23: 0 | U23: 0 | V23: 0 | W23: 0 | X23: 0 | Y23: 0 | Z23: 0 | AA23: 0 | AB23: 0 | AC23: 0 | AD23: 0 | AE23: 0 | AF23: 0 | AG23: 0 | AH23: 0 | AI23: 0 | AJ23: 0 | AK23: 0 | AL23: 0
B24: Custos e Despesas Operacionais | C24: =SUM(C25:C36) -> -5428223.058 | D24: =SUM(D25:D36)*(1+Sensibilidade!$D5) -> -112.6708404 | E24: =SUM(E25:E36)*(1+Sensibilidade!$D5) -> -50927.65349 | F24: =SUM(F25:F36)*(1+Sensibilidade!$D5) -> -2552.036441 | G24: =SUM(G25:G36)*(1+Sensibilidade!$D5) -> -50727.57871 | H24: =SUM(H25:H36)*(1+Sensibilidade!$D5) -> -79109.63815 | I24: =SUM(I25:I36)*(1+Sensibilidade!$D5) -> -215577.9246 | J24: =SUM(J25:J36)*(1+Sensibilidade!$D5) -> -145063.479 | K24: =SUM(K25:K36)*(1+Sensibilidade!$D5) -> -174195.5932 | L24: =SUM(L25:L36)*(1+Sensibilidade!$D5) -> -174460.5127 | M24: =SUM(M25:M36)*(1+Sensibilidade!$D5) -> -390393.8072 | N24: =SUM(N25:N36)*(1+Sensibilidade!$D5) -> -166369.1569 | O24: =SUM(O25:O36)*(1+Sensibilidade!$D5) -> -166378.0069 | P24: =SUM(P25:P36)*(1+Sensibilidade!$D5) -> -165862.2815 | Q24: =SUM(Q25:Q36)*(1+Sensibilidade!$D5) -> -165706.9745 | R24: =SUM(R25:R36)*(1+Sensibilidade!$D5) -> -165709.2644 | S24: =SUM(S25:S36)*(1+Sensibilidade!$D5) -> -165709.2644 | T24: =SUM(T25:T36)*(1+Sensibilidade!$D5) -> -165873.4214 | U24: =SUM(U25:U36)*(1+Sensibilidade!$D5) -> -165706.9745 | V24: =SUM(V25:V36)*(1+Sensibilidade!$D5) -> -165706.9745 | W24: =SUM(W25:W36)*(1+Sensibilidade!$D5) -> -165727.2125 | X24: =SUM(X25:X36)*(1+Sensibilidade!$D5) -> -165882.5195 | Y24: =SUM(Y25:Y36)*(1+Sensibilidade!$D5) -> -165736.0624 | Z24: =SUM(Z25:Z36)*(1+Sensibilidade!$D5) -> -165706.9745 | AA24: =SUM(AA25:AA36)*(1+Sensibilidade!$D5) -> -165706.9745 | AB24: =SUM(AB25:AB36)*(1+Sensibilidade!$D5) -> -165853.4315 | AC24: =SUM(AC25:AC36)*(1+Sensibilidade!$D5) -> -165698.1245 | AD24: =SUM(AD25:AD36)*(1+Sensibilidade!$D5) -> -165706.9745 | AE24: =SUM(AE25:AE36)*(1+Sensibilidade!$D5) -> -165706.9745 | AF24: =SUM(AF25:AF36)*(1+Sensibilidade!$D5) -> -165862.2815 | AG24: =SUM(AG25:AG36)*(1+Sensibilidade!$D5) -> -165738.6949 | AH24: =SUM(AH25:AH36)*(1+Sensibilidade!$D5) -> -165738.6949 | AI24: =SUM(AI25:AI36)*(1+Sensibilidade!$D5) -> -165747.5449 | AJ24: =SUM(AJ25:AJ36)*(1+Sensibilidade!$D5) -> -165862.2815 | AK24: =SUM(AK25:AK36)*(1+Sensibilidade!$D5) -> -165706.9745 | AL24: =SUM(AL25:AL36)*(1+Sensibilidade!$D5) -> -165698.1245
B25: Despesas Agrícolas | C25: =SUM(D25:AL25) -> -4474579.326 | D25: =-'Resultados Cultivos'!D7 -> 0 | E25: =-'Resultados Cultivos'!E7 -> 0 | F25: =-'Resultados Cultivos'!F7 -> 0 | G25: =-'Resultados Cultivos'!G7 -> -43821.98794 | H25: =-'Resultados Cultivos'!H7 -> -69519.27871 | I25: =-'Resultados Cultivos'!I7 -> -98606.84302 | J25: =-'Resultados Cultivos'!J7 -> -123812.7898 | K25: =-'Resultados Cultivos'!K7 -> -147814.9438 | L25: =-'Resultados Cultivos'!L7 -> -147814.9438 | M25: =-'Resultados Cultivos'!M7 -> -147814.9438 | N25: =-'Resultados Cultivos'!N7 -> -147814.9438 | O25: =-'Resultados Cultivos'!O7 -> -147814.9438 | P25: =-'Resultados Cultivos'!P7 -> -147814.9438 | Q25: =-'Resultados Cultivos'!Q7 -> -147814.9438 | R25: =-'Resultados Cultivos'!R7 -> -147814.9438 | S25: =-'Resultados Cultivos'!S7 -> -147814.9438 | T25: =-'Resultados Cultivos'!T7 -> -147814.9438 | U25: =-'Resultados Cultivos'!U7 -> -147814.9438 | V25: =-'Resultados Cultivos'!V7 -> -147814.9438 | W25: =-'Resultados Cultivos'!W7 -> -147814.9438 | X25: =-'Resultados Cultivos'!X7 -> -147814.9438 | Y25: =-'Resultados Cultivos'!Y7 -> -147814.9438 | Z25: =-'Resultados Cultivos'!Z7 -> -147814.9438 | AA25: =-'Resultados Cultivos'!AA7 -> -147814.9438 | AB25: =-'Resultados Cultivos'!AB7 -> -147814.9438 | AC25: =-'Resultados Cultivos'!AC7 -> -147814.9438 | AD25: =-'Resultados Cultivos'!AD7 -> -147814.9438 | AE25: =-'Resultados Cultivos'!AE7 -> -147814.9438 | AF25: =-'Resultados Cultivos'!AF7 -> -147814.9438 | AG25: =-'Resultados Cultivos'!AG7 -> -147814.9438 | AH25: =-'Resultados Cultivos'!AH7 -> -147814.9438 | AI25: =-'Resultados Cultivos'!AI7 -> -147814.9438 | AJ25: =-'Resultados Cultivos'!AJ7 -> -147814.9438 | AK25: =-'Resultados Cultivos'!AK7 -> -147814.9438 | AL25: =-'Resultados Cultivos'!AL7 -> -147814.9438
B26: Energia | C26: =SUM(D26:AL26) -> -240403.1375 | D26: =-D7*Energia!$I$18/1000 -> 0 | E26: =-E7*Energia!$I$18/1000 -> 0 | F26: =-F7*Energia!$I$18/1000 -> 0 | G26: =-G7*Energia!$I$18/1000 -> -2354.39862 | H26: =-H7*Energia!$I$18/1000 -> -3735.02211 | I26: =-I7*Energia!$I$18/1000 -> -5297.792868 | J26: =-J7*Energia!$I$18/1000 -> -6652.018203 | K26: =-K7*Energia!$I$18/1000 -> -7941.56806 | L26: =-L7*Energia!$I$18/1000 -> -7941.56806 | M26: =-M7*Energia!$I$18/1000 -> -7941.56806 | N26: =-N7*Energia!$I$18/1000 -> -7941.56806 | O26: =-O7*Energia!$I$18/1000 -> -7941.56806 | P26: =-P7*Energia!$I$18/1000 -> -7941.56806 | Q26: =-Q7*Energia!$I$18/1000 -> -7941.56806 | R26: =-R7*Energia!$I$18/1000 -> -7941.56806 | S26: =-S7*Energia!$I$18/1000 -> -7941.56806 | T26: =-T7*Energia!$I$18/1000 -> -7941.56806 | U26: =-U7*Energia!$I$18/1000 -> -7941.56806 | V26: =-V7*Energia!$I$18/1000 -> -7941.56806 | W26: =-W7*Energia!$I$18/1000 -> -7941.56806 | X26: =-X7*Energia!$I$18/1000 -> -7941.56806 | Y26: =-Y7*Energia!$I$18/1000 -> -7941.56806 | Z26: =-Z7*Energia!$I$18/1000 -> -7941.56806 | AA26: =-AA7*Energia!$I$18/1000 -> -7941.56806 | AB26: =-AB7*Energia!$I$18/1000 -> -7941.56806 | AC26: =-AC7*Energia!$I$18/1000 -> -7941.56806 | AD26: =-AD7*Energia!$I$18/1000 -> -7941.56806 | AE26: =-AE7*Energia!$I$18/1000 -> -7941.56806 | AF26: =-AF7*Energia!$I$18/1000 -> -7941.56806 | AG26: =-AG7*Energia!$I$18/1000 -> -7941.56806 | AH26: =-AH7*Energia!$I$18/1000 -> -7941.56806 | AI26: =-AI7*Energia!$I$18/1000 -> -7941.56806 | AJ26: =-AJ7*Energia!$I$18/1000 -> -7941.56806 | AK26: =-AK7*Energia!$I$18/1000 -> -7941.56806 | AL26: =-AL7*Energia!$I$18/1000 -> -7941.56806
B27: Manutenção de Equipamentos | C27: =SUM(D27:AL27) -> -75479.47208 | D27: =-D8*'Base Ativos'!$K$6/1000 -> 0 | E27: =-E8*'Base Ativos'!$K$6/1000 -> 0 | F27: =-F8*'Base Ativos'!$K$6/1000 -> 0 | G27: =-G8*'Base Ativos'!$K$6/1000 -> -739.2115044 | H27: =-H8*'Base Ativos'!$K$6/1000 -> -1172.68643 | I27: =-I8*'Base Ativos'!$K$6/1000 -> -1663.350209 | J27: =-J8*'Base Ativos'!$K$6/1000 -> -2088.536895 | K27: =-K8*'Base Ativos'!$K$6/1000 -> -2493.417394 | L27: =-L8*'Base Ativos'!$K$6/1000 -> -2493.417394 | M27: =-M8*'Base Ativos'!$K$6/1000 -> -2493.417394 | N27: =-N8*'Base Ativos'!$K$6/1000 -> -2493.417394 | O27: =-O8*'Base Ativos'!$K$6/1000 -> -2493.417394 | P27: =-P8*'Base Ativos'!$K$6/1000 -> -2493.417394 | Q27: =-Q8*'Base Ativos'!$K$6/1000 -> -2493.417394 | R27: =-R8*'Base Ativos'!$K$6/1000 -> -2493.417394 | S27: =-S8*'Base Ativos'!$K$6/1000 -> -2493.417394 | T27: =-T8*'Base Ativos'!$K$6/1000 -> -2493.417394 | U27: =-U8*'Base Ativos'!$K$6/1000 -> -2493.417394 | V27: =-V8*'Base Ativos'!$K$6/1000 -> -2493.417394 | W27: =-W8*'Base Ativos'!$K$6/1000 -> -2493.417394 | X27: =-X8*'Base Ativos'!$K$6/1000 -> -2493.417394 | Y27: =-Y8*'Base Ativos'!$K$6/1000 -> -2493.417394 | Z27: =-Z8*'Base Ativos'!$K$6/1000 -> -2493.417394 | AA27: =-AA8*'Base Ativos'!$K$6/1000 -> -2493.417394 | AB27: =-AB8*'Base Ativos'!$K$6/1000 -> -2493.417394 | AC27: =-AC8*'Base Ativos'!$K$6/1000 -> -2493.417394 | AD27: =-AD8*'Base Ativos'!$K$6/1000 -> -2493.417394 | AE27: =-AE8*'Base Ativos'!$K$6/1000 -> -2493.417394 | AF27: =-AF8*'Base Ativos'!$K$6/1000 -> -2493.417394 | AG27: =-AG8*'Base Ativos'!$K$6/1000 -> -2493.417394 | AH27: =-AH8*'Base Ativos'!$K$6/1000 -> -2493.417394 | AI27: =-AI8*'Base Ativos'!$K$6/1000 -> -2493.417394 | AJ27: =-AJ8*'Base Ativos'!$K$6/1000 -> -2493.417394 | AK27: =-AK8*'Base Ativos'!$K$6/1000 -> -2493.417394 | AL27: =-AL8*'Base Ativos'!$K$6/1000 -> -2493.417394
B28: Manutenção de Obras Civis | C28: -61002.93284 | D28: =-D8*'Base Ativos'!$K$7/1000 -> 0 | E28: =-E8*'Base Ativos'!$K$7/1000 -> 0 | F28: =-F8*'Base Ativos'!$K$7/1000 -> 0 | G28: =-G8*'Base Ativos'!$K$7/1000 -> -597.4348855 | H28: =-H8*'Base Ativos'!$K$7/1000 -> -947.7717527 | I28: =-I8*'Base Ativos'!$K$7/1000 -> -1344.328971 | J28: =-J8*'Base Ativos'!$K$7/1000 -> -1687.967237 | K28: =-K8*'Base Ativos'!$K$7/1000 -> -2015.193928 | L28: =-L8*'Base Ativos'!$K$7/1000 -> -2015.193928 | M28: =-M8*'Base Ativos'!$K$7/1000 -> -2015.193928 | N28: =-N8*'Base Ativos'!$K$7/1000 -> -2015.193928 | O28: =-O8*'Base Ativos'!$K$7/1000 -> -2015.193928 | P28: =-P8*'Base Ativos'!$K$7/1000 -> -2015.193928 | Q28: =-Q8*'Base Ativos'!$K$7/1000 -> -2015.193928 | R28: =-R8*'Base Ativos'!$K$7/1000 -> -2015.193928 | S28: =-S8*'Base Ativos'!$K$7/1000 -> -2015.193928 | T28: =-T8*'Base Ativos'!$K$7/1000 -> -2015.193928 | U28: =-U8*'Base Ativos'!$K$7/1000 -> -2015.193928 | V28: =-V8*'Base Ativos'!$K$7/1000 -> -2015.193928 | W28: =-W8*'Base Ativos'!$K$7/1000 -> -2015.193928 | X28: =-X8*'Base Ativos'!$K$7/1000 -> -2015.193928 | Y28: =-Y8*'Base Ativos'!$K$7/1000 -> -2015.193928 | Z28: =-Z8*'Base Ativos'!$K$7/1000 -> -2015.193928 | AA28: =-AA8*'Base Ativos'!$K$7/1000 -> -2015.193928 | AB28: =-AB8*'Base Ativos'!$K$7/1000 -> -2015.193928 | AC28: =-AC8*'Base Ativos'!$K$7/1000 -> -2015.193928 | AD28: =-AD8*'Base Ativos'!$K$7/1000 -> -2015.193928 | AE28: =-AE8*'Base Ativos'!$K$7/1000 -> -2015.193928 | AF28: =-AF8*'Base Ativos'!$K$7/1000 -> -2015.193928 | AG28: =-AG8*'Base Ativos'!$K$7/1000 -> -2015.193928 | AH28: =-AH8*'Base Ativos'!$K$7/1000 -> -2015.193928 | AI28: =-AI8*'Base Ativos'!$K$7/1000 -> -2015.193928 | AJ28: =-AJ8*'Base Ativos'!$K$7/1000 -> -2015.193928 | AK28: =-AK8*'Base Ativos'!$K$7/1000 -> -2015.193928 | AL28: =-AL8*'Base Ativos'!$K$7/1000 -> -2015.193928
B29: Despesas de Pessoal | C29: -116354.3886 | D29: =-D10*Despesas!$I$25/1000 -> 0 | E29: =-E10*Despesas!$I$25/1000 -> -1442.903409 | F29: =-F10*Despesas!$I$25/1000 -> -1915.171879 | G29: =-G10*Despesas!$I$25/1000 -> -2426.422576 | H29: =-H10*Despesas!$I$25/1000 -> -2843.701112 | I29: =-I10*Despesas!$I$25/1000 -> -3260.979648 | J29: =-J10*Despesas!$I$25/1000 -> -3602.248621 | K29: =-K10*Despesas!$I$25/1000 -> -3602.248621 | L29: =-L10*Despesas!$I$25/1000 -> -3602.248621 | M29: =-M10*Despesas!$I$25/1000 -> -3602.248621 | N29: =-N10*Despesas!$I$25/1000 -> -3602.248621 | O29: =-O10*Despesas!$I$25/1000 -> -3602.248621 | P29: =-P10*Despesas!$I$25/1000 -> -3602.248621 | Q29: =-Q10*Despesas!$I$25/1000 -> -3602.248621 | R29: =-R10*Despesas!$I$25/1000 -> -3602.248621 | S29: =-S10*Despesas!$I$25/1000 -> -3602.248621 | T29: =-T10*Despesas!$I$25/1000 -> -3602.248621 | U29: =-U10*Despesas!$I$25/1000 -> -3602.248621 | V29: =-V10*Despesas!$I$25/1000 -> -3602.248621 | W29: =-W10*Despesas!$I$25/1000 -> -3602.248621 | X29: =-X10*Despesas!$I$25/1000 -> -3602.248621 | Y29: =-Y10*Despesas!$I$25/1000 -> -3602.248621 | Z29: =-Z10*Despesas!$I$25/1000 -> -3602.248621 | AA29: =-AA10*Despesas!$I$25/1000 -> -3602.248621 | AB29: =-AB10*Despesas!$I$25/1000 -> -3602.248621 | AC29: =-AC10*Despesas!$I$25/1000 -> -3602.248621 | AD29: =-AD10*Despesas!$I$25/1000 -> -3602.248621 | AE29: =-AE10*Despesas!$I$25/1000 -> -3602.248621 | AF29: =-AF10*Despesas!$I$25/1000 -> -3602.248621 | AG29: =-AG10*Despesas!$I$25/1000 -> -3602.248621 | AH29: =-AH10*Despesas!$I$25/1000 -> -3602.248621 | AI29: =-AI10*Despesas!$I$25/1000 -> -3602.248621 | AJ29: =-AJ10*Despesas!$I$25/1000 -> -3602.248621 | AK29: =-AK10*Despesas!$I$25/1000 -> -3602.248621 | AL29: =-AL10*Despesas!$I$25/1000 -> -3602.248621
B30: Meio Ambiente | C30: -28499.07105 | K30: ='FC Projeto'!K30 -> -2569.794273 | L30: ='FC Projeto'!L30 -> -2229.501848 | M30: ='FC Projeto'!M30 -> -2074.194805 | N30: ='FC Projeto'!N30 -> -1445.099342 | O30: ='FC Projeto'!O30 -> -1445.099342 | P30: ='FC Projeto'!P30 -> -929.3739638 | Q30: ='FC Projeto'!Q30 -> -774.0669212 | R30: ='FC Projeto'!R30 -> -774.0669212 | S30: ='FC Projeto'!S30 -> -774.0669212 | T30: ='FC Projeto'!T30 -> -929.3739638 | U30: ='FC Projeto'!U30 -> -774.0669212 | V30: ='FC Projeto'!V30 -> -774.0669212 | W30: ='FC Projeto'!W30 -> -774.0669212 | X30: ='FC Projeto'!X30 -> -929.3739638 | Y30: ='FC Projeto'!Y30 -> -774.0669212 | Z30: ='FC Projeto'!Z30 -> -774.0669212 | AA30: ='FC Projeto'!AA30 -> -774.0669212 | AB30: ='FC Projeto'!AB30 -> -929.3739638 | AC30: ='FC Projeto'!AC30 -> -774.0669212 | AD30: ='FC Projeto'!AD30 -> -774.0669212 | AE30: ='FC Projeto'!AE30 -> -774.0669212 | AF30: ='FC Projeto'!AF30 -> -929.3739638 | AG30: ='FC Projeto'!AG30 -> -774.0669212 | AH30: ='FC Projeto'!AH30 -> -774.0669212 | AI30: ='FC Projeto'!AI30 -> -774.0669212 | AJ30: ='FC Projeto'!AJ30 -> -929.3739638 | AK30: ='FC Projeto'!AK30 -> -774.0669212 | AL30: ='FC Projeto'!AL30 -> -774.0669212
B31: Outras Despesas | C31: =SUM(D31:AL31) -> -30864.79548 | D31: =-D10*(Despesas!$I$38+Despesas!$I$46)/1000 -> 0 | E31: =-E10*(Despesas!$I$38+Despesas!$I$46)/1000 -> -382.7523751 | F31: =-F10*(Despesas!$I$38+Despesas!$I$46)/1000 -> -508.0288681 | G31: =-G10*(Despesas!$I$38+Despesas!$I$46)/1000 -> -643.6459976 | H31: =-H10*(Despesas!$I$38+Despesas!$I$46)/1000 -> -754.3355626 | I31: =-I10*(Despesas!$I$38+Despesas!$I$46)/1000 -> -865.0251276 | J31: =-J10*(Despesas!$I$38+Despesas!$I$46)/1000 -> -955.5519845 | K31: =-K10*(Despesas!$I$38+Despesas!$I$46)/1000 -> -955.5519845 | L31: =-L10*(Despesas!$I$38+Despesas!$I$46)/1000 -> -955.5519845 | M31: =-M10*(Despesas!$I$38+Despesas!$I$46)/1000 -> -955.5519845 | N31: =-N10*(Despesas!$I$38+Despesas!$I$46)/1000 -> -955.5519845 | O31: =-O10*(Despesas!$I$38+Despesas!$I$46)/1000 -> -955.5519845 | P31: =-P10*(Despesas!$I$38+Despesas!$I$46)/1000 -> -955.5519845 | Q31: =-Q10*(Despesas!$I$38+Despesas!$I$46)/1000 -> -955.5519845 | R31: =-R10*(Despesas!$I$38+Despesas!$I$46)/1000 -> -955.5519845 | S31: =-S10*(Despesas!$I$38+Despesas!$I$46)/1000 -> -955.5519845 | T31: =-T10*(Despesas!$I$38+Despesas!$I$46)/1000 -> -955.5519845 | U31: =-U10*(Despesas!$I$38+Despesas!$I$46)/1000 -> -955.5519845 | V31: =-V10*(Despesas!$I$38+Despesas!$I$46)/1000 -> -955.5519845 | W31: =-W10*(Despesas!$I$38+Despesas!$I$46)/1000 -> -955.5519845 | X31: =-X10*(Despesas!$I$38+Despesas!$I$46)/1000 -> -955.5519845 | Y31: =-Y10*(Despesas!$I$38+Despesas!$I$46)/1000 -> -955.5519845 | Z31: =-Z10*(Despesas!$I$38+Despesas!$I$46)/1000 -> -955.5519845 | AA31: =-AA10*(Despesas!$I$38+Despesas!$I$46)/1000 -> -955.5519845 | AB31: =-AB10*(Despesas!$I$38+Despesas!$I$46)/1000 -> -955.5519845 | AC31: =-AC10*(Despesas!$I$38+Despesas!$I$46)/1000 -> -955.5519845 | AD31: =-AD10*(Despesas!$I$38+Despesas!$I$46)/1000 -> -955.5519845 | AE31: =-AE10*(Despesas!$I$38+Despesas!$I$46)/1000 -> -955.5519845 | AF31: =-AF10*(Despesas!$I$38+Despesas!$I$46)/1000 -> -955.5519845 | AG31: =-AG10*(Despesas!$I$38+Despesas!$I$46)/1000 -> -955.5519845 | AH31: =-AH10*(Despesas!$I$38+Despesas!$I$46)/1000 -> -955.5519845 | AI31: =-AI10*(Despesas!$I$38+Despesas!$I$46)/1000 -> -955.5519845 | AJ31: =-AJ10*(Despesas!$I$38+Despesas!$I$46)/1000 -> -955.5519845 | AK31: =-AK10*(Despesas!$I$38+Despesas!$I$46)/1000 -> -955.5519845 | AL31: =-AL10*(Despesas!$I$38+Despesas!$I$46)/1000 -> -955.5519845
B32: Outorga da Terra | C32: ='FC Projeto'!C32 -> -396891.5558 | D32: ='FC Projeto'!D32 -> 0 | E32: ='FC Projeto'!E32 -> -48966.24888 | F32: ='FC Projeto'!F32 -> 0 | G32: ='FC Projeto'!G32 -> 0 | H32: ='FC Projeto'!H32 -> 0 | I32: ='FC Projeto'!I32 -> -104401.9877 | J32: ='FC Projeto'!J32 -> -6128.807648 | K32: ='FC Projeto'!K32 -> -6692.0035 | L32: ='FC Projeto'!L32 -> -7306.953231 | M32: ='FC Projeto'!M32 -> -223395.5548 | N32: ='FC Projeto'!N32 -> 0 | O32: ='FC Projeto'!O32 -> 0 | P32: ='FC Projeto'!P32 -> 0 | Q32: ='FC Projeto'!Q32 -> 0 | R32: ='FC Projeto'!R32 -> 0 | S32: ='FC Projeto'!S32 -> 0 | T32: ='FC Projeto'!T32 -> 0 | U32: ='FC Projeto'!U32 -> 0 | V32: ='FC Projeto'!V32 -> 0 | W32: ='FC Projeto'!W32 -> 0 | X32: ='FC Projeto'!X32 -> 0 | Y32: ='FC Projeto'!Y32 -> 0 | Z32: ='FC Projeto'!Z32 -> 0 | AA32: ='FC Projeto'!AA32 -> 0 | AB32: ='FC Projeto'!AB32 -> 0 | AC32: ='FC Projeto'!AC32 -> 0 | AD32: ='FC Projeto'!AD32 -> 0 | AE32: ='FC Projeto'!AE32 -> 0 | AF32: ='FC Projeto'!AF32 -> 0 | AG32: ='FC Projeto'!AG32 -> 0 | AH32: ='FC Projeto'!AH32 -> 0 | AI32: ='FC Projeto'!AI32 -> 0 | AJ32: ='FC Projeto'!AJ32 -> 0 | AK32: ='FC Projeto'!AK32 -> 0 | AL32: ='FC Projeto'!AL32 -> 0
B33: Seguros e Garantias | C33: -2074.189537 | D33: =SUM(D34:D36) -> -56.3354202 | E33: =SUM(E34:E36) -> -67.87441295 | F33: -64.41784708 | G33: -72.23859232 | H33: -68.42123757 | I33: -68.80849756 | J33: -67.77930844 | K33: -55.43582407 | L33: -50.5668925 | M33: -50.5668925 | N33: -50.5668925 | O33: -54.99188802 | P33: -54.99188802 | Q33: -54.99188802 | R33: -56.13684501 | S33: -56.13684501 | T33: -60.56184053 | U33: -54.99188802 | V33: -54.99188802 | W33: -65.1108719 | X33: -65.1108719 | Y33: -69.53586741 | Z33: -54.99188802 | AA33: -54.99188802 | AB33: -50.5668925 | AC33: -50.5668925 | AD33: -54.99188802 | AE33: -54.99188802 | AF33: -54.99188802 | AG33: -70.85208289 | AH33: -70.85208289 | AI33: -75.2770784 | AJ33: -54.99188802 | AK33: -54.99188802 | AL33: -50.5668925
B34: Garantia de Execução | C34: -719.5906736 | D34: =-IF(D5<=7,'Painel de Controle'!$G$24,'Painel de Controle'!$G$25)*'Painel de Controle'!$G$26*'Painel de Controle'!$G$27*(1+'Painel de Controle'!$G$28) -> -23.91828022 | E34: =-IF(E5<=7,'Painel de Controle'!$G$24,'Painel de Controle'!$G$25)*'Painel de Controle'!$G$26*'Painel de Controle'!$G$27*(1+'Painel de Controle'!$G$28) -> -23.91828022 | F34: =-IF(F5<=7,'Painel de Controle'!$G$24,'Painel de Controle'!$G$25)*'Painel de Controle'!$G$26*'Painel de Controle'!$G$27*(1+'Painel de Controle'!$G$28) -> -23.91828022 | G34: =-IF(G5<=7,'Painel de Controle'!$G$24,'Painel de Controle'!$G$25)*'Painel de Controle'!$G$26*'Painel de Controle'!$G$27*(1+'Painel de Controle'!$G$28) -> -23.91828022 | H34: =-IF(H5<=7,'Painel de Controle'!$G$24,'Painel de Controle'!$G$25)*'Painel de Controle'!$G$26*'Painel de Controle'!$G$27*(1+'Painel de Controle'!$G$28) -> -23.91828022 | I34: =-IF(I5<=7,'Painel de Controle'!$G$24,'Painel de Controle'!$G$25)*'Painel de Controle'!$G$26*'Painel de Controle'!$G$27*(1+'Painel de Controle'!$G$28) -> -23.91828022 | J34: =-IF(J5<=7,'Painel de Controle'!$G$24,'Painel de Controle'!$G$25)*'Painel de Controle'!$G$26*'Painel de Controle'!$G$27*(1+'Painel de Controle'!$G$28) -> -23.91828022 | K34: =-IF(K5<=7,'Painel de Controle'!$G$24,'Painel de Controle'!$G$25)*'Painel de Controle'!$G$26*'Painel de Controle'!$G$27*(1+'Painel de Controle'!$G$28) -> -19.72009686 | L34: =-IF(L5<=7,'Painel de Controle'!$G$24,'Painel de Controle'!$G$25)*'Painel de Controle'!$G$26*'Painel de Controle'!$G$27*(1+'Painel de Controle'!$G$28) -> -19.72009686 | M34: =-IF(M5<=7,'Painel de Controle'!$G$24,'Painel de Controle'!$G$25)*'Painel de Controle'!$G$26*'Painel de Controle'!$G$27*(1+'Painel de Controle'!$G$28) -> -19.72009686 | N34: =-IF(N5<=7,'Painel de Controle'!$G$24,'Painel de Controle'!$G$25)*'Painel de Controle'!$G$26*'Painel de Controle'!$G$27*(1+'Painel de Controle'!$G$28) -> -19.72009686 | O34: =-IF(O5<=7,'Painel de Controle'!$G$24,'Painel de Controle'!$G$25)*'Painel de Controle'!$G$26*'Painel de Controle'!$G$27*(1+'Painel de Controle'!$G$28) -> -19.72009686 | P34: =-IF(P5<=7,'Painel de Controle'!$G$24,'Painel de Controle'!$G$25)*'Painel de Controle'!$G$26*'Painel de Controle'!$G$27*(1+'Painel de Controle'!$G$28) -> -19.72009686 | Q34: =-IF(Q5<=7,'Painel de Controle'!$G$24,'Painel de Controle'!$G$25)*'Painel de Controle'!$G$26*'Painel de Controle'!$G$27*(1+'Painel de Controle'!$G$28) -> -19.72009686 | R34: =-IF(R5<=7,'Painel de Controle'!$G$24,'Painel de Controle'!$G$25)*'Painel de Controle'!$G$26*'Painel de Controle'!$G$27*(1+'Painel de Controle'!$G$28) -> -19.72009686 | S34: =-IF(S5<=7,'Painel de Controle'!$G$24,'Painel de Controle'!$G$25)*'Painel de Controle'!$G$26*'Painel de Controle'!$G$27*(1+'Painel de Controle'!$G$28) -> -19.72009686 | T34: =-IF(T5<=7,'Painel de Controle'!$G$24,'Painel de Controle'!$G$25)*'Painel de Controle'!$G$26*'Painel de Controle'!$G$27*(1+'Painel de Controle'!$G$28) -> -19.72009686 | U34: =-IF(U5<=7,'Painel de Controle'!$G$24,'Painel de Controle'!$G$25)*'Painel de Controle'!$G$26*'Painel de Controle'!$G$27*(1+'Painel de Controle'!$G$28) -> -19.72009686 | V34: =-IF(V5<=7,'Painel de Controle'!$G$24,'Painel de Controle'!$G$25)*'Painel de Controle'!$G$26*'Painel de Controle'!$G$27*(1+'Painel de Controle'!$G$28) -> -19.72009686 | W34: =-IF(W5<=7,'Painel de Controle'!$G$24,'Painel de Controle'!$G$25)*'Painel de Controle'!$G$26*'Painel de Controle'!$G$27*(1+'Painel de Controle'!$G$28) -> -19.72009686 | X34: =-IF(X5<=7,'Painel de Controle'!$G$24,'Painel de Controle'!$G$25)*'Painel de Controle'!$G$26*'Painel de Controle'!$G$27*(1+'Painel de Controle'!$G$28) -> -19.72009686 | Y34: =-IF(Y5<=7,'Painel de Controle'!$G$24,'Painel de Controle'!$G$25)*'Painel de Controle'!$G$26*'Painel de Controle'!$G$27*(1+'Painel de Controle'!$G$28) -> -19.72009686 | Z34: =-IF(Z5<=7,'Painel de Controle'!$G$24,'Painel de Controle'!$G$25)*'Painel de Controle'!$G$26*'Painel de Controle'!$G$27*(1+'Painel de Controle'!$G$28) -> -19.72009686 | AA34: =-IF(AA5<=7,'Painel de Controle'!$G$24,'Painel de Controle'!$G$25)*'Painel de Controle'!$G$26*'Painel de Controle'!$G$27*(1+'Painel de Controle'!$G$28) -> -19.72009686 | AB34: =-IF(AB5<=7,'Painel de Controle'!$G$24,'Painel de Controle'!$G$25)*'Painel de Controle'!$G$26*'Painel de Controle'!$G$27*(1+'Painel de Controle'!$G$28) -> -19.72009686 | AC34: =-IF(AC5<=7,'Painel de Controle'!$G$24,'Painel de Controle'!$G$25)*'Painel de Controle'!$G$26*'Painel de Controle'!$G$27*(1+'Painel de Controle'!$G$28) -> -19.72009686 | AD34: =-IF(AD5<=7,'Painel de Controle'!$G$24,'Painel de Controle'!$G$25)*'Painel de Controle'!$G$26*'Painel de Controle'!$G$27*(1+'Painel de Controle'!$G$28) -> -19.72009686 | AE34: =-IF(AE5<=7,'Painel de Controle'!$G$24,'Painel de Controle'!$G$25)*'Painel de Controle'!$G$26*'Painel de Controle'!$G$27*(1+'Painel de Controle'!$G$28) -> -19.72009686 | AF34: =-IF(AF5<=7,'Painel de Controle'!$G$24,'Painel de Controle'!$G$25)*'Painel de Controle'!$G$26*'Painel de Controle'!$G$27*(1+'Painel de Controle'!$G$28) -> -19.72009686 | AG34: =-IF(AG5<=7,'Painel de Controle'!$G$24,'Painel de Controle'!$G$25)*'Painel de Controle'!$G$26*'Painel de Controle'!$G$27*(1+'Painel de Controle'!$G$28) -> -19.72009686 | AH34: =-IF(AH5<=7,'Painel de Controle'!$G$24,'Painel de Controle'!$G$25)*'Painel de Controle'!$G$26*'Painel de Controle'!$G$27*(1+'Painel de Controle'!$G$28) -> -19.72009686 | AI34: =-IF(AI5<=7,'Painel de Controle'!$G$24,'Painel de Controle'!$G$25)*'Painel de Controle'!$G$26*'Painel de Controle'!$G$27*(1+'Painel de Controle'!$G$28) -> -19.72009686 | AJ34: =-IF(AJ5<=7,'Painel de Controle'!$G$24,'Painel de Controle'!$G$25)*'Painel de Controle'!$G$26*'Painel de Controle'!$G$27*(1+'Painel de Controle'!$G$28) -> -19.72009686 | AK34: =-IF(AK5<=7,'Painel de Controle'!$G$24,'Painel de Controle'!$G$25)*'Painel de Controle'!$G$26*'Painel de Controle'!$G$27*(1+'Painel de Controle'!$G$28) -> -19.72009686 | AL34: =-IF(AL5<=7,'Painel de Controle'!$G$24,'Painel de Controle'!$G$25)*'Painel de Controle'!$G$26*'Painel de Controle'!$G$27*(1+'Painel de Controle'!$G$28) -> -19.72009686
B35: Seguro de Responsabilidade Civil | C35: -1079.637848 | D35: =-'Painel de Controle'!$G$30*'Painel de Controle'!$G$31*'Painel de Controle'!$G$32*(1+'Painel de Controle'!$G$33) -> -30.84679565 | E35: =-'Painel de Controle'!$G$30*'Painel de Controle'!$G$31*'Painel de Controle'!$G$32*(1+'Painel de Controle'!$G$33) -> -30.84679565 | F35: =-'Painel de Controle'!$G$30*'Painel de Controle'!$G$31*'Painel de Controle'!$G$32*(1+'Painel de Controle'!$G$33) -> -30.84679565 | G35: =-'Painel de Controle'!$G$30*'Painel de Controle'!$G$31*'Painel de Controle'!$G$32*(1+'Painel de Controle'!$G$33) -> -30.84679565 | H35: =-'Painel de Controle'!$G$30*'Painel de Controle'!$G$31*'Painel de Controle'!$G$32*(1+'Painel de Controle'!$G$33) -> -30.84679565 | I35: =-'Painel de Controle'!$G$30*'Painel de Controle'!$G$31*'Painel de Controle'!$G$32*(1+'Painel de Controle'!$G$33) -> -30.84679565 | J35: =-'Painel de Controle'!$G$30*'Painel de Controle'!$G$31*'Painel de Controle'!$G$32*(1+'Painel de Controle'!$G$33) -> -30.84679565 | K35: =-'Painel de Controle'!$G$30*'Painel de Controle'!$G$31*'Painel de Controle'!$G$32*(1+'Painel de Controle'!$G$33) -> -30.84679565 | L35: =-'Painel de Controle'!$G$30*'Painel de Controle'!$G$31*'Painel de Controle'!$G$32*(1+'Painel de Controle'!$G$33) -> -30.84679565 | M35: =-'Painel de Controle'!$G$30*'Painel de Controle'!$G$31*'Painel de Controle'!$G$32*(1+'Painel de Controle'!$G$33) -> -30.84679565 | N35: =-'Painel de Controle'!$G$30*'Painel de Controle'!$G$31*'Painel de Controle'!$G$32*(1+'Painel de Controle'!$G$33) -> -30.84679565 | O35: =-'Painel de Controle'!$G$30*'Painel de Controle'!$G$31*'Painel de Controle'!$G$32*(1+'Painel de Controle'!$G$33) -> -30.84679565 | P35: =-'Painel de Controle'!$G$30*'Painel de Controle'!$G$31*'Painel de Controle'!$G$32*(1+'Painel de Controle'!$G$33) -> -30.84679565 | Q35: =-'Painel de Controle'!$G$30*'Painel de Controle'!$G$31*'Painel de Controle'!$G$32*(1+'Painel de Controle'!$G$33) -> -30.84679565 | R35: =-'Painel de Controle'!$G$30*'Painel de Controle'!$G$31*'Painel de Controle'!$G$32*(1+'Painel de Controle'!$G$33) -> -30.84679565 | S35: =-'Painel de Controle'!$G$30*'Painel de Controle'!$G$31*'Painel de Controle'!$G$32*(1+'Painel de Controle'!$G$33) -> -30.84679565 | T35: =-'Painel de Controle'!$G$30*'Painel de Controle'!$G$31*'Painel de Controle'!$G$32*(1+'Painel de Controle'!$G$33) -> -30.84679565 | U35: =-'Painel de Controle'!$G$30*'Painel de Controle'!$G$31*'Painel de Controle'!$G$32*(1+'Painel de Controle'!$G$33) -> -30.84679565 | V35: =-'Painel de Controle'!$G$30*'Painel de Controle'!$G$31*'Painel de Controle'!$G$32*(1+'Painel de Controle'!$G$33) -> -30.84679565 | W35: =-'Painel de Controle'!$G$30*'Painel de Controle'!$G$31*'Painel de Controle'!$G$32*(1+'Painel de Controle'!$G$33) -> -30.84679565 | X35: =-'Painel de Controle'!$G$30*'Painel de Controle'!$G$31*'Painel de Controle'!$G$32*(1+'Painel de Controle'!$G$33) -> -30.84679565 | Y35: =-'Painel de Controle'!$G$30*'Painel de Controle'!$G$31*'Painel de Controle'!$G$32*(1+'Painel de Controle'!$G$33) -> -30.84679565 | Z35: =-'Painel de Controle'!$G$30*'Painel de Controle'!$G$31*'Painel de Controle'!$G$32*(1+'Painel de Controle'!$G$33) -> -30.84679565 | AA35: =-'Painel de Controle'!$G$30*'Painel de Controle'!$G$31*'Painel de Controle'!$G$32*(1+'Painel de Controle'!$G$33) -> -30.84679565 | AB35: =-'Painel de Controle'!$G$30*'Painel de Controle'!$G$31*'Painel de Controle'!$G$32*(1+'Painel de Controle'!$G$33) -> -30.84679565 | AC35: =-'Painel de Controle'!$G$30*'Painel de Controle'!$G$31*'Painel de Controle'!$G$32*(1+'Painel de Controle'!$G$33) -> -30.84679565 | AD35: =-'Painel de Controle'!$G$30*'Painel de Controle'!$G$31*'Painel de Controle'!$G$32*(1+'Painel de Controle'!$G$33) -> -30.84679565 | AE35: =-'Painel de Controle'!$G$30*'Painel de Controle'!$G$31*'Painel de Controle'!$G$32*(1+'Painel de Controle'!$G$33) -> -30.84679565 | AF35: =-'Painel de Controle'!$G$30*'Painel de Controle'!$G$31*'Painel de Controle'!$G$32*(1+'Painel de Controle'!$G$33) -> -30.84679565 | AG35: =-'Painel de Controle'!$G$30*'Painel de Controle'!$G$31*'Painel de Controle'!$G$32*(1+'Painel de Controle'!$G$33) -> -30.84679565 | AH35: =-'Painel de Controle'!$G$30*'Painel de Controle'!$G$31*'Painel de Controle'!$G$32*(1+'Painel de Controle'!$G$33) -> -30.84679565 | AI35: =-'Painel de Controle'!$G$30*'Painel de Controle'!$G$31*'Painel de Controle'!$G$32*(1+'Painel de Controle'!$G$33) -> -30.84679565 | AJ35: =-'Painel de Controle'!$G$30*'Painel de Controle'!$G$31*'Painel de Controle'!$G$32*(1+'Painel de Controle'!$G$33) -> -30.84679565 | AK35: =-'Painel de Controle'!$G$30*'Painel de Controle'!$G$31*'Painel de Controle'!$G$32*(1+'Painel de Controle'!$G$33) -> -30.84679565 | AL35: =-'Painel de Controle'!$G$30*'Painel de Controle'!$G$31*'Painel de Controle'!$G$32*(1+'Painel de Controle'!$G$33) -> -30.84679565
B36: Seguro de Engenharia | C36: -274.9610162 | D36: ='Painel de Controle'!$G$35*'FC Acionista'!D62*'Painel de Controle'!$G$36*(1+'Painel de Controle'!$G$37) -> -1.57034433 | E36: ='Painel de Controle'!$G$35*'FC Acionista'!E62*'Painel de Controle'!$G$36*(1+'Painel de Controle'!$G$37) -> -13.10933708 | F36: ='Painel de Controle'!$G$35*'FC Acionista'!F62*'Painel de Controle'!$G$36*(1+'Painel de Controle'!$G$37) -> -9.65277121 | G36: ='Painel de Controle'!$G$35*'FC Acionista'!G62*'Painel de Controle'!$G$36*(1+'Painel de Controle'!$G$37) -> -17.47351645 | H36: ='Painel de Controle'!$G$35*'FC Acionista'!H62*'Painel de Controle'!$G$36*(1+'Painel de Controle'!$G$37) -> -13.6561617 | I36: ='Painel de Controle'!$G$35*'FC Acionista'!I62*'Painel de Controle'!$G$36*(1+'Painel de Controle'!$G$37) -> -14.0434217 | J36: ='Painel de Controle'!$G$35*'FC Acionista'!J62*'Painel de Controle'!$G$36*(1+'Painel de Controle'!$G$37) -> -13.01423258 | K36: ='Painel de Controle'!$G$35*'FC Acionista'!K62*'Painel de Controle'!$G$36*(1+'Painel de Controle'!$G$37) -> -4.868931561 | L36: ='Painel de Controle'!$G$35*'FC Acionista'!L62*'Painel de Controle'!$G$36*(1+'Painel de Controle'!$G$37) -> 0 | M36: ='Painel de Controle'!$G$35*'FC Acionista'!M62*'Painel de Controle'!$G$36*(1+'Painel de Controle'!$G$37) -> 0 | N36: ='Painel de Controle'!$G$35*'FC Acionista'!N62*'Painel de Controle'!$G$36*(1+'Painel de Controle'!$G$37) -> 0 | O36: ='Painel de Controle'!$G$35*'FC Acionista'!O62*'Painel de Controle'!$G$36*(1+'Painel de Controle'!$G$37) -> -4.424995517 | P36: ='Painel de Controle'!$G$35*'FC Acionista'!P62*'Painel de Controle'!$G$36*(1+'Painel de Controle'!$G$37) -> -4.424995517 | Q36: ='Painel de Controle'!$G$35*'FC Acionista'!Q62*'Painel de Controle'!$G$36*(1+'Painel de Controle'!$G$37) -> -4.424995517 | R36: ='Painel de Controle'!$G$35*'FC Acionista'!R62*'Painel de Controle'!$G$36*(1+'Painel de Controle'!$G$37) -> -5.569952507 | S36: ='Painel de Controle'!$G$35*'FC Acionista'!S62*'Painel de Controle'!$G$36*(1+'Painel de Controle'!$G$37) -> -5.569952507 | T36: ='Painel de Controle'!$G$35*'FC Acionista'!T62*'Painel de Controle'!$G$36*(1+'Painel de Controle'!$G$37) -> -9.994948024 | U36: ='Painel de Controle'!$G$35*'FC Acionista'!U62*'Painel de Controle'!$G$36*(1+'Painel de Controle'!$G$37) -> -4.424995517 | V36: ='Painel de Controle'!$G$35*'FC Acionista'!V62*'Painel de Controle'!$G$36*(1+'Painel de Controle'!$G$37) -> -4.424995517 | W36: ='Painel de Controle'!$G$35*'FC Acionista'!W62*'Painel de Controle'!$G$36*(1+'Painel de Controle'!$G$37) -> -14.54397939 | X36: ='Painel de Controle'!$G$35*'FC Acionista'!X62*'Painel de Controle'!$G$36*(1+'Painel de Controle'!$G$37) -> -14.54397939 | Y36: ='Painel de Controle'!$G$35*'FC Acionista'!Y62*'Painel de Controle'!$G$36*(1+'Painel de Controle'!$G$37) -> -18.96897491 | Z36: ='Painel de Controle'!$G$35*'FC Acionista'!Z62*'Painel de Controle'!$G$36*(1+'Painel de Controle'!$G$37) -> -4.424995517 | AA36: ='Painel de Controle'!$G$35*'FC Acionista'!AA62*'Painel de Controle'!$G$36*(1+'Painel de Controle'!$G$37) -> -4.424995517 | AB36: ='Painel de Controle'!$G$35*'FC Acionista'!AB62*'Painel de Controle'!$G$36*(1+'Painel de Controle'!$G$37) -> 0 | AC36: ='Painel de Controle'!$G$35*'FC Acionista'!AC62*'Painel de Controle'!$G$36*(1+'Painel de Controle'!$G$37) -> 0 | AD36: ='Painel de Controle'!$G$35*'FC Acionista'!AD62*'Painel de Controle'!$G$36*(1+'Painel de Controle'!$G$37) -> -4.424995517 | AE36: ='Painel de Controle'!$G$35*'FC Acionista'!AE62*'Painel de Controle'!$G$36*(1+'Painel de Controle'!$G$37) -> -4.424995517 | AF36: ='Painel de Controle'!$G$35*'FC Acionista'!AF62*'Painel de Controle'!$G$36*(1+'Painel de Controle'!$G$37) -> -4.424995517 | AG36: ='Painel de Controle'!$G$35*'FC Acionista'!AG62*'Painel de Controle'!$G$36*(1+'Painel de Controle'!$G$37) -> -20.28519038 | AH36: ='Painel de Controle'!$G$35*'FC Acionista'!AH62*'Painel de Controle'!$G$36*(1+'Painel de Controle'!$G$37) -> -20.28519038 | AI36: ='Painel de Controle'!$G$35*'FC Acionista'!AI62*'Painel de Controle'!$G$36*(1+'Painel de Controle'!$G$37) -> -24.7101859 | AJ36: ='Painel de Controle'!$G$35*'FC Acionista'!AJ62*'Painel de Controle'!$G$36*(1+'Painel de Controle'!$G$37) -> -4.424995517 | AK36: ='Painel de Controle'!$G$35*'FC Acionista'!AK62*'Painel de Controle'!$G$36*(1+'Painel de Controle'!$G$37) -> -4.424995517 | AL36: ='Painel de Controle'!$G$35*'FC Acionista'!AL62*'Painel de Controle'!$G$36*(1+'Painel de Controle'!$G$37) -> 0
B38: EBITDA | C38: =C22+C24 -> 2479472.718 | D38: -1083.700239 | E38: -51898.68289 | F38: -3523.06584 | G38: 26078.5993 | H38: 43305.23102 | I38: -41537.15642 | J38: 73713.9212 | K38: 87181.89425 | L38: 86916.9748 | M38: -129016.3197 | N38: 95008.33054 | O38: 94999.48055 | P38: 95515.20593 | Q38: 95670.51297 | R38: 95668.22306 | S38: 95668.22306 | T38: 95504.06602 | U38: 95670.51297 | V38: 95670.51297 | W38: 95650.275 | X38: 95494.96796 | Y38: 95641.42501 | Z38: 95670.51297 | AA38: 95670.51297 | AB38: 95524.05592 | AC38: 95679.36296 | AD38: 95670.51297 | AE38: 95670.51297 | AF38: 95515.20593 | AG38: 95638.79258 | AH38: 95638.79258 | AI38: 95629.94259 | AJ38: 95515.20593 | AK38: 95670.51297 | AL38: 95679.36296
B39: Margem EBITDA | C39: =C38/C22 -> 0.3135518599 | D39: =IFERROR(D38/D22,0) -> 1.116032368 | E39: 53.44707685 | F39: 3.628176289 | G39: 0.3395377817 | H39: 0.3537579324 | I39: -0.238663371 | J39: 0.3369357216 | K39: 0.3335478319 | L39: 0.3325342808 | M39: -0.4936014994 | N39: 0.3634908709 | O39: 0.3634570118 | P39: 0.3654301174 | Q39: 0.3660243042 | R39: 0.3660155432 | S39: 0.3660155432 | T39: 0.3653874974 | U39: 0.3660243042 | V39: 0.3660243042 | W39: 0.365946876 | X39: 0.3653526893 | Y39: 0.365913017 | Z39: 0.3660243042 | AA39: 0.3660243042 | AB39: 0.3654639764 | AC39: 0.3660581632 | AD39: 0.3660243042 | AE39: 0.3660243042 | AF39: 0.3654301174 | AG39: 0.3659029456 | AH39: 0.3659029456 | AI39: 0.3658690866 | AJ39: 0.3654301174 | AK39: 0.3660243042 | AL39: 0.3660581632
B41: Depreciação | C41: =SUM(D41:AL41) -> -643062.8673 | D41: =-Depreciação!F27/1000 -> -139.2778943 | E41: =-Depreciação!G27/1000 -> -1578.942222 | F41: =-Depreciação!H27/1000 -> -2532.223428 | G41: =-Depreciação!I27/1000 -> -6840.521062 | H41: =-Depreciação!J27/1000 -> -9692.487125 | I41: =-Depreciação!K27/1000 -> -12786.15053 | J41: =-Depreciação!L27/1000 -> -15517.47017 | K41: =-Depreciação!M27/1000 -> -17417.28798 | L41: =-Depreciação!N27/1000 -> -14973.89589 | M41: =-Depreciação!O27/1000 -> -13541.08647 | N41: =-Depreciação!P27/1000 -> -11919.24484 | O41: =-Depreciação!Q27/1000 -> -13261.08136 | P41: =-Depreciação!R27/1000 -> -14670.03801 | Q41: =-Depreciação!S27/1000 -> -17417.28798 | R41: =-Depreciação!T27/1000 -> -18569.98608 | S41: =-Depreciação!U27/1000 -> -19722.68419 | T41: =-Depreciação!V27/1000 -> -20875.38229 | U41: =-Depreciação!W27/1000 -> -20875.38229 | V41: =-Depreciação!X27/1000 -> -19850.17764 | W41: =-Depreciação!Y27/1000 -> -21506.39625 | X41: =-Depreciação!Z27/1000 -> -23083.30024 | Y41: =-Depreciação!AA27/1000 -> -24116.47473 | Z41: =-Depreciação!AB27/1000 -> -23353.77029 | AA41: =-Depreciação!AC27/1000 -> -23262.29307 | AB41: =-Depreciação!AD27/1000 -> -23170.81584 | AC41: =-Depreciação!AE27/1000 -> -23079.33862 | AD41: =-Depreciação!AF27/1000 -> -23066.40445 | AE41: =-Depreciação!AG27/1000 -> -23066.40445 | AF41: =-Depreciação!AH27/1000 -> -23066.40445 | AG41: =-Depreciação!AI27/1000 -> -24589.05897 | AH41: =-Depreciação!AJ27/1000 -> -26111.7135 | AI41: =-Depreciação!AK27/1000 -> -27599.24144 | AJ41: =-Depreciação!AL27/1000 -> -27522.71729 | AK41: =-Depreciação!AM27/1000 -> -27248.63575 | AL41: =-Depreciação!AN27/1000 -> -27039.29046
D42: 0 | E42: =E15 -> 0 | F42: 0 | G42: 0 | H42: 0 | I42: 0 | J42: 0 | K42: 0 | L42: 0 | M42: 0 | N42: 0 | O42: 0 | P42: 0 | Q42: 0 | R42: 0 | S42: 0 | T42: 0 | U42: 0 | V42: 0 | W42: 0 | X42: 0 | Y42: 0 | Z42: 0 | AA42: 0 | AB42: 0 | AC42: 0 | AD42: 0 | AE42: 0 | AF42: 0 | AG42: 0 | AH42: 0 | AI42: 0 | AJ42: 0 | AK42: 0 | AL42: 0
B43: EBIT | C43: =SUM(D43:AL43) -> 1836409.851 | D43: =D38+D41 -> -1222.978133 | E43: =E38+E41 -> -53477.62511 | F43: =F38+F41 -> -6055.289268 | G43: =G38+G41 -> 19238.07824 | H43: =H38+H41 -> 33612.74389 | I43: -54323.30695 | J43: 58196.45103 | K43: 69764.60627 | L43: 71943.07891 | M43: -142557.4062 | N43: 83089.0857 | O43: 81738.39919 | P43: 80845.16791 | Q43: 78253.22499 | R43: 77098.23697 | S43: 75945.53887 | T43: 74628.68373 | U43: 74795.13068 | V43: 75820.33533 | W43: 74143.87875 | X43: 72411.66772 | Y43: 71524.95028 | Z43: 72316.74268 | AA43: 72408.2199 | AB43: 72353.24008 | AC43: 72600.02434 | AD43: 72604.10852 | AE43: 72604.10852 | AF43: 72448.80148 | AG43: 71049.73361 | AH43: 69527.07908 | AI43: 68030.70115 | AJ43: 67992.48864 | AK43: 68421.87722 | AL43: 68640.0725
B44: Margem EBIT | C44: =IFERROR(C43/C22,0) -> 0.2322307158 | D44: 1.259465609 | E44: 55.07312671 | F44: 6.235948445 | G44: 0.2504756614 | H44: 0.2745805646 | I44: -0.3121297816 | J44: 0.2660075994 | K44: 0.266911305 | L44: 0.2752458891 | M44: -0.5454081283 | N44: 0.3178892203 | O44: 0.3127216502 | P44: 0.3093042507 | Q44: 0.2993877772 | R44: 0.2949689268 | S44: 0.2905588374 | T44: 0.2855207021 | U44: 0.2861575089 | V44: 0.2900798231 | W44: 0.2836658944 | X44: 0.2770386556 | Y44: 0.2736461773 | Z44: 0.2766754834 | AA44: 0.2770254646 | AB44: 0.2768151182 | AC44: 0.2777592862 | AD44: 0.2777749118 | AE44: 0.2777749118 | AF44: 0.277180725 | AG44: 0.2718280534 | AH44: 0.2660025535 | AI44: 0.2602775848 | AJ44: 0.2601313881 | AK44: 0.2617741791 | AL44: 0.262608969
B46: Despesas Financeiras | D46: =-Financiamento!E21 -> -198.8396122 | E46: =-Financiamento!F21 -> -4188.982312 | F46: =-Financiamento!G21 -> -5411.232265 | G46: =-Financiamento!H21 -> -7623.757995 | H46: =-Financiamento!I21 -> -9341.227467 | I46: =-Financiamento!J21 -> -15841.32293 | J46: =-Financiamento!K21 -> -17462.55798 | K46: =-Financiamento!L21 -> -17949.07438 | L46: =-Financiamento!M21 -> -17746.62728 | M46: =-Financiamento!N21 -> -27430.59879 | N46: =-Financiamento!O21 -> -26369.48273 | O46: =-Financiamento!P21 -> -25253.36828 | P46: =-Financiamento!Q21 -> -24116.79942 | Q46: =-Financiamento!R21 -> -22354.87781 | R46: =-Financiamento!S21 -> -21298.23286 | S46: =-Financiamento!T21 -> -20241.5879 | T46: =-Financiamento!U21 -> -19745.24324 | U46: =-Financiamento!V21 -> -17983.32163 | V46: =-Financiamento!W21 -> -16162.62696 | W46: =-Financiamento!X21 -> -16124.74212 | X46: =-Financiamento!Y21 -> -15981.39252 | Y46: =-Financiamento!Z21 -> -16410.03967 | Z46: =-Financiamento!AA21 -> -14671.51793 | AA46: =-Financiamento!AB21 -> -12741.80998 | AB46: =-Financiamento!AC21 -> -10679.16733 | AC46: =-Financiamento!AD21 -> -8375.114156 | AD46: =-Financiamento!AE21 -> -6467.914288 | AE46: =-Financiamento!AF21 -> -4674.805174 | AF46: =-Financiamento!AG21 -> -2936.694458 | AG46: =-Financiamento!AH21 -> -1219.038148 | AH46: =-Financiamento!AI21 -> -448.5909128 | AI46: =-Financiamento!AJ21 -> 8.331637537e-12 | AJ46: =-Financiamento!AK21 -> 8.331637537e-12 | AK46: =-Financiamento!AL21 -> 8.331637537e-12 | AL46: =-Financiamento!AM21 -> 8.331637537e-12
B48: EBT | C48: =SUM(D48:AL48) -> 1408959.262 | D48: =D43+D46 -> -1421.817745 | E48: =E43+E46 -> -57666.60742 | F48: -11466.52153 | G48: =G43+G46 -> 11614.32024 | H48: 24271.51642 | I48: -70164.62987 | J48: 40733.89305 | K48: 51815.53189 | L48: 54196.45163 | M48: -169988.005 | N48: 56719.60297 | O48: 56485.03091 | P48: 56728.36849 | Q48: 55898.34718 | R48: 55800.00412 | S48: 55703.95097 | T48: 54883.44049 | U48: 56811.80905 | V48: 59657.70836 | W48: 58019.13664 | X48: 56430.2752 | Y48: 55114.91061 | Z48: 57645.22475 | AA48: 59666.40993 | AB48: 61674.07275 | AC48: 64224.91018 | AD48: 66136.19424 | AE48: 67929.30335 | AF48: 69512.10702 | AG48: 69830.69546 | AH48: 69078.48817 | AI48: 68030.70115 | AJ48: 67992.48864 | AK48: 68421.87722 | AL48: 68640.0725
B49: Margem EBT | C49: =IFERROR(C48/C22,0) -> 0.178175704 | D49: 1.464237589 | E49: 59.38708705 | F49: 11.80862449 | G49: 0.1512159639 | H49: 0.1982726166 | I49: -0.4031505412 | J49: 0.1861887609 | K49: 0.1982402249 | L49: 0.2073493481 | M49: -0.6503544228 | N49: 0.2170026329 | O49: 0.2161051874 | P49: 0.2170361688 | Q49: 0.2138606034 | R49: 0.2134843542 | S49: 0.213116866 | T49: 0.2099776879 | U49: 0.2173554027 | V49: 0.2282434839 | W49: 0.2219744983 | X49: 0.2158956984 | Y49: 0.2108632658 | Z49: 0.2205439547 | AA49: 0.2282767751 | AB49: 0.2359578606 | AC49: 0.2457170692 | AD49: 0.2530294207 | AE49: 0.2598896485 | AF49: 0.2659452721 | AG49: 0.2671641546 | AH49: 0.2642862966 | AI49: 0.2602775848 | AJ49: 0.2601313881 | AK49: 0.2617741791 | AL49: 0.262608969
B51: Tributos Sobre o Lucro | C51: =SUM(D51:AL51) -> -454445.7367 | D51: =D52+D53 -> 0 | E51: =E52+E53 -> 0 | F51: 0 | G51: -1233.828686 | H51: -2584.984378 | I51: 0 | J51: -4342.343083 | K51: -5525.308029 | L51: -5779.471212 | M51: 0 | N51: -13475.26551 | O51: -13419.43736 | P51: -13477.3517 | Q51: -13279.80663 | R51: -13256.40098 | S51: -13233.54033 | T51: -13038.25884 | U51: -13497.21055 | V51: -14174.53459 | W51: -13784.55452 | X51: -13406.4055 | Y51: -13093.34873 | Z51: -13695.56349 | AA51: -14176.60556 | AB51: -15080.59216 | AC51: -21812.46946 | AD51: -22462.30604 | AE51: -23071.96314 | AF51: -23610.11639 | AG51: -23718.43646 | AH51: -23462.68598 | AI51: -23106.43839 | AJ51: -23093.44614 | AK51: -23239.43825 | AL51: -23313.62465
B52: IRPJ | C52: =SUM(E52:AL52) -> -327639.4031 | D52: =-Tributação!D34 -> 0 | E52: =-Tributação!E34 -> 0 | F52: =-Tributação!F34 -> 0 | G52: =-Tributação!G34 -> -502.1265106 | H52: =-Tributação!H34 -> -1055.878844 | I52: =-Tributação!I34 -> 0 | J52: =-Tributação!J34 -> -1776.107821 | K52: =-Tributação!K34 -> -2260.92952 | L52: =-Tributação!L34 -> -2365.094759 | M52: =-Tributação!M34 -> 0 | N52: =-Tributação!N34 -> -9901.930519 | O52: =-Tributação!O34 -> -9860.880409 | P52: =-Tributação!P34 -> -9903.464486 | Q52: =-Tributação!Q34 -> -9758.210756 | R52: =-Tributação!R34 -> -9741.00072 | S52: =-Tributação!S34 -> -9724.19142 | T52: =-Tributação!T34 -> -9580.602086 | U52: =-Tributação!U34 -> -9918.066584 | V52: =-Tributação!V34 -> -10416.09896 | W52: =-Tributação!W34 -> -10129.34891 | X52: =-Tributação!X34 -> -9851.298159 | Y52: =-Tributação!Y34 -> -9621.109357 | Z52: =-Tributação!Z34 -> -10063.91433 | AA52: =-Tributação!AA34 -> -10417.62174 | AB52: =-Tributação!AB34 -> -11082.31776 | AC52: =-Tributação!AC34 -> -16032.22755 | AD52: =-Tributação!AD34 -> -16510.04856 | AE52: =-Tributação!AE34 -> -16958.32584 | AF52: =-Tributação!AF34 -> -17354.02676 | AG52: =-Tributação!AG34 -> -17433.67386 | AH52: =-Tributação!AH34 -> -17245.62204 | AI52: =-Tributação!AI34 -> -16983.67529 | AJ52: =-Tributação!AJ34 -> -16974.12216 | AK52: =-Tributação!AK34 -> -17081.4693 | AL52: =-Tributação!AL34 -> -17136.01813
B53: CSLL | C53: =SUM(E53:AL53) -> -126806.3336 | D53: =-Tributação!D33 -> 0 | E53: =-Tributação!E33 -> 0 | F53: =-Tributação!F33 -> 0 | G53: =-Tributação!G33 -> -731.7021752 | H53: =-Tributação!H33 -> -1529.105535 | I53: =-Tributação!I33 -> 0 | J53: =-Tributação!J33 -> -2566.235262 | K53: =-Tributação!K33 -> -3264.378509 | L53: =-Tributação!L33 -> -3414.376453 | M53: =-Tributação!M33 -> 0 | N53: =-Tributação!N33 -> -3573.334987 | O53: =-Tributação!O33 -> -3558.556947 | P53: =-Tributação!P33 -> -3573.887215 | Q53: =-Tributação!Q33 -> -3521.595872 | R53: =-Tributação!R33 -> -3515.400259 | S53: =-Tributação!S33 -> -3509.348911 | T53: =-Tributação!T33 -> -3457.656751 | U53: =-Tributação!U33 -> -3579.14397 | V53: =-Tributação!V33 -> -3758.435627 | W53: =-Tributação!W33 -> -3655.205608 | X53: =-Tributação!X33 -> -3555.107337 | Y53: =-Tributação!Y33 -> -3472.239368 | Z53: =-Tributação!Z33 -> -3631.649159 | AA53: =-Tributação!AA33 -> -3758.983825 | AB53: =-Tributação!AB33 -> -3998.274395 | AC53: =-Tributação!AC33 -> -5780.241917 | AD53: =-Tributação!AD33 -> -5952.257481 | AE53: =-Tributação!AE33 -> -6113.637301 | AF53: =-Tributação!AF33 -> -6256.089632 | AG53: =-Tributação!AG33 -> -6284.762591 | AH53: =-Tributação!AH33 -> -6217.063935 | AI53: =-Tributação!AI33 -> -6122.763103 | AJ53: =-Tributação!AJ33 -> -6119.323978 | AK53: =-Tributação!AK33 -> -6157.96895 | AL53: =-Tributação!AL33 -> -6177.606525
B55: LLE | C55: =SUM(D55:AL55) -> 1381964.114 | D55: =D43+D51 -> -1222.978133 | E55: -53477.62511 | F55: -6055.289268 | G55: 18004.24955 | H55: 31027.75951 | I55: -54323.30695 | J55: 53854.10794 | K55: 64239.29824 | L55: 66163.6077 | M55: -142557.4062 | N55: 69613.8202 | O55: 68318.96183 | P55: 67367.81621 | Q55: 64973.41836 | R55: 63841.83599 | S55: 62711.99854 | T55: 61590.4249 | U55: 61297.92013 | V55: 61645.80074 | W55: 60359.32423 | X55: 59005.26222 | Y55: 58431.60156 | Z55: 58621.17919 | AA55: 58231.61434 | AB55: 57272.64792 | AC55: 50787.55488 | AD55: 50141.80248 | AE55: 49532.14538 | AF55: 48838.68509 | AG55: 47331.29715 | AH55: 46064.3931 | AI55: 44924.26276 | AJ55: 44899.0425 | AK55: 45182.43896 | AL55: 45326.44785
B57: Fluxo de Caixa do Acionista | C57: TOTAL | D57: 1 | E57: =D57+1 -> 2 | F57: =E57+1 -> 3 | G57: =F57+1 -> 4 | H57: =G57+1 -> 5 | I57: =H57+1 -> 6 | J57: =I57+1 -> 7 | K57: =J57+1 -> 8 | L57: =K57+1 -> 9 | M57: =L57+1 -> 10 | N57: =M57+1 -> 11 | O57: =N57+1 -> 12 | P57: =O57+1 -> 13 | Q57: =P57+1 -> 14 | R57: =Q57+1 -> 15 | S57: =R57+1 -> 16 | T57: =S57+1 -> 17 | U57: =T57+1 -> 18 | V57: =U57+1 -> 19 | W57: =V57+1 -> 20 | X57: =W57+1 -> 21 | Y57: =X57+1 -> 22 | Z57: =Y57+1 -> 23 | AA57: =Z57+1 -> 24 | AB57: =AA57+1 -> 25 | AC57: =AB57+1 -> 26 | AD57: =AC57+1 -> 27 | AE57: =AD57+1 -> 28 | AF57: =AE57+1 -> 29 | AG57: =AF57+1 -> 30 | AH57: =AG57+1 -> 31 | AI57: =AH57+1 -> 32 | AJ57: =AI57+1 -> 33 | AK57: =AJ57+1 -> 34 | AL57: =AK57+1 -> 35
B58: (+) EBITDA | C58: =SUM(D58:AL58) -> 2479472.718 | D58: =D38 -> -1083.700239 | E58: =E38 -> -51898.68289 | F58: -3523.06584 | G58: 26078.5993 | H58: 43305.23102 | I58: -41537.15642 | J58: 73713.9212 | K58: 87181.89425 | L58: 86916.9748 | M58: -129016.3197 | N58: 95008.33054 | O58: 94999.48055 | P58: 95515.20593 | Q58: 95670.51297 | R58: 95668.22306 | S58: 95668.22306 | T58: 95504.06602 | U58: 95670.51297 | V58: 95670.51297 | W58: 95650.275 | X58: 95494.96796 | Y58: 95641.42501 | Z58: 95670.51297 | AA58: 95670.51297 | AB58: 95524.05592 | AC58: 95679.36296 | AD58: 95670.51297 | AE58: 95670.51297 | AF58: 95515.20593 | AG58: 95638.79258 | AH58: 95638.79258 | AI58: 95629.94259 | AJ58: 95515.20593 | AK58: 95670.51297 | AL58: 95679.36296
B59: (-) Tributos Sobre o Lucro | C59: =SUM(D59:AL59) -> -454445.7367 | D59: =D51 -> 0 | E59: =E51 -> 0 | F59: 0 | G59: -1233.828686 | H59: -2584.984378 | I59: 0 | J59: -4342.343083 | K59: -5525.308029 | L59: -5779.471212 | M59: 0 | N59: -13475.26551 | O59: -13419.43736 | P59: -13477.3517 | Q59: -13279.80663 | R59: -13256.40098 | S59: -13233.54033 | T59: -13038.25884 | U59: -13497.21055 | V59: -14174.53459 | W59: -13784.55452 | X59: -13406.4055 | Y59: -13093.34873 | Z59: -13695.56349 | AA59: -14176.60556 | AB59: -15080.59216 | AC59: -21812.46946 | AD59: -22462.30604 | AE59: -23071.96314 | AF59: -23610.11639 | AG59: -23718.43646 | AH59: -23462.68598 | AI59: -23106.43839 | AJ59: -23093.44614 | AK59: -23239.43825 | AL59: -23313.62465
B60: (+/-) Variação da NCG | C60: =SUM(D60:AL60) -> -91744.92797 | D60: =-D14/365*'Painel de Controle'!$J$8 -> 0 | E60: =-('Painel de Controle'!$J$8/365*'FC Acionista'!E14-'FC Acionista'!D60) -> 0 | F60: =-('Painel de Controle'!$J$8/365*'FC Acionista'!F14-'FC Acionista'!E60) -> 0 | G60: =-(G14-F14)*'Painel de Controle'!$J$8/365 -> -27199.17908 | H60: =-(H14-G14)*'Painel de Controle'!$J$8/365 -> -15949.64643 | I60: =-(I14-H14)*'Painel de Controle'!$J$8/365 -> -18053.90189 | J60: =-(J14-I14)*'Painel de Controle'!$J$8/365 -> -15644.68187 | K60: =-(K14-J14)*'Painel de Controle'!$J$8/365 -> -14897.5187 | L60: =-(L14-K14)*'Painel de Controle'!$J$8/365 -> 0 | M60: =-(M14-L14)*'Painel de Controle'!$J$8/365 -> 0 | N60: =-(N14-M14)*'Painel de Controle'!$J$8/365 -> 0 | O60: =-(O14-N14)*'Painel de Controle'!$J$8/365 -> 0 | P60: =-(P14-O14)*'Painel de Controle'!$J$8/365 -> 0 | Q60: =-(Q14-P14)*'Painel de Controle'!$J$8/365 -> 0 | R60: =-(R14-Q14)*'Painel de Controle'!$J$8/365 -> 0 | S60: =-(S14-R14)*'Painel de Controle'!$J$8/365 -> 0 | T60: =-(T14-S14)*'Painel de Controle'!$J$8/365 -> 0 | U60: =-(U14-T14)*'Painel de Controle'!$J$8/365 -> 0 | V60: =-(V14-U14)*'Painel de Controle'!$J$8/365 -> 0 | W60: =-(W14-V14)*'Painel de Controle'!$J$8/365 -> 0 | X60: =-(X14-W14)*'Painel de Controle'!$J$8/365 -> 0 | Y60: =-(Y14-X14)*'Painel de Controle'!$J$8/365 -> 0 | Z60: =-(Z14-Y14)*'Painel de Controle'!$J$8/365 -> 0 | AA60: =-(AA14-Z14)*'Painel de Controle'!$J$8/365 -> 0 | AB60: =-(AB14-AA14)*'Painel de Controle'!$J$8/365 -> 0 | AC60: =-(AC14-AB14)*'Painel de Controle'!$J$8/365 -> 0 | AD60: =-(AD14-AC14)*'Painel de Controle'!$J$8/365 -> 0 | AE60: =-(AE14-AD14)*'Painel de Controle'!$J$8/365 -> 0 | AF60: =-(AF14-AE14)*'Painel de Controle'!$J$8/365 -> 0 | AG60: =-(AG14-AF14)*'Painel de Controle'!$J$8/365 -> 0 | AH60: =-(AH14-AG14)*'Painel de Controle'!$J$8/365 -> 0 | AI60: =-(AI14-AH14)*'Painel de Controle'!$J$8/365 -> 0 | AJ60: =-(AJ14-AI14)*'Painel de Controle'!$J$8/365 -> 0 | AK60: =-(AK14-AJ14)*'Painel de Controle'!$J$8/365 -> 0 | AL60: =-(AL14-AK14)*'Painel de Controle'!$J$8/365 -> 0
B61: (=) Fluxo de Caixa Operacional | C61: =SUM(D61:AL61) -> 1933282.053 | D61: =SUM(D58:D60) -> -1083.700239 | E61: =SUM(E58:E60) -> -51898.68289 | F61: -3523.06584 | G61: -2354.408467 | H61: 24770.60021 | I61: -59591.0583 | J61: 53726.89624 | K61: 66759.06752 | L61: 81137.50359 | M61: -129016.3197 | N61: 81533.06503 | O61: 81580.04319 | P61: 82037.85423 | Q61: 82390.70634 | R61: 82411.82208 | S61: 82434.68273 | T61: 82465.80719 | U61: 82173.30242 | V61: 81495.97838 | W61: 81865.72048 | X61: 82088.56246 | Y61: 82548.07629 | Z61: 81974.94948 | AA61: 81493.90741 | AB61: 80443.46376 | AC61: 73866.8935 | AD61: 73208.20693 | AE61: 72598.54983 | AF61: 71905.08954 | AG61: 71920.35613 | AH61: 72176.1066 | AI61: 72523.5042 | AJ61: 72421.75979 | AK61: 72431.07472 | AL61: 72365.73831
B62: (-) Fluxo de Caixa de Investimento | C62: -853545.0928 | D62: =(-CAPEX!F69/1000)*(1+Sensibilidade!$D4) -> -4874.7263 | E62: =(-CAPEX!G69/1000)*(1+Sensibilidade!$D4) -> -40694.53368 | F62: =(-CAPEX!H69/1000)*(1+Sensibilidade!$D4) -> -29964.52229 | G62: =(-CAPEX!I69/1000)*(1+Sensibilidade!$D4) -> -54241.99557 | H62: =(-CAPEX!J69/1000)*(1+Sensibilidade!$D4) -> -42392.00876 | I62: =(-CAPEX!K69/1000)*(1+Sensibilidade!$D4) -> -43594.15687 | J62: =(-CAPEX!L69/1000)*(1+Sensibilidade!$D4) -> -40399.30644 | K62: =(-CAPEX!M69/1000)*(1+Sensibilidade!$D4) -> -15114.33402 | L62: =(-CAPEX!N69/1000)*(1+Sensibilidade!$D4) -> 0 | M62: =(-CAPEX!O69/1000)*(1+Sensibilidade!$D4) -> 0 | N62: =(-CAPEX!P69/1000)*(1+Sensibilidade!$D4) -> 0 | O62: =(-CAPEX!Q69/1000)*(1+Sensibilidade!$D4) -> -13736.24982 | P62: =(-CAPEX!R69/1000)*(1+Sensibilidade!$D4) -> -13736.24982 | Q62: =(-CAPEX!S69/1000)*(1+Sensibilidade!$D4) -> -13736.24982 | R62: =(-CAPEX!T69/1000)*(1+Sensibilidade!$D4) -> -17290.47156 | S62: =(-CAPEX!U69/1000)*(1+Sensibilidade!$D4) -> -17290.47156 | T62: =(-CAPEX!V69/1000)*(1+Sensibilidade!$D4) -> -31026.72138 | U62: =(-CAPEX!W69/1000)*(1+Sensibilidade!$D4) -> -13736.24982 | V62: =(-CAPEX!X69/1000)*(1+Sensibilidade!$D4) -> -13736.24982 | W62: =(-CAPEX!Y69/1000)*(1+Sensibilidade!$D4) -> -45148.00829 | X62: =(-CAPEX!Z69/1000)*(1+Sensibilidade!$D4) -> -45148.00829 | Y62: =(-CAPEX!AA69/1000)*(1+Sensibilidade!$D4) -> -58884.25811 | Z62: =(-CAPEX!AB69/1000)*(1+Sensibilidade!$D4) -> -13736.24982 | AA62: =(-CAPEX!AC69/1000)*(1+Sensibilidade!$D4) -> -13736.24982 | AB62: =(-CAPEX!AD69/1000)*(1+Sensibilidade!$D4) -> 0 | AC62: =(-CAPEX!AE69/1000)*(1+Sensibilidade!$D4) -> 0 | AD62: =(-CAPEX!AF69/1000)*(1+Sensibilidade!$D4) -> -13736.24982 | AE62: =(-CAPEX!AG69/1000)*(1+Sensibilidade!$D4) -> -13736.24982 | AF62: =(-CAPEX!AH69/1000)*(1+Sensibilidade!$D4) -> -13736.24982 | AG62: =(-CAPEX!AI69/1000)*(1+Sensibilidade!$D4) -> -62970.10735 | AH62: =(-CAPEX!AJ69/1000)*(1+Sensibilidade!$D4) -> -62970.10735 | AI62: =(-CAPEX!AK69/1000)*(1+Sensibilidade!$D4) -> -76706.35716 | AJ62: =(-CAPEX!AL69/1000)*(1+Sensibilidade!$D4) -> -13736.24982 | AK62: =(-CAPEX!AM69/1000)*(1+Sensibilidade!$D4) -> -13736.24982 | AL62: =(-CAPEX!AN69/1000)*(1+Sensibilidade!$D4) -> 0
B63: (+/-) Fluxo de Caixa de Financiamento | C63: =SUM(D63:AL63) -> -427450.5885 | D63: =SUM(D64:D66) -> 2725.996168 | E63: =SUM(E64:E66) -> 54504.11211 | F63: 12567.48111 | G63: 24749.39018 | H63: 12469.39366 | I63: 78714.4071 | J63: =SUM(J64:J66) -> 4470.61236 | K63: -12288.83894 | L63: -26562.05012 | M63: 113337.7789 | N63: -42786.99355 | O63: -41971.75364 | P63: -50033.82527 | Q63: -48271.90366 | R63: -36840.97577 | S63: -35784.33082 | T63: -27046.23626 | U63: -44764.87106 | V63: -43808.69997 | W63: -18233.34621 | X63: -17917.94746 | Y63: -6652.309748 | Z63: -43056.60078 | AA63: -43082.29874 | AB63: -44570.68967 | AC63: -36429.11382 | AD63: -32843.69341 | AE63: -30241.58412 | AF63: -28202.59886 | AG63: -12551.9492 | AH63: -7047.149106 | AI63: 8.331637537e-12 | AJ63: 8.331637537e-12 | AK63: 8.331637537e-12 | AL63: 8.331637537e-12
B64: (+) Liberações | C64: =SUM(D64:AL64) -> 569462.2029 | D64: =Financiamento!E20 -> 2924.83578 | E64: =Financiamento!F20 -> 58693.09442 | F64: =Financiamento!G20 -> 17978.71337 | G64: =Financiamento!H20 -> 32545.19734 | H64: =Financiamento!I20 -> 25435.20526 | I64: =Financiamento!J20 -> 99237.88553 | J64: =Financiamento!K20 -> 28529.74922 | K64: =Financiamento!L20 -> 13753.00286 | L64: =Financiamento!M20 -> 5114.867262 | M64: =Financiamento!N20 -> 156376.8884 | N64: =Financiamento!O20 -> 0 | O64: =Financiamento!P20 -> 0 | P64: =Financiamento!Q20 -> 0 | Q64: =Financiamento!R20 -> 0 | R64: =Financiamento!S20 -> 10374.28293 | S64: =Financiamento!T20 -> 10374.28293 | T64: =Financiamento!U20 -> 18616.03283 | U64: =Financiamento!V20 -> 0 | V64: =Financiamento!W20 -> 0 | W64: =Financiamento!X20 -> 27088.80498 | X64: =Financiamento!Y20 -> 27088.80498 | Y64: =Financiamento!Z20 -> 35330.55487 | Z64: =Financiamento!AA20 -> 0 | AA64: =Financiamento!AB20 -> 0 | AB64: =Financiamento!AC20 -> 0 | AC64: =Financiamento!AD20 -> 0 | AD64: =Financiamento!AE20 -> 0 | AE64: =Financiamento!AF20 -> 0 | AF64: =Financiamento!AG20 -> 0 | AG64: =Financiamento!AH20 -> 0 | AH64: =Financiamento!AI20 -> 0 | AI64: =Financiamento!AJ20 -> 0 | AJ64: =Financiamento!AK20 -> 0 | AK64: =Financiamento!AL20 -> 0 | AL64: =Financiamento!AM20 -> 0
B65: (-) Juros Pagos | C65: -427450.5885 | D65: =Financiamento!E22 -> -198.8396122 | E65: =Financiamento!F22 -> -4188.982312 | F65: =Financiamento!G22 -> -5411.232265 | G65: =Financiamento!H22 -> -7623.757995 | H65: =Financiamento!I22 -> -9341.227467 | I65: =Financiamento!J22 -> -15841.32293 | J65: =Financiamento!K22 -> -17462.55798 | K65: =Financiamento!L22 -> -17949.07438 | L65: =Financiamento!M22 -> -17746.62728 | M65: =Financiamento!N22 -> -27430.59879 | N65: =Financiamento!O22 -> -26369.48273 | O65: =Financiamento!P22 -> -25253.36828 | P65: =Financiamento!Q22 -> -24116.79942 | Q65: =Financiamento!R22 -> -22354.87781 | R65: =Financiamento!S22 -> -21298.23286 | S65: =Financiamento!T22 -> -20241.5879 | T65: =Financiamento!U22 -> -19745.24324 | U65: =Financiamento!V22 -> -17983.32163 | V65: =Financiamento!W22 -> -16162.62696 | W65: =Financiamento!X22 -> -16124.74212 | X65: =Financiamento!Y22 -> -15981.39252 | Y65: =Financiamento!Z22 -> -16410.03967 | Z65: =Financiamento!AA22 -> -14671.51793 | AA65: =Financiamento!AB22 -> -12741.80998 | AB65: =Financiamento!AC22 -> -10679.16733 | AC65: =Financiamento!AD22 -> -8375.114156 | AD65: =Financiamento!AE22 -> -6467.914288 | AE65: =Financiamento!AF22 -> -4674.805174 | AF65: =Financiamento!AG22 -> -2936.694458 | AG65: =Financiamento!AH22 -> -1219.038148 | AH65: =Financiamento!AI22 -> -448.5909128 | AI65: =Financiamento!AJ22 -> 8.331637537e-12 | AJ65: =Financiamento!AK22 -> 8.331637537e-12 | AK65: =Financiamento!AL22 -> 8.331637537e-12 | AL65: =Financiamento!AM22 -> 8.331637537e-12
B66: (-) Amortizações | C66: -569462.2029 | D66: =Financiamento!E23 -> 0 | E66: =Financiamento!F23 -> 0 | F66: =Financiamento!G23 -> 0 | G66: =Financiamento!H23 -> -172.0491635 | H66: =Financiamento!I23 -> -3624.584129 | I66: =Financiamento!J23 -> -4682.155504 | J66: =Financiamento!K23 -> -6596.578877 | K66: =Financiamento!L23 -> -8092.767422 | L66: =Financiamento!M23 -> -13930.2901 | M66: =Financiamento!N23 -> -15608.51064 | N66: =Financiamento!O23 -> -16417.51081 | O66: =Financiamento!P23 -> -16718.38536 | P66: =Financiamento!Q23 -> -25917.02585 | Q66: =Financiamento!R23 -> -25917.02585 | R66: =Financiamento!S23 -> -25917.02585 | S66: =Financiamento!T23 -> -25917.02585 | T66: =Financiamento!U23 -> -25917.02585 | U66: =Financiamento!V23 -> -26781.54943 | V66: =Financiamento!W23 -> -27646.073 | W66: =Financiamento!X23 -> -29197.40907 | X66: =Financiamento!Y23 -> -29025.35991 | Y66: =Financiamento!Z23 -> -25572.82494 | Z66: =Financiamento!AA23 -> -28385.08285 | AA66: =Financiamento!AB23 -> -30340.48876 | AB66: =Financiamento!AC23 -> -33891.52234 | AC66: =Financiamento!AD23 -> -28053.99966 | AD66: =Financiamento!AE23 -> -26375.77912 | AE66: =Financiamento!AF23 -> -25566.77895 | AF66: =Financiamento!AG23 -> -25265.90441 | AG66: =Financiamento!AH23 -> -11332.91105 | AH66: =Financiamento!AI23 -> -6598.558193 | AI66: =Financiamento!AJ23 -> 0 | AJ66: =Financiamento!AK23 -> 0 | AK66: =Financiamento!AL23 -> 0 | AL66: =Financiamento!AM23 -> 0
B67: (=) Fluxo de Caixa do Acionista | C67: =SUM(D67:AL67) -> 652286.3718 | D67: =D61+D62+D63 -> -3232.430371 | E67: =E61+E62+E63 -> -38089.10445 | F67: -20920.10702 | G67: -31847.01385 | H67: -5152.014895 | I67: -24470.80808 | J67: 17798.20217 | K67: 39355.89456 | L67: 54575.45347 | M67: -15678.5408 | N67: 38746.07149 | O67: 25872.03974 | P67: 18267.77914 | Q67: 20382.55286 | R67: 28280.37475 | S67: 29359.88035 | T67: 24392.84955 | U67: 23672.18154 | V67: 23951.02859 | W67: 18484.36598 | X67: 19022.60671 | Y67: 17011.50843 | Z67: 25182.09888 | AA67: 24675.35885 | AB67: 35872.77409 | AC67: 37437.77968 | AD67: 26628.26371 | AE67: 28620.71589 | AF67: 29966.24086 | AG67: -3601.700421 | AH67: 2158.850153 | AI67: -4182.852965 | AJ67: 58685.50997 | AK67: 58694.8249 | AL67: 72365.73831 | AM67: =('FC Projeto'!AM56+'FC Projeto'!AM57)/WACC!D22 -> 483246.1617
B68: Fluxo de Caixa do Projeto Acumulado | D68: =D67 -> -3232.430371 | E68: =D68+E67 -> -41321.53483 | F68: =E68+F67 -> -62241.64185 | G68: -94088.6557 | H68: -99240.6706 | I68: -123711.4787 | J68: -105913.2765 | K68: -66557.38195 | L68: -11981.92847 | M68: -27660.46927 | N68: 11085.60222 | O68: 36957.64196 | P68: 55225.42109 | Q68: 75607.97396 | R68: 103888.3487 | S68: 133248.2291 | T68: 157641.0786 | U68: 181313.2601 | V68: 205264.2887 | W68: 223748.6547 | X68: 242771.2614 | Y68: 259782.7699 | Z68: 284964.8687 | AA68: 309640.2276 | AB68: 345513.0017 | AC68: 382950.7814 | AD68: 409579.0451 | AE68: 438199.761 | AF68: 468166.0018 | AG68: 464564.3014 | AH68: 466723.1516 | AI68: 462540.2986 | AJ68: 521225.8086 | AK68: 579920.6335 | AL68: 652286.3718
E69: =IF(AND(E68>0,D68<0),E57,"") ->  | F69: =IF(AND(F68>0,E68<0),F57,"") ->  | N69: 11
B70: VPL 35 anos | C70: =D67+NPV(WACC!D18,'FC Acionista'!E67:AL67) -> 14393.1814
B71: VPL Perpetuidade | C71: =AM67/((1+WACC!$D$18)^35) -> 7187.990292
B72: VPL Total | C72: =C70+C71 -> 21581.1717
B73: TIR | C73: =IRR(D67:AM67) -> 0.1489637557
B74: Payback | C74: =SUM(D69:AL69) -> 11
B78: Receita Financeira VPL | C78: =SUM(D78:AL78) -> 301985.3159 | D78: =D64/((1+WACC!$D$22)^(D12-1)) -> 2924.83578 | E78: =E64/((1+WACC!$D$22)^(E12-1)) -> 53753.51133 | F78: =F64/((1+WACC!$D$22)^(F12-1)) -> 15079.89343 | G78: =G64/((1+WACC!$D$22)^(G12-1)) -> 25000.36819 | H78: =H64/((1+WACC!$D$22)^(H12-1)) -> 17894.29423 | I78: =I64/((1+WACC!$D$22)^(I12-1)) -> 63940.59324 | J78: =J64/((1+WACC!$D$22)^(J12-1)) -> 16835.14825 | K78: =K64/((1+WACC!$D$22)^(K12-1)) -> 7432.524615 | L78: =L64/((1+WACC!$D$22)^(L12-1)) -> 2531.587964 | M78: =M64/((1+WACC!$D$22)^(M12-1)) -> 70884.463 | N78: =N64/((1+WACC!$D$22)^(N12-1)) -> 0 | O78: =O64/((1+WACC!$D$22)^(O12-1)) -> 0 | P78: =P64/((1+WACC!$D$22)^(P12-1)) -> 0 | Q78: =Q64/((1+WACC!$D$22)^(Q12-1)) -> 0 | R78: =R64/((1+WACC!$D$22)^(R12-1)) -> 3029.951897 | S78: =S64/((1+WACC!$D$22)^(S12-1)) -> 2774.952577 | T78: =T64/((1+WACC!$D$22)^(T12-1)) -> 4560.415839 | U78: =U64/((1+WACC!$D$22)^(U12-1)) -> 0 | V78: =V64/((1+WACC!$D$22)^(V12-1)) -> 0 | W78: =W64/((1+WACC!$D$22)^(W12-1)) -> 5097.610531 | X78: =X64/((1+WACC!$D$22)^(X12-1)) -> 4668.598037 | Y78: =Y64/((1+WACC!$D$22)^(Y12-1)) -> 5576.567027 | Z78: =Z64/((1+WACC!$D$22)^(Z12-1)) -> 0 | AA78: =AA64/((1+WACC!$D$22)^(AA12-1)) -> 0 | AB78: =AB64/((1+WACC!$D$22)^(AB12-1)) -> 0 | AC78: =AC64/((1+WACC!$D$22)^(AC12-1)) -> 0 | AD78: =AD64/((1+WACC!$D$22)^(AD12-1)) -> 0 | AE78: =AE64/((1+WACC!$D$22)^(AE12-1)) -> 0 | AF78: =AF64/((1+WACC!$D$22)^(AF12-1)) -> 0 | AG78: =AG64/((1+WACC!$D$22)^(AG12-1)) -> 0 | AH78: =AH64/((1+WACC!$D$22)^(AH12-1)) -> 0 | AI78: =AI64/((1+WACC!$D$22)^(AI12-1)) -> 0 | AJ78: =AJ64/((1+WACC!$D$22)^(AJ12-1)) -> 0 | AK78: =AK64/((1+WACC!$D$22)^(AK12-1)) -> 0 | AL78: =AL64/((1+WACC!$D$22)^(AL12-1)) -> 0
B79: Despesa Financeira VPL | C79: =SUM(D79:AL79) -> -277607.1552 | D79: =(D65+D66)/((1+WACC!$D$22)^(D12-1)) -> -198.8396122 | E79: =(E65+E66)/((1+WACC!$D$22)^(E12-1)) -> -3836.43954 | F79: =(F65+F66)/((1+WACC!$D$22)^(F12-1)) -> -4538.745581 | G79: =(G65+G66)/((1+WACC!$D$22)^(G12-1)) -> -5988.534876 | H79: =(H65+H66)/((1+WACC!$D$22)^(H12-1)) -> -9121.768245 | I79: =(I65+I66)/((1+WACC!$D$22)^(I12-1)) -> -13223.61293 | J79: =(J65+J66)/((1+WACC!$D$22)^(J12-1)) -> -14197.08013 | K79: =(K65+K66)/((1+WACC!$D$22)^(K12-1)) -> -14073.77226 | L79: =(L65+L66)/((1+WACC!$D$22)^(L12-1)) -> -15678.39373 | M79: =(M65+M66)/((1+WACC!$D$22)^(M12-1)) -> -19509.3034 | N79: =(N65+N66)/((1+WACC!$D$22)^(N12-1)) -> -17762.74536 | O79: =(O65+O66)/((1+WACC!$D$22)^(O12-1)) -> -15957.88258 | P79: =(P65+P66)/((1+WACC!$D$22)^(P12-1)) -> -17422.14763 | Q79: =(Q65+Q66)/((1+WACC!$D$22)^(Q12-1)) -> -15394.02686 | R79: =(R65+R66)/((1+WACC!$D$22)^(R12-1)) -> -13789.86515 | S79: =(S65+S66)/((1+WACC!$D$22)^(S12-1)) -> -12346.68121 | T79: =(T65+T66)/((1+WACC!$D$22)^(T12-1)) -> -11185.99957 | U79: =(U65+U66)/((1+WACC!$D$22)^(U12-1)) -> -10043.25475 | V79: =(V65+V66)/((1+WACC!$D$22)^(V12-1)) -> -9001.550837 | W79: =(W65+W66)/((1+WACC!$D$22)^(W12-1)) -> -8528.788013 | X79: =(X65+X66)/((1+WACC!$D$22)^(X12-1)) -> -7756.652103 | Y79: =(Y65+Y66)/((1+WACC!$D$22)^(Y12-1)) -> -6626.566138 | Z79: =(Z65+Z66)/((1+WACC!$D$22)^(Z12-1)) -> -6224.092532 | AA79: =(AA65+AA66)/((1+WACC!$D$22)^(AA12-1)) -> -5703.678005 | AB79: =(AB65+AB66)/((1+WACC!$D$22)^(AB12-1)) -> -5404.124157 | AC79: =(AC65+AC66)/((1+WACC!$D$22)^(AC12-1)) -> -4045.241019 | AD79: =(AD65+AD66)/((1+WACC!$D$22)^(AD12-1)) -> -3340.162662 | AE79: =(AE65+AE66)/((1+WACC!$D$22)^(AE12-1)) -> -2816.696124 | AF79: =(AF65+AF66)/((1+WACC!$D$22)^(AF12-1)) -> -2405.71636 | AG79: =(AG65+AG66)/((1+WACC!$D$22)^(AG12-1)) -> -980.5873718 | AH79: =(AH65+AH66)/((1+WACC!$D$22)^(AH12-1)) -> -504.2064713 | AI79: =(AI65+AI66)/((1+WACC!$D$22)^(AI12-1)) -> 5.459403008e-13 | AJ79: =(AJ65+AJ66)/((1+WACC!$D$22)^(AJ12-1)) -> 4.99994223e-13 | AK79: =(AK65+AK66)/((1+WACC!$D$22)^(AK12-1)) -> 4.579149455e-13 | AL79: =(AL65+AL66)/((1+WACC!$D$22)^(AL12-1)) -> 4.193770401e-13
B80: Tributação VPL | C80: =SUM(D80:AL80) -> -211678.2464 | D80: =(D16+D59)/((1+WACC!$D$22)^(D12-1)) -> -971.0293985 | E80: =(E16+E59)/((1+WACC!$D$22)^(E12-1)) -> -889.3080232 | F80: =(F16+F59)/((1+WACC!$D$22)^(F12-1)) -> -814.4642802 | G80: =(G16+G59)/((1+WACC!$D$22)^(G12-1)) -> -5498.962257 | H80: =(H16+H59)/((1+WACC!$D$22)^(H12-1)) -> -8030.353762 | I80: =(I16+I59)/((1+WACC!$D$22)^(I12-1)) -> -7807.521336 | J80: =(J16+J59)/((1+WACC!$D$22)^(J12-1)) -> -11394.15332 | K80: =(K16+K59)/((1+WACC!$D$22)^(K12-1)) -> -12540.82749 | L80: =(L16+L59)/((1+WACC!$D$22)^(L12-1)) -> -11611.19467 | M80: =(M16+M59)/((1+WACC!$D$22)^(M12-1)) -> -8014.211344 | N80: =(N16+N59)/((1+WACC!$D$22)^(N12-1)) -> -12933.90897 | O80: =(O16+O59)/((1+WACC!$D$22)^(O12-1)) -> -11824.17114 | P80: =(P16+P59)/((1+WACC!$D$22)^(P12-1)) -> -10849.22069 | Q80: =(Q16+Q59)/((1+WACC!$D$22)^(Q12-1)) -> -9873.157802 | R80: =(R16+R59)/((1+WACC!$D$22)^(R12-1)) -> -9035.401565 | S80: =(S16+S59)/((1+WACC!$D$22)^(S12-1)) -> -8268.871586 | T80: =(T16+T59)/((1+WACC!$D$22)^(T12-1)) -> -7525.128668 | U80: =(U16+U59)/((1+WACC!$D$22)^(U12-1)) -> -6994.785837 | V80: =(V16+V59)/((1+WACC!$D$22)^(V12-1)) -> -6545.280476 | W80: =(W16+W59)/((1+WACC!$D$22)^(W12-1)) -> -5921.04575 | X80: =(X16+X59)/((1+WACC!$D$22)^(X12-1)) -> -5357.561553 | Y80: =(Y16+Y59)/((1+WACC!$D$22)^(Y12-1)) -> -4857.258892 | Z80: =(Z16+Z59)/((1+WACC!$D$22)^(Z12-1)) -> -4535.528072 | AA80: =(AA16+AA59)/((1+WACC!$D$22)^(AA12-1)) -> -4217.505472 | AB80: =(AB16+AB59)/((1+WACC!$D$22)^(AB12-1)) -> -3972.16912 | AC80: =(AC16+AC59)/((1+WACC!$D$22)^(AC12-1)) -> -4385.409029 | AD80: =(AD16+AD59)/((1+WACC!$D$22)^(AD12-1)) -> -4082.422647 | AE80: =(AE16+AE59)/((1+WACC!$D$22)^(AE12-1)) -> -3795.631247 | AF80: =(AF16+AF59)/((1+WACC!$D$22)^(AF12-1)) -> -3522.097849 | AG80: =(AG16+AG59)/((1+WACC!$D$22)^(AG12-1)) -> -3234.141973 | AH80: =(AH16+AH59)/((1+WACC!$D$22)^(AH12-1)) -> -2943.659785 | AI80: =(AI16+AI59)/((1+WACC!$D$22)^(AI12-1)) -> -2672.579228 | AJ80: =(AJ16+AJ59)/((1+WACC!$D$22)^(AJ12-1)) -> -2446.876539 | AK80: =(AK16+AK59)/((1+WACC!$D$22)^(AK12-1)) -> -2248.972435 | AL80: =(AL16+AL59)/((1+WACC!$D$22)^(AL12-1)) -> -2063.434186
B81: Fluxo de Caixa VPL | C81: =SUM(D81:AL81) -> 66036.75851 | D81: =D67/((1+WACC!$D$22)^(D12-1)) -> -3232.430371 | E81: =E67/((1+WACC!$D$22)^(E12-1)) -> -34883.54342 | F81: =F67/((1+WACC!$D$22)^(F12-1)) -> -17547.02786 | G81: =G67/((1+WACC!$D$22)^(G12-1)) -> -24464.04192 | H81: =H67/((1+WACC!$D$22)^(H12-1)) -> -3624.569547 | I81: =I67/((1+WACC!$D$22)^(I12-1)) -> -15766.942 | J81: =J67/((1+WACC!$D$22)^(J12-1)) -> 10502.55892 | K81: =K67/((1+WACC!$D$22)^(K12-1)) -> 21269.07542 | L81: =L67/((1+WACC!$D$22)^(L12-1)) -> 27011.95438 | M81: =M67/((1+WACC!$D$22)^(M12-1)) -> -7106.964185 | N81: =N67/((1+WACC!$D$22)^(N12-1)) -> 16085.18254 | O81: =O67/((1+WACC!$D$22)^(O12-1)) -> 9836.686257 | P81: =P67/((1+WACC!$D$22)^(P12-1)) -> 6360.975666 | Q81: =Q67/((1+WACC!$D$22)^(Q12-1)) -> 6500.045417 | R81: =R67/((1+WACC!$D$22)^(R12-1)) -> 8259.672082 | S81: =S67/((1+WACC!$D$22)^(S12-1)) -> 7853.29224 | T81: =T67/((1+WACC!$D$22)^(T12-1)) -> 5975.576992 | U81: =U67/((1+WACC!$D$22)^(U12-1)) -> 5310.989269 | V81: =V67/((1+WACC!$D$22)^(V12-1)) -> 4921.314753 | W81: =W67/((1+WACC!$D$22)^(W12-1)) -> 3478.414745 | X81: =X67/((1+WACC!$D$22)^(X12-1)) -> 3278.435666 | Y81: =Y67/((1+WACC!$D$22)^(Y12-1)) -> 2685.092757 | Z81: =Z67/((1+WACC!$D$22)^(Z12-1)) -> 3640.224977 | AA81: =AA67/((1+WACC!$D$22)^(AA12-1)) -> 3266.777904 | AB81: =AB67/((1+WACC!$D$22)^(AB12-1)) -> 4349.515937 | AC81: =AC67/((1+WACC!$D$22)^(AC12-1)) -> 4157.247492 | AD81: =AD67/((1+WACC!$D$22)^(AD12-1)) -> 2708.061212 | AE81: =AE67/((1+WACC!$D$22)^(AE12-1)) -> 2665.728726 | AF81: =AF67/((1+WACC!$D$22)^(AF12-1)) -> 2556.15719 | AG81: =AG67/((1+WACC!$D$22)^(AG12-1)) -> -281.373187 | AH81: =AH67/((1+WACC!$D$22)^(AH12-1)) -> 154.4605062 | AI81: =AI67/((1+WACC!$D$22)^(AI12-1)) -> -274.086336 | AJ81: =AJ67/((1+WACC!$D$22)^(AJ12-1)) -> 3521.806587 | AK81: =AK67/((1+WACC!$D$22)^(AK12-1)) -> 3225.924967 | AL81: =AL67/((1+WACC!$D$22)^(AL12-1)) -> 3642.564742
B82: Fluxo de Caixa Acumulado VPL | D82: =D81 -> -3232.430371 | E82: =D82+E81 -> -38115.97379 | F82: =E82+F81 -> -55663.00165 | G82: -80127.04357 | H82: -83751.61312 | I82: -99518.55512 | J82: -89015.9962 | K82: -67746.92079 | L82: -40734.96641 | M82: -47841.93059 | N82: -31756.74805 | O82: -21920.0618 | P82: -15559.08613 | Q82: -9059.040713 | R82: -799.3686307 | S82: 7053.923609 | T82: 13029.5006 | U82: 18340.48987 | V82: 23261.80462 | W82: 26740.21937 | X82: 30018.65503 | Y82: 32703.74779 | Z82: 36343.97277 | AA82: 39610.75067 | AB82: 43960.26661 | AC82: 48117.5141 | AD82: 50825.57531 | AE82: 53491.30404 | AF82: 56047.46123 | AG82: 55766.08804 | AH82: 55920.54855 | AI82: 55646.46221 | AJ82: 59168.2688 | AK82: 62394.19377 | AL82: 66036.75851
B83: Payback VPL | E83: =IF(AND(E82>0,D82<0),E57,"") ->  | F83: =IF(AND(F82>0,E82<0),F57,"") ->  | S83: 16
B85: EBITDA - IR/CS (exclui pagto outorga) | D85: =SUM(D58:D59)-D32 -> -1083.700239 | E85: =SUM(E58:E59)-E32 -> -2932.434008 | F85: -3523.06584 | G85: 24844.77061 | H85: 40720.24664 | I85: 62864.83131 | J85: 75500.38576 | K85: 88348.58972 | L85: 88444.45682 | M85: 94379.23508 | N85: 81533.06503 | O85: 81580.04319 | P85: 82037.85423 | Q85: 82390.70634 | R85: 82411.82208 | S85: 82434.68273 | T85: 82465.80719 | U85: 82173.30242 | V85: 81495.97838 | W85: 81865.72048 | X85: 82088.56246 | Y85: 82548.07629 | Z85: 81974.94948 | AA85: 81493.90741 | AB85: 80443.46376 | AC85: 73866.8935 | AD85: 73208.20693 | AE85: 72598.54983 | AF85: 71905.08954 | AG85: 71920.35613 | AH85: 72176.1066 | AI85: 72523.5042 | AJ85: 72421.75979 | AK85: 72431.07472 | AL85: 72365.73831
B86: Serviço da Dívida | D86: =SUM(D65:D66) -> -198.8396122 | E86: =SUM(E65:E66) -> -4188.982312 | F86: -5411.232265 | G86: -7795.807159 | H86: -12965.8116 | I86: -20523.47843 | J86: -24059.13686 | K86: -26041.8418 | L86: -31676.91738 | M86: -43039.10943 | N86: -42786.99355 | O86: -41971.75364 | P86: -50033.82527 | Q86: -48271.90366 | R86: -47215.25871 | S86: -46158.61375 | T86: -45662.26909 | U86: -44764.87106 | V86: -43808.69997 | W86: -45322.15119 | X86: -45006.75243 | Y86: -41982.86462 | Z86: -43056.60078 | AA86: -43082.29874 | AB86: -44570.68967 | AC86: -36429.11382 | AD86: -32843.69341 | AE86: -30241.58412 | AF86: -28202.59886 | AG86: -12551.9492 | AH86: -7047.149106 | AI86: 8.331637537e-12 | AJ86: 8.331637537e-12 | AK86: 8.331637537e-12 | AL86: 8.331637537e-12
B87: ICSD | H87: =H85/-H86 -> 3.14058602 | I87: =I85/-I86 -> 3.063069037 | J87: 3.138116975 | K87: 3.39256303 | L87: 2.792079032 | M87: 2.192871468 | N87: 1.905557233 | O87: 1.943689175 | P87: 1.639647854 | Q87: 1.706804582 | R87: 1.745448915 | S87: 1.785900313 | T87: 1.805994508 | U87: 1.835664897 | V87: 1.860269272 | W87: 1.806307034 | X87: 1.823916591 | Y87: 1.966232582 | Z87: 1.903888091 | AA87: 1.891586795 | AB87: 1.804851223 | AC87: 2.027688455 | AD87: 2.228988257 | AE87: 2.400619939 | AF87: 2.549590904 | AG87: 5.729815742 | AH87: 10.24188725

Sheet Sensibilidade
C2: Variação
C3: Receita | D3: 0
C4: Capex | D4: 0
C5: Opex | D5: 0
C7: TIR do Projeto | I7: TIR do Acionista
C8: Capex | I8: Capex
B9: O p e x | C9: ='Painel de Controle'!R6 -> 0.1014206713 | D9: =-'Painel de Controle'!R21 -> -0.1 | E9: 0 | F9: ='Painel de Controle'!R21 -> 0.1 | H9: O p e x | I9: ='Painel de Controle'!R12 -> 0.1489637557 | J9: =D9 -> -0.1 | K9: =E9 -> 0 | L9: =F9 -> 0.1
C10: =-'Painel de Controle'!R22 -> -0.05 | D10: 0.1294074212 | E10: 0.1191189775 | F10: 0.1095912387 | I10: =C10 -> -0.05 | J10: 0.2302199461 | K10: 0.1953310463 | L10: 0.1672733703
C11: 0 | D11: 0.110761742 | E11: 0.1014206713 | F11: 0.0926651455 | I11: =C11 -> 0 | J11: 0.1765235662 | K11: 0.1489637557 | L11: 0.1265983416
C12: ='Painel de Controle'!R22 -> 0.05 | D12: 0.09274787617 | E12: 0.08417044465 | F12: 0.07601658848 | I12: =C12 -> 0.05 | J12: 0.1286041601 | K12: 0.1077261078 | L12: 0.09025965059
C14: Receita Agrícola | I14: Receita Agrícola
B15: C a p e x | C15: ='Painel de Controle'!R6 -> 0.1014206713 | D15: =-'Painel de Controle'!R20 -> -0.1 | E15: 0 | F15: ='Painel de Controle'!R20 -> 0.1 | H15: C a p e x | I15: ='Painel de Controle'!R12 -> 0.1489637557 | J15: =D15 -> -0.1 | K15: =E15 -> 0 | L15: =F15 -> 0.1
C16: =-'Painel de Controle'!R21 -> -0.1 | D16: 0.06736468183 | E16: 0.110761742 | F16: 0.1519512516 | I16: =C16 -> -0.1 | J16: 0.07243100235 | K16: 0.1765235662 | L16: 0.2788697239
C17: 0 | D17: 0.05891142213 | E17: 0.1014206713 | F17: 0.1410147863 | I17: =C17 -> 0 | J17: 0.05585224345 | K17: 0.1489637557 | L17: 0.2414883826
C18: ='Painel de Controle'!R21 -> 0.1 | D18: 0.05067586096 | E18: 0.0926651455 | F18: 0.1309672404 | I18: =C18 -> 0.1 | J18: 0.04111902425 | K18: 0.1265983416 | L18: 0.2109965084
C21: Receita Agrícola | I21: Receita Agrícola
B22: O p e x | C22: ='Painel de Controle'!R6 -> 0.1014206713 | D22: =D15 -> -0.1 | E22: =E15 -> 0 | F22: 0.1 | H22: O p e x | I22: ='Painel de Controle'!R12 -> 0.1489637557 | J22: =J15 -> -0.1 | K22: =K15 -> 0 | L22: 0.1
C23: =C10 -> -0.05 | D23: 0.07709171275 | E23: 0.1191189775 | F23: 0.1591619421 | I23: =I10 -> -0.05 | J23: 0.09505776181 | K23: 0.1953310463 | L23: 0.2879984965
C24: =C11 -> 0 | D24: 0.05891142213 | E24: 0.1014206713 | F24: 0.1410147863 | I24: =I11 -> 0 | J24: 0.05585224345 | K24: 0.1489637557 | L24: 0.2414883826
C25: =C12 -> 0.05 | D25: 0.04050779114 | E25: 0.08417044465 | F25: 0.1236008181 | I25: =I12 -> 0.05 | J25: 0.02040801927 | K25: 0.1077261078 | L25: 0.1968695492

Sheet Premissas >>>>

Sheet Tributação
B2: TRIBUTAÇÃO
D4: 1 | E4: =D4+1 -> 2 | F4: =E4+1 -> 3 | G4: 4 | H4: 5 | I4: 6 | J4: 7 | K4: 8 | L4: 9 | M4: 10 | N4: 11 | O4: 12 | P4: 13 | Q4: 14 | R4: 15 | S4: 16 | T4: 17 | U4: 18 | V4: 19 | W4: 20 | X4: 21 | Y4: 22 | Z4: 23 | AA4: 24 | AB4: 25 | AC4: 26 | AD4: 27 | AE4: 28 | AF4: 29 | AG4: 30 | AH4: 31 | AI4: 32 | AJ4: 33 | AK4: 34 | AL4: 35
B5: PIS-COFINS
B6: Receita Tributada | D6: ='FC Projeto'!D14 -> 0 | E6: ='FC Projeto'!E14 -> 0 | F6: ='FC Projeto'!F14 -> 0 | G6: ='FC Projeto'!G14 -> 82730.83637 | H6: ='FC Projeto'!H14 -> 131244.3443 | I6: ='FC Projeto'!I14 -> 186158.2958 | J6: ='FC Projeto'!J14 -> 233744.2032 | K6: ='FC Projeto'!K14 -> 279057.4892 | L6: ='FC Projeto'!L14 -> 279057.4892 | M6: ='FC Projeto'!M14 -> 279057.4892 | N6: ='FC Projeto'!N14 -> 279057.4892 | O6: ='FC Projeto'!O14 -> 279057.4892 | P6: ='FC Projeto'!P14 -> 279057.4892 | Q6: ='FC Projeto'!Q14 -> 279057.4892 | R6: ='FC Projeto'!R14 -> 279057.4892 | S6: ='FC Projeto'!S14 -> 279057.4892 | T6: ='FC Projeto'!T14 -> 279057.4892 | U6: ='FC Projeto'!U14 -> 279057.4892 | V6: ='FC Projeto'!V14 -> 279057.4892 | W6: ='FC Projeto'!W14 -> 279057.4892 | X6: ='FC Projeto'!X14 -> 279057.4892 | Y6: ='FC Projeto'!Y14 -> 279057.4892 | Z6: ='FC Projeto'!Z14 -> 279057.4892 | AA6: ='FC Projeto'!AA14 -> 279057.4892 | AB6: ='FC Projeto'!AB14 -> 279057.4892 | AC6: ='FC Projeto'!AC14 -> 279057.4892 | AD6: ='FC Projeto'!AD14 -> 279057.4892 | AE6: ='FC Projeto'!AE14 -> 279057.4892 | AF6: ='FC Projeto'!AF14 -> 279057.4892 | AG6: ='FC Projeto'!AG14 -> 279057.4892 | AH6: ='FC Projeto'!AH14 -> 279057.4892 | AI6: ='FC Projeto'!AI14 -> 279057.4892 | AJ6: ='FC Projeto'!AJ14 -> 279057.4892 | AK6: ='FC Projeto'!AK14 -> 279057.4892 | AL6: ='FC Projeto'!AL14 -> 279057.4892
B7: PIS | D7: ='Painel de Controle'!$G$6*Tributação!D$6 -> 0 | E7: ='Painel de Controle'!$G$6*Tributação!E$6 -> 0 | F7: ='Painel de Controle'!$G$6*Tributação!F$6 -> 0 | G7: ='Painel de Controle'!$G$6*Tributação!G$6 -> 1365.0588 | H7: ='Painel de Controle'!$G$6*Tributação!H$6 -> 2165.53168 | I7: ='Painel de Controle'!$G$6*Tributação!I$6 -> 3071.611881 | J7: ='Painel de Controle'!$G$6*Tributação!J$6 -> 3856.779353 | K7: ='Painel de Controle'!$G$6*Tributação!K$6 -> 4604.448573 | L7: ='Painel de Controle'!$G$6*Tributação!L$6 -> 4604.448573 | M7: ='Painel de Controle'!$G$6*Tributação!M$6 -> 4604.448573 | N7: ='Painel de Controle'!$G$6*Tributação!N$6 -> 4604.448573 | O7: ='Painel de Controle'!$G$6*Tributação!O$6 -> 4604.448573 | P7: ='Painel de Controle'!$G$6*Tributação!P$6 -> 4604.448573 | Q7: ='Painel de Controle'!$G$6*Tributação!Q$6 -> 4604.448573 | R7: ='Painel de Controle'!$G$6*Tributação!R$6 -> 4604.448573 | S7: ='Painel de Controle'!$G$6*Tributação!S$6 -> 4604.448573 | T7: ='Painel de Controle'!$G$6*Tributação!T$6 -> 4604.448573 | U7: ='Painel de Controle'!$G$6*Tributação!U$6 -> 4604.448573 | V7: ='Painel de Controle'!$G$6*Tributação!V$6 -> 4604.448573 | W7: ='Painel de Controle'!$G$6*Tributação!W$6 -> 4604.448573 | X7: ='Painel de Controle'!$G$6*Tributação!X$6 -> 4604.448573 | Y7: ='Painel de Controle'!$G$6*Tributação!Y$6 -> 4604.448573 | Z7: ='Painel de Controle'!$G$6*Tributação!Z$6 -> 4604.448573 | AA7: ='Painel de Controle'!$G$6*Tributação!AA$6 -> 4604.448573 | AB7: ='Painel de Controle'!$G$6*Tributação!AB$6 -> 4604.448573 | AC7: ='Painel de Controle'!$G$6*Tributação!AC$6 -> 4604.448573 | AD7: ='Painel de Controle'!$G$6*Tributação!AD$6 -> 4604.448573 | AE7: ='Painel de Controle'!$G$6*Tributação!AE$6 -> 4604.448573 | AF7: ='Painel de Controle'!$G$6*Tributação!AF$6 -> 4604.448573 | AG7: ='Painel de Controle'!$G$6*Tributação!AG$6 -> 4604.448573 | AH7: ='Painel de Controle'!$G$6*Tributação!AH$6 -> 4604.448573 | AI7: ='Painel de Controle'!$G$6*Tributação!AI$6 -> 4604.448573 | AJ7: ='Painel de Controle'!$G$6*Tributação!AJ$6 -> 4604.448573 | AK7: ='Painel de Controle'!$G$6*Tributação!AK$6 -> 4604.448573 | AL7: ='Painel de Controle'!$G$6*Tributação!AL$6 -> 4604.448573
B8: COFINS | D8: ='Painel de Controle'!$G$7*Tributação!D$6 -> 0 | E8: ='Painel de Controle'!$G$7*Tributação!E$6 -> 0 | F8: ='Painel de Controle'!$G$7*Tributação!F$6 -> 0 | G8: ='Painel de Controle'!$G$7*Tributação!G$6 -> 6287.543564 | H8: ='Painel de Controle'!$G$7*Tributação!H$6 -> 9974.570164 | I8: ='Painel de Controle'!$G$7*Tributação!I$6 -> 14148.03048 | J8: ='Painel de Controle'!$G$7*Tributação!J$6 -> 17764.55944 | K8: ='Painel de Controle'!$G$7*Tributação!K$6 -> 21208.36918 | L8: ='Painel de Controle'!$G$7*Tributação!L$6 -> 21208.36918 | M8: ='Painel de Controle'!$G$7*Tributação!M$6 -> 21208.36918 | N8: ='Painel de Controle'!$G$7*Tributação!N$6 -> 21208.36918 | O8: ='Painel de Controle'!$G$7*Tributação!O$6 -> 21208.36918 | P8: ='Painel de Controle'!$G$7*Tributação!P$6 -> 21208.36918 | Q8: ='Painel de Controle'!$G$7*Tributação!Q$6 -> 21208.36918 | R8: ='Painel de Controle'!$G$7*Tributação!R$6 -> 21208.36918 | S8: ='Painel de Controle'!$G$7*Tributação!S$6 -> 21208.36918 | T8: ='Painel de Controle'!$G$7*Tributação!T$6 -> 21208.36918 | U8: ='Painel de Controle'!$G$7*Tributação!U$6 -> 21208.36918 | V8: ='Painel de Controle'!$G$7*Tributação!V$6 -> 21208.36918 | W8: ='Painel de Controle'!$G$7*Tributação!W$6 -> 21208.36918 | X8: ='Painel de Controle'!$G$7*Tributação!X$6 -> 21208.36918 | Y8: ='Painel de Controle'!$G$7*Tributação!Y$6 -> 21208.36918 | Z8: ='Painel de Controle'!$G$7*Tributação!Z$6 -> 21208.36918 | AA8: ='Painel de Controle'!$G$7*Tributação!AA$6 -> 21208.36918 | AB8: ='Painel de Controle'!$G$7*Tributação!AB$6 -> 21208.36918 | AC8: ='Painel de Controle'!$G$7*Tributação!AC$6 -> 21208.36918 | AD8: ='Painel de Controle'!$G$7*Tributação!AD$6 -> 21208.36918 | AE8: ='Painel de Controle'!$G$7*Tributação!AE$6 -> 21208.36918 | AF8: ='Painel de Controle'!$G$7*Tributação!AF$6 -> 21208.36918 | AG8: ='Painel de Controle'!$G$7*Tributação!AG$6 -> 21208.36918 | AH8: ='Painel de Controle'!$G$7*Tributação!AH$6 -> 21208.36918 | AI8: ='Painel de Controle'!$G$7*Tributação!AI$6 -> 21208.36918 | AJ8: ='Painel de Controle'!$G$7*Tributação!AJ$6 -> 21208.36918 | AK8: ='Painel de Controle'!$G$7*Tributação!AK$6 -> 21208.36918 | AL8: ='Painel de Controle'!$G$7*Tributação!AL$6 -> 21208.36918
B9: Alíquota Base | D9: =IFERROR(SUM(D7:D8)/D6,0) -> 0 | E9: =IFERROR(SUM(E7:E8)/E6,0) -> 0 | F9: 0 | G9: 0.0925 | H9: 0.0925 | I9: 0.0925 | J9: 0.0925 | K9: 0.0925 | L9: 0.0925 | M9: 0.0925 | N9: 0.0925 | O9: 0.0925 | P9: 0.0925 | Q9: 0.0925 | R9: 0.0925 | S9: 0.0925 | T9: 0.0925 | U9: 0.0925 | V9: 0.0925 | W9: 0.0925 | X9: 0.0925 | Y9: 0.0925 | Z9: 0.0925 | AA9: 0.0925 | AB9: 0.0925 | AC9: 0.0925 | AD9: 0.0925 | AE9: 0.0925 | AF9: 0.0925 | AG9: 0.0925 | AH9: 0.0925 | AI9: 0.0925 | AJ9: 0.0925 | AK9: 0.0925 | AL9: 0.0925
B11: Custos Operacionais Tributados | D11: =-SUM('FC Projeto'!D25:D28) -> 0 | E11: =-SUM('FC Projeto'!E25:E28) -> 0 | F11: =-SUM('FC Projeto'!F25:F28) -> 0 | G11: =-SUM('FC Projeto'!G25:G28) -> 47513.03295 | H11: =-SUM('FC Projeto'!H25:H28) -> 75374.759 | I11: =-SUM('FC Projeto'!I25:I28) -> 106912.3151 | J11: =-SUM('FC Projeto'!J25:J28) -> 134241.3121 | K11: =-SUM('FC Projeto'!K25:K28) -> 160265.1232 | L11: =-SUM('FC Projeto'!L25:L28) -> 160265.1232 | M11: =-SUM('FC Projeto'!M25:M28) -> 160265.1232 | N11: =-SUM('FC Projeto'!N25:N28) -> 160265.1232 | O11: =-SUM('FC Projeto'!O25:O28) -> 160265.1232 | P11: =-SUM('FC Projeto'!P25:P28) -> 160265.1232 | Q11: =-SUM('FC Projeto'!Q25:Q28) -> 160265.1232 | R11: =-SUM('FC Projeto'!R25:R28) -> 160265.1232 | S11: =-SUM('FC Projeto'!S25:S28) -> 160265.1232 | T11: =-SUM('FC Projeto'!T25:T28) -> 160265.1232 | U11: =-SUM('FC Projeto'!U25:U28) -> 160265.1232 | V11: =-SUM('FC Projeto'!V25:V28) -> 160265.1232 | W11: =-SUM('FC Projeto'!W25:W28) -> 160265.1232 | X11: =-SUM('FC Projeto'!X25:X28) -> 160265.1232 | Y11: =-SUM('FC Projeto'!Y25:Y28) -> 160265.1232 | Z11: =-SUM('FC Projeto'!Z25:Z28) -> 160265.1232 | AA11: =-SUM('FC Projeto'!AA25:AA28) -> 160265.1232 | AB11: =-SUM('FC Projeto'!AB25:AB28) -> 160265.1232 | AC11: =-SUM('FC Projeto'!AC25:AC28) -> 160265.1232 | AD11: =-SUM('FC Projeto'!AD25:AD28) -> 160265.1232 | AE11: =-SUM('FC Projeto'!AE25:AE28) -> 160265.1232 | AF11: =-SUM('FC Projeto'!AF25:AF28) -> 160265.1232 | AG11: =-SUM('FC Projeto'!AG25:AG28) -> 160265.1232 | AH11: =-SUM('FC Projeto'!AH25:AH28) -> 160265.1232 | AI11: =-SUM('FC Projeto'!AI25:AI28) -> 160265.1232 | AJ11: =-SUM('FC Projeto'!AJ25:AJ28) -> 160265.1232 | AK11: =-SUM('FC Projeto'!AK25:AK28) -> 160265.1232 | AL11: =-SUM('FC Projeto'!AL25:AL28) -> 160265.1232
B12: PIS | D12: ='Painel de Controle'!$G$6*Tributação!D$11 -> 0 | E12: ='Painel de Controle'!$G$6*Tributação!E$11 -> 0 | F12: ='Painel de Controle'!$G$6*Tributação!F$11 -> 0 | G12: ='Painel de Controle'!$G$6*Tributação!G$11 -> 783.9650437 | H12: ='Painel de Controle'!$G$6*Tributação!H$11 -> 1243.683524 | I12: ='Painel de Controle'!$G$6*Tributação!I$11 -> 1764.053199 | J12: ='Painel de Controle'!$G$6*Tributação!J$11 -> 2214.98165 | K12: ='Painel de Controle'!$G$6*Tributação!K$11 -> 2644.374533 | L12: ='Painel de Controle'!$G$6*Tributação!L$11 -> 2644.374533 | M12: ='Painel de Controle'!$G$6*Tributação!M$11 -> 2644.374533 | N12: ='Painel de Controle'!$G$6*Tributação!N$11 -> 2644.374533 | O12: ='Painel de Controle'!$G$6*Tributação!O$11 -> 2644.374533 | P12: ='Painel de Controle'!$G$6*Tributação!P$11 -> 2644.374533 | Q12: ='Painel de Controle'!$G$6*Tributação!Q$11 -> 2644.374533 | R12: ='Painel de Controle'!$G$6*Tributação!R$11 -> 2644.374533 | S12: ='Painel de Controle'!$G$6*Tributação!S$11 -> 2644.374533 | T12: ='Painel de Controle'!$G$6*Tributação!T$11 -> 2644.374533 | U12: ='Painel de Controle'!$G$6*Tributação!U$11 -> 2644.374533 | V12: ='Painel de Controle'!$G$6*Tributação!V$11 -> 2644.374533 | W12: ='Painel de Controle'!$G$6*Tributação!W$11 -> 2644.374533 | X12: ='Painel de Controle'!$G$6*Tributação!X$11 -> 2644.374533 | Y12: ='Painel de Controle'!$G$6*Tributação!Y$11 -> 2644.374533 | Z12: ='Painel de Controle'!$G$6*Tributação!Z$11 -> 2644.374533 | AA12: ='Painel de Controle'!$G$6*Tributação!AA$11 -> 2644.374533 | AB12: ='Painel de Controle'!$G$6*Tributação!AB$11 -> 2644.374533 | AC12: ='Painel de Controle'!$G$6*Tributação!AC$11 -> 2644.374533 | AD12: ='Painel de Controle'!$G$6*Tributação!AD$11 -> 2644.374533 | AE12: ='Painel de Controle'!$G$6*Tributação!AE$11 -> 2644.374533 | AF12: ='Painel de Controle'!$G$6*Tributação!AF$11 -> 2644.374533 | AG12: ='Painel de Controle'!$G$6*Tributação!AG$11 -> 2644.374533 | AH12: ='Painel de Controle'!$G$6*Tributação!AH$11 -> 2644.374533 | AI12: ='Painel de Controle'!$G$6*Tributação!AI$11 -> 2644.374533 | AJ12: ='Painel de Controle'!$G$6*Tributação!AJ$11 -> 2644.374533 | AK12: ='Painel de Controle'!$G$6*Tributação!AK$11 -> 2644.374533 | AL12: ='Painel de Controle'!$G$6*Tributação!AL$11 -> 2644.374533
B13: COFINS | D13: ='Painel de Controle'!$G$7*Tributação!D$11 -> 0 | E13: ='Painel de Controle'!$G$7*Tributação!E$11 -> 0 | F13: ='Painel de Controle'!$G$7*Tributação!F$11 -> 0 | G13: ='Painel de Controle'!$G$7*Tributação!G$11 -> 3610.990504 | H13: ='Painel de Controle'!$G$7*Tributação!H$11 -> 5728.481684 | I13: ='Painel de Controle'!$G$7*Tributação!I$11 -> 8125.335945 | J13: ='Painel de Controle'!$G$7*Tributação!J$11 -> 10202.33972 | K13: ='Painel de Controle'!$G$7*Tributação!K$11 -> 12180.14936 | L13: ='Painel de Controle'!$G$7*Tributação!L$11 -> 12180.14936 | M13: ='Painel de Controle'!$G$7*Tributação!M$11 -> 12180.14936 | N13: ='Painel de Controle'!$G$7*Tributação!N$11 -> 12180.14936 | O13: ='Painel de Controle'!$G$7*Tributação!O$11 -> 12180.14936 | P13: ='Painel de Controle'!$G$7*Tributação!P$11 -> 12180.14936 | Q13: ='Painel de Controle'!$G$7*Tributação!Q$11 -> 12180.14936 | R13: ='Painel de Controle'!$G$7*Tributação!R$11 -> 12180.14936 | S13: ='Painel de Controle'!$G$7*Tributação!S$11 -> 12180.14936 | T13: ='Painel de Controle'!$G$7*Tributação!T$11 -> 12180.14936 | U13: ='Painel de Controle'!$G$7*Tributação!U$11 -> 12180.14936 | V13: ='Painel de Controle'!$G$7*Tributação!V$11 -> 12180.14936 | W13: ='Painel de Controle'!$G$7*Tributação!W$11 -> 12180.14936 | X13: ='Painel de Controle'!$G$7*Tributação!X$11 -> 12180.14936 | Y13: ='Painel de Controle'!$G$7*Tributação!Y$11 -> 12180.14936 | Z13: ='Painel de Controle'!$G$7*Tributação!Z$11 -> 12180.14936 | AA13: ='Painel de Controle'!$G$7*Tributação!AA$11 -> 12180.14936 | AB13: ='Painel de Controle'!$G$7*Tributação!AB$11 -> 12180.14936 | AC13: ='Painel de Controle'!$G$7*Tributação!AC$11 -> 12180.14936 | AD13: ='Painel de Controle'!$G$7*Tributação!AD$11 -> 12180.14936 | AE13: ='Painel de Controle'!$G$7*Tributação!AE$11 -> 12180.14936 | AF13: ='Painel de Controle'!$G$7*Tributação!AF$11 -> 12180.14936 | AG13: ='Painel de Controle'!$G$7*Tributação!AG$11 -> 12180.14936 | AH13: ='Painel de Controle'!$G$7*Tributação!AH$11 -> 12180.14936 | AI13: ='Painel de Controle'!$G$7*Tributação!AI$11 -> 12180.14936 | AJ13: ='Painel de Controle'!$G$7*Tributação!AJ$11 -> 12180.14936 | AK13: ='Painel de Controle'!$G$7*Tributação!AK$11 -> 12180.14936 | AL13: ='Painel de Controle'!$G$7*Tributação!AL$11 -> 12180.14936
B15: Tributação Cumulativa
B16: PIS | D16: =D7-D12 -> 0 | E16: =E7-E12 -> 0 | F16: 0 | G16: =G7-G12 -> 581.0937564 | H16: =H7-H12 -> 921.8481567 | I16: 1307.558683 | J16: 1641.797702 | K16: 1960.07404 | L16: 1960.07404 | M16: 1960.07404 | N16: 1960.07404 | O16: 1960.07404 | P16: 1960.07404 | Q16: 1960.07404 | R16: 1960.07404 | S16: 1960.07404 | T16: 1960.07404 | U16: 1960.07404 | V16: 1960.07404 | W16: 1960.07404 | X16: 1960.07404 | Y16: 1960.07404 | Z16: 1960.07404 | AA16: 1960.07404 | AB16: 1960.07404 | AC16: 1960.07404 | AD16: 1960.07404 | AE16: 1960.07404 | AF16: 1960.07404 | AG16: 1960.07404 | AH16: 1960.07404 | AI16: 1960.07404 | AJ16: 1960.07404 | AK16: 1960.07404 | AL16: 1960.07404
B17: COFINS | D17: =D8-D13 -> 0 | E17: =E8-E13 -> 0 | F17: 0 | G17: 2676.55306 | H17: 4246.08848 | I17: 6022.694538 | J17: 7562.21972 | K17: 9028.219821 | L17: 9028.219821 | M17: 9028.219821 | N17: 9028.219821 | O17: 9028.219821 | P17: 9028.219821 | Q17: 9028.219821 | R17: 9028.219821 | S17: 9028.219821 | T17: 9028.219821 | U17: 9028.219821 | V17: 9028.219821 | W17: 9028.219821 | X17: 9028.219821 | Y17: 9028.219821 | Z17: 9028.219821 | AA17: 9028.219821 | AB17: 9028.219821 | AC17: 9028.219821 | AD17: 9028.219821 | AE17: 9028.219821 | AF17: 9028.219821 | AG17: 9028.219821 | AH17: 9028.219821 | AI17: 9028.219821 | AJ17: 9028.219821 | AK17: 9028.219821 | AL17: 9028.219821
B18: Alíquota Efetiva | D18: =IFERROR(SUM(D16:D17)/D6,0) -> 0 | E18: =IFERROR(SUM(E16:E17)/E6,0) -> 0 | F18: 0 | G18: =IFERROR(SUM(G16:G17)/G6,0) -> 0.03937645211 | H18: 0.03937645211 | I18: 0.03937645211 | J18: 0.03937645211 | K18: 0.03937645211 | L18: 0.03937645211 | M18: 0.03937645211 | N18: 0.03937645211 | O18: 0.03937645211 | P18: 0.03937645211 | Q18: 0.03937645211 | R18: 0.03937645211 | S18: 0.03937645211 | T18: 0.03937645211 | U18: 0.03937645211 | V18: 0.03937645211 | W18: 0.03937645211 | X18: 0.03937645211 | Y18: 0.03937645211 | Z18: 0.03937645211 | AA18: 0.03937645211 | AB18: 0.03937645211 | AC18: 0.03937645211 | AD18: 0.03937645211 | AE18: 0.03937645211 | AF18: 0.03937645211 | AG18: 0.03937645211 | AH18: 0.03937645211 | AI18: 0.03937645211 | AJ18: 0.03937645211 | AK18: 0.03937645211 | AL18: 0.03937645211
B19: IRPJ/CSLL não alavancado
B20: EBIT | D20: ='FC Projeto'!D43 -> -1222.978133 | E20: ='FC Projeto'!E43 -> -53477.62511 | F20: ='FC Projeto'!F43 -> -6055.289268 | G20: ='FC Projeto'!G43 -> 19238.07824 | H20: ='FC Projeto'!H43 -> 33612.74389 | I20: ='FC Projeto'!I43 -> -54323.30695 | J20: ='FC Projeto'!J43 -> 58196.45103 | K20: ='FC Projeto'!K43 -> 69764.60627 | L20: ='FC Projeto'!L43 -> 71943.07891 | M20: ='FC Projeto'!M43 -> -142557.4062 | N20: ='FC Projeto'!N43 -> 83089.0857 | O20: ='FC Projeto'!O43 -> 81738.39919 | P20: ='FC Projeto'!P43 -> 80845.16791 | Q20: ='FC Projeto'!Q43 -> 78253.22499 | R20: ='FC Projeto'!R43 -> 77098.23697 | S20: ='FC Projeto'!S43 -> 75945.53887 | T20: ='FC Projeto'!T43 -> 74628.68373 | U20: ='FC Projeto'!U43 -> 74795.13068 | V20: ='FC Projeto'!V43 -> 75820.33533 | W20: ='FC Projeto'!W43 -> 74143.87875 | X20: ='FC Projeto'!X43 -> 72411.66772 | Y20: ='FC Projeto'!Y43 -> 71524.95028 | Z20: ='FC Projeto'!Z43 -> 72316.74268 | AA20: ='FC Projeto'!AA43 -> 72408.2199 | AB20: ='FC Projeto'!AB43 -> 72353.24008 | AC20: ='FC Projeto'!AC43 -> 72600.02434 | AD20: ='FC Projeto'!AD43 -> 72604.10852 | AE20: ='FC Projeto'!AE43 -> 72604.10852 | AF20: ='FC Projeto'!AF43 -> 72448.80148 | AG20: ='FC Projeto'!AG43 -> 71049.73361 | AH20: ='FC Projeto'!AH43 -> 69527.07908 | AI20: ='FC Projeto'!AI43 -> 68030.70115 | AJ20: ='FC Projeto'!AJ43 -> 67992.48864 | AK20: ='FC Projeto'!AK43 -> 68421.87722 | AL20: ='FC Projeto'!AL43 -> 68640.0725
B21: Prejuízo Acumulado | D21: =IF(D20<0,-D20) -> 1222.978133 | E21: =D21+IF(E20<0,-E20)-D22 -> 54700.60324 | F21: =E21+IF(F20<0,-F20)-E22 -> 60755.89251 | G21: 60755.89251 | H21: 54984.46904 | I21: 99223.95282 | J21: 99223.95282 | K21: 81765.01751 | L21: 60835.63563 | M21: 181810.1182 | N21: 181810.1182 | O21: 156883.3924 | P21: 132361.8727 | Q21: 108108.3223 | R21: 84632.35482 | S21: 61502.88372 | T21: 38719.22206 | U21: 16330.61694 | V21: 0 | W21: 0 | X21: 0 | Y21: 0 | Z21: 0 | AA21: 0 | AB21: 0 | AC21: 0 | AD21: 0 | AE21: 0 | AF21: 0 | AG21: 0 | AH21: 0 | AI21: 0 | AJ21: 0 | AK21: 0 | AL21: 0
B22: Dedução da Base de Cálculo | D22: =IF(D20<0,0,IF(D21<=0,0,IF(D21<=0.3*D20,D21,0.3*D20))) -> 0 | E22: =IF(E20<0,0,IF(E21<=0,0,IF(E21<=0.3*E20,E21,0.3*E20))) -> 0 | F22: =IF(F20<0,0,IF(F21<=0,0,IF(F21<=0.3*F20,F21,0.3*F20))) -> 0 | G22: =IF(G20<0,0,IF(G21<=0,0,IF(G21<=0.3*G20,G21,0.3*G20))) -> 5771.423471 | H22: 10083.82317 | I22: 0 | J22: 17458.93531 | K22: 20929.38188 | L22: 21582.92367 | M22: 0 | N22: 24926.72571 | O22: 24521.51976 | P22: 24253.55037 | Q22: 23475.9675 | R22: 23129.47109 | S22: 22783.66166 | T22: 22388.60512 | U22: 16330.61694 | V22: 0 | W22: 0 | X22: 0 | Y22: 0 | Z22: 0 | AA22: 0 | AB22: 0 | AC22: 0 | AD22: 0 | AE22: 0 | AF22: 0 | AG22: 0 | AH22: 0 | AI22: 0 | AJ22: 0 | AK22: 0 | AL22: 0
B23: Base de Cálculo | D23: =IF(D20<0,0,D20-D22) -> 0 | E23: =IF(E20<0,0,E20-E22) -> 0 | F23: 0 | G23: =IF(G20<0,0,G20-G22) -> 13466.65477 | H23: 23528.92072 | I23: 0 | J23: 40737.51572 | K23: 48835.22439 | L23: 50360.15524 | M23: 0 | N23: 58162.35999 | O23: 57216.87943 | P23: 56591.61754 | Q23: 54777.25749 | R23: 53968.76588 | S23: 53161.87721 | T23: 52240.07861 | U23: 58464.51374 | V23: 75820.33533 | W23: 74143.87875 | X23: 72411.66772 | Y23: 71524.95028 | Z23: 72316.74268 | AA23: 72408.2199 | AB23: 72353.24008 | AC23: 72600.02434 | AD23: 72604.10852 | AE23: 72604.10852 | AF23: 72448.80148 | AG23: 71049.73361 | AH23: 69527.07908 | AI23: 68030.70115 | AJ23: 67992.48864 | AK23: 68421.87722 | AL23: 68640.0725
B24: IRPJ | D24: =IF(D23<=0,0,'Painel de Controle'!$G$9*D23+'Painel de Controle'!$G$10*(D23-'Painel de Controle'!$G$11)) -> 0 | E24: =IF(E23<=0,0,'Painel de Controle'!$G$9*E23+'Painel de Controle'!$G$10*(E23-'Painel de Controle'!$G$11)) -> 0 | F24: =IF(F23<=0,0,'Painel de Controle'!$G$9*F23+'Painel de Controle'!$G$10*(F23-'Painel de Controle'!$G$11)) -> 0 | G24: =IF(G23<=0,0,'Painel de Controle'!$G$9*G23+'Painel de Controle'!$G$10*(G23-'Painel de Controle'!$G$11)) -> 3342.663692 | H24: =IF(H23<=0,0,'Painel de Controle'!$G$9*H23+'Painel de Controle'!$G$10*(H23-'Painel de Controle'!$G$11)) -> 5858.230181 | I24: =IF(I23<=0,0,'Painel de Controle'!$G$9*I23+'Painel de Controle'!$G$10*(I23-'Painel de Controle'!$G$11)) -> 0 | J24: =IF(J23<=0,0,'Painel de Controle'!$G$9*J23+'Painel de Controle'!$G$10*(J23-'Painel de Controle'!$G$11)) -> 10160.37893 | K24: =IF(K23<=0,0,'Painel de Controle'!$G$9*K23+'Painel de Controle'!$G$10*(K23-'Painel de Controle'!$G$11)) -> 12184.8061 | L24: =IF(L23<=0,0,'Painel de Controle'!$G$9*L23+'Painel de Controle'!$G$10*(L23-'Painel de Controle'!$G$11)) -> 12566.03881 | M24: =IF(M23<=0,0,'Painel de Controle'!$G$9*M23+'Painel de Controle'!$G$10*(M23-'Painel de Controle'!$G$11)) -> 0 | N24: =IF(N23<=0,0,'Painel de Controle'!$G$9*N23+'Painel de Controle'!$G$10*(N23-'Painel de Controle'!$G$11)) -> 14516.59 | O24: =IF(O23<=0,0,'Painel de Controle'!$G$9*O23+'Painel de Controle'!$G$10*(O23-'Painel de Controle'!$G$11)) -> 14280.21986 | P24: =IF(P23<=0,0,'Painel de Controle'!$G$9*P23+'Painel de Controle'!$G$10*(P23-'Painel de Controle'!$G$11)) -> 14123.90438 | Q24: =IF(Q23<=0,0,'Painel de Controle'!$G$9*Q23+'Painel de Controle'!$G$10*(Q23-'Painel de Controle'!$G$11)) -> 13670.31437 | R24: =IF(R23<=0,0,'Painel de Controle'!$G$9*R23+'Painel de Controle'!$G$10*(R23-'Painel de Controle'!$G$11)) -> 13468.19147 | S24: =IF(S23<=0,0,'Painel de Controle'!$G$9*S23+'Painel de Controle'!$G$10*(S23-'Painel de Controle'!$G$11)) -> 13266.4693 | T24: =IF(T23<=0,0,'Painel de Controle'!$G$9*T23+'Painel de Controle'!$G$10*(T23-'Painel de Controle'!$G$11)) -> 13036.01965 | U24: =IF(U23<=0,0,'Painel de Controle'!$G$9*U23+'Painel de Controle'!$G$10*(U23-'Painel de Controle'!$G$11)) -> 14592.12843 | V24: =IF(V23<=0,0,'Painel de Controle'!$G$9*V23+'Painel de Controle'!$G$10*(V23-'Painel de Controle'!$G$11)) -> 18931.08383 | W24: =IF(W23<=0,0,'Painel de Controle'!$G$9*W23+'Painel de Controle'!$G$10*(W23-'Painel de Controle'!$G$11)) -> 18511.96969 | X24: =IF(X23<=0,0,'Painel de Controle'!$G$9*X23+'Painel de Controle'!$G$10*(X23-'Painel de Controle'!$G$11)) -> 18078.91693 | Y24: =IF(Y23<=0,0,'Painel de Controle'!$G$9*Y23+'Painel de Controle'!$G$10*(Y23-'Painel de Controle'!$G$11)) -> 17857.23757 | Z24: =IF(Z23<=0,0,'Painel de Controle'!$G$9*Z23+'Painel de Controle'!$G$10*(Z23-'Painel de Controle'!$G$11)) -> 18055.18567 | AA24: =IF(AA23<=0,0,'Painel de Controle'!$G$9*AA23+'Painel de Controle'!$G$10*(AA23-'Painel de Controle'!$G$11)) -> 18078.05498 | AB24: =IF(AB23<=0,0,'Painel de Controle'!$G$9*AB23+'Painel de Controle'!$G$10*(AB23-'Painel de Controle'!$G$11)) -> 18064.31002 | AC24: =IF(AC23<=0,0,'Painel de Controle'!$G$9*AC23+'Painel de Controle'!$G$10*(AC23-'Painel de Controle'!$G$11)) -> 18126.00609 | AD24: =IF(AD23<=0,0,'Painel de Controle'!$G$9*AD23+'Painel de Controle'!$G$10*(AD23-'Painel de Controle'!$G$11)) -> 18127.02713 | AE24: =IF(AE23<=0,0,'Painel de Controle'!$G$9*AE23+'Painel de Controle'!$G$10*(AE23-'Painel de Controle'!$G$11)) -> 18127.02713 | AF24: =IF(AF23<=0,0,'Painel de Controle'!$G$9*AF23+'Painel de Controle'!$G$10*(AF23-'Painel de Controle'!$G$11)) -> 18088.20037 | AG24: =IF(AG23<=0,0,'Painel de Controle'!$G$9*AG23+'Painel de Controle'!$G$10*(AG23-'Painel de Controle'!$G$11)) -> 17738.4334 | AH24: =IF(AH23<=0,0,'Painel de Controle'!$G$9*AH23+'Painel de Controle'!$G$10*(AH23-'Painel de Controle'!$G$11)) -> 17357.76977 | AI24: =IF(AI23<=0,0,'Painel de Controle'!$G$9*AI23+'Painel de Controle'!$G$10*(AI23-'Painel de Controle'!$G$11)) -> 16983.67529 | AJ24: =IF(AJ23<=0,0,'Painel de Controle'!$G$9*AJ23+'Painel de Controle'!$G$10*(AJ23-'Painel de Controle'!$G$11)) -> 16974.12216 | AK24: =IF(AK23<=0,0,'Painel de Controle'!$G$9*AK23+'Painel de Controle'!$G$10*(AK23-'Painel de Controle'!$G$11)) -> 17081.4693 | AL24: =IF(AL23<=0,0,'Painel de Controle'!$G$9*AL23+'Painel de Controle'!$G$10*(AL23-'Painel de Controle'!$G$11)) -> 17136.01813
B25: CSLL | D25: ='Painel de Controle'!$G$12*Tributação!D23 -> 0 | E25: ='Painel de Controle'!$G$12*Tributação!E23 -> 0 | F25: ='Painel de Controle'!$G$12*Tributação!F23 -> 0 | G25: ='Painel de Controle'!$G$12*Tributação!G23 -> 1211.998929 | H25: ='Painel de Controle'!$G$12*Tributação!H23 -> 2117.602865 | I25: ='Painel de Controle'!$G$12*Tributação!I23 -> 0 | J25: ='Painel de Controle'!$G$12*Tributação!J23 -> 3666.376415 | K25: ='Painel de Controle'!$G$12*Tributação!K23 -> 4395.170195 | L25: ='Painel de Controle'!$G$12*Tributação!L23 -> 4532.413972 | M25: ='Painel de Controle'!$G$12*Tributação!M23 -> 0 | N25: ='Painel de Controle'!$G$12*Tributação!N23 -> 5234.612399 | O25: ='Painel de Controle'!$G$12*Tributação!O23 -> 5149.519149 | P25: ='Painel de Controle'!$G$12*Tributação!P23 -> 5093.245579 | Q25: ='Painel de Controle'!$G$12*Tributação!Q23 -> 4929.953175 | R25: ='Painel de Controle'!$G$12*Tributação!R23 -> 4857.188929 | S25: ='Painel de Controle'!$G$12*Tributação!S23 -> 4784.568949 | T25: ='Painel de Controle'!$G$12*Tributação!T23 -> 4701.607075 | U25: ='Painel de Controle'!$G$12*Tributação!U23 -> 5261.806237 | V25: ='Painel de Controle'!$G$12*Tributação!V23 -> 6823.830179 | W25: ='Painel de Controle'!$G$12*Tributação!W23 -> 6672.949088 | X25: ='Painel de Controle'!$G$12*Tributação!X23 -> 6517.050095 | Y25: ='Painel de Controle'!$G$12*Tributação!Y23 -> 6437.245525 | Z25: ='Painel de Controle'!$G$12*Tributação!Z23 -> 6508.506841 | AA25: ='Painel de Controle'!$G$12*Tributação!AA23 -> 6516.739791 | AB25: ='Painel de Controle'!$G$12*Tributação!AB23 -> 6511.791607 | AC25: ='Painel de Controle'!$G$12*Tributação!AC23 -> 6534.002191 | AD25: ='Painel de Controle'!$G$12*Tributação!AD23 -> 6534.369767 | AE25: ='Painel de Controle'!$G$12*Tributação!AE23 -> 6534.369767 | AF25: ='Painel de Controle'!$G$12*Tributação!AF23 -> 6520.392133 | AG25: ='Painel de Controle'!$G$12*Tributação!AG23 -> 6394.476025 | AH25: ='Painel de Controle'!$G$12*Tributação!AH23 -> 6257.437117 | AI25: ='Painel de Controle'!$G$12*Tributação!AI23 -> 6122.763103 | AJ25: ='Painel de Controle'!$G$12*Tributação!AJ23 -> 6119.323978 | AK25: ='Painel de Controle'!$G$12*Tributação!AK23 -> 6157.96895 | AL25: ='Painel de Controle'!$G$12*Tributação!AL23 -> 6177.606525
B26: IRPJ Sudene | D26: =IF('Painel de Controle'!$G$13="S",IF(Tributação!D4<=10,(1-'Painel de Controle'!$G$14),1),1)*Tributação!D24 -> 0 | E26: =IF('Painel de Controle'!$G$13="S",IF(Tributação!E4<=10,(1-'Painel de Controle'!$G$14),1),1)*Tributação!E24 -> 0 | F26: =IF('Painel de Controle'!$G$13="S",IF(Tributação!F4<=10,(1-'Painel de Controle'!$G$14),1),1)*Tributação!F24 -> 0 | G26: =IF('Painel de Controle'!$G$13="S",IF(Tributação!G4<=10,(1-'Painel de Controle'!$G$14),1),1)*Tributação!G24 -> 835.6659229 | H26: =IF('Painel de Controle'!$G$13="S",IF(Tributação!H4<=10,(1-'Painel de Controle'!$G$14),1),1)*Tributação!H24 -> 1464.557545 | I26: =IF('Painel de Controle'!$G$13="S",IF(Tributação!I4<=10,(1-'Painel de Controle'!$G$14),1),1)*Tributação!I24 -> 0 | J26: =IF('Painel de Controle'!$G$13="S",IF(Tributação!J4<=10,(1-'Painel de Controle'!$G$14),1),1)*Tributação!J24 -> 2540.094732 | K26: =IF('Painel de Controle'!$G$13="S",IF(Tributação!K4<=10,(1-'Painel de Controle'!$G$14),1),1)*Tributação!K24 -> 3046.201524 | L26: =IF('Painel de Controle'!$G$13="S",IF(Tributação!L4<=10,(1-'Painel de Controle'!$G$14),1),1)*Tributação!L24 -> 3141.509703 | M26: =IF('Painel de Controle'!$G$13="S",IF(Tributação!M4<=10,(1-'Painel de Controle'!$G$14),1),1)*Tributação!M24 -> 0 | N26: =IF('Painel de Controle'!$G$13="S",IF(Tributação!N4<=10,(1-'Painel de Controle'!$G$14),1),1)*Tributação!N24 -> 14516.59 | O26: =IF('Painel de Controle'!$G$13="S",IF(Tributação!O4<=10,(1-'Painel de Controle'!$G$14),1),1)*Tributação!O24 -> 14280.21986 | P26: =IF('Painel de Controle'!$G$13="S",IF(Tributação!P4<=10,(1-'Painel de Controle'!$G$14),1),1)*Tributação!P24 -> 14123.90438 | Q26: =IF('Painel de Controle'!$G$13="S",IF(Tributação!Q4<=10,(1-'Painel de Controle'!$G$14),1),1)*Tributação!Q24 -> 13670.31437 | R26: =IF('Painel de Controle'!$G$13="S",IF(Tributação!R4<=10,(1-'Painel de Controle'!$G$14),1),1)*Tributação!R24 -> 13468.19147 | S26: =IF('Painel de Controle'!$G$13="S",IF(Tributação!S4<=10,(1-'Painel de Controle'!$G$14),1),1)*Tributação!S24 -> 13266.4693 | T26: =IF('Painel de Controle'!$G$13="S",IF(Tributação!T4<=10,(1-'Painel de Controle'!$G$14),1),1)*Tributação!T24 -> 13036.01965 | U26: =IF('Painel de Controle'!$G$13="S",IF(Tributação!U4<=10,(1-'Painel de Controle'!$G$14),1),1)*Tributação!U24 -> 14592.12843 | V26: =IF('Painel de Controle'!$G$13="S",IF(Tributação!V4<=10,(1-'Painel de Controle'!$G$14),1),1)*Tributação!V24 -> 18931.08383 | W26: =IF('Painel de Controle'!$G$13="S",IF(Tributação!W4<=10,(1-'Painel de Controle'!$G$14),1),1)*Tributação!W24 -> 18511.96969 | X26: =IF('Painel de Controle'!$G$13="S",IF(Tributação!X4<=10,(1-'Painel de Controle'!$G$14),1),1)*Tributação!X24 -> 18078.91693 | Y26: =IF('Painel de Controle'!$G$13="S",IF(Tributação!Y4<=10,(1-'Painel de Controle'!$G$14),1),1)*Tributação!Y24 -> 17857.23757 | Z26: =IF('Painel de Controle'!$G$13="S",IF(Tributação!Z4<=10,(1-'Painel de Controle'!$G$14),1),1)*Tributação!Z24 -> 18055.18567 | AA26: =IF('Painel de Controle'!$G$13="S",IF(Tributação!AA4<=10,(1-'Painel de Controle'!$G$14),1),1)*Tributação!AA24 -> 18078.05498 | AB26: =IF('Painel de Controle'!$G$13="S",IF(Tributação!AB4<=10,(1-'Painel de Controle'!$G$14),1),1)*Tributação!AB24 -> 18064.31002 | AC26: =IF('Painel de Controle'!$G$13="S",IF(Tributação!AC4<=10,(1-'Painel de Controle'!$G$14),1),1)*Tributação!AC24 -> 18126.00609 | AD26: =IF('Painel de Controle'!$G$13="S",IF(Tributação!AD4<=10,(1-'Painel de Controle'!$G$14),1),1)*Tributação!AD24 -> 18127.02713 | AE26: =IF('Painel de Controle'!$G$13="S",IF(Tributação!AE4<=10,(1-'Painel de Controle'!$G$14),1),1)*Tributação!AE24 -> 18127.02713 | AF26: =IF('Painel de Controle'!$G$13="S",IF(Tributação!AF4<=10,(1-'Painel de Controle'!$G$14),1),1)*Tributação!AF24 -> 18088.20037 | AG26: =IF('Painel de Controle'!$G$13="S",IF(Tributação!AG4<=10,(1-'Painel de Controle'!$G$14),1),1)*Tributação!AG24 -> 17738.4334 | AH26: =IF('Painel de Controle'!$G$13="S",IF(Tributação!AH4<=10,(1-'Painel de Controle'!$G$14),1),1)*Tributação!AH24 -> 17357.76977 | AI26: =IF('Painel de Controle'!$G$13="S",IF(Tributação!AI4<=10,(1-'Painel de Controle'!$G$14),1),1)*Tributação!AI24 -> 16983.67529 | AJ26: =IF('Painel de Controle'!$G$13="S",IF(Tributação!AJ4<=10,(1-'Painel de Controle'!$G$14),1),1)*Tributação!AJ24 -> 16974.12216 | AK26: =IF('Painel de Controle'!$G$13="S",IF(Tributação!AK4<=10,(1-'Painel de Controle'!$G$14),1),1)*Tributação!AK24 -> 17081.4693 | AL26: =IF('Painel de Controle'!$G$13="S",IF(Tributação!AL4<=10,(1-'Painel de Controle'!$G$14),1),1)*Tributação!AL24 -> 17136.01813
B27: IRPJ/CSLL alavancado
B28: EBT | D28: ='FC Acionista'!D48 -> -1421.817745 | E28: ='FC Acionista'!E48 -> -57666.60742 | F28: ='FC Acionista'!F48 -> -11466.52153 | G28: ='FC Acionista'!G48 -> 11614.32024 | H28: ='FC Acionista'!H48 -> 24271.51642 | I28: ='FC Acionista'!I48 -> -70164.62987 | J28: ='FC Acionista'!J48 -> 40733.89305 | K28: ='FC Acionista'!K48 -> 51815.53189 | L28: ='FC Acionista'!L48 -> 54196.45163 | M28: ='FC Acionista'!M48 -> -169988.005 | N28: ='FC Acionista'!N48 -> 56719.60297 | O28: ='FC Acionista'!O48 -> 56485.03091 | P28: ='FC Acionista'!P48 -> 56728.36849 | Q28: ='FC Acionista'!Q48 -> 55898.34718 | R28: ='FC Acionista'!R48 -> 55800.00412 | S28: ='FC Acionista'!S48 -> 55703.95097 | T28: ='FC Acionista'!T48 -> 54883.44049 | U28: ='FC Acionista'!U48 -> 56811.80905 | V28: ='FC Acionista'!V48 -> 59657.70836 | W28: ='FC Acionista'!W48 -> 58019.13664 | X28: ='FC Acionista'!X48 -> 56430.2752 | Y28: ='FC Acionista'!Y48 -> 55114.91061 | Z28: ='FC Acionista'!Z48 -> 57645.22475 | AA28: ='FC Acionista'!AA48 -> 59666.40993 | AB28: ='FC Acionista'!AB48 -> 61674.07275 | AC28: ='FC Acionista'!AC48 -> 64224.91018 | AD28: ='FC Acionista'!AD48 -> 66136.19424 | AE28: ='FC Acionista'!AE48 -> 67929.30335 | AF28: ='FC Acionista'!AF48 -> 69512.10702 | AG28: ='FC Acionista'!AG48 -> 69830.69546 | AH28: ='FC Acionista'!AH48 -> 69078.48817 | AI28: ='FC Acionista'!AI48 -> 68030.70115 | AJ28: ='FC Acionista'!AJ48 -> 67992.48864 | AK28: ='FC Acionista'!AK48 -> 68421.87722 | AL28: ='FC Acionista'!AL48 -> 68640.0725
B29: Prejuízo Acumulado | D29: =IF(D28<0,-D28) -> 1421.817745 | E29: =D29+IF(E28<0,-E28)-D30 -> 59088.42516 | F29: =E29+IF(F28<0,-F28)-E30 -> 70554.9467 | G29: =F29+IF(G28<0,-G28)-F30 -> 70554.9467 | H29: =G29+IF(H28<0,-H28)-G30 -> 67070.65063 | I29: =H29+IF(I28<0,-I28)-H30 -> 129953.8256 | J29: =I29+IF(J28<0,-J28)-I30 -> 129953.8256 | K29: =J29+IF(K28<0,-K28)-J30 -> 117733.6577 | L29: =K29+IF(L28<0,-L28)-K30 -> 102188.9981 | M29: =L29+IF(M28<0,-M28)-L30 -> 255918.0676 | N29: =M29+IF(N28<0,-N28)-M30 -> 255918.0676 | O29: =N29+IF(O28<0,-O28)-N30 -> 238902.1867 | P29: =O29+IF(P28<0,-P28)-O30 -> 221956.6774 | Q29: =P29+IF(Q28<0,-Q28)-P30 -> 204938.1669 | R29: =Q29+IF(R28<0,-R28)-Q30 -> 188168.6627 | S29: =R29+IF(S28<0,-S28)-R30 -> 171428.6615 | T29: =S29+IF(T28<0,-T28)-S30 -> 154717.4762 | U29: =T29+IF(U28<0,-U28)-T30 -> 138252.4441 | V29: =U29+IF(V28<0,-V28)-U30 -> 121208.9013 | W29: =V29+IF(W28<0,-W28)-V30 -> 103311.5888 | X29: =W29+IF(X28<0,-X28)-W30 -> 85905.84784 | Y29: =X29+IF(Y28<0,-Y28)-X30 -> 68976.76528 | Z29: =Y29+IF(Z28<0,-Z28)-Y30 -> 52442.2921 | AA29: =Z29+IF(AA28<0,-AA28)-Z30 -> 35148.72467 | AB29: =AA29+IF(AB28<0,-AB28)-AA30 -> 17248.80169 | AC29: =AB29+IF(AC28<0,-AC28)-AB30 -> 0 | AD29: =AC29+IF(AD28<0,-AD28)-AC30 -> 0 | AE29: =AD29+IF(AE28<0,-AE28)-AD30 -> 0 | AF29: =AE29+IF(AF28<0,-AF28)-AE30 -> 0 | AG29: =AF29+IF(AG28<0,-AG28)-AF30 -> 0 | AH29: =AG29+IF(AH28<0,-AH28)-AG30 -> 0 | AI29: =AH29+IF(AI28<0,-AI28)-AH30 -> 0 | AJ29: =AI29+IF(AJ28<0,-AJ28)-AI30 -> 0 | AK29: =AJ29+IF(AK28<0,-AK28)-AJ30 -> 0 | AL29: =AK29+IF(AL28<0,-AL28)-AK30 -> 0
B30: Dedução da Base de Cálculo | D30: =IF(D28<0,0,IF(D29<=0,0,IF(D29<=0.3*D28,D29,0.3*D28))) -> 0 | E30: =IF(E28<0,0,IF(E29<=0,0,IF(E29<=0.3*E28,E29,0.3*E28))) -> 0 | F30: =IF(F28<0,0,IF(F29<=0,0,IF(F29<=0.3*F28,F29,0.3*F28))) -> 0 | G30: =IF(G28<0,0,IF(G29<=0,0,IF(G29<=0.3*G28,G29,0.3*G28))) -> 3484.296073 | H30: =IF(H28<0,0,IF(H29<=0,0,IF(H29<=0.3*H28,H29,0.3*H28))) -> 7281.454927 | I30: =IF(I28<0,0,IF(I29<=0,0,IF(I29<=0.3*I28,I29,0.3*I28))) -> 0 | J30: =IF(J28<0,0,IF(J29<=0,0,IF(J29<=0.3*J28,J29,0.3*J28))) -> 12220.16791 | K30: =IF(K28<0,0,IF(K29<=0,0,IF(K29<=0.3*K28,K29,0.3*K28))) -> 15544.65957 | L30: =IF(L28<0,0,IF(L29<=0,0,IF(L29<=0.3*L28,L29,0.3*L28))) -> 16258.93549 | M30: =IF(M28<0,0,IF(M29<=0,0,IF(M29<=0.3*M28,M29,0.3*M28))) -> 0 | N30: =IF(N28<0,0,IF(N29<=0,0,IF(N29<=0.3*N28,N29,0.3*N28))) -> 17015.88089 | O30: =IF(O28<0,0,IF(O29<=0,0,IF(O29<=0.3*O28,O29,0.3*O28))) -> 16945.50927 | P30: =IF(P28<0,0,IF(P29<=0,0,IF(P29<=0.3*P28,P29,0.3*P28))) -> 17018.51055 | Q30: =IF(Q28<0,0,IF(Q29<=0,0,IF(Q29<=0.3*Q28,Q29,0.3*Q28))) -> 16769.50415 | R30: =IF(R28<0,0,IF(R29<=0,0,IF(R29<=0.3*R28,R29,0.3*R28))) -> 16740.00124 | S30: =IF(S28<0,0,IF(S29<=0,0,IF(S29<=0.3*S28,S29,0.3*S28))) -> 16711.18529 | T30: =IF(T28<0,0,IF(T29<=0,0,IF(T29<=0.3*T28,T29,0.3*T28))) -> 16465.03215 | U30: =IF(U28<0,0,IF(U29<=0,0,IF(U29<=0.3*U28,U29,0.3*U28))) -> 17043.54272 | V30: =IF(V28<0,0,IF(V29<=0,0,IF(V29<=0.3*V28,V29,0.3*V28))) -> 17897.31251 | W30: =IF(W28<0,0,IF(W29<=0,0,IF(W29<=0.3*W28,W29,0.3*W28))) -> 17405.74099 | X30: =IF(X28<0,0,IF(X29<=0,0,IF(X29<=0.3*X28,X29,0.3*X28))) -> 16929.08256 | Y30: =IF(Y28<0,0,IF(Y29<=0,0,IF(Y29<=0.3*Y28,Y29,0.3*Y28))) -> 16534.47318 | Z30: =IF(Z28<0,0,IF(Z29<=0,0,IF(Z29<=0.3*Z28,Z29,0.3*Z28))) -> 17293.56743 | AA30: =IF(AA28<0,0,IF(AA29<=0,0,IF(AA29<=0.3*AA28,AA29,0.3*AA28))) -> 17899.92298 | AB30: =IF(AB28<0,0,IF(AB29<=0,0,IF(AB29<=0.3*AB28,AB29,0.3*AB28))) -> 17248.80169 | AC30: =IF(AC28<0,0,IF(AC29<=0,0,IF(AC29<=0.3*AC28,AC29,0.3*AC28))) -> 0 | AD30: =IF(AD28<0,0,IF(AD29<=0,0,IF(AD29<=0.3*AD28,AD29,0.3*AD28))) -> 0 | AE30: =IF(AE28<0,0,IF(AE29<=0,0,IF(AE29<=0.3*AE28,AE29,0.3*AE28))) -> 0 | AF30: =IF(AF28<0,0,IF(AF29<=0,0,IF(AF29<=0.3*AF28,AF29,0.3*AF28))) -> 0 | AG30: =IF(AG28<0,0,IF(AG29<=0,0,IF(AG29<=0.3*AG28,AG29,0.3*AG28))) -> 0 | AH30: =IF(AH28<0,0,IF(AH29<=0,0,IF(AH29<=0.3*AH28,AH29,0.3*AH28))) -> 0 | AI30: =IF(AI28<0,0,IF(AI29<=0,0,IF(AI29<=0.3*AI28,AI29,0.3*AI28))) -> 0 | AJ30: =IF(AJ28<0,0,IF(AJ29<=0,0,IF(AJ29<=0.3*AJ28,AJ29,0.3*AJ28))) -> 0 | AK30: =IF(AK28<0,0,IF(AK29<=0,0,IF(AK29<=0.3*AK28,AK29,0.3*AK28))) -> 0 | AL30: =IF(AL28<0,0,IF(AL29<=0,0,IF(AL29<=0.3*AL28,AL29,0.3*AL28))) -> 0
B31: Base de Cálculo | D31: =IF(D28<0,0,D28-D30) -> 0 | E31: =IF(E28<0,0,E28-E30) -> 0 | F31: =IF(F28<0,0,F28-F30) -> 0 | G31: =IF(G28<0,0,G28-G30) -> 8130.024169 | H31: =IF(H28<0,0,H28-H30) -> 16990.0615 | I31: =IF(I28<0,0,I28-I30) -> 0 | J31: =IF(J28<0,0,J28-J30) -> 28513.72513 | K31: =IF(K28<0,0,K28-K30) -> 36270.87232 | L31: =IF(L28<0,0,L28-L30) -> 37937.51614 | M31: =IF(M28<0,0,M28-M30) -> 0 | N31: =IF(N28<0,0,N28-N30) -> 39703.72208 | O31: =IF(O28<0,0,O28-O30) -> 39539.52164 | P31: =IF(P28<0,0,P28-P30) -> 39709.85794 | Q31: =IF(Q28<0,0,Q28-Q30) -> 39128.84303 | R31: =IF(R28<0,0,R28-R30) -> 39060.00288 | S31: =IF(S28<0,0,S28-S30) -> 38992.76568 | T31: =IF(T28<0,0,T28-T30) -> 38418.40834 | U31: =IF(U28<0,0,U28-U30) -> 39768.26634 | V31: =IF(V28<0,0,V28-V30) -> 41760.39585 | W31: =IF(W28<0,0,W28-W30) -> 40613.39564 | X31: =IF(X28<0,0,X28-X30) -> 39501.19264 | Y31: =IF(Y28<0,0,Y28-Y30) -> 38580.43743 | Z31: =IF(Z28<0,0,Z28-Z30) -> 40351.65733 | AA31: =IF(AA28<0,0,AA28-AA30) -> 41766.48695 | AB31: =IF(AB28<0,0,AB28-AB30) -> 44425.27105 | AC31: =IF(AC28<0,0,AC28-AC30) -> 64224.91018 | AD31: =IF(AD28<0,0,AD28-AD30) -> 66136.19424 | AE31: =IF(AE28<0,0,AE28-AE30) -> 67929.30335 | AF31: =IF(AF28<0,0,AF28-AF30) -> 69512.10702 | AG31: =IF(AG28<0,0,AG28-AG30) -> 69830.69546 | AH31: =IF(AH28<0,0,AH28-AH30) -> 69078.48817 | AI31: =IF(AI28<0,0,AI28-AI30) -> 68030.70115 | AJ31: =IF(AJ28<0,0,AJ28-AJ30) -> 67992.48864 | AK31: =IF(AK28<0,0,AK28-AK30) -> 68421.87722 | AL31: =IF(AL28<0,0,AL28-AL30) -> 68640.0725
B32: IRPJ | D32: =IF(D31<=0,0,'Painel de Controle'!$G$9*D31+'Painel de Controle'!$G$10*(D31-'Painel de Controle'!$G$11)) -> 0 | E32: =IF(E31<=0,0,'Painel de Controle'!$G$9*E31+'Painel de Controle'!$G$10*(E31-'Painel de Controle'!$G$11)) -> 0 | F32: =IF(F31<=0,0,'Painel de Controle'!$G$9*F31+'Painel de Controle'!$G$10*(F31-'Painel de Controle'!$G$11)) -> 0 | G32: =IF(G31<=0,0,'Painel de Controle'!$G$9*G31+'Painel de Controle'!$G$10*(G31-'Painel de Controle'!$G$11)) -> 2008.506042 | H32: =IF(H31<=0,0,'Painel de Controle'!$G$9*H31+'Painel de Controle'!$G$10*(H31-'Painel de Controle'!$G$11)) -> 4223.515374 | I32: =IF(I31<=0,0,'Painel de Controle'!$G$9*I31+'Painel de Controle'!$G$10*(I31-'Painel de Controle'!$G$11)) -> 0 | J32: =IF(J31<=0,0,'Painel de Controle'!$G$9*J31+'Painel de Controle'!$G$10*(J31-'Painel de Controle'!$G$11)) -> 7104.431283 | K32: =IF(K31<=0,0,'Painel de Controle'!$G$9*K31+'Painel de Controle'!$G$10*(K31-'Painel de Controle'!$G$11)) -> 9043.718081 | L32: =IF(L31<=0,0,'Painel de Controle'!$G$9*L31+'Painel de Controle'!$G$10*(L31-'Painel de Controle'!$G$11)) -> 9460.379036 | M32: =IF(M31<=0,0,'Painel de Controle'!$G$9*M31+'Painel de Controle'!$G$10*(M31-'Painel de Controle'!$G$11)) -> 0 | N32: =IF(N31<=0,0,'Painel de Controle'!$G$9*N31+'Painel de Controle'!$G$10*(N31-'Painel de Controle'!$G$11)) -> 9901.930519 | O32: =IF(O31<=0,0,'Painel de Controle'!$G$9*O31+'Painel de Controle'!$G$10*(O31-'Painel de Controle'!$G$11)) -> 9860.880409 | P32: =IF(P31<=0,0,'Painel de Controle'!$G$9*P31+'Painel de Controle'!$G$10*(P31-'Painel de Controle'!$G$11)) -> 9903.464486 | Q32: =IF(Q31<=0,0,'Painel de Controle'!$G$9*Q31+'Painel de Controle'!$G$10*(Q31-'Painel de Controle'!$G$11)) -> 9758.210756 | R32: =IF(R31<=0,0,'Painel de Controle'!$G$9*R31+'Painel de Controle'!$G$10*(R31-'Painel de Controle'!$G$11)) -> 9741.00072 | S32: =IF(S31<=0,0,'Painel de Controle'!$G$9*S31+'Painel de Controle'!$G$10*(S31-'Painel de Controle'!$G$11)) -> 9724.19142 | T32: =IF(T31<=0,0,'Painel de Controle'!$G$9*T31+'Painel de Controle'!$G$10*(T31-'Painel de Controle'!$G$11)) -> 9580.602086 | U32: =IF(U31<=0,0,'Painel de Controle'!$G$9*U31+'Painel de Controle'!$G$10*(U31-'Painel de Controle'!$G$11)) -> 9918.066584 | V32: =IF(V31<=0,0,'Painel de Controle'!$G$9*V31+'Painel de Controle'!$G$10*(V31-'Painel de Controle'!$G$11)) -> 10416.09896 | W32: =IF(W31<=0,0,'Painel de Controle'!$G$9*W31+'Painel de Controle'!$G$10*(W31-'Painel de Controle'!$G$11)) -> 10129.34891 | X32: =IF(X31<=0,0,'Painel de Controle'!$G$9*X31+'Painel de Controle'!$G$10*(X31-'Painel de Controle'!$G$11)) -> 9851.298159 | Y32: =IF(Y31<=0,0,'Painel de Controle'!$G$9*Y31+'Painel de Controle'!$G$10*(Y31-'Painel de Controle'!$G$11)) -> 9621.109357 | Z32: =IF(Z31<=0,0,'Painel de Controle'!$G$9*Z31+'Painel de Controle'!$G$10*(Z31-'Painel de Controle'!$G$11)) -> 10063.91433 | AA32: =IF(AA31<=0,0,'Painel de Controle'!$G$9*AA31+'Painel de Controle'!$G$10*(AA31-'Painel de Controle'!$G$11)) -> 10417.62174 | AB32: =IF(AB31<=0,0,'Painel de Controle'!$G$9*AB31+'Painel de Controle'!$G$10*(AB31-'Painel de Controle'!$G$11)) -> 11082.31776 | AC32: =IF(AC31<=0,0,'Painel de Controle'!$G$9*AC31+'Painel de Controle'!$G$10*(AC31-'Painel de Controle'!$G$11)) -> 16032.22755 | AD32: =IF(AD31<=0,0,'Painel de Controle'!$G$9*AD31+'Painel de Controle'!$G$10*(AD31-'Painel de Controle'!$G$11)) -> 16510.04856 | AE32: =IF(AE31<=0,0,'Painel de Controle'!$G$9*AE31+'Painel de Controle'!$G$10*(AE31-'Painel de Controle'!$G$11)) -> 16958.32584 | AF32: =IF(AF31<=0,0,'Painel de Controle'!$G$9*AF31+'Painel de Controle'!$G$10*(AF31-'Painel de Controle'!$G$11)) -> 17354.02676 | AG32: =IF(AG31<=0,0,'Painel de Controle'!$G$9*AG31+'Painel de Controle'!$G$10*(AG31-'Painel de Controle'!$G$11)) -> 17433.67386 | AH32: =IF(AH31<=0,0,'Painel de Controle'!$G$9*AH31+'Painel de Controle'!$G$10*(AH31-'Painel de Controle'!$G$11)) -> 17245.62204 | AI32: =IF(AI31<=0,0,'Painel de Controle'!$G$9*AI31+'Painel de Controle'!$G$10*(AI31-'Painel de Controle'!$G$11)) -> 16983.67529 | AJ32: =IF(AJ31<=0,0,'Painel de Controle'!$G$9*AJ31+'Painel de Controle'!$G$10*(AJ31-'Painel de Controle'!$G$11)) -> 16974.12216 | AK32: =IF(AK31<=0,0,'Painel de Controle'!$G$9*AK31+'Painel de Controle'!$G$10*(AK31-'Painel de Controle'!$G$11)) -> 17081.4693 | AL32: =IF(AL31<=0,0,'Painel de Controle'!$G$9*AL31+'Painel de Controle'!$G$10*(AL31-'Painel de Controle'!$G$11)) -> 17136.01813
B33: CSLL | D33: ='Painel de Controle'!$G$12*Tributação!D31 -> 0 | E33: ='Painel de Controle'!$G$12*Tributação!E31 -> 0 | F33: ='Painel de Controle'!$G$12*Tributação!F31 -> 0 | G33: ='Painel de Controle'!$G$12*Tributação!G31 -> 731.7021752 | H33: ='Painel de Controle'!$G$12*Tributação!H31 -> 1529.105535 | I33: ='Painel de Controle'!$G$12*Tributação!I31 -> 0 | J33: ='Painel de Controle'!$G$12*Tributação!J31 -> 2566.235262 | K33: ='Painel de Controle'!$G$12*Tributação!K31 -> 3264.378509 | L33: ='Painel de Controle'!$G$12*Tributação!L31 -> 3414.376453 | M33: ='Painel de Controle'!$G$12*Tributação!M31 -> 0 | N33: ='Painel de Controle'!$G$12*Tributação!N31 -> 3573.334987 | O33: ='Painel de Controle'!$G$12*Tributação!O31 -> 3558.556947 | P33: ='Painel de Controle'!$G$12*Tributação!P31 -> 3573.887215 | Q33: ='Painel de Controle'!$G$12*Tributação!Q31 -> 3521.595872 | R33: ='Painel de Controle'!$G$12*Tributação!R31 -> 3515.400259 | S33: ='Painel de Controle'!$G$12*Tributação!S31 -> 3509.348911 | T33: ='Painel de Controle'!$G$12*Tributação!T31 -> 3457.656751 | U33: ='Painel de Controle'!$G$12*Tributação!U31 -> 3579.14397 | V33: ='Painel de Controle'!$G$12*Tributação!V31 -> 3758.435627 | W33: ='Painel de Controle'!$G$12*Tributação!W31 -> 3655.205608 | X33: ='Painel de Controle'!$G$12*Tributação!X31 -> 3555.107337 | Y33: ='Painel de Controle'!$G$12*Tributação!Y31 -> 3472.239368 | Z33: ='Painel de Controle'!$G$12*Tributação!Z31 -> 3631.649159 | AA33: ='Painel de Controle'!$G$12*Tributação!AA31 -> 3758.983825 | AB33: ='Painel de Controle'!$G$12*Tributação!AB31 -> 3998.274395 | AC33: ='Painel de Controle'!$G$12*Tributação!AC31 -> 5780.241917 | AD33: ='Painel de Controle'!$G$12*Tributação!AD31 -> 5952.257481 | AE33: ='Painel de Controle'!$G$12*Tributação!AE31 -> 6113.637301 | AF33: ='Painel de Controle'!$G$12*Tributação!AF31 -> 6256.089632 | AG33: ='Painel de Controle'!$G$12*Tributação!AG31 -> 6284.762591 | AH33: ='Painel de Controle'!$G$12*Tributação!AH31 -> 6217.063935 | AI33: ='Painel de Controle'!$G$12*Tributação!AI31 -> 6122.763103 | AJ33: ='Painel de Controle'!$G$12*Tributação!AJ31 -> 6119.323978 | AK33: ='Painel de Controle'!$G$12*Tributação!AK31 -> 6157.96895 | AL33: ='Painel de Controle'!$G$12*Tributação!AL31 -> 6177.606525
B34: IRPJ Sudene | D34: =IF('Painel de Controle'!$G$13="S",IF(Tributação!D4<=10,(1-'Painel de Controle'!$G$14),1),1)*Tributação!D32 -> 0 | E34: =IF('Painel de Controle'!$G$13="S",IF(Tributação!E4<=10,(1-'Painel de Controle'!$G$14),1),1)*Tributação!E32 -> 0 | F34: =IF('Painel de Controle'!$G$13="S",IF(Tributação!F4<=10,(1-'Painel de Controle'!$G$14),1),1)*Tributação!F32 -> 0 | G34: =IF('Painel de Controle'!$G$13="S",IF(Tributação!G4<=10,(1-'Painel de Controle'!$G$14),1),1)*Tributação!G32 -> 502.1265106 | H34: =IF('Painel de Controle'!$G$13="S",IF(Tributação!H4<=10,(1-'Painel de Controle'!$G$14),1),1)*Tributação!H32 -> 1055.878844 | I34: =IF('Painel de Controle'!$G$13="S",IF(Tributação!I4<=10,(1-'Painel de Controle'!$G$14),1),1)*Tributação!I32 -> 0 | J34: =IF('Painel de Controle'!$G$13="S",IF(Tributação!J4<=10,(1-'Painel de Controle'!$G$14),1),1)*Tributação!J32 -> 1776.107821 | K34: =IF('Painel de Controle'!$G$13="S",IF(Tributação!K4<=10,(1-'Painel de Controle'!$G$14),1),1)*Tributação!K32 -> 2260.92952 | L34: =IF('Painel de Controle'!$G$13="S",IF(Tributação!L4<=10,(1-'Painel de Controle'!$G$14),1),1)*Tributação!L32 -> 2365.094759 | M34: =IF('Painel de Controle'!$G$13="S",IF(Tributação!M4<=10,(1-'Painel de Controle'!$G$14),1),1)*Tributação!M32 -> 0 | N34: =IF('Painel de Controle'!$G$13="S",IF(Tributação!N4<=10,(1-'Painel de Controle'!$G$14),1),1)*Tributação!N32 -> 9901.930519 | O34: =IF('Painel de Controle'!$G$13="S",IF(Tributação!O4<=10,(1-'Painel de Controle'!$G$14),1),1)*Tributação!O32 -> 9860.880409 | P34: =IF('Painel de Controle'!$G$13="S",IF(Tributação!P4<=10,(1-'Painel de Controle'!$G$14),1),1)*Tributação!P32 -> 9903.464486 | Q34: =IF('Painel de Controle'!$G$13="S",IF(Tributação!Q4<=10,(1-'Painel de Controle'!$G$14),1),1)*Tributação!Q32 -> 9758.210756 | R34: =IF('Painel de Controle'!$G$13="S",IF(Tributação!R4<=10,(1-'Painel de Controle'!$G$14),1),1)*Tributação!R32 -> 9741.00072 | S34: =IF('Painel de Controle'!$G$13="S",IF(Tributação!S4<=10,(1-'Painel de Controle'!$G$14),1),1)*Tributação!S32 -> 9724.19142 | T34: =IF('Painel de Controle'!$G$13="S",IF(Tributação!T4<=10,(1-'Painel de Controle'!$G$14),1),1)*Tributação!T32 -> 9580.602086 | U34: =IF('Painel de Controle'!$G$13="S",IF(Tributação!U4<=10,(1-'Painel de Controle'!$G$14),1),1)*Tributação!U32 -> 9918.066584 | V34: =IF('Painel de Controle'!$G$13="S",IF(Tributação!V4<=10,(1-'Painel de Controle'!$G$14),1),1)*Tributação!V32 -> 10416.09896 | W34: =IF('Painel de Controle'!$G$13="S",IF(Tributação!W4<=10,(1-'Painel de Controle'!$G$14),1),1)*Tributação!W32 -> 10129.34891 | X34: =IF('Painel de Controle'!$G$13="S",IF(Tributação!X4<=10,(1-'Painel de Controle'!$G$14),1),1)*Tributação!X32 -> 9851.298159 | Y34: =IF('Painel de Controle'!$G$13="S",IF(Tributação!Y4<=10,(1-'Painel de Controle'!$G$14),1),1)*Tributação!Y32 -> 9621.109357 | Z34: =IF('Painel de Controle'!$G$13="S",IF(Tributação!Z4<=10,(1-'Painel de Controle'!$G$14),1),1)*Tributação!Z32 -> 10063.91433 | AA34: =IF('Painel de Controle'!$G$13="S",IF(Tributação!AA4<=10,(1-'Painel de Controle'!$G$14),1),1)*Tributação!AA32 -> 10417.62174 | AB34: =IF('Painel de Controle'!$G$13="S",IF(Tributação!AB4<=10,(1-'Painel de Controle'!$G$14),1),1)*Tributação!AB32 -> 11082.31776 | AC34: =IF('Painel de Controle'!$G$13="S",IF(Tributação!AC4<=10,(1-'Painel de Controle'!$G$14),1),1)*Tributação!AC32 -> 16032.22755 | AD34: =IF('Painel de Controle'!$G$13="S",IF(Tributação!AD4<=10,(1-'Painel de Controle'!$G$14),1),1)*Tributação!AD32 -> 16510.04856 | AE34: =IF('Painel de Controle'!$G$13="S",IF(Tributação!AE4<=10,(1-'Painel de Controle'!$G$14),1),1)*Tributação!AE32 -> 16958.32584 | AF34: =IF('Painel de Controle'!$G$13="S",IF(Tributação!AF4<=10,(1-'Painel de Controle'!$G$14),1),1)*Tributação!AF32 -> 17354.02676 | AG34: =IF('Painel de Controle'!$G$13="S",IF(Tributação!AG4<=10,(1-'Painel de Controle'!$G$14),1),1)*Tributação!AG32 -> 17433.67386 | AH34: =IF('Painel de Controle'!$G$13="S",IF(Tributação!AH4<=10,(1-'Painel de Controle'!$G$14),1),1)*Tributação!AH32 -> 17245.62204 | AI34: =IF('Painel de Controle'!$G$13="S",IF(Tributação!AI4<=10,(1-'Painel de Controle'!$G$14),1),1)*Tributação!AI32 -> 16983.67529 | AJ34: =IF('Painel de Controle'!$G$13="S",IF(Tributação!AJ4<=10,(1-'Painel de Controle'!$G$14),1),1)*Tributação!AJ32 -> 16974.12216 | AK34: =IF('Painel de Controle'!$G$13="S",IF(Tributação!AK4<=10,(1-'Painel de Controle'!$G$14),1),1)*Tributação!AK32 -> 17081.4693 | AL34: =IF('Painel de Controle'!$G$13="S",IF(Tributação!AL4<=10,(1-'Painel de Controle'!$G$14),1),1)*Tributação!AL32 -> 17136.01813

Sheet WACC
B2: WACC
B4: Estrutura de Capital
B5: (A) Participação Capital Próprio | D5: =[6]WACC!C4 -> 0.4
B6: (B) Participação Capital Terceiros | D6: =[6]WACC!C5 -> 0.6
B7: Custo do Capital Próprio (CAPM)
B8: (1) Taxa Livre de Risco | D8: =[6]WACC!C7 -> 0.03706804644
B9: (2) Taxa de Retorno do Mercado | D9: =[6]WACC!C8 -> 0.1008992758
B10: (3) Prêmio de Risco de Mercado | C10: (2) - (1) | D10: =[6]WACC!C9 -> 0.06383122935
B11: (4) Beta Desalavancado | D11: =[6]WACC!C10 -> 0.6699377565
B12: (5) IR + CSLL | D12: 0.34
B13: (6) Beta Alavancado | C13: {(A) + (B) * [1 - (5)]} / (A) * (4) | D13: =(D5+D6*(1-D12))/D5*D11 -> 1.333176136
B14: (7) Prêmio de Risco do Negócio | C14: (3) * (6) | D14: =D10*D13 -> 0.08509827166
B15: (8) Prêmio de Risco Brasil | D15: =[6]WACC!C14 -> 0.02831941363
B16: (9) Custo de Capital Próprio Nominal (USD) | C16: (1) + (7) + (8) | D16: =D8+D14+D15 -> 0.1504857317
B17: (10) Taxa de Inflação Americana | D17: =[6]WACC!C16 -> 0.02015276342
B18: (14) Custo Real do Capital Próprio (CAPM) | C18: [1+(13)]/[1+(11)]-1 | D18: =(1+D16)/(1+D17)-1 -> 0.1277582858
B19: Custo do Capital de Terceiros
B20: (15) Custo Real da Dívida Líquido de impostos | D20: =[6]WACC!C19 -> 0.06798317143
B21: WACC
B22: (16) WACC = | C22: (A) x (14) + (B) x (16) | D22: =D5*D18+D6*D20 -> 0.09189321718

Sheet Investimentos >>>>

Sheet CAPEX
C2: INVESTIMENTOS
E4: Total | F4: 1 | G4: 2 | H4: 3 | I4: 4 | J4: 5 | K4: 6 | L4: 7 | M4: 8 | N4: 9 | O4: 10
C5: Ocupação da área (hectares) | E5: =SUM(F5:O5) -> 6016.76 | F5: =VLOOKUP(F4,'Painel de Controle'!$B$11:$C$20,2,FALSE) -> 0 | G5: =VLOOKUP(G4,'Painel de Controle'!$B$11:$C$20,2,FALSE) -> 0 | H5: =VLOOKUP(H4,'Painel de Controle'!$B$11:$C$20,2,FALSE) -> 0 | I5: =VLOOKUP(I4,'Painel de Controle'!$B$11:$C$20,2,FALSE) -> 1783.76 | J5: =VLOOKUP(J4,'Painel de Controle'!$B$11:$C$20,2,FALSE) -> 1046 | K5: =VLOOKUP(K4,'Painel de Controle'!$B$11:$C$20,2,FALSE) -> 1184 | L5: =VLOOKUP(L4,'Painel de Controle'!$B$11:$C$20,2,FALSE) -> 1026 | M5: =VLOOKUP(M4,'Painel de Controle'!$B$11:$C$20,2,FALSE) -> 977 | N5: =VLOOKUP(N4,'Painel de Controle'!$B$11:$C$20,2,FALSE) -> 0 | O5: =VLOOKUP(O4,'Painel de Controle'!$B$11:$C$20,2,FALSE) -> 0
C6: Área Total Ocupada (hectares) | F6: =F5 -> 0 | G6: =F6+G5 -> 0 | H6: =G6+H5 -> 0 | I6: 1783.76 | J6: 2829.76 | K6: 4013.76 | L6: 5039.76 | M6: =L6+M5 -> 6016.76 | N6: =M6+N5 -> 6016.76 | O6: =N6+O5 -> 6016.76
I7: =I5/$E$5 -> 0.2964652072 | J7: =J5/$E$5 -> 0.1738477187 | K7: =K5/$E$5 -> 0.196783651 | L7: 0.1705236705 | M7: 0.1623797526 | N7: 0 | O7: 0
A8: Item | C8: CAPEX FINAL
C9: Discriminação | D9: Vida Útil (anos) | E9: Valores (R$) | F9: 1 | G9: 2 | H9: 3 | I9: 4 | J9: 5 | K9: 6 | L9: 7 | M9: 8 | N9: 9 | O9: 10 | P9: 11 | Q9: 12 | R9: 13 | S9: 14 | T9: 15 | U9: 16 | V9: 17 | W9: 18 | X9: 19 | Y9: 20 | Z9: 21 | AA9: 22 | AB9: 23 | AC9: 24 | AD9: 25 | AE9: 26 | AF9: 27 | AG9: 28 | AH9: 29 | AI9: 30 | AJ9: 31 | AK9: 32 | AL9: 33 | AM9: 34 | AN9: 35
C10: Custos diversos
C11: Desmatamento das áreas agrícolas (SAU) | D11: =D74 -> 35 | E11: =SUM(F11:O11) -> 29604917.08 | F11: =IF('Painel de Controle'!$G$16="S",CAPEX!F74*(1-'Painel de Controle'!$G$17),CAPEX!F74) -> 0 | G11: =IF('Painel de Controle'!$G$16="S",CAPEX!G74*(1-'Painel de Controle'!$G$17),CAPEX!G74) -> 0 | H11: =IF('Painel de Controle'!$G$16="S",CAPEX!H74*(1-'Painel de Controle'!$G$17),CAPEX!H74) -> 8776810.567 | I11: =IF('Painel de Controle'!$G$16="S",CAPEX!I74*(1-'Painel de Controle'!$G$17),CAPEX!I74) -> 5146751.573 | J11: =IF('Painel de Controle'!$G$16="S",CAPEX!J74*(1-'Painel de Controle'!$G$17),CAPEX!J74) -> 5825768.511 | K11: =IF('Painel de Controle'!$G$16="S",CAPEX!K74*(1-'Painel de Controle'!$G$17),CAPEX!K74) -> 5048343.322 | L11: =IF('Painel de Controle'!$G$16="S",CAPEX!L74*(1-'Painel de Controle'!$G$17),CAPEX!L74) -> 4807243.104 | M11: =IF('Painel de Controle'!$G$16="S",CAPEX!M74*(1-'Painel de Controle'!$G$17),CAPEX!M74) -> 0 | N11: =IF('Painel de Controle'!$G$16="S",CAPEX!N74*(1-'Painel de Controle'!$G$17),CAPEX!N74) -> 0 | O11: =IF('Painel de Controle'!$G$16="S",CAPEX!O74*(1-'Painel de Controle'!$G$17),CAPEX!O74) -> 0
C12: M. Ambiente (Estudos, Licenças e Exec. PBAs ) | D12: =D75 -> 35 | E12: =SUM(F12:O12) -> 49646210.06 | F12: =IF('Painel de Controle'!$G$16="S",CAPEX!F75*(1-'Painel de Controle'!$G$17),CAPEX!F75) -> 2532964.65 | G12: =IF('Painel de Controle'!$G$16="S",CAPEX!G75*(1-'Painel de Controle'!$G$17),CAPEX!G75) -> 4726100.414 | H12: =IF('Painel de Controle'!$G$16="S",CAPEX!H75*(1-'Painel de Controle'!$G$17),CAPEX!H75) -> 8553411.005 | I12: =IF('Painel de Controle'!$G$16="S",CAPEX!I75*(1-'Painel de Controle'!$G$17),CAPEX!I75) -> 8060282.146 | J12: =IF('Painel de Controle'!$G$16="S",CAPEX!J75*(1-'Painel de Controle'!$G$17),CAPEX!J75) -> 8886621.61 | K12: =IF('Painel de Controle'!$G$16="S",CAPEX!K75*(1-'Painel de Controle'!$G$17),CAPEX!K75) -> 8731314.567 | L12: =IF('Painel de Controle'!$G$16="S",CAPEX!L75*(1-'Painel de Controle'!$G$17),CAPEX!L75) -> 8155515.665
C13: Consultoria (projetos) | D13: 35 | E13: =SUM(F13:O13) -> 2341761.651 | F13: =IF('Painel de Controle'!$G$16="S",CAPEX!F76*(1-'Painel de Controle'!$G$17),CAPEX!F76) -> 2341761.651 | G13: =IF('Painel de Controle'!$G$16="S",CAPEX!G76*(1-'Painel de Controle'!$G$17),CAPEX!G76) -> 0 | H13: =IF('Painel de Controle'!$G$16="S",CAPEX!H76*(1-'Painel de Controle'!$G$17),CAPEX!H76) -> 0 | I13: =IF('Painel de Controle'!$G$16="S",CAPEX!I76*(1-'Painel de Controle'!$G$17),CAPEX!I76) -> 0 | J13: =IF('Painel de Controle'!$G$16="S",CAPEX!J76*(1-'Painel de Controle'!$G$17),CAPEX!J76) -> 0 | K13: =IF('Painel de Controle'!$G$16="S",CAPEX!K76*(1-'Painel de Controle'!$G$17),CAPEX!K76) -> 0 | L13: =IF('Painel de Controle'!$G$16="S",CAPEX!L76*(1-'Painel de Controle'!$G$17),CAPEX!L76) -> 0 | M13: =IF('Painel de Controle'!$G$16="S",CAPEX!M76*(1-'Painel de Controle'!$G$17),CAPEX!M76) -> 0 | N13: =IF('Painel de Controle'!$G$16="S",CAPEX!N76*(1-'Painel de Controle'!$G$17),CAPEX!N76) -> 0 | O13: =IF('Painel de Controle'!$G$16="S",CAPEX!O76*(1-'Painel de Controle'!$G$17),CAPEX!O76) -> 0
C14: Consultoria (supervisão de obras) | D14: 35 | E14: =SUM(F14:O14) -> 2341761.651 | F14: =IF('Painel de Controle'!$G$16="S",CAPEX!F77*(1-'Painel de Controle'!$G$17),CAPEX!F77) -> 0 | G14: =IF('Painel de Controle'!$G$16="S",CAPEX!G77*(1-'Painel de Controle'!$G$17),CAPEX!G77) -> 390293.6085 | H14: =IF('Painel de Controle'!$G$16="S",CAPEX!H77*(1-'Painel de Controle'!$G$17),CAPEX!H77) -> 390293.6085 | I14: =IF('Painel de Controle'!$G$16="S",CAPEX!I77*(1-'Painel de Controle'!$G$17),CAPEX!I77) -> 390293.6085 | J14: =IF('Painel de Controle'!$G$16="S",CAPEX!J77*(1-'Painel de Controle'!$G$17),CAPEX!J77) -> 390293.6085 | K14: =IF('Painel de Controle'!$G$16="S",CAPEX!K77*(1-'Painel de Controle'!$G$17),CAPEX!K77) -> 390293.6085 | L14: =IF('Painel de Controle'!$G$16="S",CAPEX!L77*(1-'Painel de Controle'!$G$17),CAPEX!L77) -> 390293.6085 | M14: =IF('Painel de Controle'!$G$16="S",CAPEX!M77*(1-'Painel de Controle'!$G$17),CAPEX!M77) -> 0 | N14: =IF('Painel de Controle'!$G$16="S",CAPEX!N77*(1-'Painel de Controle'!$G$17),CAPEX!N77) -> 0 | O14: =IF('Painel de Controle'!$G$16="S",CAPEX!O77*(1-'Painel de Controle'!$G$17),CAPEX!O77) -> 0
C15: Serviços preliminares
C16: Mobilização e desmobilização | D16: 35 | E16: =SUM(F16:O16) -> 3274385.912 | F16: =IF('Painel de Controle'!$G$16="S",CAPEX!F79*(1-'Painel de Controle'!$G$17),CAPEX!F79) -> 0 | G16: =IF('Painel de Controle'!$G$16="S",CAPEX!G79*(1-'Painel de Controle'!$G$17),CAPEX!G79) -> 1637192.956 | H16: =IF('Painel de Controle'!$G$16="S",CAPEX!H79*(1-'Painel de Controle'!$G$17),CAPEX!H79) -> 0 | I16: =IF('Painel de Controle'!$G$16="S",CAPEX!I79*(1-'Painel de Controle'!$G$17),CAPEX!I79) -> 0 | J16: =IF('Painel de Controle'!$G$16="S",CAPEX!J79*(1-'Painel de Controle'!$G$17),CAPEX!J79) -> 0 | K16: =IF('Painel de Controle'!$G$16="S",CAPEX!K79*(1-'Painel de Controle'!$G$17),CAPEX!K79) -> 0 | L16: =IF('Painel de Controle'!$G$16="S",CAPEX!L79*(1-'Painel de Controle'!$G$17),CAPEX!L79) -> 1637192.956 | M16: =IF('Painel de Controle'!$G$16="S",CAPEX!M79*(1-'Painel de Controle'!$G$17),CAPEX!M79) -> 0 | N16: =IF('Painel de Controle'!$G$16="S",CAPEX!N79*(1-'Painel de Controle'!$G$17),CAPEX!N79) -> 0 | O16: =IF('Painel de Controle'!$G$16="S",CAPEX!O79*(1-'Painel de Controle'!$G$17),CAPEX!O79) -> 0
C17: Administração direta | D17: 35 | E17: 14902875.19 | F17: =IF('Painel de Controle'!$G$16="S",CAPEX!F80*(1-'Painel de Controle'!$G$17),CAPEX!F80) -> 0 | G17: =IF('Painel de Controle'!$G$16="S",CAPEX!G80*(1-'Painel de Controle'!$G$17),CAPEX!G80) -> 2483812.532 | H17: =IF('Painel de Controle'!$G$16="S",CAPEX!H80*(1-'Painel de Controle'!$G$17),CAPEX!H80) -> 2483812.532 | I17: =IF('Painel de Controle'!$G$16="S",CAPEX!I80*(1-'Painel de Controle'!$G$17),CAPEX!I80) -> 2483812.532 | J17: =IF('Painel de Controle'!$G$16="S",CAPEX!J80*(1-'Painel de Controle'!$G$17),CAPEX!J80) -> 2483812.532 | K17: =IF('Painel de Controle'!$G$16="S",CAPEX!K80*(1-'Painel de Controle'!$G$17),CAPEX!K80) -> 2483812.532 | L17: =IF('Painel de Controle'!$G$16="S",CAPEX!L80*(1-'Painel de Controle'!$G$17),CAPEX!L80) -> 2483812.532 | M17: =IF('Painel de Controle'!$G$16="S",CAPEX!M80*(1-'Painel de Controle'!$G$17),CAPEX!M80) -> 0 | N17: =IF('Painel de Controle'!$G$16="S",CAPEX!N80*(1-'Painel de Controle'!$G$17),CAPEX!N80) -> 0 | O17: =IF('Painel de Controle'!$G$16="S",CAPEX!O80*(1-'Painel de Controle'!$G$17),CAPEX!O80) -> 0
C18: Implantação do canteiro de obras | D18: 35 | E18: =SUM(F18:O18) -> 1637192.956 | F18: =IF('Painel de Controle'!$G$16="S",CAPEX!F81*(1-'Painel de Controle'!$G$17),CAPEX!F81) -> 0 | G18: =IF('Painel de Controle'!$G$16="S",CAPEX!G81*(1-'Painel de Controle'!$G$17),CAPEX!G81) -> 1637192.956 | H18: =IF('Painel de Controle'!$G$16="S",CAPEX!H81*(1-'Painel de Controle'!$G$17),CAPEX!H81) -> 0 | I18: =IF('Painel de Controle'!$G$16="S",CAPEX!I81*(1-'Painel de Controle'!$G$17),CAPEX!I81) -> 0 | J18: =IF('Painel de Controle'!$G$16="S",CAPEX!J81*(1-'Painel de Controle'!$G$17),CAPEX!J81) -> 0 | K18: =IF('Painel de Controle'!$G$16="S",CAPEX!K81*(1-'Painel de Controle'!$G$17),CAPEX!K81) -> 0 | L18: =IF('Painel de Controle'!$G$16="S",CAPEX!L81*(1-'Painel de Controle'!$G$17),CAPEX!L81) -> 0 | M18: =IF('Painel de Controle'!$G$16="S",CAPEX!M81*(1-'Painel de Controle'!$G$17),CAPEX!M81) -> 0 | N18: =IF('Painel de Controle'!$G$16="S",CAPEX!N81*(1-'Painel de Controle'!$G$17),CAPEX!N81) -> 0 | O18: =IF('Painel de Controle'!$G$16="S",CAPEX!O81*(1-'Painel de Controle'!$G$17),CAPEX!O81) -> 0
C19: Infraestrutura
C20: =C83 -> Canal de aproximação | D20: 35 | E20: =IF('Painel de Controle'!$G$16="S",CAPEX!E83*(1-'Painel de Controle'!$G$17),CAPEX!E83) -> 1025379.482 | F20: =IF('Painel de Controle'!$G$16="S",CAPEX!F83*(1-'Painel de Controle'!$G$17),CAPEX!F83) -> 0 | G20: =IF('Painel de Controle'!$G$16="S",CAPEX!G83*(1-'Painel de Controle'!$G$17),CAPEX!G83) -> 1025379.482 | H20: =IF('Painel de Controle'!$G$16="S",CAPEX!H83*(1-'Painel de Controle'!$G$17),CAPEX!H83) -> 0 | I20: =IF('Painel de Controle'!$G$16="S",CAPEX!I83*(1-'Painel de Controle'!$G$17),CAPEX!I83) -> 0 | J20: =IF('Painel de Controle'!$G$16="S",CAPEX!J83*(1-'Painel de Controle'!$G$17),CAPEX!J83) -> 0 | K20: =IF('Painel de Controle'!$G$16="S",CAPEX!K83*(1-'Painel de Controle'!$G$17),CAPEX!K83) -> 0 | L20: =IF('Painel de Controle'!$G$16="S",CAPEX!L83*(1-'Painel de Controle'!$G$17),CAPEX!L83) -> 0 | M20: =IF('Painel de Controle'!$G$16="S",CAPEX!M83*(1-'Painel de Controle'!$G$17),CAPEX!M83) -> 0 | N20: =IF('Painel de Controle'!$G$16="S",CAPEX!N83*(1-'Painel de Controle'!$G$17),CAPEX!N83) -> 0 | O20: =IF('Painel de Controle'!$G$16="S",CAPEX!O83*(1-'Painel de Controle'!$G$17),CAPEX!O83) -> 0
C21: =C84 -> EBP-1 - Fase 1 | D21: 30 | E21: =IF('Painel de Controle'!$G$16="S",CAPEX!E84*(1-'Painel de Controle'!$G$17),CAPEX!E84) -> 1499645.784 | F21: =IF('Painel de Controle'!$G$16="S",CAPEX!F84*(1-'Painel de Controle'!$G$17),CAPEX!F84) -> 0 | G21: =IF('Painel de Controle'!$G$16="S",CAPEX!G84*(1-'Painel de Controle'!$G$17),CAPEX!G84) -> 599858.3137 | H21: =IF('Painel de Controle'!$G$16="S",CAPEX!H84*(1-'Painel de Controle'!$G$17),CAPEX!H84) -> 899787.4705 | I21: =IF('Painel de Controle'!$G$16="S",CAPEX!I84*(1-'Painel de Controle'!$G$17),CAPEX!I84) -> 0 | J21: =IF('Painel de Controle'!$G$16="S",CAPEX!J84*(1-'Painel de Controle'!$G$17),CAPEX!J84) -> 0 | K21: =IF('Painel de Controle'!$G$16="S",CAPEX!K84*(1-'Painel de Controle'!$G$17),CAPEX!K84) -> 0 | L21: =IF('Painel de Controle'!$G$16="S",CAPEX!L84*(1-'Painel de Controle'!$G$17),CAPEX!L84) -> 0 | M21: =IF('Painel de Controle'!$G$16="S",CAPEX!M84*(1-'Painel de Controle'!$G$17),CAPEX!M84) -> 0 | N21: =IF('Painel de Controle'!$G$16="S",CAPEX!N84*(1-'Painel de Controle'!$G$17),CAPEX!N84) -> 0 | O21: =IF('Painel de Controle'!$G$16="S",CAPEX!O84*(1-'Painel de Controle'!$G$17),CAPEX!O84) -> 0
C22: Adutora EBP-1 - Fase 1 | D22: 30 | E22: =IF('Painel de Controle'!$G$16="S",CAPEX!E85*(1-'Painel de Controle'!$G$17),CAPEX!E85) -> 166262.826 | F22: =IF('Painel de Controle'!$G$16="S",CAPEX!F85*(1-'Painel de Controle'!$G$17),CAPEX!F85) -> 0 | G22: =IF('Painel de Controle'!$G$16="S",CAPEX!G85*(1-'Painel de Controle'!$G$17),CAPEX!G85) -> 166262.826 | H22: =IF('Painel de Controle'!$G$16="S",CAPEX!H85*(1-'Painel de Controle'!$G$17),CAPEX!H85) -> 0 | I22: =IF('Painel de Controle'!$G$16="S",CAPEX!I85*(1-'Painel de Controle'!$G$17),CAPEX!I85) -> 0 | J22: =IF('Painel de Controle'!$G$16="S",CAPEX!J85*(1-'Painel de Controle'!$G$17),CAPEX!J85) -> 0 | K22: =IF('Painel de Controle'!$G$16="S",CAPEX!K85*(1-'Painel de Controle'!$G$17),CAPEX!K85) -> 0 | L22: =IF('Painel de Controle'!$G$16="S",CAPEX!L85*(1-'Painel de Controle'!$G$17),CAPEX!L85) -> 0 | M22: =IF('Painel de Controle'!$G$16="S",CAPEX!M85*(1-'Painel de Controle'!$G$17),CAPEX!M85) -> 0 | N22: =IF('Painel de Controle'!$G$16="S",CAPEX!N85*(1-'Painel de Controle'!$G$17),CAPEX!N85) -> 0 | O22: =IF('Painel de Controle'!$G$16="S",CAPEX!O85*(1-'Painel de Controle'!$G$17),CAPEX!O85) -> 0
C23: EBP-1 - Fase 2 | D23: 30 | E23: =IF('Painel de Controle'!$G$16="S",CAPEX!E86*(1-'Painel de Controle'!$G$17),CAPEX!E86) -> 64763.91131 | F23: =IF('Painel de Controle'!$G$16="S",CAPEX!F86*(1-'Painel de Controle'!$G$17),CAPEX!F86) -> 0 | G23: =IF('Painel de Controle'!$G$16="S",CAPEX!G86*(1-'Painel de Controle'!$G$17),CAPEX!G86) -> 64763.91131 | H23: =IF('Painel de Controle'!$G$16="S",CAPEX!H86*(1-'Painel de Controle'!$G$17),CAPEX!H86) -> 0 | I23: =IF('Painel de Controle'!$G$16="S",CAPEX!I86*(1-'Painel de Controle'!$G$17),CAPEX!I86) -> 0 | J23: =IF('Painel de Controle'!$G$16="S",CAPEX!J86*(1-'Painel de Controle'!$G$17),CAPEX!J86) -> 0 | K23: =IF('Painel de Controle'!$G$16="S",CAPEX!K86*(1-'Painel de Controle'!$G$17),CAPEX!K86) -> 0 | L23: =IF('Painel de Controle'!$G$16="S",CAPEX!L86*(1-'Painel de Controle'!$G$17),CAPEX!L86) -> 0 | M23: =IF('Painel de Controle'!$G$16="S",CAPEX!M86*(1-'Painel de Controle'!$G$17),CAPEX!M86) -> 0 | N23: =IF('Painel de Controle'!$G$16="S",CAPEX!N86*(1-'Painel de Controle'!$G$17),CAPEX!N86) -> 0 | O23: =IF('Painel de Controle'!$G$16="S",CAPEX!O86*(1-'Painel de Controle'!$G$17),CAPEX!O86) -> 0
C24: Adutora Principal 1 | D24: 30 | E24: =IF('Painel de Controle'!$G$16="S",CAPEX!E87*(1-'Painel de Controle'!$G$17),CAPEX!E87) -> 38695.81093 | F24: =IF('Painel de Controle'!$G$16="S",CAPEX!F87*(1-'Painel de Controle'!$G$17),CAPEX!F87) -> 0 | G24: =IF('Painel de Controle'!$G$16="S",CAPEX!G87*(1-'Painel de Controle'!$G$17),CAPEX!G87) -> 38695.81093 | H24: =IF('Painel de Controle'!$G$16="S",CAPEX!H87*(1-'Painel de Controle'!$G$17),CAPEX!H87) -> 0 | I24: =IF('Painel de Controle'!$G$16="S",CAPEX!I87*(1-'Painel de Controle'!$G$17),CAPEX!I87) -> 0 | J24: =IF('Painel de Controle'!$G$16="S",CAPEX!J87*(1-'Painel de Controle'!$G$17),CAPEX!J87) -> 0 | K24: =IF('Painel de Controle'!$G$16="S",CAPEX!K87*(1-'Painel de Controle'!$G$17),CAPEX!K87) -> 0 | L24: =IF('Painel de Controle'!$G$16="S",CAPEX!L87*(1-'Painel de Controle'!$G$17),CAPEX!L87) -> 0 | M24: =IF('Painel de Controle'!$G$16="S",CAPEX!M87*(1-'Painel de Controle'!$G$17),CAPEX!M87) -> 0 | N24: =IF('Painel de Controle'!$G$16="S",CAPEX!N87*(1-'Painel de Controle'!$G$17),CAPEX!N87) -> 0 | O24: =IF('Painel de Controle'!$G$16="S",CAPEX!O87*(1-'Painel de Controle'!$G$17),CAPEX!O87) -> 0
C25: Reservatório pulmão e canal principal | D25: 35 | E25: =IF('Painel de Controle'!$G$16="S",CAPEX!E88*(1-'Painel de Controle'!$G$17),CAPEX!E88) -> 1678934.084 | F25: =IF('Painel de Controle'!$G$16="S",CAPEX!F88*(1-'Painel de Controle'!$G$17),CAPEX!F88) -> 0 | G25: =IF('Painel de Controle'!$G$16="S",CAPEX!G88*(1-'Painel de Controle'!$G$17),CAPEX!G88) -> 1678934.084 | H25: =IF('Painel de Controle'!$G$16="S",CAPEX!H88*(1-'Painel de Controle'!$G$17),CAPEX!H88) -> 0 | I25: =IF('Painel de Controle'!$G$16="S",CAPEX!I88*(1-'Painel de Controle'!$G$17),CAPEX!I88) -> 0 | J25: =IF('Painel de Controle'!$G$16="S",CAPEX!J88*(1-'Painel de Controle'!$G$17),CAPEX!J88) -> 0 | K25: =IF('Painel de Controle'!$G$16="S",CAPEX!K88*(1-'Painel de Controle'!$G$17),CAPEX!K88) -> 0 | L25: =IF('Painel de Controle'!$G$16="S",CAPEX!L88*(1-'Painel de Controle'!$G$17),CAPEX!L88) -> 0 | M25: =IF('Painel de Controle'!$G$16="S",CAPEX!M88*(1-'Painel de Controle'!$G$17),CAPEX!M88) -> 0 | N25: =IF('Painel de Controle'!$G$16="S",CAPEX!N88*(1-'Painel de Controle'!$G$17),CAPEX!N88) -> 0 | O25: =IF('Painel de Controle'!$G$16="S",CAPEX!O88*(1-'Painel de Controle'!$G$17),CAPEX!O88) -> 0
C26: Canais CS-2 e CT-2.4 | D26: 35 | E26: =IF('Painel de Controle'!$G$16="S",CAPEX!E89*(1-'Painel de Controle'!$G$17),CAPEX!E89) -> 6881742.03 | F26: =IF('Painel de Controle'!$G$16="S",CAPEX!F89*(1-'Painel de Controle'!$G$17),CAPEX!F89) -> 0 | G26: =IF('Painel de Controle'!$G$16="S",CAPEX!G89*(1-'Painel de Controle'!$G$17),CAPEX!G89) -> 3440871.015 | H26: =IF('Painel de Controle'!$G$16="S",CAPEX!H89*(1-'Painel de Controle'!$G$17),CAPEX!H89) -> 3440871.015 | I26: =IF('Painel de Controle'!$G$16="S",CAPEX!I89*(1-'Painel de Controle'!$G$17),CAPEX!I89) -> 0 | J26: =IF('Painel de Controle'!$G$16="S",CAPEX!J89*(1-'Painel de Controle'!$G$17),CAPEX!J89) -> 0 | K26: =IF('Painel de Controle'!$G$16="S",CAPEX!K89*(1-'Painel de Controle'!$G$17),CAPEX!K89) -> 0 | L26: =IF('Painel de Controle'!$G$16="S",CAPEX!L89*(1-'Painel de Controle'!$G$17),CAPEX!L89) -> 0 | M26: =IF('Painel de Controle'!$G$16="S",CAPEX!M89*(1-'Painel de Controle'!$G$17),CAPEX!M89) -> 0 | N26: =IF('Painel de Controle'!$G$16="S",CAPEX!N89*(1-'Painel de Controle'!$G$17),CAPEX!N89) -> 0 | O26: =IF('Painel de Controle'!$G$16="S",CAPEX!O89*(1-'Painel de Controle'!$G$17),CAPEX!O89) -> 0
C27: Adutora para lotes Área INCRA (antigo CT-2.2) | D27: 30 | E27: =IF('Painel de Controle'!$G$16="S",CAPEX!E90*(1-'Painel de Controle'!$G$17),CAPEX!E90) -> 184216.6699 | F27: =IF('Painel de Controle'!$G$16="S",CAPEX!F90*(1-'Painel de Controle'!$G$17),CAPEX!F90) -> 0 | G27: =IF('Painel de Controle'!$G$16="S",CAPEX!G90*(1-'Painel de Controle'!$G$17),CAPEX!G90) -> 184216.6699 | H27: =IF('Painel de Controle'!$G$16="S",CAPEX!H90*(1-'Painel de Controle'!$G$17),CAPEX!H90) -> 0 | I27: =IF('Painel de Controle'!$G$16="S",CAPEX!I90*(1-'Painel de Controle'!$G$17),CAPEX!I90) -> 0 | J27: =IF('Painel de Controle'!$G$16="S",CAPEX!J90*(1-'Painel de Controle'!$G$17),CAPEX!J90) -> 0 | K27: =IF('Painel de Controle'!$G$16="S",CAPEX!K90*(1-'Painel de Controle'!$G$17),CAPEX!K90) -> 0 | L27: =IF('Painel de Controle'!$G$16="S",CAPEX!L90*(1-'Painel de Controle'!$G$17),CAPEX!L90) -> 0 | M27: =IF('Painel de Controle'!$G$16="S",CAPEX!M90*(1-'Painel de Controle'!$G$17),CAPEX!M90) -> 0 | N27: =IF('Painel de Controle'!$G$16="S",CAPEX!N90*(1-'Painel de Controle'!$G$17),CAPEX!N90) -> 0 | O27: =IF('Painel de Controle'!$G$16="S",CAPEX!O90*(1-'Painel de Controle'!$G$17),CAPEX!O90) -> 0
C28: Tomadas e elevatórias p/ parcelas junto aos canais | D28: 35 | E28: =IF('Painel de Controle'!$G$16="S",CAPEX!E91*(1-'Painel de Controle'!$G$17),CAPEX!E91) -> 8559952.246 | F28: =IF('Painel de Controle'!$G$16="S",CAPEX!F91*(1-'Painel de Controle'!$G$17),CAPEX!F91) -> 0 | G28: =IF('Painel de Controle'!$G$16="S",CAPEX!G91*(1-'Painel de Controle'!$G$17),CAPEX!G91) -> 8559952.246 | H28: =IF('Painel de Controle'!$G$16="S",CAPEX!H91*(1-'Painel de Controle'!$G$17),CAPEX!H91) -> 0 | I28: =IF('Painel de Controle'!$G$16="S",CAPEX!I91*(1-'Painel de Controle'!$G$17),CAPEX!I91) -> 0 | J28: =IF('Painel de Controle'!$G$16="S",CAPEX!J91*(1-'Painel de Controle'!$G$17),CAPEX!J91) -> 0 | K28: =IF('Painel de Controle'!$G$16="S",CAPEX!K91*(1-'Painel de Controle'!$G$17),CAPEX!K91) -> 0 | L28: =IF('Painel de Controle'!$G$16="S",CAPEX!L91*(1-'Painel de Controle'!$G$17),CAPEX!L91) -> 0 | M28: =IF('Painel de Controle'!$G$16="S",CAPEX!M91*(1-'Painel de Controle'!$G$17),CAPEX!M91) -> 0 | N28: =IF('Painel de Controle'!$G$16="S",CAPEX!N91*(1-'Painel de Controle'!$G$17),CAPEX!N91) -> 0 | O28: =IF('Painel de Controle'!$G$16="S",CAPEX!O91*(1-'Painel de Controle'!$G$17),CAPEX!O91) -> 0
C29: =C92 -> EBP-2 | D29: =D92 -> 30 | E29: =IF('Painel de Controle'!$G$16="S",CAPEX!E92*(1-'Painel de Controle'!$G$17),CAPEX!E92) -> 2705026.179 | F29: =IF('Painel de Controle'!$G$16="S",CAPEX!F92*(1-'Painel de Controle'!$G$17),CAPEX!F92) -> 0 | G29: =IF('Painel de Controle'!$G$16="S",CAPEX!G92*(1-'Painel de Controle'!$G$17),CAPEX!G92) -> 0 | H29: =IF('Painel de Controle'!$G$16="S",CAPEX!H92*(1-'Painel de Controle'!$G$17),CAPEX!H92) -> 1082010.471 | I29: =IF('Painel de Controle'!$G$16="S",CAPEX!I92*(1-'Painel de Controle'!$G$17),CAPEX!I92) -> 1623015.707 | J29: =IF('Painel de Controle'!$G$16="S",CAPEX!J92*(1-'Painel de Controle'!$G$17),CAPEX!J92) -> 0 | K29: =IF('Painel de Controle'!$G$16="S",CAPEX!K92*(1-'Painel de Controle'!$G$17),CAPEX!K92) -> 0 | L29: =IF('Painel de Controle'!$G$16="S",CAPEX!L92*(1-'Painel de Controle'!$G$17),CAPEX!L92) -> 0 | M29: =IF('Painel de Controle'!$G$16="S",CAPEX!M92*(1-'Painel de Controle'!$G$17),CAPEX!M92) -> 0 | N29: =IF('Painel de Controle'!$G$16="S",CAPEX!N92*(1-'Painel de Controle'!$G$17),CAPEX!N92) -> 0 | O29: =IF('Painel de Controle'!$G$16="S",CAPEX!O92*(1-'Painel de Controle'!$G$17),CAPEX!O92) -> 0
C30: Adutora Principal 2 | D30: 30 | E30: =IF('Painel de Controle'!$G$16="S",CAPEX!E93*(1-'Painel de Controle'!$G$17),CAPEX!E93) -> 25723.88709 | F30: =IF('Painel de Controle'!$G$16="S",CAPEX!F93*(1-'Painel de Controle'!$G$17),CAPEX!F93) -> 0 | G30: =IF('Painel de Controle'!$G$16="S",CAPEX!G93*(1-'Painel de Controle'!$G$17),CAPEX!G93) -> 0 | H30: =IF('Painel de Controle'!$G$16="S",CAPEX!H93*(1-'Painel de Controle'!$G$17),CAPEX!H93) -> 10289.55484 | I30: =IF('Painel de Controle'!$G$16="S",CAPEX!I93*(1-'Painel de Controle'!$G$17),CAPEX!I93) -> 15434.33225 | J30: =IF('Painel de Controle'!$G$16="S",CAPEX!J93*(1-'Painel de Controle'!$G$17),CAPEX!J93) -> 0 | K30: =IF('Painel de Controle'!$G$16="S",CAPEX!K93*(1-'Painel de Controle'!$G$17),CAPEX!K93) -> 0 | L30: =IF('Painel de Controle'!$G$16="S",CAPEX!L93*(1-'Painel de Controle'!$G$17),CAPEX!L93) -> 0 | M30: =IF('Painel de Controle'!$G$16="S",CAPEX!M93*(1-'Painel de Controle'!$G$17),CAPEX!M93) -> 0 | N30: =IF('Painel de Controle'!$G$16="S",CAPEX!N93*(1-'Painel de Controle'!$G$17),CAPEX!N93) -> 0 | O30: =IF('Painel de Controle'!$G$16="S",CAPEX!O93*(1-'Painel de Controle'!$G$17),CAPEX!O93) -> 0
C31: Proteção catódica | D31: 30 | E31: =IF('Painel de Controle'!$G$16="S",CAPEX!E94*(1-'Painel de Controle'!$G$17),CAPEX!E94) -> 607274.4338 | F31: =IF('Painel de Controle'!$G$16="S",CAPEX!F94*(1-'Painel de Controle'!$G$17),CAPEX!F94) -> 0 | G31: =IF('Painel de Controle'!$G$16="S",CAPEX!G94*(1-'Painel de Controle'!$G$17),CAPEX!G94) -> 0 | H31: =IF('Painel de Controle'!$G$16="S",CAPEX!H94*(1-'Painel de Controle'!$G$17),CAPEX!H94) -> 303637.2169 | I31: =IF('Painel de Controle'!$G$16="S",CAPEX!I94*(1-'Painel de Controle'!$G$17),CAPEX!I94) -> 303637.2169 | J31: =IF('Painel de Controle'!$G$16="S",CAPEX!J94*(1-'Painel de Controle'!$G$17),CAPEX!J94) -> 0 | K31: =IF('Painel de Controle'!$G$16="S",CAPEX!K94*(1-'Painel de Controle'!$G$17),CAPEX!K94) -> 0 | L31: =IF('Painel de Controle'!$G$16="S",CAPEX!L94*(1-'Painel de Controle'!$G$17),CAPEX!L94) -> 0 | M31: =IF('Painel de Controle'!$G$16="S",CAPEX!M94*(1-'Painel de Controle'!$G$17),CAPEX!M94) -> 0 | N31: =IF('Painel de Controle'!$G$16="S",CAPEX!N94*(1-'Painel de Controle'!$G$17),CAPEX!N94) -> 0 | O31: =IF('Painel de Controle'!$G$16="S",CAPEX!O94*(1-'Painel de Controle'!$G$17),CAPEX!O94) -> 0
C32: Estações de bombeamento (EBS 1, 2, 3 e 4)) | D32: 30 | E32: =IF('Painel de Controle'!$G$16="S",CAPEX!E95*(1-'Painel de Controle'!$G$17),CAPEX!E95) -> 21496784.37 | F32: =IF('Painel de Controle'!$G$16="S",CAPEX!F95*(1-'Painel de Controle'!$G$17),CAPEX!F95) -> 0 | G32: =IF('Painel de Controle'!$G$16="S",CAPEX!G95*(1-'Painel de Controle'!$G$17),CAPEX!G95) -> 0 | H32: =IF('Painel de Controle'!$G$16="S",CAPEX!H95*(1-'Painel de Controle'!$G$17),CAPEX!H95) -> 0 | I32: =IF('Painel de Controle'!$G$16="S",CAPEX!I95*(1-'Painel de Controle'!$G$17),CAPEX!I95) -> 5374196.093 | J32: =IF('Painel de Controle'!$G$16="S",CAPEX!J95*(1-'Painel de Controle'!$G$17),CAPEX!J95) -> 5374196.093 | K32: =IF('Painel de Controle'!$G$16="S",CAPEX!K95*(1-'Painel de Controle'!$G$17),CAPEX!K95) -> 5374196.093 | L32: =IF('Painel de Controle'!$G$16="S",CAPEX!L95*(1-'Painel de Controle'!$G$17),CAPEX!L95) -> 5374196.093 | M32: =IF('Painel de Controle'!$G$16="S",CAPEX!M95*(1-'Painel de Controle'!$G$17),CAPEX!M95) -> 0 | N32: =IF('Painel de Controle'!$G$16="S",CAPEX!N95*(1-'Painel de Controle'!$G$17),CAPEX!N95) -> 0 | O32: =IF('Painel de Controle'!$G$16="S",CAPEX!O95*(1-'Painel de Controle'!$G$17),CAPEX!O95) -> 0
C33: Redes de adutoras pressurizadas (SH 1, 2, 3 e 4) | D33: 30 | E33: =IF('Painel de Controle'!$G$16="S",CAPEX!E96*(1-'Painel de Controle'!$G$17),CAPEX!E96) -> 3624650.545 | F33: =IF('Painel de Controle'!$G$16="S",CAPEX!F96*(1-'Painel de Controle'!$G$17),CAPEX!F96) -> 0 | G33: =IF('Painel de Controle'!$G$16="S",CAPEX!G96*(1-'Painel de Controle'!$G$17),CAPEX!G96) -> 0 | H33: =IF('Painel de Controle'!$G$16="S",CAPEX!H96*(1-'Painel de Controle'!$G$17),CAPEX!H96) -> 0 | I33: =IF('Painel de Controle'!$G$16="S",CAPEX!I96*(1-'Painel de Controle'!$G$17),CAPEX!I96) -> 906162.6364 | J33: =IF('Painel de Controle'!$G$16="S",CAPEX!J96*(1-'Painel de Controle'!$G$17),CAPEX!J96) -> 906162.6364 | K33: =IF('Painel de Controle'!$G$16="S",CAPEX!K96*(1-'Painel de Controle'!$G$17),CAPEX!K96) -> 906162.6364 | L33: =IF('Painel de Controle'!$G$16="S",CAPEX!L96*(1-'Painel de Controle'!$G$17),CAPEX!L96) -> 906162.6364 | M33: =IF('Painel de Controle'!$G$16="S",CAPEX!M96*(1-'Painel de Controle'!$G$17),CAPEX!M96) -> 0 | N33: =IF('Painel de Controle'!$G$16="S",CAPEX!N96*(1-'Painel de Controle'!$G$17),CAPEX!N96) -> 0 | O33: =IF('Painel de Controle'!$G$16="S",CAPEX!O96*(1-'Painel de Controle'!$G$17),CAPEX!O96) -> 0
C34: Sistema de drenagem | D34: 35 | E34: =IF('Painel de Controle'!$G$16="S",CAPEX!E97*(1-'Painel de Controle'!$G$17),CAPEX!E97) -> 2552717.749 | F34: =IF('Painel de Controle'!$G$16="S",CAPEX!F97*(1-'Painel de Controle'!$G$17),CAPEX!F97) -> 0 | G34: =IF('Painel de Controle'!$G$16="S",CAPEX!G97*(1-'Painel de Controle'!$G$17),CAPEX!G97) -> 1021087.1 | H34: =IF('Painel de Controle'!$G$16="S",CAPEX!H97*(1-'Painel de Controle'!$G$17),CAPEX!H97) -> 0 | I34: =IF('Painel de Controle'!$G$16="S",CAPEX!I97*(1-'Painel de Controle'!$G$17),CAPEX!I97) -> 382907.6623 | J34: =IF('Painel de Controle'!$G$16="S",CAPEX!J97*(1-'Painel de Controle'!$G$17),CAPEX!J97) -> 382907.6623 | K34: =IF('Painel de Controle'!$G$16="S",CAPEX!K97*(1-'Painel de Controle'!$G$17),CAPEX!K97) -> 382907.6623 | L34: =IF('Painel de Controle'!$G$16="S",CAPEX!L97*(1-'Painel de Controle'!$G$17),CAPEX!L97) -> 382907.6623 | M34: =IF('Painel de Controle'!$G$16="S",CAPEX!M97*(1-'Painel de Controle'!$G$17),CAPEX!M97) -> 0 | N34: =IF('Painel de Controle'!$G$16="S",CAPEX!N97*(1-'Painel de Controle'!$G$17),CAPEX!N97) -> 0 | O34: =IF('Painel de Controle'!$G$16="S",CAPEX!O97*(1-'Painel de Controle'!$G$17),CAPEX!O97) -> 0
C35: Sistema viário | D35: 35 | E35: =IF('Painel de Controle'!$G$16="S",CAPEX!E98*(1-'Painel de Controle'!$G$17),CAPEX!E98) -> 872849.8103 | F35: =IF('Painel de Controle'!$G$16="S",CAPEX!F98*(1-'Painel de Controle'!$G$17),CAPEX!F98) -> 0 | G35: =IF('Painel de Controle'!$G$16="S",CAPEX!G98*(1-'Painel de Controle'!$G$17),CAPEX!G98) -> 349139.9241 | H35: =IF('Painel de Controle'!$G$16="S",CAPEX!H98*(1-'Painel de Controle'!$G$17),CAPEX!H98) -> 0 | I35: =IF('Painel de Controle'!$G$16="S",CAPEX!I98*(1-'Painel de Controle'!$G$17),CAPEX!I98) -> 130927.4715 | J35: =IF('Painel de Controle'!$G$16="S",CAPEX!J98*(1-'Painel de Controle'!$G$17),CAPEX!J98) -> 130927.4715 | K35: =IF('Painel de Controle'!$G$16="S",CAPEX!K98*(1-'Painel de Controle'!$G$17),CAPEX!K98) -> 130927.4715 | L35: =IF('Painel de Controle'!$G$16="S",CAPEX!L98*(1-'Painel de Controle'!$G$17),CAPEX!L98) -> 130927.4715 | M35: =IF('Painel de Controle'!$G$16="S",CAPEX!M98*(1-'Painel de Controle'!$G$17),CAPEX!M98) -> 0 | N35: =IF('Painel de Controle'!$G$16="S",CAPEX!N98*(1-'Painel de Controle'!$G$17),CAPEX!N98) -> 0 | O35: =IF('Painel de Controle'!$G$16="S",CAPEX!O98*(1-'Painel de Controle'!$G$17),CAPEX!O98) -> 0
C36: Suprimento de energia elétrica
